Workbook

Sheet رصد الترم الثانى
C1: =COLUMN() -> 3 | D1: =COLUMN() -> 4 | E1: =COLUMN() -> 5 | F1: =COLUMN() -> 6 | G1: =COLUMN() -> 7 | H1: =COLUMN() -> 8 | I1: =COLUMN() -> 9 | J1: =COLUMN() -> 10 | K1: =COLUMN() -> 11 | L1: =COLUMN() -> 12 | M1: =COLUMN() -> 13 | N1: =COLUMN() -> 14 | O1: =COLUMN() -> 15 | P1: =COLUMN() -> 16 | Q1: =COLUMN() -> 17 | R1: =COLUMN() -> 18 | S1: =COLUMN() -> 19 | T1: =COLUMN() -> 20 | U1: =COLUMN() -> 21 | V1: =COLUMN() -> 22 | W1: =COLUMN() -> 23 | X1: =COLUMN() -> 24 | Y1: =COLUMN() -> 25 | Z1: =COLUMN() -> 26 | AA1: =COLUMN() -> 27 | AB1: =COLUMN() -> 28 | AC1: =COLUMN() -> 29 | AD1: =COLUMN() -> 30 | AE1: =COLUMN() -> 31 | AF1: =COLUMN() -> 32 | AG1: =COLUMN() -> 33 | AH1: =COLUMN() -> 34 | AI1: =COLUMN() -> 35 | AJ1: =COLUMN() -> 36 | AK1: =COLUMN() -> 37 | AL1: =COLUMN() -> 38 | AM1: =COLUMN() -> 39 | AN1: =COLUMN() -> 40 | AO1: =COLUMN() -> 41 | AP1: =COLUMN() -> 42 | AQ1: =COLUMN() -> 43 | AR1: =COLUMN() -> 44 | AS1: =COLUMN() -> 45 | AT1: =COLUMN() -> 46 | AU1: =COLUMN() -> 47 | AV1: =COLUMN() -> 48 | AW1: =COLUMN() -> 49 | AX1: =COLUMN() -> 50 | AY1: =COLUMN() -> 51 | AZ1: =COLUMN() -> 52 | BA1: =COLUMN() -> 53 | BB1: =COLUMN() -> 54 | BC1: =COLUMN() -> 55 | BD1: =COLUMN() -> 56 | BE1: =COLUMN() -> 57 | BF1: =COLUMN() -> 58 | BG1: =COLUMN() -> 59 | BH1: =COLUMN() -> 60 | BI1: =COLUMN() -> 61 | BJ1: =COLUMN() -> 62 | BK1: =COLUMN() -> 63 | BL1: =COLUMN() -> 64 | BM1: =COLUMN() -> 65 | BN1: =COLUMN() -> 66 | BO1: =COLUMN() -> 67 | BP1: =COLUMN() -> 68 | BQ1: =COLUMN() -> 69 | BR1: =COLUMN() -> 70 | BS1: =COLUMN() -> 71 | BT1: =COLUMN() -> 72 | BU1: =COLUMN() -> 73 | BV1: =COLUMN() -> 74 | BW1: =COLUMN() -> 75 | BX1: =COLUMN() -> 76 | BY1: =COLUMN() -> 77 | BZ1: =COLUMN() -> 78 | CA1: =COLUMN() -> 79 | CB1: =COLUMN() -> 80 | CC1: =COLUMN() -> 81 | CD1: =COLUMN() -> 82 | CE1: =COLUMN() -> 83 | CF1: =COLUMN() -> 84 | CG1: =COLUMN() -> 85 | CH1: =COLUMN() -> 86 | CI1: =COLUMN() -> 87 | CJ1: =COLUMN() -> 88 | CK1: =COLUMN() -> 89 | CL1: =COLUMN() -> 90 | CM1: =COLUMN() -> 91 | CN1: =COLUMN() -> 92 | CO1: =COLUMN() -> 93 | CP1: =COLUMN() -> 94 | CQ1: =COLUMN() -> 95 | CR1: =COLUMN() -> 96 | CS1: =COLUMN() -> 97 | CT1: =COLUMN() -> 98 | CU1: =COLUMN() -> 99 | CV1: =COLUMN() -> 100 | CW1: =COLUMN() -> 101 | CX1: =COLUMN() -> 102
A2: السري | B2: الجلوس | D2: المادة | E2: اللغة العربية والخط | G2: الغياب | J2: اللغة العربية والخط | N2: الرياضيات | P2: الغياب | S2: الرياضيات | W2: الدراسات الإجتماعية | Y2: الغياب | AB2: الدراسات الإجتماعية | AF2: اللغة الأجنبية | AH2: الغياب | AK2: اللغة الأجنبية | AO2: العلـوم | AR2: الغياب | AV2: العلـوم | AZ2: مجموع المواد الأساسية | BA2: نشاط التربية الفنية | BF2: نشاط التربية الرياضية | BK2: نشاط اختيارى ( 1 ) | BP2: نشاط اختيارى ( 2 ) | BU2: المجموع الكلي | BV2: التربية الدينية | BX2: الغياب | CA2: التربية الدينية | CE2: لغة أجنبية ( مستوى رفيع E ) | CG2: الغياب | CJ2: لغة أجنبية ( مستوى رفيع E ) | CN2: لغة أجنبية ( مستوى رفيع F ) | CP2: الغياب | CS2: لغة أجنبية ( مستوى رفيع F )
E3: تقويمات الفصل الدراسى الأول | F3: اختبارالفصل الدراســـــــى الأول | G3: المرصود | J3: المجموع | K3: محموع الفصلين الدراسيين | L3: متوسط الفصلين الدراسيين | M3: الدرجة الأصلية | N3: تقويمات الفصل الدراسى الأول | O3: اختبارالفصل الدراســـــــى الأول | P3: المرصود | S3: المجموع | T3: محموع الفصلين الدراسيين | U3: متوسط الفصلين الدراسيين | V3: الدرجة الأصلية | W3: تقويمات الفصل الدراسى الأول | X3: اختبارالفصل الدراســـــــى الأول | Y3: المرصود | AB3: المجموع | AC3: محموع الفصلين الدراسيين | AD3: متوسط الفصلين الدراسيين | AE3: الدرجة الأصلية | AF3: تقويمات الفصل الدراسى الأول | AG3: اختبارالفصل الدراســـــــى الأول | AH3: المرصود | AK3: المجموع | AL3: محموع الفصلين الدراسيين | AM3: متوسط الفصلين الدراسيين | AN3: الدرجة الأصلية | AO3: الفصل الدراسى الأول | AR3: المرصود | AV3: الدراسى الثانى | AW3: محموع الفصلين الدراسيين | AX3: متوسط الفصلين الدراسيين | AY3: الدرجة الأصلية | BA3: تقويمات الفصل الدراسى الأول | BB3: تقويمات الفصل الدراسى الثانى | BC3: محموع الفصلين الدراسيين | BD3: متوسط الفصلين الدراسيين | BE3: الدرجة الأصلية | BF3: تقويمات الفصل الدراسى الأول | BG3: تقويمات الفصل الدراسى الثانى | BH3: محموع الفصلين الدراسيين | BI3: متوسط الفصلين الدراسيين | BJ3: الدرجة الأصلية | BK3: تقويمات الفصل الدراسى الأول | BL3: تقويمات الفصل الدراسى الثانى | BM3: محموع الفصلين الدراسيين | BN3: متوسط الفصلين الدراسيين | BO3: الدرجة الأصلية | BP3: تقويمات الفصل الدراسى الأول | BQ3: تقويمات الفصل الدراسى الثانى | BR3: محموع الفصلين الدراسيين | BS3: متوسط الفصلين الدراسيين | BT3: الدرجة الأصلية | BV3: تقويمات الفصل الدراسى الأول | BW3: اختبارالفصل الدراســـــــى الأول | BX3: المرصود | CA3: المجموع | CB3: محموع الفصلين الدراسيين | CC3: متوسط الفصلين الدراسيين | CD3: الدرجة الأصلية | CE3: تقويمات الفصل الدراسى الأول | CF3: اختبارالفصل الدراســـــــى الأول | CG3: المرصود | CJ3: المجموع | CK3: محموع الفصلين الدراسيين | CL3: متوسط الفصلين الدراسيين | CM3: الدرجة الأصلية | CN3: تقويمات الفصل الدراسى الأول | CO3: اختبارالفصل الدراســـــــى الأول | CP3: المرصود | CS3: المجموع | CT3: محموع الفصلين الدراسيين | CU3: متوسط الفصلين الدراسيين | CV3: الدرجة الأصلية
C4: الاســم | D4: توزيع الدرجات | G4: المجموع | H4: تقويمات الفصل الدراسى الثانى | I4: اختبارالفصل الدراســـــى الثانى | P4: المجموع | Q4: تقويمات الفصل الدراسى الثانى | R4: اختبارالفصل الدراســـــى الثانى | Y4: المجموع | Z4: تقويمات الفصل الدراسى الثانى | AA4: اختبارالفصل الدراســـــى الثانى | AH4: المجموع | AI4: تقويمات الفصل الدراسى الثانى | AJ4: اختبارالفصل الدراســـــى الثانى | AO4: تقويمات الفصل الدراسى الأول | AP4: اختبار العملى | AQ4: اختبار التحريرى | AR4: المحموع | AS4: تقويمات الفصل الدراسى الثانى | AT4: اختبار العملى | AU4: اختبار التحريرى | AV4: المحموع | BX4: المجموع | BY4: تقويمات الفصل الدراسى الثانى | BZ4: اختبارالفصل الدراســـــى الثانى | CG4: المجموع | CH4: تقويمات الفصل الدراسى الثانى | CI4: اختبارالفصل الدراســـــى الثانى | CP4: المجموع | CQ4: تقويمات الفصل الدراسى الثانى | CR4: اختبارالفصل الدراســـــى الثانى | CW4: النتيجة | CX4: ملاحظات | DB4: =101/4 -> 25.25
D5: النهاية الكبري | E5: 60 | F5: 40 | G5: =SUM(E5:F5) -> 100 | H5: =E5 -> 60 | I5: =F5 -> 40 | J5: =SUM(H5:I5) -> 100 | K5: =J5+G5 -> 200 | L5: =K5/2 -> 100 | M5: =L5 -> 100 | N5: 60 | O5: 40 | P5: =SUM(N5:O5) -> 100 | Q5: =N5 -> 60 | R5: =O5 -> 40 | S5: =SUM(Q5:R5) -> 100 | T5: =S5+P5 -> 200 | U5: =T5/2 -> 100 | V5: =U5*0.8 -> 80 | W5: 60 | X5: 40 | Y5: =SUM(W5:X5) -> 100 | Z5: =W5 -> 60 | AA5: =X5 -> 40 | AB5: =SUM(Z5:AA5) -> 100 | AC5: =AB5+Y5 -> 200 | AD5: =AC5/2 -> 100 | AE5: =AD5*0.4 -> 40 | AF5: 60 | AG5: 40 | AH5: =SUM(AF5:AG5) -> 100 | AI5: =AF5 -> 60 | AJ5: =AG5 -> 40 | AK5: =SUM(AI5:AJ5) -> 100 | AL5: =AK5+AH5 -> 200 | AM5: =AL5/2 -> 100 | AN5: =IF(OR($DH$4=1,$DH$4=2,$DH$4=3),AM5*0.3,AM5*0.4) -> 40 | AO5: 60 | AP5: 8 | AQ5: 32 | AR5: =SUM(AO5:AQ5) -> 100 | AS5: =AO5 -> 60 | AT5: =AP5 -> 8 | AU5: =AQ5 -> 32 | AV5: =SUM(AS5:AU5) -> 100 | AW5: =AV5+AR5 -> 200 | AX5: =AW5/2 -> 100 | AY5: =AX5*0.4 -> 40 | AZ5: =AY5+AN5+AE5+V5+M5 -> 300 | BA5: 100 | BB5: =BA5 -> 100 | BC5: =BA5+BB5 -> 200 | BD5: =BC5/2 -> 100 | BE5: =IF(BD5=10,BD5*2,BD5*0.2) -> 20 | BF5: 100 | BG5: =BF5 -> 100 | BH5: =BF5+BG5 -> 200 | BI5: =BH5/2 -> 100 | BJ5: =IF(BI5=10,BI5*2,BI5*0.2) -> 20 | BK5: 100 | BL5: =BK5 -> 100 | BM5: =BK5+BL5 -> 200 | BN5: =BM5/2 -> 100 | BO5: =IF(BN5=10,BN5*2,BN5*0.2) -> 20 | BP5: 100 | BQ5: =BP5 -> 100 | BR5: =BP5+BQ5 -> 200 | BS5: =BR5/2 -> 100 | BT5: =IF(BS5=10,BS5*2,BS5*0.2) -> 20 | BU5: =AZ5+BE5+BJ5+BO5+BT5 -> 380 | BV5: 60 | BW5: 40 | BX5: =SUM(BV5:BW5) -> 100 | BY5: =BV5 -> 60 | BZ5: =BW5 -> 40 | CA5: =SUM(BY5:BZ5) -> 100 | CB5: =CA5+BX5 -> 200 | CC5: =CB5/2 -> 100 | CD5: =IF(OR($DH$4=1,$DH$4=2,$DH$4=3),CC5*0.3,CC5*0.4) -> 40 | CE5: 60 | CF5: 40 | CG5: =SUM(CE5:CF5) -> 100 | CH5: =CE5 -> 60 | CI5: =CF5 -> 40 | CJ5: =SUM(CH5:CI5) -> 100 | CK5: =CJ5+CG5 -> 200 | CL5: =CK5/2 -> 100 | CM5: =IF(OR($DH$4=1,$DH$4=2,$DH$4=3),CL5*0.3,CL5*0.4) -> 40 | CN5: 60 | CO5: 40 | CP5: =SUM(CN5:CO5) -> 100 | CQ5: =CN5 -> 60 | CR5: =CO5 -> 40 | CS5: =SUM(CQ5:CR5) -> 100 | CT5: =CS5+CP5 -> 200 | CU5: =CT5/2 -> 100 | CV5: =IF(OR($DH$4=1,$DH$4=2,$DH$4=3),CU5*0.3,CU5*0.4) -> 40
D6: النهاية الصغري | I6: =I5*30% -> 12 | M6: =M5/2 -> 50 | R6: =R5*30% -> 12 | V6: =V5/2 -> 40 | AA6: =AA5*30% -> 12 | AE6: =AE5/2 -> 20 | AJ6: =AJ5*30% -> 12 | AN6: =AN5/2 -> 20 | AT6: =SUM(AT5:AU5)*30% -> 12 | AY6: =AY5/2 -> 20 | AZ6: =AZ5/2 -> 150 | BE6: =BE5/2 -> 10 | BJ6: =BJ5/2 -> 10 | BO6: =BO5/2 -> 10 | BT6: =BT5/2 -> 10 | BU6: =BU5/2 -> 190 | BZ6: =BZ5*30% -> 12 | CD6: =CD5/2 -> 20 | CI6: =CI5*30% -> 12 | CM6: =CM5/2 -> 20 | CR6: =CR5*30% -> 12 | CV6: =CV5/2 -> 20
A7: 50 | B7: 700 | C7: اسلام محمدي عبد السميع عبد الغني | D7: 1 | E7: 60 | F7: 40 | G7: 100 | H7: 60 | I7: 39 | J7: 99 | K7: 199 | L7: 99.5 | M7: 99.5 | N7: 58 | O7: 40 | P7: 98 | Q7: 60 | R7: 40 | S7: 100 | T7: 198 | U7: 99 | V7: 79.2 | W7: 59 | X7: 39 | Y7: 98 | Z7: 58 | AA7: 40 | AB7: 98 | AC7: 196 | AD7: 98 | AE7: 39.2 | AF7: 60 | AG7: 39 | AH7: 99 | AI7: 60 | AJ7: 39 | AK7: 99 | AL7: 198 | AM7: 99 | AN7: 39.6 | AO7: 60 | AP7: 8 | AQ7: 32 | AR7: 100 | AS7: 60 | AT7: 8 | AU7: 32 | AV7: 100 | AW7: 200 | AX7: 100 | AY7: 40 | AZ7: 297.5 | BA7: 100 | BB7: 100 | BC7: 200 | BD7: 100 | BE7: 20 | BF7: 100 | BG7: 100 | BH7: 200 | BI7: 100 | BJ7: 20 | BK7: 100 | BL7: 100 | BM7: 200 | BN7: 100 | BO7: 20 | BP7: 100 | BQ7: 100 | BR7: 200 | BS7: 100 | BT7: 20 | BU7: 377.5 | BV7: 59 | BW7: 31 | BX7: 90 | BY7: 59 | BZ7: 40 | CA7: 99 | CB7: 189 | CC7: 94.5 | CD7: 37.8 | CE7: 0 | CF7: 0 | CG7: 0 | CH7: 0 | CJ7: 0 | CK7: 0 | CL7: 0 | CM7: 0 | CN7: 0 | CO7: 0 | CP7: 0 | CQ7: 0 | CS7: 0 | CT7: 0 | CU7: 0 | CV7: 0 | CW7: ناجــــح | CX7: ومنقول للصف الخامس | DH7: =IFERROR(INDEX($B$7:$B$33,MATCH(0,INDEX(COUNTIF($DH$6:DH6,$B$7:$B$33),),0)),"") -> 700
B8: 701 | C8: السيد شريف عبد العليم السيد | D8: 1 | E8: 48 | F8: 15 | G8: 63 | H8: 43 | I8: 22 | J8: 65 | K8: 128 | L8: 64 | M8: 64 | N8: 42 | O8: 24 | P8: 66 | Q8: 44 | R8: 28 | S8: 72 | T8: 138 | U8: 69 | V8: 55.2 | W8: 45 | X8: 30 | Y8: 75 | Z8: 36 | AA8: 33 | AB8: 69 | AC8: 144 | AD8: 72 | AE8: 28.8 | AF8: 55 | AG8: 36 | AH8: 91 | AI8: 46 | AJ8: 37 | AK8: 83 | AL8: 174 | AM8: 87 | AN8: 34.8 | AO8: 48 | AP8: 8 | AQ8: 26 | AR8: 82 | AS8: 51 | AT8: 8 | AU8: 27 | AV8: 86 | AW8: 168 | AX8: 84 | AY8: 33.6 | AZ8: 216.4 | BA8: 100 | BB8: 100 | BC8: 200 | BD8: 100 | BE8: 20 | BF8: 100 | BG8: 100 | BH8: 200 | BI8: 100 | BJ8: 20 | BK8: 100 | BL8: 100 | BM8: 200 | BN8: 100 | BO8: 20 | BP8: 100 | BQ8: 100 | BR8: 200 | BS8: 100 | BT8: 20 | BU8: 296.5 | BV8: 39 | BW8: 21 | BX8: 60 | BY8: 40 | BZ8: 26 | CA8: 66 | CB8: 126 | CC8: 63 | CD8: 25.2 | CE8: 0 | CF8: 0 | CG8: 0 | CH8: 0 | CJ8: 0 | CK8: 0 | CL8: 0 | CM8: 0 | CN8: 0 | CO8: 0 | CP8: 0 | CQ8: 0 | CS8: 0 | CT8: 0 | CU8: 0 | CV8: 0 | CW8: ناجــــح | CX8: ومنقول للصف الخامس | DH8: =IFERROR(INDEX($B$7:$B$33,MATCH(0,INDEX(COUNTIF($DH$6:DH7,$B$7:$B$33),),0)),"") -> 701
B9: 702 | C9: السيد صلاح السيد محمد | D9: 1 | E9: 60 | F9: 40 | G9: 100 | H9: 59 | I9: 39 | J9: 98 | K9: 198 | L9: 99 | M9: 99 | N9: 60 | O9: 37 | P9: 97 | Q9: 54 | R9: 37 | S9: 91 | T9: 188 | U9: 94 | V9: 75.2 | W9: 54 | X9: 40 | Y9: 94 | Z9: 55 | AA9: 40 | AB9: 95 | AC9: 189 | AD9: 94.5 | AE9: 37.8 | AF9: 60 | AG9: 40 | AH9: 100 | AI9: 59 | AJ9: 40 | AK9: 99 | AL9: 199 | AM9: 99.5 | AN9: 39.8 | AO9: 60 | AP9: 8 | AQ9: 31 | AR9: 99 | AS9: 59 | AT9: 8 | AU9: 30 | AV9: 97 | AW9: 196 | AX9: 98 | AY9: 39.2 | AZ9: 291 | BA9: 100 | BB9: 100 | BC9: 200 | BD9: 100 | BE9: 20 | BF9: 100 | BG9: 100 | BH9: 200 | BI9: 100 | BJ9: 20 | BK9: 100 | BL9: 100 | BM9: 200 | BN9: 100 | BO9: 20 | BP9: 100 | BQ9: 100 | BR9: 200 | BS9: 100 | BT9: 20 | BU9: 371 | BV9: 59 | BW9: 30 | BX9: 89 | BY9: 57 | BZ9: 38 | CA9: 95 | CB9: 184 | CC9: 92 | CD9: 36.8 | CE9: 0 | CF9: 0 | CG9: 0 | CH9: 0 | CJ9: 0 | CK9: 0 | CL9: 0 | CM9: 0 | CN9: 0 | CO9: 0 | CP9: 0 | CQ9: 0 | CS9: 0 | CT9: 0 | CU9: 0 | CV9: 0 | CW9: ناجــــح | CX9: ومنقول للصف الخامس | DH9: =IFERROR(INDEX($B$7:$B$33,MATCH(0,INDEX(COUNTIF($DH$6:DH8,$B$7:$B$33),),0)),"") -> 702
B10: 703 | C10: أحمد أشرف محمد سيدأحمد | D10: 1 | E10: 43 | F10: 15 | G10: 58 | H10: 47 | I10: 10 | J10: 57 | K10: 115 | L10: 57.5 | M10: 57.5 | N10: 44 | O10: 24 | P10: 68 | Q10: 45 | R10: 28 | S10: 73 | T10: 141 | U10: 70.5 | V10: 56.4 | W10: 32 | X10: 10 | Y10: 42 | Z10: 33 | AA10: 22 | AB10: 55 | AC10: 97 | AD10: 48.5 | AE10: 19.4 | AF10: 50 | AG10: 16 | AH10: 66 | AI10: 47 | AJ10: 22 | AK10: 69 | AL10: 135 | AM10: 67.5 | AN10: 27 | AO10: 43 | AP10: 8 | AQ10: 20 | AR10: 71 | AS10: 50 | AT10: 4 | AU10: 11 | AV10: 65 | AW10: 136 | AX10: 68 | AY10: 27.2 | AZ10: 187.5 | BA10: 91 | BB10: 100 | BC10: 191 | BD10: 95.5 | BE10: 19.1 | BF10: 100 | BG10: 100 | BH10: 200 | BI10: 100 | BJ10: 20 | BK10: 100 | BL10: 100 | BM10: 200 | BN10: 100 | BO10: 20 | BP10: 100 | BQ10: 100 | BR10: 200 | BS10: 100 | BT10: 20 | BU10: 267 | BV10: 34 | BW10: 14 | BX10: 48 | BY10: 44 | BZ10: 25 | CA10: 69 | CB10: 117 | CC10: 58.5 | CD10: 23.4 | CE10: 0 | CF10: 0 | CG10: 0 | CH10: 0 | CJ10: 0 | CK10: 0 | CL10: 0 | CM10: 0 | CN10: 0 | CO10: 0 | CP10: 0 | CQ10: 0 | CS10: 0 | CT10: 0 | CU10: 0 | CV10: 0 | CW10: ناجــــح | CX10: عربى،دراسات، | DH10: =IFERROR(INDEX($B$7:$B$33,MATCH(0,INDEX(COUNTIF($DH$6:DH9,$B$7:$B$33),),0)),"") -> 703
B11: 704 | C11: أحمد أيمن فاروق السيد | D11: 1 | E11: 59 | F11: 39 | G11: 98 | H11: 59 | I11: 37 | J11: 96 | K11: 194 | L11: 97 | M11: 97 | N11: 60 | O11: 40 | P11: 100 | Q11: 58 | R11: 40 | S11: 98 | T11: 198 | U11: 99 | V11: 79.2 | W11: 60 | X11: 40 | Y11: 100 | Z11: 51 | AA11: 40 | AB11: 91 | AC11: 191 | AD11: 95.5 | AE11: 38.2 | AF11: 60 | AG11: 40 | AH11: 100 | AI11: 60 | AJ11: 39 | AK11: 99 | AL11: 199 | AM11: 99.5 | AN11: 39.8 | AO11: 55 | AP11: 8 | AQ11: 31 | AR11: 94 | AS11: 58 | AT11: 8 | AU11: 30 | AV11: 96 | AW11: 190 | AX11: 95 | AY11: 38 | AZ11: 292.2 | BA11: 99 | BB11: 100 | BC11: 199 | BD11: 99.5 | BE11: 19.9 | BF11: 100 | BG11: 100 | BH11: 200 | BI11: 100 | BJ11: 20 | BK11: 100 | BL11: 100 | BM11: 200 | BN11: 100 | BO11: 20 | BP11: 100 | BQ11: 100 | BR11: 200 | BS11: 100 | BT11: 20 | BU11: 372.5 | BV11: 60 | BW11: 30 | BX11: 90 | BY11: 59 | BZ11: 36 | CA11: 95 | CB11: 185 | CC11: 92.5 | CD11: 37 | CE11: 0 | CF11: 0 | CG11: 0 | CH11: 0 | CJ11: 0 | CK11: 0 | CL11: 0 | CM11: 0 | CN11: 0 | CO11: 0 | CP11: 0 | CQ11: 0 | CS11: 0 | CT11: 0 | CU11: 0 | CV11: 0 | CW11: ناجــــح | CX11: ومنقول للصف الخامس | DH11: =IFERROR(INDEX($B$7:$B$33,MATCH(0,INDEX(COUNTIF($DH$6:DH10,$B$7:$B$33),),0)),"") -> 704
B12: 705 | C12: أحمد إبراهيم أحمد عبد الغنى | D12: 1 | E12: 60 | F12: 40 | G12: 100 | H12: 59 | I12: 40 | J12: 99 | K12: 199 | L12: 99.5 | M12: 99.5 | N12: 60 | O12: 37 | P12: 97 | Q12: 54 | R12: 39 | S12: 93 | T12: 190 | U12: 95 | V12: 76 | W12: 57 | X12: 39 | Y12: 96 | Z12: 46 | AA12: 40 | AB12: 86 | AC12: 182 | AD12: 91 | AE12: 36.4 | AF12: 60 | AG12: 39 | AH12: 99 | AI12: 59 | AJ12: 39 | AK12: 98 | AL12: 197 | AM12: 98.5 | AN12: 39.4 | AO12: 57 | AP12: 8 | AQ12: 30 | AR12: 95 | AS12: 57 | AT12: 8 | AU12: 30 | AV12: 95 | AW12: 190 | AX12: 95 | AY12: 38 | AZ12: 289.3 | BA12: 100 | BB12: 100 | BC12: 200 | BD12: 100 | BE12: 20 | BF12: 100 | BG12: 100 | BH12: 200 | BI12: 100 | BJ12: 20 | BK12: 100 | BL12: 100 | BM12: 200 | BN12: 100 | BO12: 20 | BP12: 100 | BQ12: 100 | BR12: 200 | BS12: 100 | BT12: 20 | BU12: 369.5 | BV12: 52 | BW12: 32 | BX12: 84 | BY12: 55 | BZ12: 40 | CA12: 95 | CB12: 179 | CC12: 89.5 | CD12: 35.8 | CE12: 0 | CF12: 0 | CG12: 0 | CH12: 0 | CJ12: 0 | CK12: 0 | CL12: 0 | CM12: 0 | CN12: 0 | CO12: 0 | CP12: 0 | CQ12: 0 | CS12: 0 | CT12: 0 | CU12: 0 | CV12: 0 | CW12: ناجــــح | CX12: ومنقول للصف الخامس | DH12: =IFERROR(INDEX($B$7:$B$33,MATCH(0,INDEX(COUNTIF($DH$6:DH11,$B$7:$B$33),),0)),"") -> 705
B13: 706 | C13: أحمد جلال أحمد جمعه | D13: 1 | E13: 60 | F13: 40 | G13: 100 | H13: 60 | I13: 40 | J13: 100 | K13: 200 | L13: 100 | M13: 100 | N13: 60 | O13: 40 | P13: 100 | Q13: 60 | R13: 40 | S13: 100 | T13: 200 | U13: 100 | V13: 80 | W13: 60 | X13: 40 | Y13: 100 | Z13: 59 | AA13: 40 | AB13: 99 | AC13: 199 | AD13: 99.5 | AE13: 39.8 | AF13: 60 | AG13: 40 | AH13: 100 | AI13: 60 | AJ13: 40 | AK13: 100 | AL13: 200 | AM13: 100 | AN13: 40 | AO13: 60 | AP13: 8 | AQ13: 32 | AR13: 100 | AS13: 60 | AT13: 8 | AU13: 31 | AV13: 99 | AW13: 199 | AX13: 99.5 | AY13: 39.8 | AZ13: 299.6 | BA13: 100 | BB13: 100 | BC13: 200 | BD13: 100 | BE13: 20 | BF13: 100 | BG13: 100 | BH13: 200 | BI13: 100 | BJ13: 20 | BK13: 100 | BL13: 100 | BM13: 200 | BN13: 100 | BO13: 20 | BP13: 100 | BQ13: 100 | BR13: 200 | BS13: 100 | BT13: 20 | BU13: 380 | BV13: 60 | BW13: 38 | BX13: 98 | BY13: 60 | BZ13: 40 | CA13: 100 | CB13: 198 | CC13: 99 | CD13: 39.6 | CE13: 0 | CF13: 0 | CG13: 0 | CH13: 0 | CJ13: 0 | CK13: 0 | CL13: 0 | CM13: 0 | CN13: 0 | CO13: 0 | CP13: 0 | CQ13: 0 | CS13: 0 | CT13: 0 | CU13: 0 | CV13: 0 | CW13: ناجــــح | CX13: ومنقول للصف الخامس | DB13: =COUNTIFS(CW7:CW213,{"ناجــــح","ناجـحة"}) -> 102 | DH13: =IFERROR(INDEX($B$7:$B$33,MATCH(0,INDEX(COUNTIF($DH$6:DH12,$B$7:$B$33),),0)),"") -> 706
B14: 707 | C14: أحمد حسام إبراهيم محمد | D14: 1 | E14: 57 | F14: 33 | G14: 90 | H14: 49 | I14: 33 | J14: 82 | K14: 172 | L14: 86 | M14: 86 | N14: 49 | O14: 30 | P14: 79 | Q14: 45 | R14: 19 | S14: 64 | T14: 143 | U14: 71.5 | V14: 57.2 | W14: 49 | X14: 29 | Y14: 78 | Z14: 46 | AA14: 24 | AB14: 70 | AC14: 148 | AD14: 74 | AE14: 29.6 | AF14: 60 | AG14: 38 | AH14: 98 | AI14: 59 | AJ14: 31 | AK14: 90 | AL14: 188 | AM14: 94 | AN14: 37.6 | AO14: 51 | AP14: 4 | AQ14: 32 | AR14: 87 | AS14: 58 | AT14: 8 | AU14: 23 | AV14: 89 | AW14: 176 | AX14: 88 | AY14: 35.2 | AZ14: 245.6 | BA14: 100 | BB14: 100 | BC14: 200 | BD14: 100 | BE14: 20 | BF14: 100 | BG14: 100 | BH14: 200 | BI14: 100 | BJ14: 20 | BK14: 100 | BL14: 100 | BM14: 200 | BN14: 100 | BO14: 20 | BP14: 100 | BQ14: 100 | BR14: 200 | BS14: 100 | BT14: 20 | BU14: 326 | BV14: 48 | BW14: 28 | BX14: 76 | BY14: 49 | BZ14: 26 | CA14: 75 | CB14: 151 | CC14: 75.5 | CD14: 30.2 | CE14: 0 | CF14: 0 | CG14: 0 | CH14: 0 | CJ14: 0 | CK14: 0 | CL14: 0 | CM14: 0 | CN14: 0 | CO14: 0 | CP14: 0 | CQ14: 0 | CS14: 0 | CT14: 0 | CU14: 0 | CV14: 0 | CW14: ناجــــح | CX14: ومنقول للصف الخامس | DH14: =IFERROR(INDEX($B$7:$B$33,MATCH(0,INDEX(COUNTIF($DH$6:DH13,$B$7:$B$33),),0)),"") -> 707
B15: 708 | C15: أحمد خليفه محمد على | D15: 1 | E15: 58 | F15: 15 | G15: 73 | H15: 50 | I15: 19 | J15: 69 | K15: 142 | L15: 71 | M15: 71 | N15: 50 | O15: 24 | P15: 74 | Q15: 50 | R15: 15 | S15: 65 | T15: 139 | U15: 69.5 | V15: 55.6 | W15: 44 | X15: 17 | Y15: 61 | Z15: 35 | AA15: 14 | AB15: 49 | AC15: 110 | AD15: 55 | AE15: 22 | AF15: 45 | AG15: 25 | AH15: 70 | AI15: 51 | AJ15: 20 | AK15: 71 | AL15: 141 | AM15: 70.5 | AN15: 28.2 | AO15: 49 | AP15: 8 | AQ15: 25 | AR15: 82 | AS15: 50 | AT15: 8 | AU15: 13 | AV15: 71 | AW15: 153 | AX15: 76.5 | AY15: 30.6 | AZ15: 207.4 | BA15: 99 | BB15: 100 | BC15: 199 | BD15: 99.5 | BE15: 19.9 | BF15: 100 | BG15: 100 | BH15: 200 | BI15: 100 | BJ15: 20 | BK15: 100 | BL15: 100 | BM15: 200 | BN15: 100 | BO15: 20 | BP15: 100 | BQ15: 100 | BR15: 200 | BS15: 100 | BT15: 20 | BU15: 287.5 | BV15: 39 | BW15: 28 | BX15: 67 | BY15: 38 | BZ15: 30 | CA15: 68 | CB15: 135 | CC15: 67.5 | CD15: 27 | CE15: 0 | CF15: 0 | CG15: 0 | CH15: 0 | CJ15: 0 | CK15: 0 | CL15: 0 | CM15: 0 | CN15: 0 | CO15: 0 | CP15: 0 | CQ15: 0 | CS15: 0 | CT15: 0 | CU15: 0 | CV15: 0 | CW15: ناجــــح | CX15: ومنقول للصف الخامس | DH15: =IFERROR(INDEX($B$7:$B$33,MATCH(0,INDEX(COUNTIF($DH$6:DH14,$B$7:$B$33),),0)),"") -> 708
B16: 709 | C16: أحمد خميس محمد على | D16: 1 | E16: 60 | F16: 36 | G16: 96 | H16: 59 | I16: 38 | J16: 97 | K16: 193 | L16: 96.5 | M16: 96.5 | N16: 60 | O16: 38 | P16: 98 | Q16: 55 | R16: 40 | S16: 95 | T16: 193 | U16: 96.5 | V16: 77.2 | W16: 59 | X16: 40 | Y16: 99 | Z16: 56 | AA16: 40 | AB16: 96 | AC16: 195 | AD16: 97.5 | AE16: 39 | AF16: 58 | AG16: 39 | AH16: 97 | AI16: 60 | AJ16: 38 | AK16: 98 | AL16: 195 | AM16: 97.5 | AN16: 39 | AO16: 56 | AP16: 8 | AQ16: 32 | AR16: 96 | AS16: 57 | AT16: 8 | AU16: 30 | AV16: 95 | AW16: 191 | AX16: 95.5 | AY16: 38.2 | AZ16: 289.9 | BA16: 100 | BB16: 100 | BC16: 200 | BD16: 100 | BE16: 20 | BF16: 100 | BG16: 100 | BH16: 200 | BI16: 100 | BJ16: 20 | BK16: 100 | BL16: 100 | BM16: 200 | BN16: 100 | BO16: 20 | BP16: 100 | BQ16: 100 | BR16: 200 | BS16: 100 | BT16: 20 | BU16: 370 | BV16: 58 | BW16: 34 | BX16: 92 | BY16: 56 | BZ16: 40 | CA16: 96 | CB16: 188 | CC16: 94 | CD16: 37.6 | CE16: 0 | CF16: 0 | CG16: 0 | CH16: 0 | CJ16: 0 | CK16: 0 | CL16: 0 | CM16: 0 | CN16: 0 | CO16: 0 | CP16: 0 | CQ16: 0 | CS16: 0 | CT16: 0 | CU16: 0 | CV16: 0 | CW16: ناجــــح | CX16: ومنقول للصف الخامس | DH16: =IFERROR(INDEX($B$7:$B$33,MATCH(0,INDEX(COUNTIF($DH$6:DH15,$B$7:$B$33),),0)),"") -> 709
B17: 710 | C17: أحمد رضا اجمد بيومي | D17: 1 | E17: 57 | F17: 35 | G17: 92 | H17: 57 | I17: 34 | J17: 91 | K17: 183 | L17: 91.5 | M17: 91.5 | N17: 55 | O17: 39 | P17: 94 | Q17: 57 | R17: 35 | S17: 92 | T17: 186 | U17: 93 | V17: 74.4 | W17: 56 | X17: 40 | Y17: 96 | Z17: 44 | AA17: 38 | AB17: 82 | AC17: 178 | AD17: 89 | AE17: 35.6 | AF17: 60 | AG17: 34 | AH17: 94 | AI17: 57 | AJ17: 30 | AK17: 87 | AL17: 181 | AM17: 90.5 | AN17: 36.2 | AO17: 57 | AP17: 8 | AQ17: 28 | AR17: 93 | AS17: 54 | AT17: 8 | AU17: 29 | AV17: 91 | AW17: 184 | AX17: 92 | AY17: 36.8 | AZ17: 274.5 | BA17: 100 | BB17: 100 | BC17: 200 | BD17: 100 | BE17: 20 | BF17: 100 | BG17: 100 | BH17: 200 | BI17: 100 | BJ17: 20 | BK17: 100 | BL17: 100 | BM17: 200 | BN17: 100 | BO17: 20 | BP17: 100 | BQ17: 100 | BR17: 200 | BS17: 100 | BT17: 20 | BU17: 354.5 | BV17: 55 | BW17: 30 | BX17: 85 | BY17: 57 | BZ17: 39 | CA17: 96 | CB17: 181 | CC17: 90.5 | CD17: 36.2 | CE17: 0 | CF17: 0 | CG17: 0 | CH17: 0 | CJ17: 0 | CK17: 0 | CL17: 0 | CM17: 0 | CN17: 0 | CO17: 0 | CP17: 0 | CQ17: 0 | CS17: 0 | CT17: 0 | CU17: 0 | CV17: 0 | CW17: ناجــــح | CX17: ومنقول للصف الخامس | DH17: =IFERROR(INDEX($B$7:$B$33,MATCH(0,INDEX(COUNTIF($DH$6:DH16,$B$7:$B$33),),0)),"") -> 710
B18: 711 | C18: أحمد رضا محمد أبوالعز | D18: 1 | E18: 58 | F18: 37 | G18: 95 | H18: 60 | I18: 38 | J18: 98 | K18: 193 | L18: 96.5 | M18: 96.5 | N18: 58 | O18: 40 | P18: 98 | Q18: 50 | R18: 28 | S18: 78 | T18: 176 | U18: 88 | V18: 70.4 | W18: 57 | X18: 37 | Y18: 94 | Z18: 56 | AA18: 37 | AB18: 93 | AC18: 187 | AD18: 93.5 | AE18: 37.4 | AF18: 60 | AG18: 40 | AH18: 100 | AI18: 60 | AJ18: 35 | AK18: 95 | AL18: 195 | AM18: 97.5 | AN18: 39 | AO18: 59 | AP18: 8 | AQ18: 30 | AR18: 97 | AS18: 60 | AT18: 8 | AU18: 28 | AV18: 96 | AW18: 193 | AX18: 96.5 | AY18: 38.6 | AZ18: 281.9 | BA18: 100 | BB18: 100 | BC18: 200 | BD18: 100 | BE18: 20 | BF18: 100 | BG18: 100 | BH18: 200 | BI18: 100 | BJ18: 20 | BK18: 100 | BL18: 100 | BM18: 200 | BN18: 100 | BO18: 20 | BP18: 100 | BQ18: 100 | BR18: 200 | BS18: 100 | BT18: 20 | BU18: 362 | BV18: 58 | BW18: 31 | BX18: 89 | BY18: 51 | BZ18: 40 | CA18: 91 | CB18: 180 | CC18: 90 | CD18: 36 | CE18: 0 | CF18: 0 | CG18: 0 | CH18: 0 | CJ18: 0 | CK18: 0 | CL18: 0 | CM18: 0 | CN18: 0 | CO18: 0 | CP18: 0 | CQ18: 0 | CS18: 0 | CT18: 0 | CU18: 0 | CV18: 0 | CW18: ناجــــح | CX18: ومنقول للصف الخامس | DH18: =IFERROR(INDEX($B$7:$B$33,MATCH(0,INDEX(COUNTIF($DH$6:DH17,$B$7:$B$33),),0)),"") -> 711
B19: 712 | C19: أحمد سعيد إبراهيم محمد | D19: 1 | E19: 57 | F19: 39 | G19: 96 | H19: 59 | I19: 34 | J19: 93 | K19: 189 | L19: 94.5 | M19: 94.5 | N19: 54 | O19: 40 | P19: 94 | Q19: 55 | R19: 24 | S19: 79 | T19: 173 | U19: 86.5 | V19: 69.2 | W19: 58 | X19: 32 | Y19: 90 | Z19: 46 | AA19: 26 | AB19: 72 | AC19: 162 | AD19: 81 | AE19: 32.4 | AF19: 60 | AG19: 39 | AH19: 99 | AI19: 60 | AJ19: 38 | AK19: 98 | AL19: 197 | AM19: 98.5 | AN19: 39.4 | AO19: 54 | AP19: 8 | AQ19: 29 | AR19: 91 | AS19: 57 | AT19: 8 | AU19: 27 | AV19: 92 | AW19: 183 | AX19: 91.5 | AY19: 36.6 | AZ19: 272.1 | BA19: 99 | BB19: 100 | BC19: 199 | BD19: 99.5 | BE19: 19.9 | BF19: 100 | BG19: 100 | BH19: 200 | BI19: 100 | BJ19: 20 | BK19: 100 | BL19: 100 | BM19: 200 | BN19: 100 | BO19: 20 | BP19: 100 | BQ19: 100 | BR19: 200 | BS19: 100 | BT19: 20 | BU19: 352 | BV19: 57 | BW19: 31 | BX19: 88 | BY19: 59 | BZ19: 35 | CA19: 94 | CB19: 182 | CC19: 91 | CD19: 36.4 | CE19: 0 | CF19: 0 | CG19: 0 | CH19: 0 | CJ19: 0 | CK19: 0 | CL19: 0 | CM19: 0 | CN19: 0 | CO19: 0 | CP19: 0 | CQ19: 0 | CS19: 0 | CT19: 0 | CU19: 0 | CV19: 0 | CW19: ناجــــح | CX19: ومنقول للصف الخامس | DH19: =IFERROR(INDEX($B$7:$B$33,MATCH(0,INDEX(COUNTIF($DH$6:DH18,$B$7:$B$33),),0)),"") -> 712
B20: 713 | C20: أحمد سعيد محمد السيد | D20: 1 | E20: 60 | F20: 38 | G20: 98 | H20: 60 | I20: 39 | J20: 99 | K20: 197 | L20: 98.5 | M20: 98.5 | N20: 59 | O20: 40 | P20: 99 | Q20: 54 | R20: 38 | S20: 92 | T20: 191 | U20: 95.5 | V20: 76.4 | W20: 52 | X20: 36 | Y20: 88 | Z20: 50 | AA20: 38 | AB20: 88 | AC20: 176 | AD20: 88 | AE20: 35.2 | AF20: 50 | AG20: 40 | AH20: 90 | AI20: 60 | AJ20: 39 | AK20: 99 | AL20: 189 | AM20: 94.5 | AN20: 37.8 | AO20: 59 | AP20: 8 | AQ20: 32 | AR20: 99 | AS20: 58 | AT20: 8 | AU20: 25 | AV20: 91 | AW20: 190 | AX20: 95 | AY20: 38 | AZ20: 285.9 | BA20: 100 | BB20: 100 | BC20: 200 | BD20: 100 | BE20: 20 | BF20: 100 | BG20: 100 | BH20: 200 | BI20: 100 | BJ20: 20 | BK20: 100 | BL20: 100 | BM20: 200 | BN20: 100 | BO20: 20 | BP20: 100 | BQ20: 100 | BR20: 200 | BS20: 100 | BT20: 20 | BU20: 366 | BV20: 60 | BW20: 36 | BX20: 96 | BY20: 60 | BZ20: 40 | CA20: 100 | CB20: 196 | CC20: 98 | CD20: 39.2 | CE20: 0 | CF20: 0 | CG20: 0 | CH20: 0 | CJ20: 0 | CK20: 0 | CL20: 0 | CM20: 0 | CN20: 0 | CO20: 0 | CP20: 0 | CQ20: 0 | CS20: 0 | CT20: 0 | CU20: 0 | CV20: 0 | CW20: ناجــــح | CX20: ومنقول للصف الخامس | DH20: =IFERROR(INDEX($B$7:$B$33,MATCH(0,INDEX(COUNTIF($DH$6:DH19,$B$7:$B$33),),0)),"") -> 713
B21: 714 | C21: أحمد صفوت عبد العزيز السيد | D21: 1 | E21: 49 | F21: 39 | G21: 88 | H21: 53 | I21: 29 | J21: 82 | K21: 170 | L21: 85 | M21: 85 | N21: 41 | O21: 25 | P21: 66 | Q21: 41 | R21: 27 | S21: 68 | T21: 134 | U21: 67 | V21: 53.6 | W21: 50 | X21: 24 | Y21: 74 | Z21: 39 | AA21: 31 | AB21: 70 | AC21: 144 | AD21: 72 | AE21: 28.8 | AF21: 60 | AG21: 22 | AH21: 82 | AI21: 51 | AJ21: 28 | AK21: 79 | AL21: 161 | AM21: 80.5 | AN21: 32.2 | AO21: 49 | AP21: 8 | AQ21: 31 | AR21: 88 | AS21: 47 | AT21: 8 | AU21: 24 | AV21: 79 | AW21: 167 | AX21: 83.5 | AY21: 33.4 | AZ21: 233 | BA21: 99 | BB21: 100 | BC21: 199 | BD21: 99.5 | BE21: 19.9 | BF21: 100 | BG21: 100 | BH21: 200 | BI21: 100 | BJ21: 20 | BK21: 100 | BL21: 100 | BM21: 200 | BN21: 100 | BO21: 20 | BP21: 100 | BQ21: 100 | BR21: 200 | BS21: 100 | BT21: 20 | BU21: 313 | BV21: 54 | BW21: 19 | BX21: 73 | BY21: 44 | BZ21: 25 | CA21: 69 | CB21: 142 | CC21: 71 | CD21: 28.4 | CE21: 0 | CF21: 0 | CG21: 0 | CH21: 0 | CJ21: 0 | CK21: 0 | CL21: 0 | CM21: 0 | CN21: 0 | CO21: 0 | CP21: 0 | CQ21: 0 | CS21: 0 | CT21: 0 | CU21: 0 | CV21: 0 | CW21: ناجــــح | CX21: ومنقول للصف الخامس | DH21: =IFERROR(INDEX($B$7:$B$33,MATCH(0,INDEX(COUNTIF($DH$6:DH20,$B$7:$B$33),),0)),"") -> 714
B22: 715 | C22: أحمد صفوت علي علي | D22: 1 | E22: 59 | F22: 40 | G22: 99 | H22: 59 | I22: 37 | J22: 96 | K22: 195 | L22: 97.5 | M22: 97.5 | N22: 59 | O22: 38 | P22: 97 | Q22: 53 | R22: 40 | S22: 93 | T22: 190 | U22: 95 | V22: 76 | W22: 59 | X22: 39 | Y22: 98 | Z22: 48 | AA22: 37 | AB22: 85 | AC22: 183 | AD22: 91.5 | AE22: 36.6 | AF22: 59 | AG22: 40 | AH22: 99 | AI22: 60 | AJ22: 40 | AK22: 100 | AL22: 199 | AM22: 99.5 | AN22: 39.8 | AO22: 60 | AP22: 8 | AQ22: 32 | AR22: 100 | AS22: 59 | AT22: 8 | AU22: 29 | AV22: 96 | AW22: 196 | AX22: 98 | AY22: 39.2 | AZ22: 289.1 | BA22: 99 | BB22: 100 | BC22: 199 | BD22: 99.5 | BE22: 19.9 | BF22: 100 | BG22: 100 | BH22: 200 | BI22: 100 | BJ22: 20 | BK22: 100 | BL22: 100 | BM22: 200 | BN22: 100 | BO22: 20 | BP22: 100 | BQ22: 100 | BR22: 200 | BS22: 100 | BT22: 20 | BU22: 369 | BV22: 57 | BW22: 34 | BX22: 91 | BY22: 60 | BZ22: 32 | CA22: 92 | CB22: 183 | CC22: 91.5 | CD22: 36.6 | CE22: 0 | CF22: 0 | CG22: 0 | CH22: 0 | CJ22: 0 | CK22: 0 | CL22: 0 | CM22: 0 | CN22: 0 | CO22: 0 | CP22: 0 | CQ22: 0 | CS22: 0 | CT22: 0 | CU22: 0 | CV22: 0 | CW22: ناجــــح | CX22: ومنقول للصف الخامس | DH22: =IFERROR(INDEX($B$7:$B$33,MATCH(0,INDEX(COUNTIF($DH$6:DH21,$B$7:$B$33),),0)),"") -> 715
B23: 716 | C23: أحمد كرم حنفى السيدعنانى | D23: 1 | E23: 52 | F23: 32 | G23: 84 | H23: 52 | I23: 30 | J23: 82 | K23: 166 | L23: 83 | M23: 83 | N23: 46 | O23: 34 | P23: 80 | Q23: 51 | R23: 35 | S23: 86 | T23: 166 | U23: 83 | V23: 66.4 | W23: 41 | X23: 25 | Y23: 66 | Z23: 47 | AA23: 25 | AB23: 72 | AC23: 138 | AD23: 69 | AE23: 27.6 | AF23: 54 | AG23: 23 | AH23: 77 | AI23: 59 | AJ23: 38 | AK23: 97 | AL23: 174 | AM23: 87 | AN23: 34.8 | AO23: 54 | AP23: 8 | AQ23: 32 | AR23: 94 | AS23: 54 | AT23: 8 | AU23: 18 | AV23: 80 | AW23: 174 | AX23: 87 | AY23: 34.8 | AZ23: 246.6 | BA23: 100 | BB23: 100 | BC23: 200 | BD23: 100 | BE23: 20 | BF23: 100 | BG23: 100 | BH23: 200 | BI23: 100 | BJ23: 20 | BK23: 100 | BL23: 100 | BM23: 200 | BN23: 100 | BO23: 20 | BP23: 100 | BQ23: 100 | BR23: 200 | BS23: 100 | BT23: 20 | BU23: 327 | BV23: 39 | BW23: 25 | BX23: 64 | BY23: 52 | BZ23: 23 | CA23: 75 | CB23: 139 | CC23: 69.5 | CD23: 27.8 | CE23: 0 | CF23: 0 | CG23: 0 | CH23: 0 | CJ23: 0 | CK23: 0 | CL23: 0 | CM23: 0 | CN23: 0 | CO23: 0 | CP23: 0 | CQ23: 0 | CS23: 0 | CT23: 0 | CU23: 0 | CV23: 0 | CW23: ناجــــح | CX23: ومنقول للصف الخامس | DH23: =IFERROR(INDEX($B$7:$B$33,MATCH(0,INDEX(COUNTIF($DH$6:DH22,$B$7:$B$33),),0)),"") -> 716
B24: 717 | C24: أحمد محمد أحمد فايق | D24: 1 | E24: 30 | F24: 15 | G24: 45 | H24: 40 | I24: 7 | J24: 47 | K24: 92 | L24: 46 | M24: 46 | N24: 33 | O24: 20 | P24: 53 | Q24: 32 | R24: 10 | S24: 42 | T24: 95 | U24: 47.5 | V24: 38 | W24: 27 | X24: 3 | Y24: 30 | Z24: 37 | AA24: 20 | AB24: 57 | AC24: 87 | AD24: 43.5 | AE24: 17.4 | AF24: 52 | AG24: 17 | AH24: 69 | AI24: 56 | AJ24: 22 | AK24: 78 | AL24: 147 | AM24: 73.5 | AN24: 29.4 | AO24: 43 | AP24: 4 | AQ24: 11 | AR24: 58 | AS24: 51 | AT24: 8 | AU24: 5 | AV24: 64 | AW24: 122 | AX24: 61 | AY24: 24.4 | AZ24: 155.2 | BA24: 90 | BB24: 100 | BC24: 190 | BD24: 95 | BE24: 19 | BF24: 100 | BG24: 100 | BH24: 200 | BI24: 100 | BJ24: 20 | BK24: 100 | BL24: 100 | BM24: 200 | BN24: 100 | BO24: 20 | BP24: 100 | BQ24: 100 | BR24: 200 | BS24: 100 | BT24: 20 | BU24: 234.5 | BV24: 33 | BW24: 17 | BX24: 50 | BY24: 38 | BZ24: 16 | CA24: 54 | CB24: 104 | CC24: 52 | CD24: 20.8 | CE24: 0 | CF24: 0 | CG24: 0 | CH24: 0 | CJ24: 0 | CK24: 0 | CL24: 0 | CM24: 0 | CN24: 0 | CO24: 0 | CP24: 0 | CQ24: 0 | CS24: 0 | CT24: 0 | CU24: 0 | CV24: 0 | CW24: له دور ثان فى | CX24: عربى،رياضيات،دراسات، | DH24: =IFERROR(INDEX($B$7:$B$33,MATCH(0,INDEX(COUNTIF($DH$6:DH23,$B$7:$B$33),),0)),"") -> 717
B25: 718 | C25: أحمد محمد جمال أبوالعز | D25: 1 | E25: 60 | F25: 40 | G25: 100 | H25: 59 | I25: 38 | J25: 97 | K25: 197 | L25: 98.5 | M25: 98.5 | N25: 60 | O25: 38 | P25: 98 | Q25: 60 | R25: 40 | S25: 100 | T25: 198 | U25: 99 | V25: 79.2 | W25: 60 | X25: 38 | Y25: 98 | Z25: 56 | AA25: 40 | AB25: 96 | AC25: 194 | AD25: 97 | AE25: 38.8 | AF25: 60 | AG25: 39 | AH25: 99 | AI25: 60 | AJ25: 40 | AK25: 100 | AL25: 199 | AM25: 99.5 | AN25: 39.8 | AO25: 60 | AP25: 8 | AQ25: 32 | AR25: 100 | AS25: 59 | AT25: 8 | AU25: 29 | AV25: 96 | AW25: 196 | AX25: 98 | AY25: 39.2 | AZ25: 295.5 | BA25: 100 | BB25: 100 | BC25: 200 | BD25: 100 | BE25: 20 | BF25: 100 | BG25: 100 | BH25: 200 | BI25: 100 | BJ25: 20 | BK25: 100 | BL25: 100 | BM25: 200 | BN25: 100 | BO25: 20 | BP25: 100 | BQ25: 100 | BR25: 200 | BS25: 100 | BT25: 20 | BU25: 375.5 | BV25: 60 | BW25: 34 | BX25: 94 | BY25: 60 | BZ25: 40 | CA25: 100 | CB25: 194 | CC25: 97 | CD25: 38.8 | CE25: 0 | CF25: 0 | CG25: 0 | CH25: 0 | CJ25: 0 | CK25: 0 | CL25: 0 | CM25: 0 | CN25: 0 | CO25: 0 | CP25: 0 | CQ25: 0 | CS25: 0 | CT25: 0 | CU25: 0 | CV25: 0 | CW25: ناجــــح | CX25: ومنقول للصف الخامس | DH25: =IFERROR(INDEX($B$7:$B$33,MATCH(0,INDEX(COUNTIF($DH$6:DH24,$B$7:$B$33),),0)),"") -> 718
B26: 719 | C26: أحمد محمد سالم السيد | D26: 1 | E26: 47 | F26: 16 | G26: 63 | H26: 34 | I26: 2 | J26: 36 | K26: 99 | L26: 49.5 | M26: 49.5 | N26: 38 | O26: 10 | P26: 48 | Q26: 51 | R26: 8 | S26: 59 | T26: 107 | U26: 53.5 | V26: 42.8 | W26: 36 | X26: 7 | Y26: 43 | Z26: 35 | AA26: 8 | AB26: 43 | AC26: 86 | AD26: 43 | AE26: 17.2 | AF26: 45 | AG26: 13 | AH26: 58 | AI26: 40 | AJ26: 17 | AK26: 57 | AL26: 115 | AM26: 57.5 | AN26: 23 | AO26: 47 | AP26: 8 | AQ26: 2 | AR26: 57 | AS26: 43 | AT26: 8 | AU26: 12 | AV26: 63 | AW26: 120 | AX26: 60 | AY26: 24 | AZ26: 156.5 | BA26: 100 | BB26: 100 | BC26: 200 | BD26: 100 | BE26: 20 | BF26: 100 | BG26: 100 | BH26: 200 | BI26: 100 | BJ26: 20 | BK26: 100 | BL26: 100 | BM26: 200 | BN26: 100 | BO26: 20 | BP26: 100 | BQ26: 100 | BR26: 200 | BS26: 100 | BT26: 20 | BU26: 236.5 | BV26: 36 | BW26: 10 | BX26: 46 | BY26: 38 | BZ26: 20 | CA26: 58 | CB26: 104 | CC26: 52 | CD26: 20.8 | CE26: 0 | CF26: 0 | CG26: 0 | CH26: 0 | CJ26: 0 | CK26: 0 | CL26: 0 | CM26: 0 | CN26: 0 | CO26: 0 | CP26: 0 | CQ26: 0 | CS26: 0 | CT26: 0 | CU26: 0 | CV26: 0 | CW26: له دور ثان فى | CX26: عربى،رياضيات،دراسات، | DH26: =IFERROR(INDEX($B$7:$B$33,MATCH(0,INDEX(COUNTIF($DH$6:DH25,$B$7:$B$33),),0)),"") -> 719
B27: 720 | C27: أحمد محمد على محمد | D27: 1 | E27: 60 | F27: 40 | G27: 100 | H27: 60 | I27: 37 | J27: 97 | K27: 197 | L27: 98.5 | M27: 98.5 | N27: 55 | O27: 37 | P27: 92 | Q27: 53 | R27: 39 | S27: 92 | T27: 184 | U27: 92 | V27: 73.6 | W27: 59 | X27: 38 | Y27: 97 | Z27: 56 | AA27: 40 | AB27: 96 | AC27: 193 | AD27: 96.5 | AE27: 38.6 | AF27: 60 | AG27: 39 | AH27: 99 | AI27: 60 | AJ27: 40 | AK27: 100 | AL27: 199 | AM27: 99.5 | AN27: 39.8 | AO27: 58 | AP27: 8 | AQ27: 31 | AR27: 97 | AS27: 57 | AT27: 8 | AU27: 31 | AV27: 96 | AW27: 193 | AX27: 96.5 | AY27: 38.6 | AZ27: 289.1 | BA27: 100 | BB27: 100 | BC27: 200 | BD27: 100 | BE27: 20 | BF27: 100 | BG27: 100 | BH27: 200 | BI27: 100 | BJ27: 20 | BK27: 100 | BL27: 100 | BM27: 200 | BN27: 100 | BO27: 20 | BP27: 100 | BQ27: 100 | BR27: 200 | BS27: 100 | BT27: 20 | BU27: 369.5 | BV27: 58 | BW27: 34 | BX27: 92 | BY27: 58 | BZ27: 36 | CA27: 94 | CB27: 186 | CC27: 93 | CD27: 37.2 | CE27: 0 | CF27: 0 | CG27: 0 | CH27: 0 | CJ27: 0 | CK27: 0 | CL27: 0 | CM27: 0 | CN27: 0 | CO27: 0 | CP27: 0 | CQ27: 0 | CS27: 0 | CT27: 0 | CU27: 0 | CV27: 0 | CW27: ناجــــح | CX27: ومنقول للصف الخامس | DH27: =IFERROR(INDEX($B$7:$B$33,MATCH(0,INDEX(COUNTIF($DH$6:DH26,$B$7:$B$33),),0)),"") -> 720
B28: 721 | C28: أحمد محي الدين محمد حسب | D28: 1 | E28: 58 | F28: 38 | G28: 96 | H28: 59 | I28: 37 | J28: 96 | K28: 192 | L28: 96 | M28: 96 | N28: 48 | O28: 32 | P28: 80 | Q28: 50 | R28: 37 | S28: 87 | T28: 167 | U28: 83.5 | V28: 66.8 | W28: 51 | X28: 33 | Y28: 84 | Z28: 54 | AA28: 40 | AB28: 94 | AC28: 178 | AD28: 89 | AE28: 35.6 | AF28: 52 | AG28: 33 | AH28: 85 | AI28: 59 | AJ28: 34 | AK28: 93 | AL28: 178 | AM28: 89 | AN28: 35.6 | AO28: 54 | AP28: 8 | AQ28: 29 | AR28: 91 | AS28: 59 | AT28: 8 | AU28: 32 | AV28: 99 | AW28: 190 | AX28: 95 | AY28: 38 | AZ28: 272 | BA28: 99 | BB28: 100 | BC28: 199 | BD28: 99.5 | BE28: 19.9 | BF28: 100 | BG28: 100 | BH28: 200 | BI28: 100 | BJ28: 20 | BK28: 100 | BL28: 100 | BM28: 200 | BN28: 100 | BO28: 20 | BP28: 100 | BQ28: 100 | BR28: 200 | BS28: 100 | BT28: 20 | BU28: 352 | BV28: 57 | BW28: 27 | BX28: 84 | BY28: 57 | BZ28: 37 | CA28: 94 | CB28: 178 | CC28: 89 | CD28: 35.6 | CE28: 0 | CF28: 0 | CG28: 0 | CH28: 0 | CJ28: 0 | CK28: 0 | CL28: 0 | CM28: 0 | CN28: 0 | CO28: 0 | CP28: 0 | CQ28: 0 | CS28: 0 | CT28: 0 | CU28: 0 | CV28: 0 | CW28: ناجــــح | CX28: ومنقول للصف الخامس | DH28: =IFERROR(INDEX($B$7:$B$33,MATCH(0,INDEX(COUNTIF($DH$6:DH27,$B$7:$B$33),),0)),"") -> 721
B29: 722 | C29: أحمد ياسر عطيه أحمد | D29: 1 | E29: 60 | F29: 40 | G29: 100 | H29: 60 | I29: 40 | J29: 100 | K29: 200 | L29: 100 | M29: 100 | N29: 60 | O29: 40 | P29: 100 | Q29: 60 | R29: 40 | S29: 100 | T29: 200 | U29: 100 | V29: 80 | W29: 60 | X29: 40 | Y29: 100 | Z29: 59 | AA29: 40 | AB29: 99 | AC29: 199 | AD29: 99.5 | AE29: 39.8 | AF29: 60 | AG29: 40 | AH29: 100 | AI29: 60 | AJ29: 40 | AK29: 100 | AL29: 200 | AM29: 100 | AN29: 40 | AO29: 60 | AP29: 8 | AQ29: 32 | AR29: 100 | AS29: 60 | AT29: 8 | AU29: 31 | AV29: 99 | AW29: 199 | AX29: 99.5 | AY29: 39.8 | AZ29: 299.6 | BA29: 100 | BB29: 100 | BC29: 200 | BD29: 100 | BE29: 20 | BF29: 100 | BG29: 100 | BH29: 200 | BI29: 100 | BJ29: 20 | BK29: 100 | BL29: 100 | BM29: 200 | BN29: 100 | BO29: 20 | BP29: 100 | BQ29: 100 | BR29: 200 | BS29: 100 | BT29: 20 | BU29: 380 | BV29: 60 | BW29: 36 | BX29: 96 | BY29: 60 | BZ29: 40 | CA29: 100 | CB29: 196 | CC29: 98 | CD29: 39.2 | CE29: 0 | CF29: 0 | CG29: 0 | CH29: 0 | CJ29: 0 | CK29: 0 | CL29: 0 | CM29: 0 | CN29: 0 | CO29: 0 | CP29: 0 | CQ29: 0 | CS29: 0 | CT29: 0 | CU29: 0 | CV29: 0 | CW29: ناجــــح | CX29: ومنقول للصف الخامس | DH29: =IFERROR(INDEX($B$7:$B$33,MATCH(0,INDEX(COUNTIF($DH$6:DH28,$B$7:$B$33),),0)),"") -> 722
B30: 723 | C30: أدهم شريف عدوى أحمد | D30: 1 | E30: 60 | F30: 39 | G30: 99 | H30: 59 | I30: 40 | J30: 99 | K30: 198 | L30: 99 | M30: 99 | N30: 58 | O30: 40 | P30: 98 | Q30: 60 | R30: 40 | S30: 100 | T30: 198 | U30: 99 | V30: 79.2 | W30: 56 | X30: 38 | Y30: 94 | Z30: 49 | AA30: 40 | AB30: 89 | AC30: 183 | AD30: 91.5 | AE30: 36.6 | AF30: 60 | AG30: 40 | AH30: 100 | AI30: 60 | AJ30: 40 | AK30: 100 | AL30: 200 | AM30: 100 | AN30: 40 | AO30: 59 | AP30: 8 | AQ30: 32 | AR30: 99 | AS30: 60 | AT30: 8 | AU30: 32 | AV30: 100 | AW30: 199 | AX30: 99.5 | AY30: 39.8 | AZ30: 294.6 | BA30: 100 | BB30: 100 | BC30: 200 | BD30: 100 | BE30: 20 | BF30: 100 | BG30: 100 | BH30: 200 | BI30: 100 | BJ30: 20 | BK30: 100 | BL30: 100 | BM30: 200 | BN30: 100 | BO30: 20 | BP30: 100 | BQ30: 100 | BR30: 200 | BS30: 100 | BT30: 20 | BU30: 375 | BV30: 58 | BW30: 33 | BX30: 91 | BY30: 57 | BZ30: 39 | CA30: 96 | CB30: 187 | CC30: 93.5 | CD30: 37.4 | CE30: 0 | CF30: 0 | CG30: 0 | CH30: 0 | CJ30: 0 | CK30: 0 | CL30: 0 | CM30: 0 | CN30: 0 | CO30: 0 | CP30: 0 | CQ30: 0 | CS30: 0 | CT30: 0 | CU30: 0 | CV30: 0 | CW30: ناجــــح | CX30: ومنقول للصف الخامس | DH30: =IFERROR(INDEX($B$7:$B$33,MATCH(0,INDEX(COUNTIF($DH$6:DH29,$B$7:$B$33),),0)),"") -> 723
B31: 724 | C31: أسامه محمد عيسي محمد | D31: 1 | E31: 37 | F31: 3 | G31: 40 | H31: 37 | I31: 4 | J31: 41 | K31: 81 | L31: 40.5 | M31: 40.5 | N31: 41 | O31: 18 | P31: 59 | Q31: 37 | R31: 8 | S31: 45 | T31: 104 | U31: 52 | V31: 41.6 | W31: 36 | X31: 5 | Y31: 41 | Z31: 34 | AA31: 6 | AB31: 40 | AC31: 81 | AD31: 40.5 | AE31: 16.2 | AF31: 48 | AG31: 19 | AH31: 67 | AI31: 50 | AJ31: 15 | AK31: 65 | AL31: 132 | AM31: 66 | AN31: 26.4 | AO31: 54 | AP31: 4 | AQ31: 12 | AR31: 70 | AS31: 47 | AT31: 4 | AU31: 11 | AV31: 62 | AW31: 132 | AX31: 66 | AY31: 26.4 | AZ31: 151.1 | BA31: 95 | BB31: 100 | BC31: 195 | BD31: 97.5 | BE31: 19.5 | BF31: 100 | BG31: 100 | BH31: 200 | BI31: 100 | BJ31: 20 | BK31: 100 | BL31: 100 | BM31: 200 | BN31: 100 | BO31: 20 | BP31: 100 | BQ31: 100 | BR31: 200 | BS31: 100 | BT31: 20 | BU31: 231 | BV31: 34 | BW31: 8 | BX31: 42 | BY31: 41 | BZ31: 25 | CA31: 66 | CB31: 108 | CC31: 54 | CD31: 21.6 | CE31: 0 | CF31: 0 | CG31: 0 | CH31: 0 | CJ31: 0 | CK31: 0 | CL31: 0 | CM31: 0 | CN31: 0 | CO31: 0 | CP31: 0 | CQ31: 0 | CS31: 0 | CT31: 0 | CU31: 0 | CV31: 0 | CW31: له دور ثان فى | CX31: عربى،رياضيات،دراسات، | DH31: =IFERROR(INDEX($B$7:$B$33,MATCH(0,INDEX(COUNTIF($DH$6:DH30,$B$7:$B$33),),0)),"") -> 724
B32: 725 | C32: أمين وائل أمين علي | D32: 1 | E32: 59 | F32: 39 | G32: 98 | H32: 60 | I32: 37 | J32: 97 | K32: 195 | L32: 97.5 | M32: 97.5 | N32: 52 | O32: 36 | P32: 88 | Q32: 56 | R32: 33 | S32: 89 | T32: 177 | U32: 88.5 | V32: 70.8 | W32: 58 | X32: 39 | Y32: 97 | Z32: 58 | AA32: 40 | AB32: 98 | AC32: 195 | AD32: 97.5 | AE32: 39 | AF32: 59 | AG32: 40 | AH32: 99 | AI32: 60 | AJ32: 38 | AK32: 98 | AL32: 197 | AM32: 98.5 | AN32: 39.4 | AO32: 57 | AP32: 8 | AQ32: 32 | AR32: 97 | AS32: 59 | AT32: 8 | AU32: 29 | AV32: 96 | AW32: 193 | AX32: 96.5 | AY32: 38.6 | AZ32: 285.3 | BA32: 98 | BB32: 100 | BC32: 198 | BD32: 99 | BE32: 19.8 | BF32: 100 | BG32: 100 | BH32: 200 | BI32: 100 | BJ32: 20 | BK32: 100 | BL32: 100 | BM32: 200 | BN32: 100 | BO32: 20 | BP32: 100 | BQ32: 100 | BR32: 200 | BS32: 100 | BT32: 20 | BU32: 365.5 | BV32: 59 | BW32: 25 | BX32: 84 | BY32: 60 | BZ32: 40 | CA32: 100 | CB32: 184 | CC32: 92 | CD32: 36.8 | CE32: 0 | CF32: 0 | CG32: 0 | CH32: 0 | CJ32: 0 | CK32: 0 | CL32: 0 | CM32: 0 | CN32: 0 | CO32: 0 | CP32: 0 | CQ32: 0 | CS32: 0 | CT32: 0 | CU32: 0 | CV32: 0 | CW32: ناجــــح | CX32: ومنقول للصف الخامس | DH32: =IFERROR(INDEX($B$7:$B$33,MATCH(0,INDEX(COUNTIF($DH$6:DH31,$B$7:$B$33),),0)),"") -> 725
B33: 726 | C33: إبراهيم أشرف علي عنتر | D33: 1 | E33: 52 | F33: 28 | G33: 80 | H33: 53 | I33: 25 | J33: 78 | K33: 158 | L33: 79 | M33: 79 | N33: 51 | O33: 19 | P33: 70 | Q33: 53 | R33: 11 | S33: 64 | T33: 134 | U33: 67 | V33: 53.6 | W33: 45 | X33: 17 | Y33: 62 | Z33: 43 | AA33: 29 | AB33: 72 | AC33: 134 | AD33: 67 | AE33: 26.8 | AF33: 57 | AG33: 26 | AH33: 83 | AI33: 55 | AJ33: 23 | AK33: 78 | AL33: 161 | AM33: 80.5 | AN33: 32.2 | AO33: 54 | AP33: 8 | AQ33: 23 | AR33: 85 | AS33: 58 | AT33: 8 | AU33: 18 | AV33: 84 | AW33: 169 | AX33: 84.5 | AY33: 33.8 | AZ33: 225.4 | BA33: 97 | BB33: 100 | BC33: 197 | BD33: 98.5 | BE33: 19.7 | BF33: 100 | BG33: 100 | BH33: 200 | BI33: 100 | BJ33: 20 | BK33: 100 | BL33: 100 | BM33: 200 | BN33: 100 | BO33: 20 | BP33: 100 | BQ33: 100 | BR33: 200 | BS33: 100 | BT33: 20 | BU33: 305.5 | BV33: 47 | BW33: 29 | BX33: 76 | BY33: 54 | BZ33: 37 | CA33: 91 | CB33: 167 | CC33: 83.5 | CD33: 33.4 | CE33: 0 | CF33: 0 | CG33: 0 | CH33: 0 | CJ33: 0 | CK33: 0 | CL33: 0 | CM33: 0 | CN33: 0 | CO33: 0 | CP33: 0 | CQ33: 0 | CS33: 0 | CT33: 0 | CU33: 0 | CV33: 0 | CW33: له دور ثان فى | CX33: رياضيات، | DH33: =IFERROR(INDEX($B$7:$B$33,MATCH(0,INDEX(COUNTIF($DH$6:DH32,$B$7:$B$33),),0)),"") -> 726
B34: 727 | C34: إبراهيم أيمن إبراهيم السيد | D34: 1 | E34: 60 | F34: 38 | G34: 98 | H34: 53 | I34: 39 | J34: 92 | K34: 190 | L34: 95 | M34: 95 | N34: 60 | O34: 37 | P34: 97 | Q34: 53 | R34: 25 | S34: 78 | T34: 175 | U34: 87.5 | V34: 70 | W34: 57 | X34: 36 | Y34: 93 | Z34: 56 | AA34: 40 | AB34: 96 | AC34: 189 | AD34: 94.5 | AE34: 37.8 | AF34: 58 | AG34: 39 | AH34: 97 | AI34: 60 | AJ34: 38 | AK34: 98 | AL34: 195 | AM34: 97.5 | AN34: 39 | AO34: 60 | AP34: 8 | AQ34: 30 | AR34: 98 | AS34: 56 | AT34: 8 | AU34: 28 | AV34: 92 | AW34: 190 | AX34: 95 | AY34: 38 | AZ34: 279.8 | BA34: 99 | BB34: 100 | BC34: 199 | BD34: 99.5 | BE34: 19.9 | BF34: 100 | BG34: 100 | BH34: 200 | BI34: 100 | BJ34: 20 | BK34: 100 | BL34: 100 | BM34: 200 | BN34: 100 | BO34: 20 | BP34: 100 | BQ34: 100 | BR34: 200 | BS34: 100 | BT34: 20 | BU34: 360 | BV34: 55 | BW34: 30 | BX34: 85 | BY34: 52 | BZ34: 39 | CA34: 91 | CB34: 176 | CC34: 88 | CD34: 35.2 | CE34: 0 | CF34: 0 | CG34: 0 | CH34: 0 | CJ34: 0 | CK34: 0 | CL34: 0 | CM34: 0 | CN34: 0 | CO34: 0 | CP34: 0 | CQ34: 0 | CS34: 0 | CT34: 0 | CU34: 0 | CV34: 0 | CW34: ناجــــح | CX34: ومنقول للصف الخامس | DH34: =IFERROR(INDEX($B$7:$B$33,MATCH(0,INDEX(COUNTIF($DH$6:DH33,$B$7:$B$33),),0)),"") -> 
B35: 728 | C35: إبراهيم خالد محمد هاشم | D35: 1 | E35: 51 | F35: 32 | G35: 83 | H35: 60 | I35: 32 | J35: 92 | K35: 175 | L35: 87.5 | M35: 87.5 | N35: 53 | O35: 33 | P35: 86 | Q35: 52 | R35: 40 | S35: 92 | T35: 178 | U35: 89 | V35: 71.2 | W35: 57 | X35: 38 | Y35: 95 | Z35: 50 | AA35: 39 | AB35: 89 | AC35: 184 | AD35: 92 | AE35: 36.8 | AF35: 60 | AG35: 39 | AH35: 99 | AI35: 60 | AJ35: 40 | AK35: 100 | AL35: 199 | AM35: 99.5 | AN35: 39.8 | AO35: 59 | AP35: 8 | AQ35: 30 | AR35: 97 | AS35: 59 | AT35: 8 | AU35: 29 | AV35: 96 | AW35: 193 | AX35: 96.5 | AY35: 38.6 | AZ35: 273.9 | BA35: 100 | BB35: 100 | BC35: 200 | BD35: 100 | BE35: 20 | BF35: 100 | BG35: 100 | BH35: 200 | BI35: 100 | BJ35: 20 | BK35: 100 | BL35: 100 | BM35: 200 | BN35: 100 | BO35: 20 | BP35: 100 | BQ35: 100 | BR35: 200 | BS35: 100 | BT35: 20 | BU35: 354 | BV35: 48 | BW35: 27 | BX35: 75 | BY35: 54 | BZ35: 40 | CA35: 94 | CB35: 169 | CC35: 84.5 | CD35: 33.8 | CE35: 0 | CF35: 0 | CG35: 0 | CH35: 0 | CJ35: 0 | CK35: 0 | CL35: 0 | CM35: 0 | CN35: 0 | CO35: 0 | CP35: 0 | CQ35: 0 | CS35: 0 | CT35: 0 | CU35: 0 | CV35: 0 | CW35: ناجــــح | CX35: ومنقول للصف الخامس | DH35: =IFERROR(INDEX($B$7:$B$33,MATCH(0,INDEX(COUNTIF($DH$6:DH34,$B$7:$B$33),),0)),"") -> 
B36: 729 | C36: إبراهيم عصام إبراهيم السيد | D36: 1 | E36: 60 | F36: 40 | G36: 100 | H36: 60 | I36: 39 | J36: 99 | K36: 199 | L36: 99.5 | M36: 99.5 | N36: 56 | O36: 40 | P36: 96 | Q36: 58 | R36: 37 | S36: 95 | T36: 191 | U36: 95.5 | V36: 76.4 | W36: 56 | X36: 40 | Y36: 96 | Z36: 60 | AA36: 39 | AB36: 99 | AC36: 195 | AD36: 97.5 | AE36: 39 | AF36: 59 | AG36: 39 | AH36: 98 | AI36: 58 | AJ36: 38 | AK36: 96 | AL36: 194 | AM36: 97 | AN36: 38.8 | AO36: 58 | AP36: 8 | AQ36: 30 | AR36: 96 | AS36: 59 | AT36: 8 | AU36: 28 | AV36: 95 | AW36: 191 | AX36: 95.5 | AY36: 38.2 | AZ36: 291.9 | BA36: 100 | BB36: 100 | BC36: 200 | BD36: 100 | BE36: 20 | BF36: 100 | BG36: 100 | BH36: 200 | BI36: 100 | BJ36: 20 | BK36: 100 | BL36: 100 | BM36: 200 | BN36: 100 | BO36: 20 | BP36: 100 | BQ36: 100 | BR36: 200 | BS36: 100 | BT36: 20 | BU36: 372 | BV36: 56 | BW36: 40 | BX36: 96 | BY36: 58 | BZ36: 40 | CA36: 98 | CB36: 194 | CC36: 97 | CD36: 38.8 | CE36: 0 | CF36: 0 | CG36: 0 | CH36: 0 | CJ36: 0 | CK36: 0 | CL36: 0 | CM36: 0 | CN36: 0 | CO36: 0 | CP36: 0 | CQ36: 0 | CS36: 0 | CT36: 0 | CU36: 0 | CV36: 0 | CW36: ناجــــح | CX36: ومنقول للصف الخامس | DH36: =IFERROR(INDEX($B$7:$B$33,MATCH(0,INDEX(COUNTIF($DH$6:DH35,$B$7:$B$33),),0)),"") -> 
B37: 730 | C37: إبراهيم مصطفي إبراهيم سالم | D37: 1 | E37: 57 | F37: 29 | G37: 86 | H37: 57 | I37: 36 | J37: 93 | K37: 179 | L37: 89.5 | M37: 89.5 | N37: 53 | O37: 32 | P37: 85 | Q37: 55 | R37: 37 | S37: 92 | T37: 177 | U37: 88.5 | V37: 70.8 | W37: 48 | X37: 37 | Y37: 85 | Z37: 53 | AA37: 36 | AB37: 89 | AC37: 174 | AD37: 87 | AE37: 34.8 | AF37: 60 | AG37: 40 | AH37: 100 | AI37: 58 | AJ37: 37 | AK37: 95 | AL37: 195 | AM37: 97.5 | AN37: 39 | AO37: 56 | AP37: 8 | AQ37: 30 | AR37: 94 | AS37: 57 | AT37: 8 | AU37: 30 | AV37: 95 | AW37: 189 | AX37: 94.5 | AY37: 37.8 | AZ37: 271.9 | BA37: 100 | BB37: 100 | BC37: 200 | BD37: 100 | BE37: 20 | BF37: 100 | BG37: 100 | BH37: 200 | BI37: 100 | BJ37: 20 | BK37: 100 | BL37: 100 | BM37: 200 | BN37: 100 | BO37: 20 | BP37: 100 | BQ37: 100 | BR37: 200 | BS37: 100 | BT37: 20 | BU37: 352 | BV37: 58 | BW37: 34 | BX37: 92 | BY37: 58 | BZ37: 37 | CA37: 95 | CB37: 187 | CC37: 93.5 | CD37: 37.4 | CE37: 0 | CF37: 0 | CG37: 0 | CH37: 0 | CJ37: 0 | CK37: 0 | CL37: 0 | CM37: 0 | CN37: 0 | CO37: 0 | CP37: 0 | CQ37: 0 | CS37: 0 | CT37: 0 | CU37: 0 | CV37: 0 | CW37: ناجــــح | CX37: ومنقول للصف الخامس | DH37: =IFERROR(INDEX($B$7:$B$33,MATCH(0,INDEX(COUNTIF($DH$6:DH36,$B$7:$B$33),),0)),"") -> 
B38: 731 | C38: إسلام أيمن سالم طه | D38: 1 | E38: 60 | F38: 39 | G38: 99 | H38: 60 | I38: 39 | J38: 99 | K38: 198 | L38: 99 | M38: 99 | N38: 60 | O38: 38 | P38: 98 | Q38: 60 | R38: 40 | S38: 100 | T38: 198 | U38: 99 | V38: 79.2 | W38: 60 | X38: 40 | Y38: 100 | Z38: 58 | AA38: 39 | AB38: 97 | AC38: 197 | AD38: 98.5 | AE38: 39.4 | AF38: 60 | AG38: 36 | AH38: 96 | AI38: 60 | AJ38: 39 | AK38: 99 | AL38: 195 | AM38: 97.5 | AN38: 39 | AO38: 60 | AP38: 8 | AQ38: 32 | AR38: 100 | AS38: 60 | AT38: 8 | AU38: 32 | AV38: 100 | AW38: 200 | AX38: 100 | AY38: 40 | AZ38: 296.6 | BA38: 100 | BB38: 100 | BC38: 200 | BD38: 100 | BE38: 20 | BF38: 100 | BG38: 100 | BH38: 200 | BI38: 100 | BJ38: 20 | BK38: 100 | BL38: 100 | BM38: 200 | BN38: 100 | BO38: 20 | BP38: 100 | BQ38: 100 | BR38: 200 | BS38: 100 | BT38: 20 | BU38: 377 | BV38: 58 | BW38: 39 | BX38: 97 | BY38: 60 | BZ38: 40 | CA38: 100 | CB38: 197 | CC38: 98.5 | CD38: 39.4 | CE38: 0 | CF38: 0 | CG38: 0 | CH38: 0 | CJ38: 0 | CK38: 0 | CL38: 0 | CM38: 0 | CN38: 0 | CO38: 0 | CP38: 0 | CQ38: 0 | CS38: 0 | CT38: 0 | CU38: 0 | CV38: 0 | CW38: ناجــــح | CX38: ومنقول للصف الخامس | DH38: =IFERROR(INDEX($B$7:$B$33,MATCH(0,INDEX(COUNTIF($DH$6:DH37,$B$7:$B$33),),0)),"") -> 
B39: 732 | C39: إسلام عبد المجيد محمد عبد المجيد | D39: 1 | E39: 60 | F39: 40 | G39: 100 | H39: 56 | I39: 39 | J39: 95 | K39: 195 | L39: 97.5 | M39: 97.5 | N39: 60 | O39: 40 | P39: 100 | Q39: 52 | R39: 35 | S39: 87 | T39: 187 | U39: 93.5 | V39: 74.8 | W39: 58 | X39: 34 | Y39: 92 | Z39: 50 | AA39: 39 | AB39: 89 | AC39: 181 | AD39: 90.5 | AE39: 36.2 | AF39: 58 | AG39: 40 | AH39: 98 | AI39: 59 | AJ39: 38 | AK39: 97 | AL39: 195 | AM39: 97.5 | AN39: 39 | AO39: 55 | AP39: 8 | AQ39: 32 | AR39: 95 | AS39: 59 | AT39: 8 | AU39: 29 | AV39: 96 | AW39: 191 | AX39: 95.5 | AY39: 38.2 | AZ39: 285.7 | BA39: 99 | BB39: 100 | BC39: 199 | BD39: 99.5 | BE39: 19.9 | BF39: 100 | BG39: 100 | BH39: 200 | BI39: 100 | BJ39: 20 | BK39: 100 | BL39: 100 | BM39: 200 | BN39: 100 | BO39: 20 | BP39: 100 | BQ39: 100 | BR39: 200 | BS39: 100 | BT39: 20 | BU39: 366 | BV39: 44 | BW39: 24 | BX39: 68 | BY39: 51 | BZ39: 40 | CA39: 91 | CB39: 159 | CC39: 79.5 | CD39: 31.8 | CE39: 0 | CF39: 0 | CG39: 0 | CH39: 0 | CJ39: 0 | CK39: 0 | CL39: 0 | CM39: 0 | CN39: 0 | CO39: 0 | CP39: 0 | CQ39: 0 | CS39: 0 | CT39: 0 | CU39: 0 | CV39: 0 | CW39: ناجــــح | CX39: ومنقول للصف الخامس | DH39: =IFERROR(INDEX($B$7:$B$33,MATCH(0,INDEX(COUNTIF($DH$6:DH38,$B$7:$B$33),),0)),"") -> 
B40: 733 | C40: إسلام محمد سند محمد | D40: 1 | E40: 51 | F40: 23 | G40: 74 | H40: 50 | I40: 20 | J40: 70 | K40: 144 | L40: 72 | M40: 72 | N40: 48 | O40: 16 | P40: 64 | Q40: 49 | R40: 21 | S40: 70 | T40: 134 | U40: 67 | V40: 53.6 | W40: 42 | X40: 16 | Y40: 58 | Z40: 46 | AA40: 27 | AB40: 73 | AC40: 131 | AD40: 65.5 | AE40: 26.2 | AF40: 53 | AG40: 30 | AH40: 83 | AI40: 54 | AJ40: 30 | AK40: 84 | AL40: 167 | AM40: 83.5 | AN40: 33.4 | AO40: 55 | AP40: 8 | AQ40: 23 | AR40: 86 | AS40: 50 | AT40: 8 | AU40: 25 | AV40: 83 | AW40: 169 | AX40: 84.5 | AY40: 33.8 | AZ40: 219 | BA40: 97 | BB40: 100 | BC40: 197 | BD40: 98.5 | BE40: 19.7 | BF40: 100 | BG40: 100 | BH40: 200 | BI40: 100 | BJ40: 20 | BK40: 100 | BL40: 100 | BM40: 200 | BN40: 100 | BO40: 20 | BP40: 100 | BQ40: 100 | BR40: 200 | BS40: 100 | BT40: 20 | BU40: 299 | BV40: 48 | BW40: 15 | BX40: 63 | BY40: 45 | BZ40: 22 | CA40: 67 | CB40: 130 | CC40: 65 | CD40: 26 | CE40: 0 | CF40: 0 | CG40: 0 | CH40: 0 | CJ40: 0 | CK40: 0 | CL40: 0 | CM40: 0 | CN40: 0 | CO40: 0 | CP40: 0 | CQ40: 0 | CS40: 0 | CT40: 0 | CU40: 0 | CV40: 0 | CW40: ناجــــح | CX40: ومنقول للصف الخامس | DH40: =IFERROR(INDEX($B$7:$B$33,MATCH(0,INDEX(COUNTIF($DH$6:DH39,$B$7:$B$33),),0)),"") -> 
B41: 734 | C41: بلال إبراهيم عبد اللطيف السيد | D41: 1 | E41: 58 | F41: 36 | G41: 94 | H41: 57 | I41: 36 | J41: 93 | K41: 187 | L41: 93.5 | M41: 93.5 | N41: 55 | O41: 30 | P41: 85 | Q41: 50 | R41: 37 | S41: 87 | T41: 172 | U41: 86 | V41: 68.8 | W41: 53 | X41: 28 | Y41: 81 | Z41: 54 | AA41: 35 | AB41: 89 | AC41: 170 | AD41: 85 | AE41: 34 | AF41: 60 | AG41: 39 | AH41: 99 | AI41: 60 | AJ41: 37 | AK41: 97 | AL41: 196 | AM41: 98 | AN41: 39.2 | AO41: 60 | AP41: 8 | AQ41: 29 | AR41: 97 | AS41: 59 | AT41: 8 | AU41: 30 | AV41: 97 | AW41: 194 | AX41: 97 | AY41: 38.8 | AZ41: 274.3 | BA41: 100 | BB41: 100 | BC41: 200 | BD41: 100 | BE41: 20 | BF41: 100 | BG41: 100 | BH41: 200 | BI41: 100 | BJ41: 20 | BK41: 100 | BL41: 100 | BM41: 200 | BN41: 100 | BO41: 20 | BP41: 100 | BQ41: 100 | BR41: 200 | BS41: 100 | BT41: 20 | BU41: 354.5 | BV41: 59 | BW41: 25 | BX41: 84 | BY41: 58 | BZ41: 40 | CA41: 98 | CB41: 182 | CC41: 91 | CD41: 36.4 | CE41: 0 | CF41: 0 | CG41: 0 | CH41: 0 | CJ41: 0 | CK41: 0 | CL41: 0 | CM41: 0 | CN41: 0 | CO41: 0 | CP41: 0 | CQ41: 0 | CS41: 0 | CT41: 0 | CU41: 0 | CV41: 0 | CW41: ناجــــح | CX41: ومنقول للصف الخامس | DH41: =IFERROR(INDEX($B$7:$B$33,MATCH(0,INDEX(COUNTIF($DH$6:DH40,$B$7:$B$33),),0)),"") -> 
B42: 735 | C42: جمال جلال عبد الفتاح راشد | D42: 1 | E42: 57 | F42: 39 | G42: 96 | H42: 60 | I42: 36 | J42: 96 | K42: 192 | L42: 96 | M42: 96 | N42: 59 | O42: 38 | P42: 97 | Q42: 59 | R42: 37 | S42: 96 | T42: 193 | U42: 96.5 | V42: 77.2 | W42: 52 | X42: 27 | Y42: 79 | Z42: 59 | AA42: 34 | AB42: 93 | AC42: 172 | AD42: 86 | AE42: 34.4 | AF42: 59 | AG42: 39 | AH42: 98 | AI42: 60 | AJ42: 35 | AK42: 95 | AL42: 193 | AM42: 96.5 | AN42: 38.6 | AO42: 58 | AP42: 8 | AQ42: 28 | AR42: 94 | AS42: 58 | AT42: 8 | AU42: 30 | AV42: 96 | AW42: 190 | AX42: 95 | AY42: 38 | AZ42: 284.2 | BA42: 100 | BB42: 100 | BC42: 200 | BD42: 100 | BE42: 20 | BF42: 100 | BG42: 100 | BH42: 200 | BI42: 100 | BJ42: 20 | BK42: 100 | BL42: 100 | BM42: 200 | BN42: 100 | BO42: 20 | BP42: 100 | BQ42: 100 | BR42: 200 | BS42: 100 | BT42: 20 | BU42: 364.5 | BV42: 57 | BW42: 30 | BX42: 87 | BY42: 57 | BZ42: 40 | CA42: 97 | CB42: 184 | CC42: 92 | CD42: 36.8 | CE42: 0 | CF42: 0 | CG42: 0 | CH42: 0 | CJ42: 0 | CK42: 0 | CL42: 0 | CM42: 0 | CN42: 0 | CO42: 0 | CP42: 0 | CQ42: 0 | CS42: 0 | CT42: 0 | CU42: 0 | CV42: 0 | CW42: ناجــــح | CX42: ومنقول للصف الخامس | DH42: =IFERROR(INDEX($B$7:$B$33,MATCH(0,INDEX(COUNTIF($DH$6:DH41,$B$7:$B$33),),0)),"") -> 
B43: 736 | C43: حسن جمال حسن جمال | D43: 1 | E43: 47 | F43: 10 | G43: 57 | H43: 34 | I43: 10 | J43: 44 | K43: 101 | L43: 50.5 | M43: 50.5 | N43: 47 | O43: 21 | P43: 68 | Q43: 46 | R43: 26 | S43: 72 | T43: 140 | U43: 70 | V43: 56 | W43: 44 | X43: 11 | Y43: 55 | Z43: 34 | AA43: 12 | AB43: 46 | AC43: 101 | AD43: 50.5 | AE43: 20.2 | AF43: 55 | AG43: 25 | AH43: 80 | AI43: 43 | AJ43: 22 | AK43: 65 | AL43: 145 | AM43: 72.5 | AN43: 29 | AO43: 50 | AP43: 8 | AQ43: 24 | AR43: 82 | AS43: 42 | AT43: 8 | AU43: 24 | AV43: 74 | AW43: 156 | AX43: 78 | AY43: 31.2 | AZ43: 186.9 | BA43: 100 | BB43: 100 | BC43: 200 | BD43: 100 | BE43: 20 | BF43: 100 | BG43: 100 | BH43: 200 | BI43: 100 | BJ43: 20 | BK43: 100 | BL43: 100 | BM43: 200 | BN43: 100 | BO43: 20 | BP43: 100 | BQ43: 100 | BR43: 200 | BS43: 100 | BT43: 20 | BU43: 267 | BV43: 34 | BW43: 22 | BX43: 56 | BY43: 37 | BZ43: 28 | CA43: 65 | CB43: 121 | CC43: 60.5 | CD43: 24.2 | CE43: 0 | CF43: 0 | CG43: 0 | CH43: 0 | CJ43: 0 | CK43: 0 | CL43: 0 | CM43: 0 | CN43: 0 | CO43: 0 | CP43: 0 | CQ43: 0 | CS43: 0 | CT43: 0 | CU43: 0 | CV43: 0 | CW43: له دور ثان فى | CX43: عربى، | DH43: =IFERROR(INDEX($B$7:$B$33,MATCH(0,INDEX(COUNTIF($DH$6:DH42,$B$7:$B$33),),0)),"") -> 
B44: 737 | C44: حسين عماد موسي القصري | D44: 1 | E44: 60 | F44: 39 | G44: 99 | H44: 60 | I44: 38 | J44: 98 | K44: 197 | L44: 98.5 | M44: 98.5 | N44: 59 | O44: 40 | P44: 99 | Q44: 60 | R44: 40 | S44: 100 | T44: 199 | U44: 99.5 | V44: 79.6 | W44: 60 | X44: 40 | Y44: 100 | Z44: 60 | AA44: 40 | AB44: 100 | AC44: 200 | AD44: 100 | AE44: 40 | AF44: 60 | AG44: 40 | AH44: 100 | AI44: 60 | AJ44: 38 | AK44: 98 | AL44: 198 | AM44: 99 | AN44: 39.6 | AO44: 60 | AP44: 8 | AQ44: 32 | AR44: 100 | AS44: 59 | AT44: 8 | AU44: 30 | AV44: 97 | AW44: 197 | AX44: 98.5 | AY44: 39.4 | AZ44: 297.1 | BA44: 100 | BB44: 100 | BC44: 200 | BD44: 100 | BE44: 20 | BF44: 100 | BG44: 100 | BH44: 200 | BI44: 100 | BJ44: 20 | BK44: 100 | BL44: 100 | BM44: 200 | BN44: 100 | BO44: 20 | BP44: 100 | BQ44: 100 | BR44: 200 | BS44: 100 | BT44: 20 | BU44: 377.5 | BV44: 60 | BW44: 40 | BX44: 100 | BY44: 60 | BZ44: 40 | CA44: 100 | CB44: 200 | CC44: 100 | CD44: 40 | CE44: 0 | CF44: 0 | CG44: 0 | CH44: 0 | CJ44: 0 | CK44: 0 | CL44: 0 | CM44: 0 | CN44: 0 | CO44: 0 | CP44: 0 | CQ44: 0 | CS44: 0 | CT44: 0 | CU44: 0 | CV44: 0 | CW44: ناجــــح | CX44: ومنقول للصف الخامس | DH44: =IFERROR(INDEX($B$7:$B$33,MATCH(0,INDEX(COUNTIF($DH$6:DH43,$B$7:$B$33),),0)),"") -> 
B45: 738 | C45: حمدي رضا حمدي محمد | D45: 1 | E45: 60 | F45: 37 | G45: 97 | H45: 53 | I45: 35 | J45: 88 | K45: 185 | L45: 92.5 | M45: 92.5 | N45: 50 | O45: 36 | P45: 86 | Q45: 54 | R45: 37 | S45: 91 | T45: 177 | U45: 88.5 | V45: 70.8 | W45: 48 | X45: 39 | Y45: 87 | Z45: 50 | AA45: 35 | AB45: 85 | AC45: 172 | AD45: 86 | AE45: 34.4 | AF45: 54 | AG45: 37 | AH45: 91 | AI45: 57 | AJ45: 30 | AK45: 87 | AL45: 178 | AM45: 89 | AN45: 35.6 | AO45: 52 | AP45: 8 | AQ45: 30 | AR45: 90 | AS45: 55 | AT45: 8 | AU45: 29 | AV45: 92 | AW45: 182 | AX45: 91 | AY45: 36.4 | AZ45: 269.7 | BA45: 99 | BB45: 100 | BC45: 199 | BD45: 99.5 | BE45: 19.9 | BF45: 100 | BG45: 100 | BH45: 200 | BI45: 100 | BJ45: 20 | BK45: 100 | BL45: 100 | BM45: 200 | BN45: 100 | BO45: 20 | BP45: 100 | BQ45: 100 | BR45: 200 | BS45: 100 | BT45: 20 | BU45: 350 | BV45: 55 | BW45: 24 | BX45: 79 | BY45: 49 | BZ45: 32 | CA45: 81 | CB45: 160 | CC45: 80 | CD45: 32 | CE45: 0 | CF45: 0 | CG45: 0 | CH45: 0 | CJ45: 0 | CK45: 0 | CL45: 0 | CM45: 0 | CN45: 0 | CO45: 0 | CP45: 0 | CQ45: 0 | CS45: 0 | CT45: 0 | CU45: 0 | CV45: 0 | CW45: ناجــــح | CX45: ومنقول للصف الخامس | DH45: =IFERROR(INDEX($B$7:$B$33,MATCH(0,INDEX(COUNTIF($DH$6:DH44,$B$7:$B$33),),0)),"") -> 
B46: 739 | C46: خالد عوض السيد عيسي | D46: 1 | E46: 60 | F46: 37 | G46: 97 | H46: 59 | I46: 39 | J46: 98 | K46: 195 | L46: 97.5 | M46: 97.5 | N46: 60 | O46: 39 | P46: 99 | Q46: 54 | R46: 38 | S46: 92 | T46: 191 | U46: 95.5 | V46: 76.4 | W46: 55 | X46: 40 | Y46: 95 | Z46: 52 | AA46: 40 | AB46: 92 | AC46: 187 | AD46: 93.5 | AE46: 37.4 | AF46: 60 | AG46: 40 | AH46: 100 | AI46: 54 | AJ46: 38 | AK46: 92 | AL46: 192 | AM46: 96 | AN46: 38.4 | AO46: 60 | AP46: 8 | AQ46: 32 | AR46: 100 | AS46: 59 | AT46: 8 | AU46: 31 | AV46: 98 | AW46: 198 | AX46: 99 | AY46: 39.6 | AZ46: 289.3 | BA46: 100 | BB46: 100 | BC46: 200 | BD46: 100 | BE46: 20 | BF46: 100 | BG46: 100 | BH46: 200 | BI46: 100 | BJ46: 20 | BK46: 100 | BL46: 100 | BM46: 200 | BN46: 100 | BO46: 20 | BP46: 100 | BQ46: 100 | BR46: 200 | BS46: 100 | BT46: 20 | BU46: 369.5 | BV46: 57 | BW46: 33 | BX46: 90 | BY46: 59 | BZ46: 40 | CA46: 99 | CB46: 189 | CC46: 94.5 | CD46: 37.8 | CE46: 0 | CF46: 0 | CG46: 0 | CH46: 0 | CJ46: 0 | CK46: 0 | CL46: 0 | CM46: 0 | CN46: 0 | CO46: 0 | CP46: 0 | CQ46: 0 | CS46: 0 | CT46: 0 | CU46: 0 | CV46: 0 | CW46: ناجــــح | CX46: ومنقول للصف الخامس | DH46: =IFERROR(INDEX($B$7:$B$33,MATCH(0,INDEX(COUNTIF($DH$6:DH45,$B$7:$B$33),),0)),"") -> 
B47: 740 | C47: زياد عبد العزيز أحمد بيومى | D47: 1 | E47: 60 | F47: 39 | G47: 99 | H47: 60 | I47: 39 | J47: 99 | K47: 198 | L47: 99 | M47: 99 | N47: 59 | O47: 34 | P47: 93 | Q47: 58 | R47: 37 | S47: 95 | T47: 188 | U47: 94 | V47: 75.2 | W47: 56 | X47: 39 | Y47: 95 | Z47: 60 | AA47: 40 | AB47: 100 | AC47: 195 | AD47: 97.5 | AE47: 39 | AF47: 60 | AG47: 40 | AH47: 100 | AI47: 60 | AJ47: 40 | AK47: 100 | AL47: 200 | AM47: 100 | AN47: 40 | AO47: 60 | AP47: 8 | AQ47: 32 | AR47: 100 | AS47: 60 | AT47: 8 | AU47: 32 | AV47: 100 | AW47: 200 | AX47: 100 | AY47: 40 | AZ47: 293.2 | BA47: 100 | BB47: 100 | BC47: 200 | BD47: 100 | BE47: 20 | BF47: 100 | BG47: 100 | BH47: 200 | BI47: 100 | BJ47: 20 | BK47: 100 | BL47: 100 | BM47: 200 | BN47: 100 | BO47: 20 | BP47: 100 | BQ47: 100 | BR47: 200 | BS47: 100 | BT47: 20 | BU47: 373.5 | BV47: 58 | BW47: 39 | BX47: 97 | BY47: 59 | BZ47: 40 | CA47: 99 | CB47: 196 | CC47: 98 | CD47: 39.2 | CE47: 0 | CF47: 0 | CG47: 0 | CH47: 0 | CJ47: 0 | CK47: 0 | CL47: 0 | CM47: 0 | CN47: 0 | CO47: 0 | CP47: 0 | CQ47: 0 | CS47: 0 | CT47: 0 | CU47: 0 | CV47: 0 | CW47: ناجــــح | CX47: ومنقول للصف الخامس | DH47: =IFERROR(INDEX($B$7:$B$33,MATCH(0,INDEX(COUNTIF($DH$6:DH46,$B$7:$B$33),),0)),"") -> 
B48: 741 | C48: زياد وائل حسن محمد | D48: 1 | E48: غ | F48: غ | G48: 0 | H48: غ | I48: غ | J48: 0 | K48: 0 | L48: 0 | M48: 0 | N48: غ | O48: غ | P48: 0 | Q48: غ | R48: غ | S48: 0 | T48: 0 | U48: 0 | V48: 0 | W48: غ | X48: غ | Y48: 0 | Z48: غ | AA48: غ | AB48: 0 | AC48: 0 | AD48: 0 | AE48: 0 | AF48: غ | AG48: غ | AH48: 0 | AI48: غ | AJ48: غ | AK48: 0 | AL48: 0 | AM48: 0 | AN48: 0 | AO48: غ | AP48: غ | AQ48: غ | AR48: 0 | AS48: غ | AT48: غ | AU48: غ | AV48: 0 | AW48: 0 | AX48: 0 | AY48: 0 | AZ48: 0 | BA48: غ | BB48: غ | BC48: 0 | BD48: 0 | BE48: 0 | BF48: غ | BG48: غ | BH48: 0 | BI48: 0 | BJ48: 0 | BK48: غ | BL48: غ | BM48: 0 | BN48: 0 | BO48: 0 | BP48: غ | BQ48: غ | BR48: 0 | BS48: 0 | BT48: 0 | BU48: 0 | BV48: غ | BW48: غ | BX48: 0 | BY48: غ | BZ48: غ | CA48: 0 | CB48: 0 | CC48: 0 | CD48: 0 | CE48: 0 | CF48: 0 | CG48: 0 | CH48: 0 | CJ48: 0 | CK48: 0 | CL48: 0 | CM48: 0 | CN48: 0 | CO48: 0 | CP48: 0 | CQ48: 0 | CS48: 0 | CT48: 0 | CU48: 0 | CV48: 0 | CW48: له دور ثان فى | CX48: جميع المواد | DH48: =IFERROR(INDEX($B$7:$B$33,MATCH(0,INDEX(COUNTIF($DH$6:DH47,$B$7:$B$33),),0)),"") -> 
B49: 742 | C49: سامح رضا عبد الواحد حسن | D49: 1 | E49: 58 | F49: 38 | G49: 96 | H49: 58 | I49: 37 | J49: 95 | K49: 191 | L49: 95.5 | M49: 95.5 | N49: 51 | O49: 30 | P49: 81 | Q49: 55 | R49: 34 | S49: 89 | T49: 170 | U49: 85 | V49: 68 | W49: 53 | X49: 36 | Y49: 89 | Z49: 52 | AA49: 40 | AB49: 92 | AC49: 181 | AD49: 90.5 | AE49: 36.2 | AF49: 59 | AG49: 36 | AH49: 95 | AI49: 60 | AJ49: 40 | AK49: 100 | AL49: 195 | AM49: 97.5 | AN49: 39 | AO49: 57 | AP49: 8 | AQ49: 31 | AR49: 96 | AS49: 59 | AT49: 8 | AU49: 30 | AV49: 97 | AW49: 193 | AX49: 96.5 | AY49: 38.6 | AZ49: 277.3 | BA49: 100 | BB49: 100 | BC49: 200 | BD49: 100 | BE49: 20 | BF49: 100 | BG49: 100 | BH49: 200 | BI49: 100 | BJ49: 20 | BK49: 100 | BL49: 100 | BM49: 200 | BN49: 100 | BO49: 20 | BP49: 100 | BQ49: 100 | BR49: 200 | BS49: 100 | BT49: 20 | BU49: 357.5 | BV49: 60 | BW49: 29 | BX49: 89 | BY49: 58 | BZ49: 36 | CA49: 94 | CB49: 183 | CC49: 91.5 | CD49: 36.6 | CE49: 0 | CF49: 0 | CG49: 0 | CH49: 0 | CJ49: 0 | CK49: 0 | CL49: 0 | CM49: 0 | CN49: 0 | CO49: 0 | CP49: 0 | CQ49: 0 | CS49: 0 | CT49: 0 | CU49: 0 | CV49: 0 | CW49: ناجــــح | CX49: ومنقول للصف الخامس | DH49: =IFERROR(INDEX($B$7:$B$33,MATCH(0,INDEX(COUNTIF($DH$6:DH48,$B$7:$B$33),),0)),"") -> 
B50: 743 | C50: سعد على سعد على | D50: 1 | E50: 58 | F50: 34 | G50: 92 | H50: 45 | I50: 33 | J50: 78 | K50: 170 | L50: 85 | M50: 85 | N50: 50 | O50: 28 | P50: 78 | Q50: 50 | R50: 25 | S50: 75 | T50: 153 | U50: 76.5 | V50: 61.2 | W50: 42 | X50: 36 | Y50: 78 | Z50: 37 | AA50: 38 | AB50: 75 | AC50: 153 | AD50: 76.5 | AE50: 30.6 | AF50: 47 | AG50: 35 | AH50: 82 | AI50: 54 | AJ50: 34 | AK50: 88 | AL50: 170 | AM50: 85 | AN50: 34 | AO50: 53 | AP50: 8 | AQ50: 21 | AR50: 82 | AS50: 48 | AT50: 8 | AU50: 22 | AV50: 78 | AW50: 160 | AX50: 80 | AY50: 32 | AZ50: 242.8 | BA50: 99 | BB50: 100 | BC50: 199 | BD50: 99.5 | BE50: 19.9 | BF50: 100 | BG50: 100 | BH50: 200 | BI50: 100 | BJ50: 20 | BK50: 100 | BL50: 100 | BM50: 200 | BN50: 100 | BO50: 20 | BP50: 100 | BQ50: 100 | BR50: 200 | BS50: 100 | BT50: 20 | BU50: 323 | BV50: 46 | BW50: 20 | BX50: 66 | BY50: 53 | BZ50: 33 | CA50: 86 | CB50: 152 | CC50: 76 | CD50: 30.4 | CE50: 0 | CF50: 0 | CG50: 0 | CH50: 0 | CJ50: 0 | CK50: 0 | CL50: 0 | CM50: 0 | CN50: 0 | CO50: 0 | CP50: 0 | CQ50: 0 | CS50: 0 | CT50: 0 | CU50: 0 | CV50: 0 | CW50: ناجــــح | CX50: ومنقول للصف الخامس | DH50: =IFERROR(INDEX($B$7:$B$33,MATCH(0,INDEX(COUNTIF($DH$6:DH49,$B$7:$B$33),),0)),"") -> 
B51: 744 | C51: سعيد عادل مغاوري عبد الله | D51: 1 | E51: 48 | F51: 29 | G51: 77 | H51: 39 | I51: 24 | J51: 63 | K51: 140 | L51: 70 | M51: 70 | N51: 44 | O51: 26 | P51: 70 | Q51: 45 | R51: 24 | S51: 69 | T51: 139 | U51: 69.5 | V51: 55.6 | W51: 35 | X51: 18 | Y51: 53 | Z51: 41 | AA51: 36 | AB51: 77 | AC51: 130 | AD51: 65 | AE51: 26 | AF51: 53 | AG51: 22 | AH51: 75 | AI51: 54 | AJ51: 31 | AK51: 85 | AL51: 160 | AM51: 80 | AN51: 32 | AO51: 47 | AP51: 8 | AQ51: 20 | AR51: 75 | AS51: 48 | AT51: 6 | AU51: 21 | AV51: 75 | AW51: 150 | AX51: 75 | AY51: 30 | AZ51: 213.6 | BA51: 100 | BB51: 100 | BC51: 200 | BD51: 100 | BE51: 20 | BF51: 100 | BG51: 100 | BH51: 200 | BI51: 100 | BJ51: 20 | BK51: 100 | BL51: 100 | BM51: 200 | BN51: 100 | BO51: 20 | BP51: 100 | BQ51: 100 | BR51: 200 | BS51: 100 | BT51: 20 | BU51: 294 | BV51: 38 | BW51: 14 | BX51: 52 | BY51: 42 | BZ51: 28 | CA51: 70 | CB51: 122 | CC51: 61 | CD51: 24.4 | CE51: 0 | CF51: 0 | CG51: 0 | CH51: 0 | CJ51: 0 | CK51: 0 | CL51: 0 | CM51: 0 | CN51: 0 | CO51: 0 | CP51: 0 | CQ51: 0 | CS51: 0 | CT51: 0 | CU51: 0 | CV51: 0 | CW51: ناجــــح | CX51: ومنقول للصف الخامس | DH51: =IFERROR(INDEX($B$7:$B$33,MATCH(0,INDEX(COUNTIF($DH$6:DH50,$B$7:$B$33),),0)),"") -> 
B52: 745 | C52: سعيد عبد الرحمن سعيد حسين | D52: 1 | E52: 60 | F52: 38 | G52: 98 | H52: 60 | I52: 38 | J52: 98 | K52: 196 | L52: 98 | M52: 98 | N52: 59 | O52: 38 | P52: 97 | Q52: 60 | R52: 40 | S52: 100 | T52: 197 | U52: 98.5 | V52: 78.8 | W52: 60 | X52: 40 | Y52: 100 | Z52: 59 | AA52: 36 | AB52: 95 | AC52: 195 | AD52: 97.5 | AE52: 39 | AF52: 60 | AG52: 40 | AH52: 100 | AI52: 60 | AJ52: 40 | AK52: 100 | AL52: 200 | AM52: 100 | AN52: 40 | AO52: 60 | AP52: 8 | AQ52: 32 | AR52: 100 | AS52: 60 | AT52: 8 | AU52: 31 | AV52: 99 | AW52: 199 | AX52: 99.5 | AY52: 39.8 | AZ52: 295.6 | BA52: 100 | BB52: 100 | BC52: 200 | BD52: 100 | BE52: 20 | BF52: 100 | BG52: 100 | BH52: 200 | BI52: 100 | BJ52: 20 | BK52: 100 | BL52: 100 | BM52: 200 | BN52: 100 | BO52: 20 | BP52: 100 | BQ52: 100 | BR52: 200 | BS52: 100 | BT52: 20 | BU52: 376 | BV52: 60 | BW52: 31 | BX52: 91 | BY52: 60 | BZ52: 38 | CA52: 98 | CB52: 189 | CC52: 94.5 | CD52: 37.8 | CE52: 0 | CF52: 0 | CG52: 0 | CH52: 0 | CJ52: 0 | CK52: 0 | CL52: 0 | CM52: 0 | CN52: 0 | CO52: 0 | CP52: 0 | CQ52: 0 | CS52: 0 | CT52: 0 | CU52: 0 | CV52: 0 | CW52: ناجــــح | CX52: ومنقول للصف الخامس | DH52: =IFERROR(INDEX($B$7:$B$33,MATCH(0,INDEX(COUNTIF($DH$6:DH51,$B$7:$B$33),),0)),"") -> 
B53: 746 | C53: سليم وليد سليمان محمد | D53: 1 | E53: 60 | F53: 39 | G53: 99 | H53: 60 | I53: 39 | J53: 99 | K53: 198 | L53: 99 | M53: 99 | N53: 60 | O53: 33 | P53: 93 | Q53: 60 | R53: 39 | S53: 99 | T53: 192 | U53: 96 | V53: 76.8 | W53: 59 | X53: 37 | Y53: 96 | Z53: 56 | AA53: 40 | AB53: 96 | AC53: 192 | AD53: 96 | AE53: 38.4 | AF53: 60 | AG53: 35 | AH53: 95 | AI53: 60 | AJ53: 37 | AK53: 97 | AL53: 192 | AM53: 96 | AN53: 38.4 | AO53: 58 | AP53: 8 | AQ53: 30 | AR53: 96 | AS53: 60 | AT53: 8 | AU53: 30 | AV53: 98 | AW53: 194 | AX53: 97 | AY53: 38.8 | AZ53: 291.4 | BA53: 99 | BB53: 100 | BC53: 199 | BD53: 99.5 | BE53: 19.9 | BF53: 100 | BG53: 100 | BH53: 200 | BI53: 100 | BJ53: 20 | BK53: 100 | BL53: 100 | BM53: 200 | BN53: 100 | BO53: 20 | BP53: 100 | BQ53: 100 | BR53: 200 | BS53: 100 | BT53: 20 | BU53: 371.5 | BV53: 57 | BW53: 32 | BX53: 89 | BY53: 57 | BZ53: 38 | CA53: 95 | CB53: 184 | CC53: 92 | CD53: 36.8 | CE53: 0 | CF53: 0 | CG53: 0 | CH53: 0 | CJ53: 0 | CK53: 0 | CL53: 0 | CM53: 0 | CN53: 0 | CO53: 0 | CP53: 0 | CQ53: 0 | CS53: 0 | CT53: 0 | CU53: 0 | CV53: 0 | CW53: ناجــــح | CX53: ومنقول للصف الخامس | DH53: =IFERROR(INDEX($B$7:$B$33,MATCH(0,INDEX(COUNTIF($DH$6:DH52,$B$7:$B$33),),0)),"") -> 
B54: 747 | C54: سمير عبد المعطي عبد العزيز محمد | D54: 1 | E54: 58 | F54: 35 | G54: 93 | H54: 59 | I54: 37 | J54: 96 | K54: 189 | L54: 94.5 | M54: 94.5 | N54: 53 | O54: 40 | P54: 93 | Q54: 58 | R54: 38 | S54: 96 | T54: 189 | U54: 94.5 | V54: 75.6 | W54: 57 | X54: 37 | Y54: 94 | Z54: 60 | AA54: 40 | AB54: 100 | AC54: 194 | AD54: 97 | AE54: 38.8 | AF54: 60 | AG54: 39 | AH54: 99 | AI54: 59 | AJ54: 40 | AK54: 99 | AL54: 198 | AM54: 99 | AN54: 39.6 | AO54: 59 | AP54: 8 | AQ54: 32 | AR54: 99 | AS54: 60 | AT54: 8 | AU54: 29 | AV54: 97 | AW54: 196 | AX54: 98 | AY54: 39.2 | AZ54: 287.7 | BA54: 100 | BB54: 100 | BC54: 200 | BD54: 100 | BE54: 20 | BF54: 100 | BG54: 100 | BH54: 200 | BI54: 100 | BJ54: 20 | BK54: 100 | BL54: 100 | BM54: 200 | BN54: 100 | BO54: 20 | BP54: 100 | BQ54: 100 | BR54: 200 | BS54: 100 | BT54: 20 | BU54: 368 | BV54: 57 | BW54: 32 | BX54: 89 | BY54: 60 | BZ54: 38 | CA54: 98 | CB54: 187 | CC54: 93.5 | CD54: 37.4 | CE54: 0 | CF54: 0 | CG54: 0 | CH54: 0 | CJ54: 0 | CK54: 0 | CL54: 0 | CM54: 0 | CN54: 0 | CO54: 0 | CP54: 0 | CQ54: 0 | CS54: 0 | CT54: 0 | CU54: 0 | CV54: 0 | CW54: ناجــــح | CX54: ومنقول للصف الخامس | DH54: =IFERROR(INDEX($B$7:$B$33,MATCH(0,INDEX(COUNTIF($DH$6:DH53,$B$7:$B$33),),0)),"") -> 
B55: 748 | C55: شمس الدين أشرف طنطاوي عوض | D55: 1 | E55: 59 | F55: 38 | G55: 97 | H55: 59 | I55: 39 | J55: 98 | K55: 195 | L55: 97.5 | M55: 97.5 | N55: 59 | O55: 40 | P55: 99 | Q55: 59 | R55: 40 | S55: 99 | T55: 198 | U55: 99 | V55: 79.2 | W55: 60 | X55: 37 | Y55: 97 | Z55: 58 | AA55: 40 | AB55: 98 | AC55: 195 | AD55: 97.5 | AE55: 39 | AF55: 60 | AG55: 40 | AH55: 100 | AI55: 60 | AJ55: 40 | AK55: 100 | AL55: 200 | AM55: 100 | AN55: 40 | AO55: 57 | AP55: 8 | AQ55: 32 | AR55: 97 | AS55: 59 | AT55: 8 | AU55: 30 | AV55: 97 | AW55: 194 | AX55: 97 | AY55: 38.8 | AZ55: 294.5 | BA55: 100 | BB55: 100 | BC55: 200 | BD55: 100 | BE55: 20 | BF55: 100 | BG55: 100 | BH55: 200 | BI55: 100 | BJ55: 20 | BK55: 100 | BL55: 100 | BM55: 200 | BN55: 100 | BO55: 20 | BP55: 100 | BQ55: 100 | BR55: 200 | BS55: 100 | BT55: 20 | BU55: 374.5 | BV55: 60 | BW55: 30 | BX55: 90 | BY55: 60 | BZ55: 38 | CA55: 98 | CB55: 188 | CC55: 94 | CD55: 37.6 | CE55: 0 | CF55: 0 | CG55: 0 | CH55: 0 | CJ55: 0 | CK55: 0 | CL55: 0 | CM55: 0 | CN55: 0 | CO55: 0 | CP55: 0 | CQ55: 0 | CS55: 0 | CT55: 0 | CU55: 0 | CV55: 0 | CW55: ناجــــح | CX55: ومنقول للصف الخامس | DH55: =IFERROR(INDEX($B$7:$B$33,MATCH(0,INDEX(COUNTIF($DH$6:DH54,$B$7:$B$33),),0)),"") -> 
B56: 749 | C56: شهاب علاء الحسيني حسن | D56: 1 | E56: 56 | F56: 38 | G56: 94 | H56: 60 | I56: 39 | J56: 99 | K56: 193 | L56: 96.5 | M56: 96.5 | N56: 54 | O56: 38 | P56: 92 | Q56: 57 | R56: 36 | S56: 93 | T56: 185 | U56: 92.5 | V56: 74 | W56: 59 | X56: 40 | Y56: 99 | Z56: 58 | AA56: 40 | AB56: 98 | AC56: 197 | AD56: 98.5 | AE56: 39.4 | AF56: 60 | AG56: 40 | AH56: 100 | AI56: 60 | AJ56: 39 | AK56: 99 | AL56: 199 | AM56: 99.5 | AN56: 39.8 | AO56: 60 | AP56: 8 | AQ56: 32 | AR56: 100 | AS56: 60 | AT56: 8 | AU56: 30 | AV56: 98 | AW56: 198 | AX56: 99 | AY56: 39.6 | AZ56: 289.3 | BA56: 100 | BB56: 100 | BC56: 200 | BD56: 100 | BE56: 20 | BF56: 100 | BG56: 100 | BH56: 200 | BI56: 100 | BJ56: 20 | BK56: 100 | BL56: 100 | BM56: 200 | BN56: 100 | BO56: 20 | BP56: 100 | BQ56: 100 | BR56: 200 | BS56: 100 | BT56: 20 | BU56: 369.5 | BV56: 51 | BW56: 32 | BX56: 83 | BY56: 47 | BZ56: 30 | CA56: 77 | CB56: 160 | CC56: 80 | CD56: 32 | CE56: 0 | CF56: 0 | CG56: 0 | CH56: 0 | CJ56: 0 | CK56: 0 | CL56: 0 | CM56: 0 | CN56: 0 | CO56: 0 | CP56: 0 | CQ56: 0 | CS56: 0 | CT56: 0 | CU56: 0 | CV56: 0 | CW56: ناجــــح | CX56: ومنقول للصف الخامس | DH56: =IFERROR(INDEX($B$7:$B$33,MATCH(0,INDEX(COUNTIF($DH$6:DH55,$B$7:$B$33),),0)),"") -> 
B57: 750 | C57: عبد الحافظ عبد الله محمد أحمد | D57: 1 | E57: 59 | F57: 38 | G57: 97 | H57: 54 | I57: 36 | J57: 90 | K57: 187 | L57: 93.5 | M57: 93.5 | N57: 55 | O57: 39 | P57: 94 | Q57: 55 | R57: 40 | S57: 95 | T57: 189 | U57: 94.5 | V57: 75.6 | W57: 51 | X57: 35 | Y57: 86 | Z57: 57 | AA57: 40 | AB57: 97 | AC57: 183 | AD57: 91.5 | AE57: 36.6 | AF57: 60 | AG57: 38 | AH57: 98 | AI57: 59 | AJ57: 39 | AK57: 98 | AL57: 196 | AM57: 98 | AN57: 39.2 | AO57: 60 | AP57: 8 | AQ57: 32 | AR57: 100 | AS57: 60 | AT57: 8 | AU57: 32 | AV57: 100 | AW57: 200 | AX57: 100 | AY57: 40 | AZ57: 284.9 | BA57: 100 | BB57: 100 | BC57: 200 | BD57: 100 | BE57: 20 | BF57: 100 | BG57: 100 | BH57: 200 | BI57: 100 | BJ57: 20 | BK57: 100 | BL57: 100 | BM57: 200 | BN57: 100 | BO57: 20 | BP57: 100 | BQ57: 100 | BR57: 200 | BS57: 100 | BT57: 20 | BU57: 365 | BV57: 53 | BW57: 35 | BX57: 88 | BY57: 56 | BZ57: 38 | CA57: 94 | CB57: 182 | CC57: 91 | CD57: 36.4 | CE57: 0 | CF57: 0 | CG57: 0 | CH57: 0 | CJ57: 0 | CK57: 0 | CL57: 0 | CM57: 0 | CN57: 0 | CO57: 0 | CP57: 0 | CQ57: 0 | CS57: 0 | CT57: 0 | CU57: 0 | CV57: 0 | CW57: ناجــــح | CX57: ومنقول للصف الخامس | DH57: =IFERROR(INDEX($B$7:$B$33,MATCH(0,INDEX(COUNTIF($DH$6:DH56,$B$7:$B$33),),0)),"") -> 
B58: 751 | C58: عبد الرحمن أحمد عزب علي | D58: 1 | E58: 60 | F58: 39 | G58: 99 | H58: 60 | I58: 39 | J58: 99 | K58: 198 | L58: 99 | M58: 99 | N58: 60 | O58: 38 | P58: 98 | Q58: 60 | R58: 38 | S58: 98 | T58: 196 | U58: 98 | V58: 78.4 | W58: 60 | X58: 40 | Y58: 100 | Z58: 60 | AA58: 40 | AB58: 100 | AC58: 200 | AD58: 100 | AE58: 40 | AF58: 60 | AG58: 40 | AH58: 100 | AI58: 60 | AJ58: 40 | AK58: 100 | AL58: 200 | AM58: 100 | AN58: 40 | AO58: 60 | AP58: 8 | AQ58: 32 | AR58: 100 | AS58: 60 | AT58: 8 | AU58: 32 | AV58: 100 | AW58: 200 | AX58: 100 | AY58: 40 | AZ58: 297.4 | BA58: 100 | BB58: 100 | BC58: 200 | BD58: 100 | BE58: 20 | BF58: 100 | BG58: 100 | BH58: 200 | BI58: 100 | BJ58: 20 | BK58: 100 | BL58: 100 | BM58: 200 | BN58: 100 | BO58: 20 | BP58: 100 | BQ58: 100 | BR58: 200 | BS58: 100 | BT58: 20 | BU58: 377.5 | BV58: 57 | BW58: 37 | BX58: 94 | BY58: 60 | BZ58: 40 | CA58: 100 | CB58: 194 | CC58: 97 | CD58: 38.8 | CE58: 0 | CF58: 0 | CG58: 0 | CH58: 0 | CJ58: 0 | CK58: 0 | CL58: 0 | CM58: 0 | CN58: 0 | CO58: 0 | CP58: 0 | CQ58: 0 | CS58: 0 | CT58: 0 | CU58: 0 | CV58: 0 | CW58: ناجــــح | CX58: ومنقول للصف الخامس | DH58: =IFERROR(INDEX($B$7:$B$33,MATCH(0,INDEX(COUNTIF($DH$6:DH57,$B$7:$B$33),),0)),"") -> 
B59: 752 | C59: عبد الرحمن خالد محمود أمين | D59: 1 | E59: 58 | F59: 37 | G59: 95 | H59: 58 | I59: 37 | J59: 95 | K59: 190 | L59: 95 | M59: 95 | N59: 57 | O59: 36 | P59: 93 | Q59: 55 | R59: 40 | S59: 95 | T59: 188 | U59: 94 | V59: 75.2 | W59: 60 | X59: 30 | Y59: 90 | Z59: 58 | AA59: 34 | AB59: 92 | AC59: 182 | AD59: 91 | AE59: 36.4 | AF59: 59 | AG59: 38 | AH59: 97 | AI59: 60 | AJ59: 39 | AK59: 99 | AL59: 196 | AM59: 98 | AN59: 39.2 | AO59: 56 | AP59: 4 | AQ59: 32 | AR59: 92 | AS59: 57 | AT59: 8 | AU59: 32 | AV59: 97 | AW59: 189 | AX59: 94.5 | AY59: 37.8 | AZ59: 283.6 | BA59: 100 | BB59: 100 | BC59: 200 | BD59: 100 | BE59: 20 | BF59: 100 | BG59: 100 | BH59: 200 | BI59: 100 | BJ59: 20 | BK59: 100 | BL59: 100 | BM59: 200 | BN59: 100 | BO59: 20 | BP59: 100 | BQ59: 100 | BR59: 200 | BS59: 100 | BT59: 20 | BU59: 364 | BV59: 54 | BW59: 24 | BX59: 78 | BY59: 53 | BZ59: 30 | CA59: 83 | CB59: 161 | CC59: 80.5 | CD59: 32.2 | CE59: 0 | CF59: 0 | CG59: 0 | CH59: 0 | CJ59: 0 | CK59: 0 | CL59: 0 | CM59: 0 | CN59: 0 | CO59: 0 | CP59: 0 | CQ59: 0 | CS59: 0 | CT59: 0 | CU59: 0 | CV59: 0 | CW59: ناجــــح | CX59: ومنقول للصف الخامس | DH59: =IFERROR(INDEX($B$7:$B$33,MATCH(0,INDEX(COUNTIF($DH$6:DH58,$B$7:$B$33),),0)),"") -> 
B60: 753 | C60: عبد الرحمن طارق محمد محمد | D60: 1 | E60: 60 | F60: 40 | G60: 100 | H60: 60 | I60: 38 | J60: 98 | K60: 198 | L60: 99 | M60: 99 | N60: 60 | O60: 38 | P60: 98 | Q60: 60 | R60: 40 | S60: 100 | T60: 198 | U60: 99 | V60: 79.2 | W60: 60 | X60: 40 | Y60: 100 | Z60: 60 | AA60: 40 | AB60: 100 | AC60: 200 | AD60: 100 | AE60: 40 | AF60: 60 | AG60: 40 | AH60: 100 | AI60: 60 | AJ60: 40 | AK60: 100 | AL60: 200 | AM60: 100 | AN60: 40 | AO60: 60 | AP60: 8 | AQ60: 32 | AR60: 100 | AS60: 59 | AT60: 8 | AU60: 32 | AV60: 99 | AW60: 199 | AX60: 99.5 | AY60: 39.8 | AZ60: 298 | BA60: 100 | BB60: 100 | BC60: 200 | BD60: 100 | BE60: 20 | BF60: 100 | BG60: 100 | BH60: 200 | BI60: 100 | BJ60: 20 | BK60: 100 | BL60: 100 | BM60: 200 | BN60: 100 | BO60: 20 | BP60: 100 | BQ60: 100 | BR60: 200 | BS60: 100 | BT60: 20 | BU60: 378 | BV60: 60 | BW60: 38 | BX60: 98 | BY60: 60 | BZ60: 38 | CA60: 98 | CB60: 196 | CC60: 98 | CD60: 39.2 | CE60: 0 | CF60: 0 | CG60: 0 | CH60: 0 | CJ60: 0 | CK60: 0 | CL60: 0 | CM60: 0 | CN60: 0 | CO60: 0 | CP60: 0 | CQ60: 0 | CS60: 0 | CT60: 0 | CU60: 0 | CV60: 0 | CW60: ناجــــح | CX60: ومنقول للصف الخامس | DH60: =IFERROR(INDEX($B$7:$B$33,MATCH(0,INDEX(COUNTIF($DH$6:DH59,$B$7:$B$33),),0)),"") -> 
B61: 754 | C61: عبد الرحمن محمد على جودة | D61: 1 | E61: 60 | F61: 40 | G61: 100 | H61: 60 | I61: 38 | J61: 98 | K61: 198 | L61: 99 | M61: 99 | N61: 58 | O61: 38 | P61: 96 | Q61: 60 | R61: 40 | S61: 100 | T61: 196 | U61: 98 | V61: 78.4 | W61: 55 | X61: 37 | Y61: 92 | Z61: 59 | AA61: 37 | AB61: 96 | AC61: 188 | AD61: 94 | AE61: 37.6 | AF61: 60 | AG61: 40 | AH61: 100 | AI61: 60 | AJ61: 40 | AK61: 100 | AL61: 200 | AM61: 100 | AN61: 40 | AO61: 59 | AP61: 8 | AQ61: 32 | AR61: 99 | AS61: 60 | AT61: 8 | AU61: 31 | AV61: 99 | AW61: 198 | AX61: 99 | AY61: 39.6 | AZ61: 294.6 | BA61: 100 | BB61: 100 | BC61: 200 | BD61: 100 | BE61: 20 | BF61: 100 | BG61: 100 | BH61: 200 | BI61: 100 | BJ61: 20 | BK61: 100 | BL61: 100 | BM61: 200 | BN61: 100 | BO61: 20 | BP61: 100 | BQ61: 100 | BR61: 200 | BS61: 100 | BT61: 20 | BU61: 375 | BV61: 59 | BW61: 34 | BX61: 93 | BY61: 60 | BZ61: 30 | CA61: 90 | CB61: 183 | CC61: 91.5 | CD61: 36.6 | CE61: 0 | CF61: 0 | CG61: 0 | CH61: 0 | CJ61: 0 | CK61: 0 | CL61: 0 | CM61: 0 | CN61: 0 | CO61: 0 | CP61: 0 | CQ61: 0 | CS61: 0 | CT61: 0 | CU61: 0 | CV61: 0 | CW61: ناجــــح | CX61: ومنقول للصف الخامس | DH61: =IFERROR(INDEX($B$7:$B$33,MATCH(0,INDEX(COUNTIF($DH$6:DH60,$B$7:$B$33),),0)),"") -> 
B62: 755 | C62: عبد العزيز رضا عبد العزيز أحمد | D62: 1 | E62: 57 | F62: 38 | G62: 95 | H62: 53 | I62: 34 | J62: 87 | K62: 182 | L62: 91 | M62: 91 | N62: 49 | O62: 27 | P62: 76 | Q62: 45 | R62: 38 | S62: 83 | T62: 159 | U62: 79.5 | V62: 63.6 | W62: 52 | X62: 30 | Y62: 82 | Z62: 42 | AA62: 24 | AB62: 66 | AC62: 148 | AD62: 74 | AE62: 29.6 | AF62: 56 | AG62: 35 | AH62: 91 | AI62: 60 | AJ62: 34 | AK62: 94 | AL62: 185 | AM62: 92.5 | AN62: 37 | AO62: 53 | AP62: 8 | AQ62: 27 | AR62: 88 | AS62: 56 | AT62: 8 | AU62: 24 | AV62: 88 | AW62: 176 | AX62: 88 | AY62: 35.2 | AZ62: 256.4 | BA62: 100 | BB62: 100 | BC62: 200 | BD62: 100 | BE62: 20 | BF62: 100 | BG62: 100 | BH62: 200 | BI62: 100 | BJ62: 20 | BK62: 100 | BL62: 100 | BM62: 200 | BN62: 100 | BO62: 20 | BP62: 100 | BQ62: 100 | BR62: 200 | BS62: 100 | BT62: 20 | BU62: 336.5 | BV62: 55 | BW62: 23 | BX62: 78 | BY62: 48 | BZ62: 26 | CA62: 74 | CB62: 152 | CC62: 76 | CD62: 30.4 | CE62: 0 | CF62: 0 | CG62: 0 | CH62: 0 | CJ62: 0 | CK62: 0 | CL62: 0 | CM62: 0 | CN62: 0 | CO62: 0 | CP62: 0 | CQ62: 0 | CS62: 0 | CT62: 0 | CU62: 0 | CV62: 0 | CW62: ناجــــح | CX62: ومنقول للصف الخامس | DH62: =IFERROR(INDEX($B$7:$B$33,MATCH(0,INDEX(COUNTIF($DH$6:DH61,$B$7:$B$33),),0)),"") -> 
B63: 756 | C63: عبد العزيز طارق عبد العزيز عبد العال | D63: 1 | E63: 60 | F63: 39 | G63: 99 | H63: 60 | I63: 40 | J63: 100 | K63: 199 | L63: 99.5 | M63: 99.5 | N63: 60 | O63: 38 | P63: 98 | Q63: 58 | R63: 40 | S63: 98 | T63: 196 | U63: 98 | V63: 78.4 | W63: 56 | X63: 40 | Y63: 96 | Z63: 59 | AA63: 40 | AB63: 99 | AC63: 195 | AD63: 97.5 | AE63: 39 | AF63: 58 | AG63: 39 | AH63: 97 | AI63: 59 | AJ63: 39 | AK63: 98 | AL63: 195 | AM63: 97.5 | AN63: 39 | AO63: 60 | AP63: 8 | AQ63: 32 | AR63: 100 | AS63: 60 | AT63: 8 | AU63: 32 | AV63: 100 | AW63: 200 | AX63: 100 | AY63: 40 | AZ63: 295.9 | BA63: 100 | BB63: 100 | BC63: 200 | BD63: 100 | BE63: 20 | BF63: 100 | BG63: 100 | BH63: 200 | BI63: 100 | BJ63: 20 | BK63: 100 | BL63: 100 | BM63: 200 | BN63: 100 | BO63: 20 | BP63: 100 | BQ63: 100 | BR63: 200 | BS63: 100 | BT63: 20 | BU63: 376 | BV63: 59 | BW63: 27 | BX63: 86 | BY63: 57 | BZ63: 40 | CA63: 97 | CB63: 183 | CC63: 91.5 | CD63: 36.6 | CE63: 0 | CF63: 0 | CG63: 0 | CH63: 0 | CJ63: 0 | CK63: 0 | CL63: 0 | CM63: 0 | CN63: 0 | CO63: 0 | CP63: 0 | CQ63: 0 | CS63: 0 | CT63: 0 | CU63: 0 | CV63: 0 | CW63: ناجــــح | CX63: ومنقول للصف الخامس | DH63: =IFERROR(INDEX($B$7:$B$33,MATCH(0,INDEX(COUNTIF($DH$6:DH62,$B$7:$B$33),),0)),"") -> 
B64: 757 | C64: عبد الغنى عاطف عبد الغنى السيد | D64: 1 | E64: 57 | F64: 38 | G64: 95 | H64: 59 | I64: 35 | J64: 94 | K64: 189 | L64: 94.5 | M64: 94.5 | N64: 53 | O64: 32 | P64: 85 | Q64: 49 | R64: 35 | S64: 84 | T64: 169 | U64: 84.5 | V64: 67.6 | W64: 48 | X64: 35 | Y64: 83 | Z64: 49 | AA64: 34 | AB64: 83 | AC64: 166 | AD64: 83 | AE64: 33.2 | AF64: 60 | AG64: 40 | AH64: 100 | AI64: 60 | AJ64: 38 | AK64: 98 | AL64: 198 | AM64: 99 | AN64: 39.6 | AO64: 60 | AP64: 8 | AQ64: 32 | AR64: 100 | AS64: 56 | AT64: 8 | AU64: 26 | AV64: 90 | AW64: 190 | AX64: 95 | AY64: 38 | AZ64: 272.9 | BA64: 100 | BB64: 100 | BC64: 200 | BD64: 100 | BE64: 20 | BF64: 100 | BG64: 100 | BH64: 200 | BI64: 100 | BJ64: 20 | BK64: 100 | BL64: 100 | BM64: 200 | BN64: 100 | BO64: 20 | BP64: 100 | BQ64: 100 | BR64: 200 | BS64: 100 | BT64: 20 | BU64: 353 | BV64: 60 | BW64: 31 | BX64: 91 | BY64: 57 | BZ64: 34 | CA64: 91 | CB64: 182 | CC64: 91 | CD64: 36.4 | CE64: 0 | CF64: 0 | CG64: 0 | CH64: 0 | CJ64: 0 | CK64: 0 | CL64: 0 | CM64: 0 | CN64: 0 | CO64: 0 | CP64: 0 | CQ64: 0 | CS64: 0 | CT64: 0 | CU64: 0 | CV64: 0 | CW64: ناجــــح | CX64: ومنقول للصف الخامس | DH64: =IFERROR(INDEX($B$7:$B$33,MATCH(0,INDEX(COUNTIF($DH$6:DH63,$B$7:$B$33),),0)),"") -> 
B65: 758 | C65: عبد الفتاح عبد السلام عبد الفتاح إبراهيم | D65: 1 | E65: غ | F65: غ | G65: 0 | H65: غ | I65: غ | J65: 0 | K65: 0 | L65: 0 | M65: 0 | N65: غ | O65: غ | P65: 0 | Q65: غ | R65: غ | S65: 0 | T65: 0 | U65: 0 | V65: 0 | W65: غ | X65: غ | Y65: 0 | Z65: غ | AA65: غ | AB65: 0 | AC65: 0 | AD65: 0 | AE65: 0 | AF65: غ | AG65: غ | AH65: 0 | AI65: غ | AJ65: غ | AK65: 0 | AL65: 0 | AM65: 0 | AN65: 0 | AO65: غ | AP65: غ | AQ65: غ | AR65: 0 | AS65: غ | AT65: غ | AU65: غ | AV65: 0 | AW65: 0 | AX65: 0 | AY65: 0 | AZ65: 0 | BA65: غ | BB65: غ | BC65: 0 | BD65: 0 | BE65: 0 | BF65: غ | BG65: غ | BH65: 0 | BI65: 0 | BJ65: 0 | BK65: غ | BL65: غ | BM65: 0 | BN65: 0 | BO65: 0 | BP65: غ | BQ65: غ | BR65: 0 | BS65: 0 | BT65: 0 | BU65: 0 | BV65: غ | BW65: غ | BX65: 0 | BY65: غ | BZ65: غ | CA65: 0 | CB65: 0 | CC65: 0 | CD65: 0 | CE65: 0 | CF65: 0 | CG65: 0 | CH65: 0 | CJ65: 0 | CK65: 0 | CL65: 0 | CM65: 0 | CN65: 0 | CO65: 0 | CP65: 0 | CQ65: 0 | CS65: 0 | CT65: 0 | CU65: 0 | CV65: 0 | CW65: له دور ثان فى | CX65: جميع المواد | DH65: =IFERROR(INDEX($B$7:$B$33,MATCH(0,INDEX(COUNTIF($DH$6:DH64,$B$7:$B$33),),0)),"") -> 
B66: 759 | C66: عبد الواحد رضا عبد الواحد حسن | D66: 1 | E66: 60 | F66: 33 | G66: 93 | H66: 58 | I66: 32 | J66: 90 | K66: 183 | L66: 91.5 | M66: 91.5 | N66: 60 | O66: 31 | P66: 91 | Q66: 56 | R66: 34 | S66: 90 | T66: 181 | U66: 90.5 | V66: 72.4 | W66: 57 | X66: 37 | Y66: 94 | Z66: 49 | AA66: 40 | AB66: 89 | AC66: 183 | AD66: 91.5 | AE66: 36.6 | AF66: 53 | AG66: 36 | AH66: 89 | AI66: 60 | AJ66: 38 | AK66: 98 | AL66: 187 | AM66: 93.5 | AN66: 37.4 | AO66: 52 | AP66: 8 | AQ66: 32 | AR66: 92 | AS66: 56 | AT66: 8 | AU66: 30 | AV66: 94 | AW66: 186 | AX66: 93 | AY66: 37.2 | AZ66: 275.1 | BA66: 99 | BB66: 100 | BC66: 199 | BD66: 99.5 | BE66: 19.9 | BF66: 100 | BG66: 100 | BH66: 200 | BI66: 100 | BJ66: 20 | BK66: 100 | BL66: 100 | BM66: 200 | BN66: 100 | BO66: 20 | BP66: 100 | BQ66: 100 | BR66: 200 | BS66: 100 | BT66: 20 | BU66: 355 | BV66: 48 | BW66: 26 | BX66: 74 | BY66: 47 | BZ66: 36 | CA66: 83 | CB66: 157 | CC66: 78.5 | CD66: 31.4 | CE66: 0 | CF66: 0 | CG66: 0 | CH66: 0 | CJ66: 0 | CK66: 0 | CL66: 0 | CM66: 0 | CN66: 0 | CO66: 0 | CP66: 0 | CQ66: 0 | CS66: 0 | CT66: 0 | CU66: 0 | CV66: 0 | CW66: ناجــــح | CX66: ومنقول للصف الخامس | DH66: =IFERROR(INDEX($B$7:$B$33,MATCH(0,INDEX(COUNTIF($DH$6:DH65,$B$7:$B$33),),0)),"") -> 
B67: 760 | C67: عزب أشرف عزب محمدعلي | D67: 1 | E67: 59 | F67: 33 | G67: 92 | H67: 48 | I67: 25 | J67: 73 | K67: 165 | L67: 82.5 | M67: 82.5 | N67: 53 | O67: 25 | P67: 78 | Q67: 50 | R67: 31 | S67: 81 | T67: 159 | U67: 79.5 | V67: 63.6 | W67: 45 | X67: 21 | Y67: 66 | Z67: 39 | AA67: 20 | AB67: 59 | AC67: 125 | AD67: 62.5 | AE67: 25 | AF67: 55 | AG67: 38 | AH67: 93 | AI67: 53 | AJ67: 33 | AK67: 86 | AL67: 179 | AM67: 89.5 | AN67: 35.8 | AO67: 53 | AP67: 8 | AQ67: 24 | AR67: 85 | AS67: 57 | AT67: 6 | AU67: 23 | AV67: 86 | AW67: 171 | AX67: 85.5 | AY67: 34.2 | AZ67: 241.1 | BA67: 100 | BB67: 100 | BC67: 200 | BD67: 100 | BE67: 20 | BF67: 100 | BG67: 100 | BH67: 200 | BI67: 100 | BJ67: 20 | BK67: 100 | BL67: 100 | BM67: 200 | BN67: 100 | BO67: 20 | BP67: 100 | BQ67: 100 | BR67: 200 | BS67: 100 | BT67: 20 | BU67: 321.5 | BV67: 44 | BW67: 28 | BX67: 72 | BY67: 45 | BZ67: 33 | CA67: 78 | CB67: 150 | CC67: 75 | CD67: 30 | CE67: 0 | CF67: 0 | CG67: 0 | CH67: 0 | CJ67: 0 | CK67: 0 | CL67: 0 | CM67: 0 | CN67: 0 | CO67: 0 | CP67: 0 | CQ67: 0 | CS67: 0 | CT67: 0 | CU67: 0 | CV67: 0 | CW67: ناجــــح | CX67: ومنقول للصف الخامس | DH67: =IFERROR(INDEX($B$7:$B$33,MATCH(0,INDEX(COUNTIF($DH$6:DH66,$B$7:$B$33),),0)),"") -> 
B68: 761 | C68: على أشرف بدر عداروس | D68: 1 | E68: 58 | F68: 9 | G68: 67 | H68: 45 | I68: 11 | J68: 56 | K68: 123 | L68: 61.5 | M68: 61.5 | N68: 50 | O68: 13 | P68: 63 | Q68: 50 | R68: 22 | S68: 72 | T68: 135 | U68: 67.5 | V68: 54 | W68: 40 | X68: 4 | Y68: 44 | Z68: 31 | AA68: 4 | AB68: 35 | AC68: 79 | AD68: 39.5 | AE68: 15.8 | AF68: 41 | AG68: 14 | AH68: 55 | AI68: 49 | AJ68: 15 | AK68: 64 | AL68: 119 | AM68: 59.5 | AN68: 23.8 | AO68: 45 | AP68: 8 | AQ68: 12 | AR68: 65 | AS68: 44 | AT68: 4 | AU68: 13 | AV68: 61 | AW68: 126 | AX68: 63 | AY68: 25.2 | AZ68: 180.3 | BA68: 97 | BB68: 100 | BC68: 197 | BD68: 98.5 | BE68: 19.7 | BF68: 100 | BG68: 100 | BH68: 200 | BI68: 100 | BJ68: 20 | BK68: 100 | BL68: 100 | BM68: 200 | BN68: 100 | BO68: 20 | BP68: 100 | BQ68: 100 | BR68: 200 | BS68: 100 | BT68: 20 | BU68: 260 | BV68: 38 | BW68: 10 | BX68: 48 | BY68: 34 | BZ68: 24 | CA68: 58 | CB68: 106 | CC68: 53 | CD68: 21.2 | CE68: 0 | CF68: 0 | CG68: 0 | CH68: 0 | CJ68: 0 | CK68: 0 | CL68: 0 | CM68: 0 | CN68: 0 | CO68: 0 | CP68: 0 | CQ68: 0 | CS68: 0 | CT68: 0 | CU68: 0 | CV68: 0 | CW68: له دور ثان فى | CX68: عربى،دراسات، | DH68: =IFERROR(INDEX($B$7:$B$33,MATCH(0,INDEX(COUNTIF($DH$6:DH67,$B$7:$B$33),),0)),"") -> 
B69: 762 | C69: على سعيد سعد على | D69: 1 | E69: 60 | F69: 38 | G69: 98 | H69: 52 | I69: 37 | J69: 89 | K69: 187 | L69: 93.5 | M69: 93.5 | N69: 56 | O69: 36 | P69: 92 | Q69: 48 | R69: 32 | S69: 80 | T69: 172 | U69: 86 | V69: 68.8 | W69: 50 | X69: 29 | Y69: 79 | Z69: 39 | AA69: 24 | AB69: 63 | AC69: 142 | AD69: 71 | AE69: 28.4 | AF69: 60 | AG69: 40 | AH69: 100 | AI69: 56 | AJ69: 39 | AK69: 95 | AL69: 195 | AM69: 97.5 | AN69: 39 | AO69: 56 | AP69: 8 | AQ69: 28 | AR69: 92 | AS69: 56 | AT69: 8 | AU69: 29 | AV69: 93 | AW69: 185 | AX69: 92.5 | AY69: 37 | AZ69: 266.7 | BA69: 100 | BB69: 100 | BC69: 200 | BD69: 100 | BE69: 20 | BF69: 100 | BG69: 100 | BH69: 200 | BI69: 100 | BJ69: 20 | BK69: 100 | BL69: 100 | BM69: 200 | BN69: 100 | BO69: 20 | BP69: 100 | BQ69: 100 | BR69: 200 | BS69: 100 | BT69: 20 | BU69: 347 | BV69: 48 | BW69: 24 | BX69: 72 | BY69: 43 | BZ69: 31 | CA69: 74 | CB69: 146 | CC69: 73 | CD69: 29.2 | CE69: 0 | CF69: 0 | CG69: 0 | CH69: 0 | CJ69: 0 | CK69: 0 | CL69: 0 | CM69: 0 | CN69: 0 | CO69: 0 | CP69: 0 | CQ69: 0 | CS69: 0 | CT69: 0 | CU69: 0 | CV69: 0 | CW69: ناجــــح | CX69: ومنقول للصف الخامس | DH69: =IFERROR(INDEX($B$7:$B$33,MATCH(0,INDEX(COUNTIF($DH$6:DH68,$B$7:$B$33),),0)),"") -> 
B70: 763 | C70: على صابر بدر عداروس | D70: 1 | E70: 59 | F70: 40 | G70: 99 | H70: 60 | I70: 39 | J70: 99 | K70: 198 | L70: 99 | M70: 99 | N70: 59 | O70: 40 | P70: 99 | Q70: 55 | R70: 39 | S70: 94 | T70: 193 | U70: 96.5 | V70: 77.2 | W70: 59 | X70: 40 | Y70: 99 | Z70: 52 | AA70: 40 | AB70: 92 | AC70: 191 | AD70: 95.5 | AE70: 38.2 | AF70: 60 | AG70: 40 | AH70: 100 | AI70: 60 | AJ70: 38 | AK70: 98 | AL70: 198 | AM70: 99 | AN70: 39.6 | AO70: 59 | AP70: 8 | AQ70: 32 | AR70: 99 | AS70: 60 | AT70: 8 | AU70: 31 | AV70: 99 | AW70: 198 | AX70: 99 | AY70: 39.6 | AZ70: 293.6 | BA70: 100 | BB70: 100 | BC70: 200 | BD70: 100 | BE70: 20 | BF70: 100 | BG70: 100 | BH70: 200 | BI70: 100 | BJ70: 20 | BK70: 100 | BL70: 100 | BM70: 200 | BN70: 100 | BO70: 20 | BP70: 100 | BQ70: 100 | BR70: 200 | BS70: 100 | BT70: 20 | BU70: 374 | BV70: 56 | BW70: 34 | BX70: 90 | BY70: 60 | BZ70: 40 | CA70: 100 | CB70: 190 | CC70: 95 | CD70: 38 | CE70: 0 | CF70: 0 | CG70: 0 | CH70: 0 | CJ70: 0 | CK70: 0 | CL70: 0 | CM70: 0 | CN70: 0 | CO70: 0 | CP70: 0 | CQ70: 0 | CS70: 0 | CT70: 0 | CU70: 0 | CV70: 0 | CW70: ناجــــح | CX70: ومنقول للصف الخامس | DH70: =IFERROR(INDEX($B$7:$B$33,MATCH(0,INDEX(COUNTIF($DH$6:DH69,$B$7:$B$33),),0)),"") -> 
B71: 764 | C71: علي خالد علي أحمد | D71: 1 | E71: 60 | F71: 40 | G71: 100 | H71: 60 | I71: 40 | J71: 100 | K71: 200 | L71: 100 | M71: 100 | N71: 60 | O71: 40 | P71: 100 | Q71: 60 | R71: 40 | S71: 100 | T71: 200 | U71: 100 | V71: 80 | W71: 60 | X71: 40 | Y71: 100 | Z71: 60 | AA71: 40 | AB71: 100 | AC71: 200 | AD71: 100 | AE71: 40 | AF71: 60 | AG71: 40 | AH71: 100 | AI71: 60 | AJ71: 40 | AK71: 100 | AL71: 200 | AM71: 100 | AN71: 40 | AO71: 60 | AP71: 8 | AQ71: 32 | AR71: 100 | AS71: 60 | AT71: 8 | AU71: 32 | AV71: 100 | AW71: 200 | AX71: 100 | AY71: 40 | AZ71: 300 | BA71: 100 | BB71: 100 | BC71: 200 | BD71: 100 | BE71: 20 | BF71: 100 | BG71: 100 | BH71: 200 | BI71: 100 | BJ71: 20 | BK71: 100 | BL71: 100 | BM71: 200 | BN71: 100 | BO71: 20 | BP71: 100 | BQ71: 100 | BR71: 200 | BS71: 100 | BT71: 20 | BU71: 380 | BV71: 60 | BW71: 37 | BX71: 97 | BY71: 60 | BZ71: 40 | CA71: 100 | CB71: 197 | CC71: 98.5 | CD71: 39.4 | CE71: 0 | CF71: 0 | CG71: 0 | CH71: 0 | CJ71: 0 | CK71: 0 | CL71: 0 | CM71: 0 | CN71: 0 | CO71: 0 | CP71: 0 | CQ71: 0 | CS71: 0 | CT71: 0 | CU71: 0 | CV71: 0 | CW71: ناجــــح | CX71: ومنقول للصف الخامس | DH71: =IFERROR(INDEX($B$7:$B$33,MATCH(0,INDEX(COUNTIF($DH$6:DH70,$B$7:$B$33),),0)),"") -> 
B72: 765 | C72: علي عبد العزيز علي سليمان | D72: 1 | E72: 60 | F72: 38 | G72: 98 | H72: 60 | I72: 35 | J72: 95 | K72: 193 | L72: 96.5 | M72: 96.5 | N72: 60 | O72: 28 | P72: 88 | Q72: 60 | R72: 40 | S72: 100 | T72: 188 | U72: 94 | V72: 75.2 | W72: 58 | X72: 40 | Y72: 98 | Z72: 54 | AA72: 40 | AB72: 94 | AC72: 192 | AD72: 96 | AE72: 38.4 | AF72: 59 | AG72: 40 | AH72: 99 | AI72: 60 | AJ72: 35 | AK72: 95 | AL72: 194 | AM72: 97 | AN72: 38.8 | AO72: 54 | AP72: 8 | AQ72: 30 | AR72: 92 | AS72: 58 | AT72: 8 | AU72: 29 | AV72: 95 | AW72: 187 | AX72: 93.5 | AY72: 37.4 | AZ72: 286.3 | BA72: 100 | BB72: 100 | BC72: 200 | BD72: 100 | BE72: 20 | BF72: 100 | BG72: 100 | BH72: 200 | BI72: 100 | BJ72: 20 | BK72: 100 | BL72: 100 | BM72: 200 | BN72: 100 | BO72: 20 | BP72: 100 | BQ72: 100 | BR72: 200 | BS72: 100 | BT72: 20 | BU72: 366.5 | BV72: 59 | BW72: 37 | BX72: 96 | BY72: 53 | BZ72: 33 | CA72: 86 | CB72: 182 | CC72: 91 | CD72: 36.4 | CE72: 0 | CF72: 0 | CG72: 0 | CH72: 0 | CJ72: 0 | CK72: 0 | CL72: 0 | CM72: 0 | CN72: 0 | CO72: 0 | CP72: 0 | CQ72: 0 | CS72: 0 | CT72: 0 | CU72: 0 | CV72: 0 | CW72: ناجــــح | CX72: ومنقول للصف الخامس | DH72: =IFERROR(INDEX($B$7:$B$33,MATCH(0,INDEX(COUNTIF($DH$6:DH71,$B$7:$B$33),),0)),"") -> 
B73: 766 | C73: عماد عبد الناصر حسين مصطفى | D73: 1 | E73: 59 | F73: 38 | G73: 97 | H73: 52 | I73: 37 | J73: 89 | K73: 186 | L73: 93 | M73: 93 | N73: 58 | O73: 37 | P73: 95 | Q73: 51 | R73: 38 | S73: 89 | T73: 184 | U73: 92 | V73: 73.6 | W73: 59 | X73: 29 | Y73: 88 | Z73: 48 | AA73: 39 | AB73: 87 | AC73: 175 | AD73: 87.5 | AE73: 35 | AF73: 58 | AG73: 40 | AH73: 98 | AI73: 60 | AJ73: 40 | AK73: 100 | AL73: 198 | AM73: 99 | AN73: 39.6 | AO73: 56 | AP73: 8 | AQ73: 30 | AR73: 94 | AS73: 59 | AT73: 8 | AU73: 32 | AV73: 99 | AW73: 193 | AX73: 96.5 | AY73: 38.6 | AZ73: 279.8 | BA73: 100 | BB73: 100 | BC73: 200 | BD73: 100 | BE73: 20 | BF73: 100 | BG73: 100 | BH73: 200 | BI73: 100 | BJ73: 20 | BK73: 100 | BL73: 100 | BM73: 200 | BN73: 100 | BO73: 20 | BP73: 100 | BQ73: 100 | BR73: 200 | BS73: 100 | BT73: 20 | BU73: 360 | BV73: 59 | BW73: 36 | BX73: 95 | BY73: 59 | BZ73: 40 | CA73: 99 | CB73: 194 | CC73: 97 | CD73: 38.8 | CE73: 0 | CF73: 0 | CG73: 0 | CH73: 0 | CJ73: 0 | CK73: 0 | CL73: 0 | CM73: 0 | CN73: 0 | CO73: 0 | CP73: 0 | CQ73: 0 | CS73: 0 | CT73: 0 | CU73: 0 | CV73: 0 | CW73: ناجــــح | CX73: ومنقول للصف الخامس | DH73: =IFERROR(INDEX($B$7:$B$33,MATCH(0,INDEX(COUNTIF($DH$6:DH72,$B$7:$B$33),),0)),"") -> 
B74: 767 | C74: عمر السيد حجازي السيد | D74: 1 | E74: 60 | F74: 40 | G74: 100 | H74: 60 | I74: 40 | J74: 100 | K74: 200 | L74: 100 | M74: 100 | N74: 60 | O74: 40 | P74: 100 | Q74: 59 | R74: 40 | S74: 99 | T74: 199 | U74: 99.5 | V74: 79.6 | W74: 60 | X74: 40 | Y74: 100 | Z74: 58 | AA74: 40 | AB74: 98 | AC74: 198 | AD74: 99 | AE74: 39.6 | AF74: 60 | AG74: 40 | AH74: 100 | AI74: 60 | AJ74: 40 | AK74: 100 | AL74: 200 | AM74: 100 | AN74: 40 | AO74: 60 | AP74: 8 | AQ74: 32 | AR74: 100 | AS74: 60 | AT74: 8 | AU74: 32 | AV74: 100 | AW74: 200 | AX74: 100 | AY74: 40 | AZ74: 299.2 | BA74: 100 | BB74: 100 | BC74: 200 | BD74: 100 | BE74: 20 | BF74: 100 | BG74: 100 | BH74: 200 | BI74: 100 | BJ74: 20 | BK74: 100 | BL74: 100 | BM74: 200 | BN74: 100 | BO74: 20 | BP74: 100 | BQ74: 100 | BR74: 200 | BS74: 100 | BT74: 20 | BU74: 379.5 | BV74: 60 | BW74: 39 | BX74: 99 | BY74: 60 | BZ74: 40 | CA74: 100 | CB74: 199 | CC74: 99.5 | CD74: 39.8 | CE74: 0 | CF74: 0 | CG74: 0 | CH74: 0 | CJ74: 0 | CK74: 0 | CL74: 0 | CM74: 0 | CN74: 0 | CO74: 0 | CP74: 0 | CQ74: 0 | CS74: 0 | CT74: 0 | CU74: 0 | CV74: 0 | CW74: ناجــــح | CX74: ومنقول للصف الخامس | DH74: =IFERROR(INDEX($B$7:$B$33,MATCH(0,INDEX(COUNTIF($DH$6:DH73,$B$7:$B$33),),0)),"") -> 
B75: 768 | C75: عمر أيمن بيومى محمد | D75: 1 | E75: 48 | F75: 11 | G75: 59 | H75: 34 | I75: 6 | J75: 40 | K75: 99 | L75: 49.5 | M75: 49.5 | N75: 42 | O75: 8 | P75: 50 | Q75: 41 | R75: 18 | S75: 59 | T75: 109 | U75: 54.5 | V75: 43.6 | W75: 36 | X75: 8 | Y75: 44 | Z75: 33 | AA75: 6 | AB75: 39 | AC75: 83 | AD75: 41.5 | AE75: 16.6 | AF75: 48 | AG75: 22 | AH75: 70 | AI75: 43 | AJ75: 21 | AK75: 64 | AL75: 134 | AM75: 67 | AN75: 26.8 | AO75: 47 | AP75: 8 | AQ75: 25 | AR75: 80 | AS75: 39 | AT75: 6 | AU75: 17 | AV75: 62 | AW75: 142 | AX75: 71 | AY75: 28.4 | AZ75: 164.9 | BA75: 100 | BB75: 100 | BC75: 200 | BD75: 100 | BE75: 20 | BF75: 100 | BG75: 100 | BH75: 200 | BI75: 100 | BJ75: 20 | BK75: 100 | BL75: 100 | BM75: 200 | BN75: 100 | BO75: 20 | BP75: 100 | BQ75: 100 | BR75: 200 | BS75: 100 | BT75: 20 | BU75: 245 | BV75: 38 | BW75: 27 | BX75: 65 | BY75: 43 | BZ75: 28 | CA75: 71 | CB75: 136 | CC75: 68 | CD75: 27.2 | CE75: 0 | CF75: 0 | CG75: 0 | CH75: 0 | CJ75: 0 | CK75: 0 | CL75: 0 | CM75: 0 | CN75: 0 | CO75: 0 | CP75: 0 | CQ75: 0 | CS75: 0 | CT75: 0 | CU75: 0 | CV75: 0 | CW75: له دور ثان فى | CX75: عربى،دراسات، | DH75: =IFERROR(INDEX($B$7:$B$33,MATCH(0,INDEX(COUNTIF($DH$6:DH74,$B$7:$B$33),),0)),"") -> 
B76: 769 | C76: عميره عادل علي عميره | D76: 1 | E76: 58 | F76: 32 | G76: 90 | H76: 55 | I76: 24 | J76: 79 | K76: 169 | L76: 84.5 | M76: 84.5 | N76: 60 | O76: 5 | P76: 65 | Q76: 53 | R76: 22 | S76: 75 | T76: 140 | U76: 70 | V76: 56 | W76: 42 | X76: 15 | Y76: 57 | Z76: 39 | AA76: 16 | AB76: 55 | AC76: 112 | AD76: 56 | AE76: 22.4 | AF76: 55 | AG76: 40 | AH76: 95 | AI76: 59 | AJ76: 37 | AK76: 96 | AL76: 191 | AM76: 95.5 | AN76: 38.2 | AO76: 54 | AP76: 8 | AQ76: 27 | AR76: 89 | AS76: 52 | AT76: 8 | AU76: 14 | AV76: 74 | AW76: 163 | AX76: 81.5 | AY76: 32.6 | AZ76: 233.7 | BA76: 100 | BB76: 100 | BC76: 200 | BD76: 100 | BE76: 20 | BF76: 100 | BG76: 100 | BH76: 200 | BI76: 100 | BJ76: 20 | BK76: 100 | BL76: 100 | BM76: 200 | BN76: 100 | BO76: 20 | BP76: 100 | BQ76: 100 | BR76: 200 | BS76: 100 | BT76: 20 | BU76: 314 | BV76: 43 | BW76: 26 | BX76: 69 | BY76: 47 | BZ76: 27 | CA76: 74 | CB76: 143 | CC76: 71.5 | CD76: 28.6 | CE76: 0 | CF76: 0 | CG76: 0 | CH76: 0 | CJ76: 0 | CK76: 0 | CL76: 0 | CM76: 0 | CN76: 0 | CO76: 0 | CP76: 0 | CQ76: 0 | CS76: 0 | CT76: 0 | CU76: 0 | CV76: 0 | CW76: ناجــــح | CX76: ومنقول للصف الخامس | DH76: =IFERROR(INDEX($B$7:$B$33,MATCH(0,INDEX(COUNTIF($DH$6:DH75,$B$7:$B$33),),0)),"") -> 
B77: 770 | C77: عيسي محمد السيد محمد | D77: 1 | E77: 60 | F77: 39 | G77: 99 | H77: 59 | I77: 37 | J77: 96 | K77: 195 | L77: 97.5 | M77: 97.5 | N77: 52 | O77: 27 | P77: 79 | Q77: 54 | R77: 40 | S77: 94 | T77: 173 | U77: 86.5 | V77: 69.2 | W77: 55 | X77: 38 | Y77: 93 | Z77: 51 | AA77: 35 | AB77: 86 | AC77: 179 | AD77: 89.5 | AE77: 35.8 | AF77: 54 | AG77: 38 | AH77: 92 | AI77: 58 | AJ77: 39 | AK77: 97 | AL77: 189 | AM77: 94.5 | AN77: 37.8 | AO77: 56 | AP77: 8 | AQ77: 30 | AR77: 94 | AS77: 51 | AT77: 8 | AU77: 22 | AV77: 81 | AW77: 175 | AX77: 87.5 | AY77: 35 | AZ77: 275.3 | BA77: 100 | BB77: 100 | BC77: 200 | BD77: 100 | BE77: 20 | BF77: 100 | BG77: 100 | BH77: 200 | BI77: 100 | BJ77: 20 | BK77: 100 | BL77: 100 | BM77: 200 | BN77: 100 | BO77: 20 | BP77: 100 | BQ77: 100 | BR77: 200 | BS77: 100 | BT77: 20 | BU77: 355.5 | BV77: 56 | BW77: 28 | BX77: 84 | BY77: 47 | BZ77: 34 | CA77: 81 | CB77: 165 | CC77: 82.5 | CD77: 33 | CE77: 0 | CF77: 0 | CG77: 0 | CH77: 0 | CJ77: 0 | CK77: 0 | CL77: 0 | CM77: 0 | CN77: 0 | CO77: 0 | CP77: 0 | CQ77: 0 | CS77: 0 | CT77: 0 | CU77: 0 | CV77: 0 | CW77: ناجــــح | CX77: ومنقول للصف الخامس | DH77: =IFERROR(INDEX($B$7:$B$33,MATCH(0,INDEX(COUNTIF($DH$6:DH76,$B$7:$B$33),),0)),"") -> 
B78: 771 | C78: فتحي سمير فتحي متولي سيدأحمد | D78: 1 | E78: 59 | F78: 39 | G78: 98 | H78: 59 | I78: 39 | J78: 98 | K78: 196 | L78: 98 | M78: 98 | N78: 51 | O78: 23 | P78: 74 | Q78: 56 | R78: 38 | S78: 94 | T78: 168 | U78: 84 | V78: 67.2 | W78: 53 | X78: 38 | Y78: 91 | Z78: 56 | AA78: 37 | AB78: 93 | AC78: 184 | AD78: 92 | AE78: 36.8 | AF78: 60 | AG78: 40 | AH78: 100 | AI78: 60 | AJ78: 40 | AK78: 100 | AL78: 200 | AM78: 100 | AN78: 40 | AO78: 58 | AP78: 8 | AQ78: 32 | AR78: 98 | AS78: 59 | AT78: 8 | AU78: 28 | AV78: 95 | AW78: 193 | AX78: 96.5 | AY78: 38.6 | AZ78: 280.6 | BA78: 100 | BB78: 100 | BC78: 200 | BD78: 100 | BE78: 20 | BF78: 100 | BG78: 100 | BH78: 200 | BI78: 100 | BJ78: 20 | BK78: 100 | BL78: 100 | BM78: 200 | BN78: 100 | BO78: 20 | BP78: 100 | BQ78: 100 | BR78: 200 | BS78: 100 | BT78: 20 | BU78: 361 | BV78: 55 | BW78: 30 | BX78: 85 | BY78: 54 | BZ78: 40 | CA78: 94 | CB78: 179 | CC78: 89.5 | CD78: 35.8 | CE78: 0 | CF78: 0 | CG78: 0 | CH78: 0 | CJ78: 0 | CK78: 0 | CL78: 0 | CM78: 0 | CN78: 0 | CO78: 0 | CP78: 0 | CQ78: 0 | CS78: 0 | CT78: 0 | CU78: 0 | CV78: 0 | CW78: ناجــــح | CX78: ومنقول للصف الخامس | DH78: =IFERROR(INDEX($B$7:$B$33,MATCH(0,INDEX(COUNTIF($DH$6:DH77,$B$7:$B$33),),0)),"") -> 
B79: 772 | C79: فتحي علي فتحي علي | D79: 1 | E79: 60 | F79: 40 | G79: 100 | H79: 60 | I79: 40 | J79: 100 | K79: 200 | L79: 100 | M79: 100 | N79: 60 | O79: 40 | P79: 100 | Q79: 60 | R79: 38 | S79: 98 | T79: 198 | U79: 99 | V79: 79.2 | W79: 60 | X79: 39 | Y79: 99 | Z79: 60 | AA79: 40 | AB79: 100 | AC79: 199 | AD79: 99.5 | AE79: 39.8 | AF79: 60 | AG79: 40 | AH79: 100 | AI79: 60 | AJ79: 39 | AK79: 99 | AL79: 199 | AM79: 99.5 | AN79: 39.8 | AO79: 60 | AP79: 8 | AQ79: 32 | AR79: 100 | AS79: 60 | AT79: 8 | AU79: 31 | AV79: 99 | AW79: 199 | AX79: 99.5 | AY79: 39.8 | AZ79: 298.6 | BA79: 100 | BB79: 100 | BC79: 200 | BD79: 100 | BE79: 20 | BF79: 100 | BG79: 100 | BH79: 200 | BI79: 100 | BJ79: 20 | BK79: 100 | BL79: 100 | BM79: 200 | BN79: 100 | BO79: 20 | BP79: 100 | BQ79: 100 | BR79: 200 | BS79: 100 | BT79: 20 | BU79: 379 | BV79: 59 | BW79: 34 | BX79: 93 | BY79: 60 | BZ79: 40 | CA79: 100 | CB79: 193 | CC79: 96.5 | CD79: 38.6 | CE79: 0 | CF79: 0 | CG79: 0 | CH79: 0 | CJ79: 0 | CK79: 0 | CL79: 0 | CM79: 0 | CN79: 0 | CO79: 0 | CP79: 0 | CQ79: 0 | CS79: 0 | CT79: 0 | CU79: 0 | CV79: 0 | CW79: ناجــــح | CX79: ومنقول للصف الخامس | DH79: =IFERROR(INDEX($B$7:$B$33,MATCH(0,INDEX(COUNTIF($DH$6:DH78,$B$7:$B$33),),0)),"") -> 
B80: 773 | C80: كرم نور الدين حسن الدسوقي | D80: 1 | E80: 60 | F80: 40 | G80: 100 | H80: 60 | I80: 39 | J80: 99 | K80: 199 | L80: 99.5 | M80: 99.5 | N80: 57 | O80: 38 | P80: 95 | Q80: 54 | R80: 40 | S80: 94 | T80: 189 | U80: 94.5 | V80: 75.6 | W80: 58 | X80: 40 | Y80: 98 | Z80: 60 | AA80: 40 | AB80: 100 | AC80: 198 | AD80: 99 | AE80: 39.6 | AF80: 60 | AG80: 40 | AH80: 100 | AI80: 60 | AJ80: 40 | AK80: 100 | AL80: 200 | AM80: 100 | AN80: 40 | AO80: 60 | AP80: 8 | AQ80: 32 | AR80: 100 | AS80: 60 | AT80: 8 | AU80: 30 | AV80: 98 | AW80: 198 | AX80: 99 | AY80: 39.6 | AZ80: 294.3 | BA80: 100 | BB80: 100 | BC80: 200 | BD80: 100 | BE80: 20 | BF80: 100 | BG80: 100 | BH80: 200 | BI80: 100 | BJ80: 20 | BK80: 100 | BL80: 100 | BM80: 200 | BN80: 100 | BO80: 20 | BP80: 100 | BQ80: 100 | BR80: 200 | BS80: 100 | BT80: 20 | BU80: 374.5 | BV80: 55 | BW80: 40 | BX80: 95 | BY80: 60 | BZ80: 35 | CA80: 95 | CB80: 190 | CC80: 95 | CD80: 38 | CE80: 0 | CF80: 0 | CG80: 0 | CH80: 0 | CJ80: 0 | CK80: 0 | CL80: 0 | CM80: 0 | CN80: 0 | CO80: 0 | CP80: 0 | CQ80: 0 | CS80: 0 | CT80: 0 | CU80: 0 | CV80: 0 | CW80: ناجــــح | CX80: ومنقول للصف الخامس | DH80: =IFERROR(INDEX($B$7:$B$33,MATCH(0,INDEX(COUNTIF($DH$6:DH79,$B$7:$B$33),),0)),"") -> 
B81: 774 | C81: كريم السيد إبراهيم الدسوقى | D81: 1 | E81: 60 | F81: 40 | G81: 100 | H81: 60 | I81: 40 | J81: 100 | K81: 200 | L81: 100 | M81: 100 | N81: 60 | O81: 38 | P81: 98 | Q81: 60 | R81: 40 | S81: 100 | T81: 198 | U81: 99 | V81: 79.2 | W81: 60 | X81: 40 | Y81: 100 | Z81: 56 | AA81: 40 | AB81: 96 | AC81: 196 | AD81: 98 | AE81: 39.2 | AF81: 60 | AG81: 40 | AH81: 100 | AI81: 60 | AJ81: 40 | AK81: 100 | AL81: 200 | AM81: 100 | AN81: 40 | AO81: 60 | AP81: 8 | AQ81: 32 | AR81: 100 | AS81: 60 | AT81: 8 | AU81: 32 | AV81: 100 | AW81: 200 | AX81: 100 | AY81: 40 | AZ81: 298.4 | BA81: 100 | BB81: 100 | BC81: 200 | BD81: 100 | BE81: 20 | BF81: 100 | BG81: 100 | BH81: 200 | BI81: 100 | BJ81: 20 | BK81: 100 | BL81: 100 | BM81: 200 | BN81: 100 | BO81: 20 | BP81: 100 | BQ81: 100 | BR81: 200 | BS81: 100 | BT81: 20 | BU81: 378.5 | BV81: 60 | BW81: 40 | BX81: 100 | BY81: 60 | BZ81: 40 | CA81: 100 | CB81: 200 | CC81: 100 | CD81: 40 | CE81: 0 | CF81: 0 | CG81: 0 | CH81: 0 | CJ81: 0 | CK81: 0 | CL81: 0 | CM81: 0 | CN81: 0 | CO81: 0 | CP81: 0 | CQ81: 0 | CS81: 0 | CT81: 0 | CU81: 0 | CV81: 0 | CW81: ناجــــح | CX81: ومنقول للصف الخامس | DH81: =IFERROR(INDEX($B$7:$B$33,MATCH(0,INDEX(COUNTIF($DH$6:DH80,$B$7:$B$33),),0)),"") -> 
B82: 775 | C82: كريم أحمد عبد الرحمن عبد الموجود | D82: 1 | E82: 60 | F82: 37 | G82: 97 | H82: 56 | I82: 36 | J82: 92 | K82: 189 | L82: 94.5 | M82: 94.5 | N82: 60 | O82: 38 | P82: 98 | Q82: 59 | R82: 39 | S82: 98 | T82: 196 | U82: 98 | V82: 78.4 | W82: 54 | X82: 40 | Y82: 94 | Z82: 57 | AA82: 40 | AB82: 97 | AC82: 191 | AD82: 95.5 | AE82: 38.2 | AF82: 60 | AG82: 40 | AH82: 100 | AI82: 59 | AJ82: 40 | AK82: 99 | AL82: 199 | AM82: 99.5 | AN82: 39.8 | AO82: 60 | AP82: 8 | AQ82: 32 | AR82: 100 | AS82: 60 | AT82: 8 | AU82: 30 | AV82: 98 | AW82: 198 | AX82: 99 | AY82: 39.6 | AZ82: 290.5 | BA82: 100 | BB82: 100 | BC82: 200 | BD82: 100 | BE82: 20 | BF82: 100 | BG82: 100 | BH82: 200 | BI82: 100 | BJ82: 20 | BK82: 100 | BL82: 100 | BM82: 200 | BN82: 100 | BO82: 20 | BP82: 100 | BQ82: 100 | BR82: 200 | BS82: 100 | BT82: 20 | BU82: 370.5 | BV82: 56 | BW82: 34 | BX82: 90 | BY82: 55 | BZ82: 40 | CA82: 95 | CB82: 185 | CC82: 92.5 | CD82: 37 | CE82: 0 | CF82: 0 | CG82: 0 | CH82: 0 | CJ82: 0 | CK82: 0 | CL82: 0 | CM82: 0 | CN82: 0 | CO82: 0 | CP82: 0 | CQ82: 0 | CS82: 0 | CT82: 0 | CU82: 0 | CV82: 0 | CW82: ناجــــح | CX82: ومنقول للصف الخامس | DH82: =IFERROR(INDEX($B$7:$B$33,MATCH(0,INDEX(COUNTIF($DH$6:DH81,$B$7:$B$33),),0)),"") -> 
B83: 776 | C83: كريم أشرف عيسى محمود | D83: 1 | E83: 60 | F83: 40 | G83: 100 | H83: 60 | I83: 39 | J83: 99 | K83: 199 | L83: 99.5 | M83: 99.5 | N83: 60 | O83: 33 | P83: 93 | Q83: 60 | R83: 38 | S83: 98 | T83: 191 | U83: 95.5 | V83: 76.4 | W83: 60 | X83: 40 | Y83: 100 | Z83: 58 | AA83: 40 | AB83: 98 | AC83: 198 | AD83: 99 | AE83: 39.6 | AF83: 60 | AG83: 40 | AH83: 100 | AI83: 60 | AJ83: 40 | AK83: 100 | AL83: 200 | AM83: 100 | AN83: 40 | AO83: 60 | AP83: 8 | AQ83: 32 | AR83: 100 | AS83: 60 | AT83: 8 | AU83: 30 | AV83: 98 | AW83: 198 | AX83: 99 | AY83: 39.6 | AZ83: 295.1 | BA83: 100 | BB83: 100 | BC83: 200 | BD83: 100 | BE83: 20 | BF83: 100 | BG83: 100 | BH83: 200 | BI83: 100 | BJ83: 20 | BK83: 100 | BL83: 100 | BM83: 200 | BN83: 100 | BO83: 20 | BP83: 100 | BQ83: 100 | BR83: 200 | BS83: 100 | BT83: 20 | BU83: 375.5 | BV83: 60 | BW83: 29 | BX83: 89 | BY83: 60 | BZ83: 40 | CA83: 100 | CB83: 189 | CC83: 94.5 | CD83: 37.8 | CE83: 0 | CF83: 0 | CG83: 0 | CH83: 0 | CJ83: 0 | CK83: 0 | CL83: 0 | CM83: 0 | CN83: 0 | CO83: 0 | CP83: 0 | CQ83: 0 | CS83: 0 | CT83: 0 | CU83: 0 | CV83: 0 | CW83: ناجــــح | CX83: ومنقول للصف الخامس | DH83: =IFERROR(INDEX($B$7:$B$33,MATCH(0,INDEX(COUNTIF($DH$6:DH82,$B$7:$B$33),),0)),"") -> 
B84: 777 | C84: كريم أمير على جودة | D84: 1 | E84: 45 | F84: 21 | G84: 66 | H84: 43 | I84: 13 | J84: 56 | K84: 122 | L84: 61 | M84: 61 | N84: 40 | O84: 10 | P84: 50 | Q84: 41 | R84: 22 | S84: 63 | T84: 113 | U84: 56.5 | V84: 45.2 | W84: 35 | X84: 3 | Y84: 38 | Z84: 32 | AA84: 15 | AB84: 47 | AC84: 85 | AD84: 42.5 | AE84: 17 | AF84: 52 | AG84: 13 | AH84: 65 | AI84: 50 | AJ84: 15 | AK84: 65 | AL84: 130 | AM84: 65 | AN84: 26 | AO84: 48 | AP84: 7 | AQ84: 5 | AR84: 60 | AS84: 44 | AT84: 6 | AU84: 22 | AV84: 72 | AW84: 132 | AX84: 66 | AY84: 26.4 | AZ84: 175.6 | BA84: 100 | BB84: 100 | BC84: 200 | BD84: 100 | BE84: 20 | BF84: 100 | BG84: 100 | BH84: 200 | BI84: 100 | BJ84: 20 | BK84: 100 | BL84: 100 | BM84: 200 | BN84: 100 | BO84: 20 | BP84: 100 | BQ84: 100 | BR84: 200 | BS84: 100 | BT84: 20 | BU84: 256 | BV84: 39 | BW84: 16 | BX84: 55 | BY84: 45 | BZ84: 22 | CA84: 67 | CB84: 122 | CC84: 61 | CD84: 24.4 | CE84: 0 | CF84: 0 | CG84: 0 | CH84: 0 | CJ84: 0 | CK84: 0 | CL84: 0 | CM84: 0 | CN84: 0 | CO84: 0 | CP84: 0 | CQ84: 0 | CS84: 0 | CT84: 0 | CU84: 0 | CV84: 0 | CW84: له دور ثان فى | CX84: دراسات، | DH84: =IFERROR(INDEX($B$7:$B$33,MATCH(0,INDEX(COUNTIF($DH$6:DH83,$B$7:$B$33),),0)),"") -> 
B85: 778 | C85: كريم طارق السيد أحمد | D85: 1 | E85: 58 | F85: 39 | G85: 97 | H85: 60 | I85: 35 | J85: 95 | K85: 192 | L85: 96 | M85: 96 | N85: 57 | O85: 36 | P85: 93 | Q85: 57 | R85: 40 | S85: 97 | T85: 190 | U85: 95 | V85: 76 | W85: 57 | X85: 38 | Y85: 95 | Z85: 55 | AA85: 40 | AB85: 95 | AC85: 190 | AD85: 95 | AE85: 38 | AF85: 60 | AG85: 40 | AH85: 100 | AI85: 60 | AJ85: 40 | AK85: 100 | AL85: 200 | AM85: 100 | AN85: 40 | AO85: 58 | AP85: 8 | AQ85: 30 | AR85: 96 | AS85: 59 | AT85: 8 | AU85: 31 | AV85: 98 | AW85: 194 | AX85: 97 | AY85: 38.8 | AZ85: 288.8 | BA85: 100 | BB85: 100 | BC85: 200 | BD85: 100 | BE85: 20 | BF85: 100 | BG85: 100 | BH85: 200 | BI85: 100 | BJ85: 20 | BK85: 100 | BL85: 100 | BM85: 200 | BN85: 100 | BO85: 20 | BP85: 100 | BQ85: 100 | BR85: 200 | BS85: 100 | BT85: 20 | BU85: 369 | BV85: 53 | BW85: 33 | BX85: 86 | BY85: 58 | BZ85: 32 | CA85: 90 | CB85: 176 | CC85: 88 | CD85: 35.2 | CE85: 0 | CF85: 0 | CG85: 0 | CH85: 0 | CJ85: 0 | CK85: 0 | CL85: 0 | CM85: 0 | CN85: 0 | CO85: 0 | CP85: 0 | CQ85: 0 | CS85: 0 | CT85: 0 | CU85: 0 | CV85: 0 | CW85: ناجــــح | CX85: ومنقول للصف الخامس | DH85: =IFERROR(INDEX($B$7:$B$33,MATCH(0,INDEX(COUNTIF($DH$6:DH84,$B$7:$B$33),),0)),"") -> 
B86: 779 | C86: كيرلس سميح سامى معوض | D86: 1 | E86: 55 | F86: 36 | G86: 91 | H86: 59 | I86: 33 | J86: 92 | K86: 183 | L86: 91.5 | M86: 91.5 | N86: 48 | O86: 35 | P86: 83 | Q86: 54 | R86: 30 | S86: 84 | T86: 167 | U86: 83.5 | V86: 66.8 | W86: 56 | X86: 35 | Y86: 91 | Z86: 52 | AA86: 36 | AB86: 88 | AC86: 179 | AD86: 89.5 | AE86: 35.8 | AF86: 60 | AG86: 38 | AH86: 98 | AI86: 58 | AJ86: 36 | AK86: 94 | AL86: 192 | AM86: 96 | AN86: 38.4 | AO86: 57 | AP86: 8 | AQ86: 30 | AR86: 95 | AS86: 59 | AT86: 8 | AU86: 30 | AV86: 97 | AW86: 192 | AX86: 96 | AY86: 38.4 | AZ86: 270.9 | BA86: 100 | BB86: 100 | BC86: 200 | BD86: 100 | BE86: 20 | BF86: 100 | BG86: 100 | BH86: 200 | BI86: 100 | BJ86: 20 | BK86: 100 | BL86: 100 | BM86: 200 | BN86: 100 | BO86: 20 | BP86: 100 | BQ86: 100 | BR86: 200 | BS86: 100 | BT86: 20 | BU86: 351 | BV86: 56 | BW86: 36 | BX86: 92 | BY86: 58 | BZ86: 32 | CA86: 90 | CB86: 182 | CC86: 91 | CD86: 36.4 | CE86: 0 | CF86: 0 | CG86: 0 | CH86: 0 | CJ86: 0 | CK86: 0 | CL86: 0 | CM86: 0 | CN86: 0 | CO86: 0 | CP86: 0 | CQ86: 0 | CS86: 0 | CT86: 0 | CU86: 0 | CV86: 0 | CW86: ناجــــح | CX86: ومنقول للصف الخامس | DH86: =IFERROR(INDEX($B$7:$B$33,MATCH(0,INDEX(COUNTIF($DH$6:DH85,$B$7:$B$33),),0)),"") -> 
B87: 780 | C87: كيرلس ميلاد سام خله | D87: 1 | E87: 58 | F87: 40 | G87: 98 | H87: 59 | I87: 36 | J87: 95 | K87: 193 | L87: 96.5 | M87: 96.5 | N87: 58 | O87: 37 | P87: 95 | Q87: 59 | R87: 40 | S87: 99 | T87: 194 | U87: 97 | V87: 77.6 | W87: 58 | X87: 38 | Y87: 96 | Z87: 58 | AA87: 40 | AB87: 98 | AC87: 194 | AD87: 97 | AE87: 38.8 | AF87: 59 | AG87: 40 | AH87: 99 | AI87: 60 | AJ87: 39 | AK87: 99 | AL87: 198 | AM87: 99 | AN87: 39.6 | AO87: 57 | AP87: 8 | AQ87: 32 | AR87: 97 | AS87: 59 | AT87: 8 | AU87: 32 | AV87: 99 | AW87: 196 | AX87: 98 | AY87: 39.2 | AZ87: 291.7 | BA87: 100 | BB87: 100 | BC87: 200 | BD87: 100 | BE87: 20 | BF87: 100 | BG87: 100 | BH87: 200 | BI87: 100 | BJ87: 20 | BK87: 100 | BL87: 100 | BM87: 200 | BN87: 100 | BO87: 20 | BP87: 100 | BQ87: 100 | BR87: 200 | BS87: 100 | BT87: 20 | BU87: 372 | BV87: 57 | BW87: 38 | BX87: 95 | BY87: 60 | BZ87: 38 | CA87: 98 | CB87: 193 | CC87: 96.5 | CD87: 38.6 | CE87: 0 | CF87: 0 | CG87: 0 | CH87: 0 | CJ87: 0 | CK87: 0 | CL87: 0 | CM87: 0 | CN87: 0 | CO87: 0 | CP87: 0 | CQ87: 0 | CS87: 0 | CT87: 0 | CU87: 0 | CV87: 0 | CW87: ناجــــح | CX87: ومنقول للصف الخامس | DH87: =IFERROR(INDEX($B$7:$B$33,MATCH(0,INDEX(COUNTIF($DH$6:DH86,$B$7:$B$33),),0)),"") -> 
B88: 781 | C88: كيرلس ناشد ملك ناشد | D88: 1 | E88: 38 | F88: 24 | G88: 62 | H88: 41 | I88: 16 | J88: 57 | K88: 119 | L88: 59.5 | M88: 59.5 | N88: 45 | O88: 22 | P88: 67 | Q88: 51 | R88: 32 | S88: 83 | T88: 150 | U88: 75 | V88: 60 | W88: 42 | X88: 19 | Y88: 61 | Z88: 48 | AA88: 38 | AB88: 86 | AC88: 147 | AD88: 73.5 | AE88: 29.4 | AF88: 51 | AG88: 26 | AH88: 77 | AI88: 58 | AJ88: 35 | AK88: 93 | AL88: 170 | AM88: 85 | AN88: 34 | AO88: 48 | AP88: 8 | AQ88: 22 | AR88: 78 | AS88: 58 | AT88: 8 | AU88: 26 | AV88: 92 | AW88: 170 | AX88: 85 | AY88: 34 | AZ88: 216.9 | BA88: 100 | BB88: 100 | BC88: 200 | BD88: 100 | BE88: 20 | BF88: 100 | BG88: 100 | BH88: 200 | BI88: 100 | BJ88: 20 | BK88: 100 | BL88: 100 | BM88: 200 | BN88: 100 | BO88: 20 | BP88: 100 | BQ88: 100 | BR88: 200 | BS88: 100 | BT88: 20 | BU88: 297 | BV88: 49 | BW88: 14 | BX88: 63 | BY88: 47 | BZ88: 34 | CA88: 81 | CB88: 144 | CC88: 72 | CD88: 28.8 | CE88: 0 | CF88: 0 | CG88: 0 | CH88: 0 | CJ88: 0 | CK88: 0 | CL88: 0 | CM88: 0 | CN88: 0 | CO88: 0 | CP88: 0 | CQ88: 0 | CS88: 0 | CT88: 0 | CU88: 0 | CV88: 0 | CW88: ناجــــح | CX88: ومنقول للصف الخامس | DH88: =IFERROR(INDEX($B$7:$B$33,MATCH(0,INDEX(COUNTIF($DH$6:DH87,$B$7:$B$33),),0)),"") -> 
B89: 782 | C89: ماهر محمد متولى عبد العظيم | D89: 1 | E89: 44 | F89: 7 | G89: 51 | H89: 33 | I89: 7 | J89: 40 | K89: 91 | L89: 45.5 | M89: 45.5 | N89: 41 | O89: 4 | P89: 45 | Q89: 39 | R89: 16 | S89: 55 | T89: 100 | U89: 50 | V89: 40 | W89: 38 | X89: 6 | Y89: 44 | Z89: 34 | AA89: 10 | AB89: 44 | AC89: 88 | AD89: 44 | AE89: 17.6 | AF89: 41 | AG89: 14 | AH89: 55 | AI89: 41 | AJ89: 14 | AK89: 55 | AL89: 110 | AM89: 55 | AN89: 22 | AO89: 46 | AP89: 4 | AQ89: 4 | AR89: 54 | AS89: 43 | AT89: 6 | AU89: 13 | AV89: 62 | AW89: 116 | AX89: 58 | AY89: 23.2 | AZ89: 148.3 | BA89: 100 | BB89: 100 | BC89: 200 | BD89: 100 | BE89: 20 | BF89: 100 | BG89: 100 | BH89: 200 | BI89: 100 | BJ89: 20 | BK89: 100 | BL89: 100 | BM89: 200 | BN89: 100 | BO89: 20 | BP89: 100 | BQ89: 100 | BR89: 200 | BS89: 100 | BT89: 20 | BU89: 228.5 | BV89: 35 | BW89: 12 | BX89: 47 | BY89: 35 | BZ89: 26 | CA89: 61 | CB89: 108 | CC89: 54 | CD89: 21.6 | CE89: 0 | CF89: 0 | CG89: 0 | CH89: 0 | CJ89: 0 | CK89: 0 | CL89: 0 | CM89: 0 | CN89: 0 | CO89: 0 | CP89: 0 | CQ89: 0 | CS89: 0 | CT89: 0 | CU89: 0 | CV89: 0 | CW89: له دور ثان فى | CX89: عربى،دراسات، | DH89: =IFERROR(INDEX($B$7:$B$33,MATCH(0,INDEX(COUNTIF($DH$6:DH88,$B$7:$B$33),),0)),"") -> 
B90: 783 | C90: محسن شاكر عبد المحسن خليل | D90: 1 | E90: 48 | F90: 21 | G90: 69 | H90: 48 | I90: 24 | J90: 72 | K90: 141 | L90: 70.5 | M90: 70.5 | N90: 43 | O90: 23 | P90: 66 | Q90: 45 | R90: 30 | S90: 75 | T90: 141 | U90: 70.5 | V90: 56.4 | W90: 46 | X90: 27 | Y90: 73 | Z90: 39 | AA90: 15 | AB90: 54 | AC90: 127 | AD90: 63.5 | AE90: 25.4 | AF90: 45 | AG90: 18 | AH90: 63 | AI90: 47 | AJ90: 38 | AK90: 85 | AL90: 148 | AM90: 74 | AN90: 29.6 | AO90: 42 | AP90: 5 | AQ90: 32 | AR90: 79 | AS90: 46 | AT90: 8 | AU90: 11 | AV90: 65 | AW90: 144 | AX90: 72 | AY90: 28.8 | AZ90: 210.7 | BA90: 100 | BB90: 100 | BC90: 200 | BD90: 100 | BE90: 20 | BF90: 100 | BG90: 100 | BH90: 200 | BI90: 100 | BJ90: 20 | BK90: 100 | BL90: 100 | BM90: 200 | BN90: 100 | BO90: 20 | BP90: 100 | BQ90: 100 | BR90: 200 | BS90: 100 | BT90: 20 | BU90: 291 | BV90: 38 | BW90: 18 | BX90: 56 | BY90: 46 | BZ90: 23 | CA90: 69 | CB90: 125 | CC90: 62.5 | CD90: 25 | CE90: 0 | CF90: 0 | CG90: 0 | CH90: 0 | CJ90: 0 | CK90: 0 | CL90: 0 | CM90: 0 | CN90: 0 | CO90: 0 | CP90: 0 | CQ90: 0 | CS90: 0 | CT90: 0 | CU90: 0 | CV90: 0 | CW90: ناجــــح | CX90: ومنقول للصف الخامس | DH90: =IFERROR(INDEX($B$7:$B$33,MATCH(0,INDEX(COUNTIF($DH$6:DH89,$B$7:$B$33),),0)),"") -> 
B91: 784 | C91: محمد السيد محمد سالم | D91: 1 | E91: 37 | F91: 1 | G91: 38 | H91: 12 | I91: 1 | J91: 13 | K91: 51 | L91: 25.5 | M91: 25.5 | N91: 40 | O91: صفر | P91: 40 | Q91: 12 | R91: صفر | S91: 12 | T91: 52 | U91: 26 | V91: 20.8 | W91: 32 | X91: 7 | Y91: 39 | Z91: 4 | AA91: 4 | AB91: 8 | AC91: 47 | AD91: 23.5 | AE91: 9.4 | AF91: 44 | AG91: 17 | AH91: 61 | AI91: 20 | AJ91: 24 | AK91: 44 | AL91: 105 | AM91: 52.5 | AN91: 21 | AO91: 41 | AP91: 4 | AQ91: 3 | AR91: 48 | AS91: 13 | AT91: 4 | AU91: 6 | AV91: 23 | AW91: 71 | AX91: 35.5 | AY91: 14.2 | AZ91: 90.9 | BA91: 100 | BB91: 25 | BC91: 125 | BD91: 62.5 | BE91: 12.5 | BF91: 100 | BG91: 25 | BH91: 125 | BI91: 62.5 | BJ91: 12.5 | BK91: 100 | BL91: 25 | BM91: 125 | BN91: 62.5 | BO91: 12.5 | BP91: 100 | BQ91: 25 | BR91: 125 | BS91: 62.5 | BT91: 12.5 | BU91: 141 | BV91: 36 | BW91: 12 | BX91: 48 | BY91: 12 | BZ91: 22 | CA91: 34 | CB91: 82 | CC91: 41 | CD91: 16.4 | CE91: 0 | CF91: 0 | CG91: 0 | CH91: 0 | CJ91: 0 | CK91: 0 | CL91: 0 | CM91: 0 | CN91: 0 | CO91: 0 | CP91: 0 | CQ91: 0 | CS91: 0 | CT91: 0 | CU91: 0 | CV91: 0 | CW91: له دور ثان فى | CX91: عربى،رياضيات،دراسات،علوم،مجموع،دين، | DH91: =IFERROR(INDEX($B$7:$B$33,MATCH(0,INDEX(COUNTIF($DH$6:DH90,$B$7:$B$33),),0)),"") -> 
B92: 785 | C92: محمد أحمد على عبد العظيم | D92: 1 | E92: 60 | F92: 39 | G92: 99 | H92: 60 | I92: 38 | J92: 98 | K92: 197 | L92: 98.5 | M92: 98.5 | N92: 60 | O92: 36 | P92: 96 | Q92: 60 | R92: 38 | S92: 98 | T92: 194 | U92: 97 | V92: 77.6 | W92: 58 | X92: 36 | Y92: 94 | Z92: 56 | AA92: 37 | AB92: 93 | AC92: 187 | AD92: 93.5 | AE92: 37.4 | AF92: 58 | AG92: 35 | AH92: 93 | AI92: 60 | AJ92: 40 | AK92: 100 | AL92: 193 | AM92: 96.5 | AN92: 38.6 | AO92: 55 | AP92: 8 | AQ92: 32 | AR92: 95 | AS92: 59 | AT92: 8 | AU92: 32 | AV92: 99 | AW92: 194 | AX92: 97 | AY92: 38.8 | AZ92: 290.9 | BA92: 100 | BB92: 100 | BC92: 200 | BD92: 100 | BE92: 20 | BF92: 100 | BG92: 100 | BH92: 200 | BI92: 100 | BJ92: 20 | BK92: 100 | BL92: 100 | BM92: 200 | BN92: 100 | BO92: 20 | BP92: 100 | BQ92: 100 | BR92: 200 | BS92: 100 | BT92: 20 | BU92: 371 | BV92: 51 | BW92: 32 | BX92: 83 | BY92: 57 | BZ92: 38 | CA92: 95 | CB92: 178 | CC92: 89 | CD92: 35.6 | CE92: 0 | CF92: 0 | CG92: 0 | CH92: 0 | CJ92: 0 | CK92: 0 | CL92: 0 | CM92: 0 | CN92: 0 | CO92: 0 | CP92: 0 | CQ92: 0 | CS92: 0 | CT92: 0 | CU92: 0 | CV92: 0 | CW92: ناجــــح | CX92: ومنقول للصف الخامس | DH92: =IFERROR(INDEX($B$7:$B$33,MATCH(0,INDEX(COUNTIF($DH$6:DH91,$B$7:$B$33),),0)),"") -> 
B93: 786 | C93: محمد أشرف محمد حنضل | D93: 1 | E93: 60 | F93: 39 | G93: 99 | H93: 60 | I93: 40 | J93: 100 | K93: 199 | L93: 99.5 | M93: 99.5 | N93: 60 | O93: 38 | P93: 98 | Q93: 60 | R93: 40 | S93: 100 | T93: 198 | U93: 99 | V93: 79.2 | W93: 60 | X93: 40 | Y93: 100 | Z93: 60 | AA93: 40 | AB93: 100 | AC93: 200 | AD93: 100 | AE93: 40 | AF93: 60 | AG93: 40 | AH93: 100 | AI93: 60 | AJ93: 40 | AK93: 100 | AL93: 200 | AM93: 100 | AN93: 40 | AO93: 60 | AP93: 8 | AQ93: 32 | AR93: 100 | AS93: 60 | AT93: 8 | AU93: 32 | AV93: 100 | AW93: 200 | AX93: 100 | AY93: 40 | AZ93: 298.7 | BA93: 100 | BB93: 100 | BC93: 200 | BD93: 100 | BE93: 20 | BF93: 100 | BG93: 100 | BH93: 200 | BI93: 100 | BJ93: 20 | BK93: 100 | BL93: 100 | BM93: 200 | BN93: 100 | BO93: 20 | BP93: 100 | BQ93: 100 | BR93: 200 | BS93: 100 | BT93: 20 | BU93: 379 | BV93: 57 | BW93: 35 | BX93: 92 | BY93: 60 | BZ93: 40 | CA93: 100 | CB93: 192 | CC93: 96 | CD93: 38.4 | CE93: 0 | CF93: 0 | CG93: 0 | CH93: 0 | CJ93: 0 | CK93: 0 | CL93: 0 | CM93: 0 | CN93: 0 | CO93: 0 | CP93: 0 | CQ93: 0 | CS93: 0 | CT93: 0 | CU93: 0 | CV93: 0 | CW93: ناجــــح | CX93: ومنقول للصف الخامس | DH93: =IFERROR(INDEX($B$7:$B$33,MATCH(0,INDEX(COUNTIF($DH$6:DH92,$B$7:$B$33),),0)),"") -> 
B94: 787 | C94: محمد أيمن حسن جمال الدين | D94: 1 | E94: 60 | F94: 40 | G94: 100 | H94: 57 | I94: 38 | J94: 95 | K94: 195 | L94: 97.5 | M94: 97.5 | N94: 59 | O94: 38 | P94: 97 | Q94: 60 | R94: 40 | S94: 100 | T94: 197 | U94: 98.5 | V94: 78.8 | W94: 60 | X94: 40 | Y94: 100 | Z94: 59 | AA94: 40 | AB94: 99 | AC94: 199 | AD94: 99.5 | AE94: 39.8 | AF94: 59 | AG94: 40 | AH94: 99 | AI94: 60 | AJ94: 40 | AK94: 100 | AL94: 199 | AM94: 99.5 | AN94: 39.8 | AO94: 59 | AP94: 8 | AQ94: 32 | AR94: 99 | AS94: 60 | AT94: 8 | AU94: 31 | AV94: 99 | AW94: 198 | AX94: 99 | AY94: 39.6 | AZ94: 295.5 | BA94: 100 | BB94: 100 | BC94: 200 | BD94: 100 | BE94: 20 | BF94: 100 | BG94: 100 | BH94: 200 | BI94: 100 | BJ94: 20 | BK94: 100 | BL94: 100 | BM94: 200 | BN94: 100 | BO94: 20 | BP94: 100 | BQ94: 100 | BR94: 200 | BS94: 100 | BT94: 20 | BU94: 375.5 | BV94: 58 | BW94: 36 | BX94: 94 | BY94: 58 | BZ94: 40 | CA94: 98 | CB94: 192 | CC94: 96 | CD94: 38.4 | CE94: 0 | CF94: 0 | CG94: 0 | CH94: 0 | CJ94: 0 | CK94: 0 | CL94: 0 | CM94: 0 | CN94: 0 | CO94: 0 | CP94: 0 | CQ94: 0 | CS94: 0 | CT94: 0 | CU94: 0 | CV94: 0 | CW94: ناجــــح | CX94: ومنقول للصف الخامس | DH94: =IFERROR(INDEX($B$7:$B$33,MATCH(0,INDEX(COUNTIF($DH$6:DH93,$B$7:$B$33),),0)),"") -> 
B95: 788 | C95: محمد إبراهيم عبد المعطى سيدأحمد | D95: 1 | E95: 60 | F95: 40 | G95: 100 | H95: 59 | I95: 37 | J95: 96 | K95: 196 | L95: 98 | M95: 98 | N95: 57 | O95: 40 | P95: 97 | Q95: 53 | R95: 38 | S95: 91 | T95: 188 | U95: 94 | V95: 75.2 | W95: 60 | X95: 39 | Y95: 99 | Z95: 58 | AA95: 40 | AB95: 98 | AC95: 197 | AD95: 98.5 | AE95: 39.4 | AF95: 60 | AG95: 39 | AH95: 99 | AI95: 60 | AJ95: 40 | AK95: 100 | AL95: 199 | AM95: 99.5 | AN95: 39.8 | AO95: 60 | AP95: 8 | AQ95: 32 | AR95: 100 | AS95: 60 | AT95: 8 | AU95: 31 | AV95: 99 | AW95: 199 | AX95: 99.5 | AY95: 39.8 | AZ95: 292.2 | BA95: 100 | BB95: 100 | BC95: 200 | BD95: 100 | BE95: 20 | BF95: 100 | BG95: 100 | BH95: 200 | BI95: 100 | BJ95: 20 | BK95: 100 | BL95: 100 | BM95: 200 | BN95: 100 | BO95: 20 | BP95: 100 | BQ95: 100 | BR95: 200 | BS95: 100 | BT95: 20 | BU95: 372.5 | BV95: 58 | BW95: 34 | BX95: 92 | BY95: 58 | BZ95: 40 | CA95: 98 | CB95: 190 | CC95: 95 | CD95: 38 | CE95: 0 | CF95: 0 | CG95: 0 | CH95: 0 | CJ95: 0 | CK95: 0 | CL95: 0 | CM95: 0 | CN95: 0 | CO95: 0 | CP95: 0 | CQ95: 0 | CS95: 0 | CT95: 0 | CU95: 0 | CV95: 0 | CW95: ناجــــح | CX95: ومنقول للصف الخامس | DH95: =IFERROR(INDEX($B$7:$B$33,MATCH(0,INDEX(COUNTIF($DH$6:DH94,$B$7:$B$33),),0)),"") -> 
B96: 789 | C96: محمد إبراهيم علي إبراهيم | D96: 1 | E96: 60 | F96: 36 | G96: 96 | H96: 58 | I96: 39 | J96: 97 | K96: 193 | L96: 96.5 | M96: 96.5 | N96: 52 | O96: 28 | P96: 80 | Q96: 52 | R96: 35 | S96: 87 | T96: 167 | U96: 83.5 | V96: 66.8 | W96: 48 | X96: 34 | Y96: 82 | Z96: 48 | AA96: 39 | AB96: 87 | AC96: 169 | AD96: 84.5 | AE96: 33.8 | AF96: 58 | AG96: 36 | AH96: 94 | AI96: 52 | AJ96: 36 | AK96: 88 | AL96: 182 | AM96: 91 | AN96: 36.4 | AO96: 56 | AP96: 8 | AQ96: 25 | AR96: 89 | AS96: 56 | AT96: 8 | AU96: 28 | AV96: 92 | AW96: 181 | AX96: 90.5 | AY96: 36.2 | AZ96: 269.7 | BA96: 100 | BB96: 100 | BC96: 200 | BD96: 100 | BE96: 20 | BF96: 100 | BG96: 100 | BH96: 200 | BI96: 100 | BJ96: 20 | BK96: 100 | BL96: 100 | BM96: 200 | BN96: 100 | BO96: 20 | BP96: 100 | BQ96: 100 | BR96: 200 | BS96: 100 | BT96: 20 | BU96: 350 | BV96: 58 | BW96: 27 | BX96: 85 | BY96: 53 | BZ96: 32 | CA96: 85 | CB96: 170 | CC96: 85 | CD96: 34 | CE96: 0 | CF96: 0 | CG96: 0 | CH96: 0 | CJ96: 0 | CK96: 0 | CL96: 0 | CM96: 0 | CN96: 0 | CO96: 0 | CP96: 0 | CQ96: 0 | CS96: 0 | CT96: 0 | CU96: 0 | CV96: 0 | CW96: ناجــــح | CX96: ومنقول للصف الخامس | DH96: =IFERROR(INDEX($B$7:$B$33,MATCH(0,INDEX(COUNTIF($DH$6:DH95,$B$7:$B$33),),0)),"") -> 
B97: 790 | C97: محمد تامر جمال علي | D97: 1 | E97: 59 | F97: 39 | G97: 98 | H97: 58 | I97: 35 | J97: 93 | K97: 191 | L97: 95.5 | M97: 95.5 | N97: 53 | O97: 25 | P97: 78 | Q97: 56 | R97: 34 | S97: 90 | T97: 168 | U97: 84 | V97: 67.2 | W97: 46 | X97: 32 | Y97: 78 | Z97: 56 | AA97: 40 | AB97: 96 | AC97: 174 | AD97: 87 | AE97: 34.8 | AF97: 59 | AG97: 38 | AH97: 97 | AI97: 60 | AJ97: 36 | AK97: 96 | AL97: 193 | AM97: 96.5 | AN97: 38.6 | AO97: 53 | AP97: 8 | AQ97: 27 | AR97: 88 | AS97: 58 | AT97: 8 | AU97: 26 | AV97: 92 | AW97: 180 | AX97: 90 | AY97: 36 | AZ97: 272.1 | BA97: 100 | BB97: 100 | BC97: 200 | BD97: 100 | BE97: 20 | BF97: 100 | BG97: 100 | BH97: 200 | BI97: 100 | BJ97: 20 | BK97: 100 | BL97: 100 | BM97: 200 | BN97: 100 | BO97: 20 | BP97: 100 | BQ97: 100 | BR97: 200 | BS97: 100 | BT97: 20 | BU97: 352.5 | BV97: 50 | BW97: 32 | BX97: 82 | BY97: 56 | BZ97: 31 | CA97: 87 | CB97: 169 | CC97: 84.5 | CD97: 33.8 | CE97: 0 | CF97: 0 | CG97: 0 | CH97: 0 | CJ97: 0 | CK97: 0 | CL97: 0 | CM97: 0 | CN97: 0 | CO97: 0 | CP97: 0 | CQ97: 0 | CS97: 0 | CT97: 0 | CU97: 0 | CV97: 0 | CW97: ناجــــح | CX97: ومنقول للصف الخامس | DH97: =IFERROR(INDEX($B$7:$B$33,MATCH(0,INDEX(COUNTIF($DH$6:DH96,$B$7:$B$33),),0)),"") -> 
B98: 791 | C98: محمد جمال سعد سليم | D98: 1 | E98: 60 | F98: 33 | G98: 93 | H98: 60 | I98: 32 | J98: 92 | K98: 185 | L98: 92.5 | M98: 92.5 | N98: 50 | O98: 25 | P98: 75 | Q98: 55 | R98: 38 | S98: 93 | T98: 168 | U98: 84 | V98: 67.2 | W98: 40 | X98: 31 | Y98: 71 | Z98: 44 | AA98: 30 | AB98: 74 | AC98: 145 | AD98: 72.5 | AE98: 29 | AF98: 59 | AG98: 33 | AH98: 92 | AI98: 57 | AJ98: 39 | AK98: 96 | AL98: 188 | AM98: 94 | AN98: 37.6 | AO98: 47 | AP98: 8 | AQ98: 20 | AR98: 75 | AS98: 57 | AT98: 8 | AU98: 30 | AV98: 95 | AW98: 170 | AX98: 85 | AY98: 34 | AZ98: 260.3 | BA98: 100 | BB98: 100 | BC98: 200 | BD98: 100 | BE98: 20 | BF98: 100 | BG98: 100 | BH98: 200 | BI98: 100 | BJ98: 20 | BK98: 100 | BL98: 100 | BM98: 200 | BN98: 100 | BO98: 20 | BP98: 100 | BQ98: 100 | BR98: 200 | BS98: 100 | BT98: 20 | BU98: 340.5 | BV98: 54 | BW98: 25 | BX98: 79 | BY98: 55 | BZ98: 31 | CA98: 86 | CB98: 165 | CC98: 82.5 | CD98: 33 | CE98: 0 | CF98: 0 | CG98: 0 | CH98: 0 | CJ98: 0 | CK98: 0 | CL98: 0 | CM98: 0 | CN98: 0 | CO98: 0 | CP98: 0 | CQ98: 0 | CS98: 0 | CT98: 0 | CU98: 0 | CV98: 0 | CW98: ناجــــح | CX98: ومنقول للصف الخامس | DH98: =IFERROR(INDEX($B$7:$B$33,MATCH(0,INDEX(COUNTIF($DH$6:DH97,$B$7:$B$33),),0)),"") -> 
B99: 792 | C99: محمد رضا محمد محمد | D99: 1 | E99: 57 | F99: 38 | G99: 95 | H99: 56 | I99: 34 | J99: 90 | K99: 185 | L99: 92.5 | M99: 92.5 | N99: 52 | O99: 26 | P99: 78 | Q99: 46 | R99: 37 | S99: 83 | T99: 161 | U99: 80.5 | V99: 64.4 | W99: 36 | X99: 28 | Y99: 64 | Z99: 45 | AA99: 39 | AB99: 84 | AC99: 148 | AD99: 74 | AE99: 29.6 | AF99: 58 | AG99: 36 | AH99: 94 | AI99: 57 | AJ99: 34 | AK99: 91 | AL99: 185 | AM99: 92.5 | AN99: 37 | AO99: 49 | AP99: 8 | AQ99: 24 | AR99: 81 | AS99: 47 | AT99: 8 | AU99: 31 | AV99: 86 | AW99: 167 | AX99: 83.5 | AY99: 33.4 | AZ99: 256.9 | BA99: 100 | BB99: 100 | BC99: 200 | BD99: 100 | BE99: 20 | BF99: 100 | BG99: 100 | BH99: 200 | BI99: 100 | BJ99: 20 | BK99: 100 | BL99: 100 | BM99: 200 | BN99: 100 | BO99: 20 | BP99: 100 | BQ99: 100 | BR99: 200 | BS99: 100 | BT99: 20 | BU99: 337 | BV99: 56 | BW99: 29 | BX99: 85 | BY99: 52 | BZ99: 29 | CA99: 81 | CB99: 166 | CC99: 83 | CD99: 33.2 | CE99: 0 | CF99: 0 | CG99: 0 | CH99: 0 | CJ99: 0 | CK99: 0 | CL99: 0 | CM99: 0 | CN99: 0 | CO99: 0 | CP99: 0 | CQ99: 0 | CS99: 0 | CT99: 0 | CU99: 0 | CV99: 0 | CW99: ناجــــح | CX99: ومنقول للصف الخامس | DH99: =IFERROR(INDEX($B$7:$B$33,MATCH(0,INDEX(COUNTIF($DH$6:DH98,$B$7:$B$33),),0)),"") -> 
B100: 793 | C100: محمد رمضان مسعود مصلحي | D100: 1 | E100: 54 | F100: 36 | G100: 90 | H100: 59 | I100: 33 | J100: 92 | K100: 182 | L100: 91 | M100: 91 | N100: 48 | O100: 24 | P100: 72 | Q100: 52 | R100: 39 | S100: 91 | T100: 163 | U100: 81.5 | V100: 65.2 | W100: 59 | X100: 37 | Y100: 96 | Z100: 50 | AA100: 35 | AB100: 85 | AC100: 181 | AD100: 90.5 | AE100: 36.2 | AF100: 59 | AG100: 40 | AH100: 99 | AI100: 60 | AJ100: 40 | AK100: 100 | AL100: 199 | AM100: 99.5 | AN100: 39.8 | AO100: 58 | AP100: 8 | AQ100: 28 | AR100: 94 | AS100: 59 | AT100: 8 | AU100: 31 | AV100: 98 | AW100: 192 | AX100: 96 | AY100: 38.4 | AZ100: 270.6 | BA100: 100 | BB100: 100 | BC100: 200 | BD100: 100 | BE100: 20 | BF100: 100 | BG100: 100 | BH100: 200 | BI100: 100 | BJ100: 20 | BK100: 100 | BL100: 100 | BM100: 200 | BN100: 100 | BO100: 20 | BP100: 100 | BQ100: 100 | BR100: 200 | BS100: 100 | BT100: 20 | BU100: 351 | BV100: 57 | BW100: 31 | BX100: 88 | BY100: 54 | BZ100: 35 | CA100: 89 | CB100: 177 | CC100: 88.5 | CD100: 35.4 | CE100: 0 | CF100: 0 | CG100: 0 | CH100: 0 | CJ100: 0 | CK100: 0 | CL100: 0 | CM100: 0 | CN100: 0 | CO100: 0 | CP100: 0 | CQ100: 0 | CS100: 0 | CT100: 0 | CU100: 0 | CV100: 0 | CW100: ناجــــح | CX100: ومنقول للصف الخامس | DH100: =IFERROR(INDEX($B$7:$B$33,MATCH(0,INDEX(COUNTIF($DH$6:DH99,$B$7:$B$33),),0)),"") -> 
B101: 794 | C101: محمد سامي فهيم رشاد | D101: 1 | E101: 53 | F101: 8 | G101: 61 | H101: 34 | I101: 10 | J101: 44 | K101: 105 | L101: 52.5 | M101: 52.5 | N101: 43 | O101: 17 | P101: 60 | Q101: 44 | R101: 27 | S101: 71 | T101: 131 | U101: 65.5 | V101: 52.4 | W101: 21 | X101: 6 | Y101: 27 | Z101: 36 | AA101: 16 | AB101: 52 | AC101: 79 | AD101: 39.5 | AE101: 15.8 | AF101: 49 | AG101: 15 | AH101: 64 | AI101: 40 | AJ101: 30 | AK101: 70 | AL101: 134 | AM101: 67 | AN101: 26.8 | AO101: 43 | AP101: 8 | AQ101: 6 | AR101: 57 | AS101: 38 | AT101: 8 | AU101: 11 | AV101: 57 | AW101: 114 | AX101: 57 | AY101: 22.8 | AZ101: 170.3 | BA101: 100 | BB101: 100 | BC101: 200 | BD101: 100 | BE101: 20 | BF101: 100 | BG101: 100 | BH101: 200 | BI101: 100 | BJ101: 20 | BK101: 100 | BL101: 100 | BM101: 200 | BN101: 100 | BO101: 20 | BP101: 100 | BQ101: 100 | BR101: 200 | BS101: 100 | BT101: 20 | BU101: 250.5 | BV101: 46 | BW101: 29 | BX101: 75 | BY101: 45 | BZ101: 26 | CA101: 71 | CB101: 146 | CC101: 73 | CD101: 29.2 | CE101: 0 | CF101: 0 | CG101: 0 | CH101: 0 | CJ101: 0 | CK101: 0 | CL101: 0 | CM101: 0 | CN101: 0 | CO101: 0 | CP101: 0 | CQ101: 0 | CS101: 0 | CT101: 0 | CU101: 0 | CV101: 0 | CW101: له دور ثان فى | CX101: عربى،دراسات، | DH101: =IFERROR(INDEX($B$7:$B$33,MATCH(0,INDEX(COUNTIF($DH$6:DH100,$B$7:$B$33),),0)),"") -> 
B102: 795 | C102: محمد سمير جودة قنديل | D102: 1 | E102: 60 | F102: 40 | G102: 100 | H102: 60 | I102: 37 | J102: 97 | K102: 197 | L102: 98.5 | M102: 98.5 | N102: 60 | O102: 38 | P102: 98 | Q102: 58 | R102: 38 | S102: 96 | T102: 194 | U102: 97 | V102: 77.6 | W102: 60 | X102: 40 | Y102: 100 | Z102: 58 | AA102: 39 | AB102: 97 | AC102: 197 | AD102: 98.5 | AE102: 39.4 | AF102: 60 | AG102: 40 | AH102: 100 | AI102: 60 | AJ102: 40 | AK102: 100 | AL102: 200 | AM102: 100 | AN102: 40 | AO102: 59 | AP102: 8 | AQ102: 32 | AR102: 99 | AS102: 59 | AT102: 8 | AU102: 30 | AV102: 97 | AW102: 196 | AX102: 98 | AY102: 39.2 | AZ102: 294.7 | BA102: 100 | BB102: 100 | BC102: 200 | BD102: 100 | BE102: 20 | BF102: 100 | BG102: 100 | BH102: 200 | BI102: 100 | BJ102: 20 | BK102: 100 | BL102: 100 | BM102: 200 | BN102: 100 | BO102: 20 | BP102: 100 | BQ102: 100 | BR102: 200 | BS102: 100 | BT102: 20 | BU102: 375 | BV102: 59 | BW102: 34 | BX102: 93 | BY102: 59 | BZ102: 38 | CA102: 97 | CB102: 190 | CC102: 95 | CD102: 38 | CE102: 0 | CF102: 0 | CG102: 0 | CH102: 0 | CJ102: 0 | CK102: 0 | CL102: 0 | CM102: 0 | CN102: 0 | CO102: 0 | CP102: 0 | CQ102: 0 | CS102: 0 | CT102: 0 | CU102: 0 | CV102: 0 | CW102: ناجــــح | CX102: ومنقول للصف الخامس | DH102: =IFERROR(INDEX($B$7:$B$33,MATCH(0,INDEX(COUNTIF($DH$6:DH101,$B$7:$B$33),),0)),"") -> 
B103: 796 | C103: محمد شريف محمد نديم | D103: 1 | E103: 50 | F103: 20 | G103: 70 | H103: 37 | I103: 24 | J103: 61 | K103: 131 | L103: 65.5 | M103: 65.5 | N103: 44 | O103: 20 | P103: 64 | Q103: 42 | R103: 30 | S103: 72 | T103: 136 | U103: 68 | V103: 54.4 | W103: 45 | X103: 20 | Y103: 65 | Z103: 38 | AA103: 21 | AB103: 59 | AC103: 124 | AD103: 62 | AE103: 24.8 | AF103: 51 | AG103: 29 | AH103: 80 | AI103: 42 | AJ103: 34 | AK103: 76 | AL103: 156 | AM103: 78 | AN103: 31.2 | AO103: 48 | AP103: 8 | AQ103: 26 | AR103: 82 | AS103: 53 | AT103: 6 | AU103: 23 | AV103: 82 | AW103: 164 | AX103: 82 | AY103: 32.8 | AZ103: 208.7 | BA103: 100 | BB103: 100 | BC103: 200 | BD103: 100 | BE103: 20 | BF103: 100 | BG103: 100 | BH103: 200 | BI103: 100 | BJ103: 20 | BK103: 100 | BL103: 100 | BM103: 200 | BN103: 100 | BO103: 20 | BP103: 100 | BQ103: 100 | BR103: 200 | BS103: 100 | BT103: 20 | BU103: 289 | BV103: 46 | BW103: 16 | BX103: 62 | BY103: 39 | BZ103: 26 | CA103: 65 | CB103: 127 | CC103: 63.5 | CD103: 25.4 | CE103: 0 | CF103: 0 | CG103: 0 | CH103: 0 | CJ103: 0 | CK103: 0 | CL103: 0 | CM103: 0 | CN103: 0 | CO103: 0 | CP103: 0 | CQ103: 0 | CS103: 0 | CT103: 0 | CU103: 0 | CV103: 0 | CW103: ناجــــح | CX103: ومنقول للصف الخامس | DH103: =IFERROR(INDEX($B$7:$B$33,MATCH(0,INDEX(COUNTIF($DH$6:DH102,$B$7:$B$33),),0)),"") -> 
B104: 797 | C104: محمد علاء محمد معوض | D104: 1 | E104: 52 | F104: 38 | G104: 90 | H104: 59 | I104: 38 | J104: 97 | K104: 187 | L104: 93.5 | M104: 93.5 | N104: 54 | O104: 34 | P104: 88 | Q104: 55 | R104: 40 | S104: 95 | T104: 183 | U104: 91.5 | V104: 73.2 | W104: 54 | X104: 37 | Y104: 91 | Z104: 56 | AA104: 40 | AB104: 96 | AC104: 187 | AD104: 93.5 | AE104: 37.4 | AF104: 60 | AG104: 40 | AH104: 100 | AI104: 60 | AJ104: 38 | AK104: 98 | AL104: 198 | AM104: 99 | AN104: 39.6 | AO104: 57 | AP104: 8 | AQ104: 30 | AR104: 95 | AS104: 59 | AT104: 8 | AU104: 29 | AV104: 96 | AW104: 191 | AX104: 95.5 | AY104: 38.2 | AZ104: 281.9 | BA104: 100 | BB104: 100 | BC104: 200 | BD104: 100 | BE104: 20 | BF104: 100 | BG104: 100 | BH104: 200 | BI104: 100 | BJ104: 20 | BK104: 100 | BL104: 100 | BM104: 200 | BN104: 100 | BO104: 20 | BP104: 100 | BQ104: 100 | BR104: 200 | BS104: 100 | BT104: 20 | BU104: 362 | BV104: 50 | BW104: 34 | BX104: 84 | BY104: 59 | BZ104: 38 | CA104: 97 | CB104: 181 | CC104: 90.5 | CD104: 36.2 | CE104: 0 | CF104: 0 | CG104: 0 | CH104: 0 | CJ104: 0 | CK104: 0 | CL104: 0 | CM104: 0 | CN104: 0 | CO104: 0 | CP104: 0 | CQ104: 0 | CS104: 0 | CT104: 0 | CU104: 0 | CV104: 0 | CW104: ناجــــح | CX104: ومنقول للصف الخامس | DH104: =IFERROR(INDEX($B$7:$B$33,MATCH(0,INDEX(COUNTIF($DH$6:DH103,$B$7:$B$33),),0)),"") -> 
B105: 798 | C105: محمد علي محمد شوقي عبد الله | D105: 1 | E105: 56 | F105: 37 | G105: 93 | H105: 55 | I105: 32 | J105: 87 | K105: 180 | L105: 90 | M105: 90 | N105: 50 | O105: 33 | P105: 83 | Q105: 44 | R105: 32 | S105: 76 | T105: 159 | U105: 79.5 | V105: 63.6 | W105: 45 | X105: 19 | Y105: 64 | Z105: 46 | AA105: 32 | AB105: 78 | AC105: 142 | AD105: 71 | AE105: 28.4 | AF105: 54 | AG105: 37 | AH105: 91 | AI105: 60 | AJ105: 35 | AK105: 95 | AL105: 186 | AM105: 93 | AN105: 37.2 | AO105: 54 | AP105: 8 | AQ105: 23 | AR105: 85 | AS105: 56 | AT105: 8 | AU105: 24 | AV105: 88 | AW105: 173 | AX105: 86.5 | AY105: 34.6 | AZ105: 253.8 | BA105: 99 | BB105: 100 | BC105: 199 | BD105: 99.5 | BE105: 19.9 | BF105: 100 | BG105: 100 | BH105: 200 | BI105: 100 | BJ105: 20 | BK105: 100 | BL105: 100 | BM105: 200 | BN105: 100 | BO105: 20 | BP105: 100 | BQ105: 100 | BR105: 200 | BS105: 100 | BT105: 20 | BU105: 334 | BV105: 52 | BW105: 30 | BX105: 82 | BY105: 51 | BZ105: 30 | CA105: 81 | CB105: 163 | CC105: 81.5 | CD105: 32.6 | CE105: 0 | CF105: 0 | CG105: 0 | CH105: 0 | CJ105: 0 | CK105: 0 | CL105: 0 | CM105: 0 | CN105: 0 | CO105: 0 | CP105: 0 | CQ105: 0 | CS105: 0 | CT105: 0 | CU105: 0 | CV105: 0 | CW105: ناجــــح | CX105: ومنقول للصف الخامس | DH105: =IFERROR(INDEX($B$7:$B$33,MATCH(0,INDEX(COUNTIF($DH$6:DH104,$B$7:$B$33),),0)),"") -> 
B106: 799 | C106: محمد فاروق السعيد مغاورى | D106: 1 | E106: 60 | F106: 39 | G106: 99 | H106: 57 | I106: 38 | J106: 95 | K106: 194 | L106: 97 | M106: 97 | N106: 57 | O106: 38 | P106: 95 | Q106: 53 | R106: 36 | S106: 89 | T106: 184 | U106: 92 | V106: 73.6 | W106: 58 | X106: 40 | Y106: 98 | Z106: 58 | AA106: 40 | AB106: 98 | AC106: 196 | AD106: 98 | AE106: 39.2 | AF106: 60 | AG106: 40 | AH106: 100 | AI106: 60 | AJ106: 39 | AK106: 99 | AL106: 199 | AM106: 99.5 | AN106: 39.8 | AO106: 60 | AP106: 8 | AQ106: 27 | AR106: 95 | AS106: 56 | AT106: 5 | AU106: 31 | AV106: 92 | AW106: 187 | AX106: 93.5 | AY106: 37.4 | AZ106: 287 | BA106: 100 | BB106: 100 | BC106: 200 | BD106: 100 | BE106: 20 | BF106: 100 | BG106: 100 | BH106: 200 | BI106: 100 | BJ106: 20 | BK106: 100 | BL106: 100 | BM106: 200 | BN106: 100 | BO106: 20 | BP106: 100 | BQ106: 100 | BR106: 200 | BS106: 100 | BT106: 20 | BU106: 367 | BV106: 55 | BW106: 35 | BX106: 90 | BY106: 59 | BZ106: 31 | CA106: 90 | CB106: 180 | CC106: 90 | CD106: 36 | CE106: 0 | CF106: 0 | CG106: 0 | CH106: 0 | CJ106: 0 | CK106: 0 | CL106: 0 | CM106: 0 | CN106: 0 | CO106: 0 | CP106: 0 | CQ106: 0 | CS106: 0 | CT106: 0 | CU106: 0 | CV106: 0 | CW106: ناجــــح | CX106: ومنقول للصف الخامس | DH106: =IFERROR(INDEX($B$7:$B$33,MATCH(0,INDEX(COUNTIF($DH$6:DH105,$B$7:$B$33),),0)),"") -> 
B107: 800 | C107: محمد ماهر على عبده | D107: 1 | E107: 47 | F107: 33 | G107: 80 | H107: 53 | I107: 31 | J107: 84 | K107: 164 | L107: 82 | M107: 82 | N107: 42 | O107: 24 | P107: 66 | Q107: 50 | R107: 26 | S107: 76 | T107: 142 | U107: 71 | V107: 56.8 | W107: 42 | X107: 34 | Y107: 76 | Z107: 45 | AA107: 35 | AB107: 80 | AC107: 156 | AD107: 78 | AE107: 31.2 | AF107: 56 | AG107: 35 | AH107: 91 | AI107: 58 | AJ107: 36 | AK107: 94 | AL107: 185 | AM107: 92.5 | AN107: 37 | AO107: 54 | AP107: 8 | AQ107: 28 | AR107: 90 | AS107: 56 | AT107: 8 | AU107: 26 | AV107: 90 | AW107: 180 | AX107: 90 | AY107: 36 | AZ107: 243 | BA107: 100 | BB107: 100 | BC107: 200 | BD107: 100 | BE107: 20 | BF107: 100 | BG107: 100 | BH107: 200 | BI107: 100 | BJ107: 20 | BK107: 100 | BL107: 100 | BM107: 200 | BN107: 100 | BO107: 20 | BP107: 100 | BQ107: 100 | BR107: 200 | BS107: 100 | BT107: 20 | BU107: 323 | BV107: 44 | BW107: 23 | BX107: 67 | BY107: 58 | BZ107: 35 | CA107: 93 | CB107: 160 | CC107: 80 | CD107: 32 | CE107: 0 | CF107: 0 | CG107: 0 | CH107: 0 | CJ107: 0 | CK107: 0 | CL107: 0 | CM107: 0 | CN107: 0 | CO107: 0 | CP107: 0 | CQ107: 0 | CS107: 0 | CT107: 0 | CU107: 0 | CV107: 0 | CW107: ناجــــح | CX107: ومنقول للصف الخامس | DH107: =IFERROR(INDEX($B$7:$B$33,MATCH(0,INDEX(COUNTIF($DH$6:DH106,$B$7:$B$33),),0)),"") -> 
B108: 801 | C108: محمد هاشم علي السيد | D108: 1 | E108: 54 | F108: 35 | G108: 89 | H108: 57 | I108: 40 | J108: 97 | K108: 186 | L108: 93 | M108: 93 | N108: 52 | O108: 25 | P108: 77 | Q108: 54 | R108: 33 | S108: 87 | T108: 164 | U108: 82 | V108: 65.6 | W108: 54 | X108: 37 | Y108: 91 | Z108: 52 | AA108: 40 | AB108: 92 | AC108: 183 | AD108: 91.5 | AE108: 36.6 | AF108: 59 | AG108: 39 | AH108: 98 | AI108: 58 | AJ108: 39 | AK108: 97 | AL108: 195 | AM108: 97.5 | AN108: 39 | AO108: 57 | AP108: 8 | AQ108: 30 | AR108: 95 | AS108: 57 | AT108: 8 | AU108: 26 | AV108: 91 | AW108: 186 | AX108: 93 | AY108: 37.2 | AZ108: 271.4 | BA108: 99 | BB108: 100 | BC108: 199 | BD108: 99.5 | BE108: 19.9 | BF108: 100 | BG108: 100 | BH108: 200 | BI108: 100 | BJ108: 20 | BK108: 100 | BL108: 100 | BM108: 200 | BN108: 100 | BO108: 20 | BP108: 100 | BQ108: 100 | BR108: 200 | BS108: 100 | BT108: 20 | BU108: 351.5 | BV108: 58 | BW108: 28 | BX108: 86 | BY108: 56 | BZ108: 35 | CA108: 91 | CB108: 177 | CC108: 88.5 | CD108: 35.4 | CE108: 0 | CF108: 0 | CG108: 0 | CH108: 0 | CJ108: 0 | CK108: 0 | CL108: 0 | CM108: 0 | CN108: 0 | CO108: 0 | CP108: 0 | CQ108: 0 | CS108: 0 | CT108: 0 | CU108: 0 | CV108: 0 | CW108: ناجــــح | CX108: ومنقول للصف الخامس | DH108: =IFERROR(INDEX($B$7:$B$33,MATCH(0,INDEX(COUNTIF($DH$6:DH107,$B$7:$B$33),),0)),"") -> 
B109: 802 | C109: محمود حمدي علي أحمد | D109: 1 | E109: 60 | F109: 40 | G109: 100 | H109: 56 | I109: 36 | J109: 92 | K109: 192 | L109: 96 | M109: 96 | N109: 60 | O109: 36 | P109: 96 | Q109: 56 | R109: 36 | S109: 92 | T109: 188 | U109: 94 | V109: 75.2 | W109: 56 | X109: 35 | Y109: 91 | Z109: 51 | AA109: 40 | AB109: 91 | AC109: 182 | AD109: 91 | AE109: 36.4 | AF109: 57 | AG109: 38 | AH109: 95 | AI109: 60 | AJ109: 35 | AK109: 95 | AL109: 190 | AM109: 95 | AN109: 38 | AO109: 56 | AP109: 8 | AQ109: 30 | AR109: 94 | AS109: 58 | AT109: 8 | AU109: 31 | AV109: 97 | AW109: 191 | AX109: 95.5 | AY109: 38.2 | AZ109: 283.8 | BA109: 98 | BB109: 100 | BC109: 198 | BD109: 99 | BE109: 19.8 | BF109: 100 | BG109: 100 | BH109: 200 | BI109: 100 | BJ109: 20 | BK109: 100 | BL109: 100 | BM109: 200 | BN109: 100 | BO109: 20 | BP109: 100 | BQ109: 100 | BR109: 200 | BS109: 100 | BT109: 20 | BU109: 364 | BV109: 53 | BW109: 38 | BX109: 91 | BY109: 50 | BZ109: 38 | CA109: 88 | CB109: 179 | CC109: 89.5 | CD109: 35.8 | CE109: 0 | CF109: 0 | CG109: 0 | CH109: 0 | CJ109: 0 | CK109: 0 | CL109: 0 | CM109: 0 | CN109: 0 | CO109: 0 | CP109: 0 | CQ109: 0 | CS109: 0 | CT109: 0 | CU109: 0 | CV109: 0 | CW109: ناجــــح | CX109: ومنقول للصف الخامس | DH109: =IFERROR(INDEX($B$7:$B$33,MATCH(0,INDEX(COUNTIF($DH$6:DH108,$B$7:$B$33),),0)),"") -> 
B110: 803 | C110: محمود خالد محمد هاشم | D110: 1 | E110: 58 | F110: 39 | G110: 97 | H110: 59 | I110: 38 | J110: 97 | K110: 194 | L110: 97 | M110: 97 | N110: 53 | O110: 40 | P110: 93 | Q110: 59 | R110: 36 | S110: 95 | T110: 188 | U110: 94 | V110: 75.2 | W110: 55 | X110: 35 | Y110: 90 | Z110: 54 | AA110: 40 | AB110: 94 | AC110: 184 | AD110: 92 | AE110: 36.8 | AF110: 59 | AG110: 37 | AH110: 96 | AI110: 59 | AJ110: 37 | AK110: 96 | AL110: 192 | AM110: 96 | AN110: 38.4 | AO110: 59 | AP110: 8 | AQ110: 32 | AR110: 99 | AS110: 60 | AT110: 8 | AU110: 32 | AV110: 100 | AW110: 199 | AX110: 99.5 | AY110: 39.8 | AZ110: 287.2 | BA110: 100 | BB110: 100 | BC110: 200 | BD110: 100 | BE110: 20 | BF110: 100 | BG110: 100 | BH110: 200 | BI110: 100 | BJ110: 20 | BK110: 100 | BL110: 100 | BM110: 200 | BN110: 100 | BO110: 20 | BP110: 100 | BQ110: 100 | BR110: 200 | BS110: 100 | BT110: 20 | BU110: 367.5 | BV110: 50 | BW110: 36 | BX110: 86 | BY110: 58 | BZ110: 38 | CA110: 96 | CB110: 182 | CC110: 91 | CD110: 36.4 | CE110: 0 | CF110: 0 | CG110: 0 | CH110: 0 | CJ110: 0 | CK110: 0 | CL110: 0 | CM110: 0 | CN110: 0 | CO110: 0 | CP110: 0 | CQ110: 0 | CS110: 0 | CT110: 0 | CU110: 0 | CV110: 0 | CW110: ناجــــح | CX110: ومنقول للصف الخامس | DH110: =IFERROR(INDEX($B$7:$B$33,MATCH(0,INDEX(COUNTIF($DH$6:DH109,$B$7:$B$33),),0)),"") -> 
B111: 804 | C111: محمود سعيد إبراهيم هاشم | D111: 1 | E111: 59 | F111: 37 | G111: 96 | H111: 54 | I111: 32 | J111: 86 | K111: 182 | L111: 91 | M111: 91 | N111: 55 | O111: 19 | P111: 74 | Q111: 51 | R111: 26 | S111: 77 | T111: 151 | U111: 75.5 | V111: 60.4 | W111: 45 | X111: 29 | Y111: 74 | Z111: 43 | AA111: 33 | AB111: 76 | AC111: 150 | AD111: 75 | AE111: 30 | AF111: 49 | AG111: 27 | AH111: 76 | AI111: 52 | AJ111: 22 | AK111: 74 | AL111: 150 | AM111: 75 | AN111: 30 | AO111: 46 | AP111: 8 | AQ111: 13 | AR111: 67 | AS111: 49 | AT111: 8 | AU111: 21 | AV111: 78 | AW111: 145 | AX111: 72.5 | AY111: 29 | AZ111: 240.4 | BA111: 99 | BB111: 100 | BC111: 199 | BD111: 99.5 | BE111: 19.9 | BF111: 100 | BG111: 100 | BH111: 200 | BI111: 100 | BJ111: 20 | BK111: 100 | BL111: 100 | BM111: 200 | BN111: 100 | BO111: 20 | BP111: 100 | BQ111: 100 | BR111: 200 | BS111: 100 | BT111: 20 | BU111: 320.5 | BV111: 45 | BW111: 28 | BX111: 73 | BY111: 42 | BZ111: 24 | CA111: 66 | CB111: 139 | CC111: 69.5 | CD111: 27.8 | CE111: 0 | CF111: 0 | CG111: 0 | CH111: 0 | CJ111: 0 | CK111: 0 | CL111: 0 | CM111: 0 | CN111: 0 | CO111: 0 | CP111: 0 | CQ111: 0 | CS111: 0 | CT111: 0 | CU111: 0 | CV111: 0 | CW111: ناجــــح | CX111: ومنقول للصف الخامس | DH111: =IFERROR(INDEX($B$7:$B$33,MATCH(0,INDEX(COUNTIF($DH$6:DH110,$B$7:$B$33),),0)),"") -> 
B112: 805 | C112: محمود على عبد الحميد على | D112: 1 | E112: 54 | F112: 31 | G112: 85 | H112: 50 | I112: 34 | J112: 84 | K112: 169 | L112: 84.5 | M112: 84.5 | N112: 49 | O112: 30 | P112: 79 | Q112: 45 | R112: 25 | S112: 70 | T112: 149 | U112: 74.5 | V112: 59.6 | W112: 48 | X112: 35 | Y112: 83 | Z112: 52 | AA112: 30 | AB112: 82 | AC112: 165 | AD112: 82.5 | AE112: 33 | AF112: 54 | AG112: 34 | AH112: 88 | AI112: 55 | AJ112: 29 | AK112: 84 | AL112: 172 | AM112: 86 | AN112: 34.4 | AO112: 50 | AP112: 8 | AQ112: 28 | AR112: 86 | AS112: 49 | AT112: 4 | AU112: 27 | AV112: 80 | AW112: 166 | AX112: 83 | AY112: 33.2 | AZ112: 244.7 | BA112: 100 | BB112: 100 | BC112: 200 | BD112: 100 | BE112: 20 | BF112: 100 | BG112: 100 | BH112: 200 | BI112: 100 | BJ112: 20 | BK112: 100 | BL112: 100 | BM112: 200 | BN112: 100 | BO112: 20 | BP112: 100 | BQ112: 100 | BR112: 200 | BS112: 100 | BT112: 20 | BU112: 325 | BV112: 51 | BW112: 28 | BX112: 79 | BY112: 53 | BZ112: 38 | CA112: 91 | CB112: 170 | CC112: 85 | CD112: 34 | CE112: 0 | CF112: 0 | CG112: 0 | CH112: 0 | CJ112: 0 | CK112: 0 | CL112: 0 | CM112: 0 | CN112: 0 | CO112: 0 | CP112: 0 | CQ112: 0 | CS112: 0 | CT112: 0 | CU112: 0 | CV112: 0 | CW112: ناجــــح | CX112: ومنقول للصف الخامس | DH112: =IFERROR(INDEX($B$7:$B$33,MATCH(0,INDEX(COUNTIF($DH$6:DH111,$B$7:$B$33),),0)),"") -> 
B113: 806 | C113: محمود محمد عبد العزيز متولى | D113: 1 | E113: 39 | F113: 9 | G113: 48 | H113: 41 | I113: 5 | J113: 46 | K113: 94 | L113: 47 | M113: 47 | N113: 42 | O113: 20 | P113: 62 | Q113: 34 | R113: 18 | S113: 52 | T113: 114 | U113: 57 | V113: 45.6 | W113: 30 | X113: 28 | Y113: 58 | Z113: 36 | AA113: 9 | AB113: 45 | AC113: 103 | AD113: 51.5 | AE113: 20.6 | AF113: 49 | AG113: 19 | AH113: 68 | AI113: 47 | AJ113: 14 | AK113: 61 | AL113: 129 | AM113: 64.5 | AN113: 25.8 | AO113: 53 | AP113: 8 | AQ113: صفر | AR113: 61 | AS113: 45 | AT113: 8 | AU113: 9 | AV113: 62 | AW113: 123 | AX113: 61.5 | AY113: 24.6 | AZ113: 163.6 | BA113: 95 | BB113: 100 | BC113: 195 | BD113: 97.5 | BE113: 19.5 | BF113: 100 | BG113: 100 | BH113: 200 | BI113: 100 | BJ113: 20 | BK113: 100 | BL113: 100 | BM113: 200 | BN113: 100 | BO113: 20 | BP113: 100 | BQ113: 100 | BR113: 200 | BS113: 100 | BT113: 20 | BU113: 243.5 | BV113: 49 | BW113: 11 | BX113: 60 | BY113: 35 | BZ113: 15 | CA113: 50 | CB113: 110 | CC113: 55 | CD113: 22 | CE113: 0 | CF113: 0 | CG113: 0 | CH113: 0 | CJ113: 0 | CK113: 0 | CL113: 0 | CM113: 0 | CN113: 0 | CO113: 0 | CP113: 0 | CQ113: 0 | CS113: 0 | CT113: 0 | CU113: 0 | CV113: 0 | CW113: له دور ثان فى | CX113: عربى،دراسات، | DH113: =IFERROR(INDEX($B$7:$B$33,MATCH(0,INDEX(COUNTIF($DH$6:DH112,$B$7:$B$33),),0)),"") -> 
B114: 807 | C114: محمود محمد عبد المحسن محمود | D114: 1 | E114: 58 | F114: 31 | G114: 89 | H114: 58 | I114: 36 | J114: 94 | K114: 183 | L114: 91.5 | M114: 91.5 | N114: 53 | O114: 36 | P114: 89 | Q114: 54 | R114: 32 | S114: 86 | T114: 175 | U114: 87.5 | V114: 70 | W114: 51 | X114: 39 | Y114: 90 | Z114: 52 | AA114: 32 | AB114: 84 | AC114: 174 | AD114: 87 | AE114: 34.8 | AF114: 60 | AG114: 40 | AH114: 100 | AI114: 60 | AJ114: 36 | AK114: 96 | AL114: 196 | AM114: 98 | AN114: 39.2 | AO114: 57 | AP114: 8 | AQ114: 25 | AR114: 90 | AS114: 57 | AT114: 8 | AU114: 27 | AV114: 92 | AW114: 182 | AX114: 91 | AY114: 36.4 | AZ114: 271.9 | BA114: 100 | BB114: 100 | BC114: 200 | BD114: 100 | BE114: 20 | BF114: 100 | BG114: 100 | BH114: 200 | BI114: 100 | BJ114: 20 | BK114: 100 | BL114: 100 | BM114: 200 | BN114: 100 | BO114: 20 | BP114: 100 | BQ114: 100 | BR114: 200 | BS114: 100 | BT114: 20 | BU114: 352 | BV114: 59 | BW114: 30 | BX114: 89 | BY114: 60 | BZ114: 32 | CA114: 92 | CB114: 181 | CC114: 90.5 | CD114: 36.2 | CE114: 0 | CF114: 0 | CG114: 0 | CH114: 0 | CJ114: 0 | CK114: 0 | CL114: 0 | CM114: 0 | CN114: 0 | CO114: 0 | CP114: 0 | CQ114: 0 | CS114: 0 | CT114: 0 | CU114: 0 | CV114: 0 | CW114: ناجــــح | CX114: ومنقول للصف الخامس | DH114: =IFERROR(INDEX($B$7:$B$33,MATCH(0,INDEX(COUNTIF($DH$6:DH113,$B$7:$B$33),),0)),"") -> 
B115: 808 | C115: محمود نداء محمد أحمد | D115: 1 | E115: 53 | F115: 13 | G115: 66 | H115: 56 | I115: 13 | J115: 69 | K115: 135 | L115: 67.5 | M115: 67.5 | N115: 44 | O115: 25 | P115: 69 | Q115: 57 | R115: 28 | S115: 85 | T115: 154 | U115: 77 | V115: 61.6 | W115: 45 | X115: 11 | Y115: 56 | Z115: 46 | AA115: 24 | AB115: 70 | AC115: 126 | AD115: 63 | AE115: 25.2 | AF115: 51 | AG115: 18 | AH115: 69 | AI115: 57 | AJ115: 21 | AK115: 78 | AL115: 147 | AM115: 73.5 | AN115: 29.4 | AO115: 51 | AP115: 8 | AQ115: 13 | AR115: 72 | AS115: 51 | AT115: 8 | AU115: 21 | AV115: 80 | AW115: 152 | AX115: 76 | AY115: 30.4 | AZ115: 214.1 | BA115: 100 | BB115: 100 | BC115: 200 | BD115: 100 | BE115: 20 | BF115: 100 | BG115: 100 | BH115: 200 | BI115: 100 | BJ115: 20 | BK115: 100 | BL115: 100 | BM115: 200 | BN115: 100 | BO115: 20 | BP115: 100 | BQ115: 100 | BR115: 200 | BS115: 100 | BT115: 20 | BU115: 294.5 | BV115: 41 | BW115: 22 | BX115: 63 | BY115: 50 | BZ115: 25 | CA115: 75 | CB115: 138 | CC115: 69 | CD115: 27.6 | CE115: 0 | CF115: 0 | CG115: 0 | CH115: 0 | CJ115: 0 | CK115: 0 | CL115: 0 | CM115: 0 | CN115: 0 | CO115: 0 | CP115: 0 | CQ115: 0 | CS115: 0 | CT115: 0 | CU115: 0 | CV115: 0 | CW115: ناجــــح | CX115: ومنقول للصف الخامس | DH115: =IFERROR(INDEX($B$7:$B$33,MATCH(0,INDEX(COUNTIF($DH$6:DH114,$B$7:$B$33),),0)),"") -> 
B116: 809 | C116: مصطفى عبد العزيز عبد العاطى عبد الغنى | D116: 1 | E116: 57 | F116: 39 | G116: 96 | H116: 54 | I116: 37 | J116: 91 | K116: 187 | L116: 93.5 | M116: 93.5 | N116: 55 | O116: 34 | P116: 89 | Q116: 58 | R116: 30 | S116: 88 | T116: 177 | U116: 88.5 | V116: 70.8 | W116: 43 | X116: 32 | Y116: 75 | Z116: 52 | AA116: 40 | AB116: 92 | AC116: 167 | AD116: 83.5 | AE116: 33.4 | AF116: 60 | AG116: 39 | AH116: 99 | AI116: 60 | AJ116: 35 | AK116: 95 | AL116: 194 | AM116: 97 | AN116: 38.8 | AO116: 57 | AP116: 8 | AQ116: 32 | AR116: 97 | AS116: 60 | AT116: 8 | AU116: 29 | AV116: 97 | AW116: 194 | AX116: 97 | AY116: 38.8 | AZ116: 275.3 | BA116: 100 | BB116: 100 | BC116: 200 | BD116: 100 | BE116: 20 | BF116: 100 | BG116: 100 | BH116: 200 | BI116: 100 | BJ116: 20 | BK116: 100 | BL116: 100 | BM116: 200 | BN116: 100 | BO116: 20 | BP116: 100 | BQ116: 100 | BR116: 200 | BS116: 100 | BT116: 20 | BU116: 355.5 | BV116: 49 | BW116: 31 | BX116: 80 | BY116: 57 | BZ116: 39 | CA116: 96 | CB116: 176 | CC116: 88 | CD116: 35.2 | CE116: 0 | CF116: 0 | CG116: 0 | CH116: 0 | CJ116: 0 | CK116: 0 | CL116: 0 | CM116: 0 | CN116: 0 | CO116: 0 | CP116: 0 | CQ116: 0 | CS116: 0 | CT116: 0 | CU116: 0 | CV116: 0 | CW116: ناجــــح | CX116: ومنقول للصف الخامس | DH116: =IFERROR(INDEX($B$7:$B$33,MATCH(0,INDEX(COUNTIF($DH$6:DH115,$B$7:$B$33),),0)),"") -> 
B117: 810 | C117: مصطفى عبد الله مصطفى توفيق | D117: 1 | E117: 56 | F117: 39 | G117: 95 | H117: 58 | I117: 34 | J117: 92 | K117: 187 | L117: 93.5 | M117: 93.5 | N117: 46 | O117: 32 | P117: 78 | Q117: 55 | R117: 32 | S117: 87 | T117: 165 | U117: 82.5 | V117: 66 | W117: 53 | X117: 36 | Y117: 89 | Z117: 58 | AA117: 40 | AB117: 98 | AC117: 187 | AD117: 93.5 | AE117: 37.4 | AF117: 55 | AG117: 36 | AH117: 91 | AI117: 57 | AJ117: 35 | AK117: 92 | AL117: 183 | AM117: 91.5 | AN117: 36.6 | AO117: 56 | AP117: 8 | AQ117: 32 | AR117: 96 | AS117: 59 | AT117: 8 | AU117: 29 | AV117: 96 | AW117: 192 | AX117: 96 | AY117: 38.4 | AZ117: 271.9 | BA117: 99 | BB117: 100 | BC117: 199 | BD117: 99.5 | BE117: 19.9 | BF117: 100 | BG117: 100 | BH117: 200 | BI117: 100 | BJ117: 20 | BK117: 100 | BL117: 100 | BM117: 200 | BN117: 100 | BO117: 20 | BP117: 100 | BQ117: 100 | BR117: 200 | BS117: 100 | BT117: 20 | BU117: 352 | BV117: 53 | BW117: 31 | BX117: 84 | BY117: 55 | BZ117: 40 | CA117: 95 | CB117: 179 | CC117: 89.5 | CD117: 35.8 | CE117: 0 | CF117: 0 | CG117: 0 | CH117: 0 | CJ117: 0 | CK117: 0 | CL117: 0 | CM117: 0 | CN117: 0 | CO117: 0 | CP117: 0 | CQ117: 0 | CS117: 0 | CT117: 0 | CU117: 0 | CV117: 0 | CW117: ناجــــح | CX117: ومنقول للصف الخامس | DH117: =IFERROR(INDEX($B$7:$B$33,MATCH(0,INDEX(COUNTIF($DH$6:DH116,$B$7:$B$33),),0)),"") -> 
B118: 811 | C118: مصطفى محمود شفيق محمد | D118: 1 | E118: 60 | F118: 38 | G118: 98 | H118: 60 | I118: 37 | J118: 97 | K118: 195 | L118: 97.5 | M118: 97.5 | N118: 59 | O118: 33 | P118: 92 | Q118: 59 | R118: 40 | S118: 99 | T118: 191 | U118: 95.5 | V118: 76.4 | W118: 56 | X118: 37 | Y118: 93 | Z118: 60 | AA118: 40 | AB118: 100 | AC118: 193 | AD118: 96.5 | AE118: 38.6 | AF118: 60 | AG118: 40 | AH118: 100 | AI118: 60 | AJ118: 40 | AK118: 100 | AL118: 200 | AM118: 100 | AN118: 40 | AO118: 60 | AP118: 8 | AQ118: 32 | AR118: 100 | AS118: 60 | AT118: 8 | AU118: 28 | AV118: 96 | AW118: 196 | AX118: 98 | AY118: 39.2 | AZ118: 291.7 | BA118: 100 | BB118: 100 | BC118: 200 | BD118: 100 | BE118: 20 | BF118: 100 | BG118: 100 | BH118: 200 | BI118: 100 | BJ118: 20 | BK118: 100 | BL118: 100 | BM118: 200 | BN118: 100 | BO118: 20 | BP118: 100 | BQ118: 100 | BR118: 200 | BS118: 100 | BT118: 20 | BU118: 372 | BV118: 56 | BW118: 36 | BX118: 92 | BY118: 58 | BZ118: 38 | CA118: 96 | CB118: 188 | CC118: 94 | CD118: 37.6 | CE118: 0 | CF118: 0 | CG118: 0 | CH118: 0 | CJ118: 0 | CK118: 0 | CL118: 0 | CM118: 0 | CN118: 0 | CO118: 0 | CP118: 0 | CQ118: 0 | CS118: 0 | CT118: 0 | CU118: 0 | CV118: 0 | CW118: ناجــــح | CX118: ومنقول للصف الخامس | DH118: =IFERROR(INDEX($B$7:$B$33,MATCH(0,INDEX(COUNTIF($DH$6:DH117,$B$7:$B$33),),0)),"") -> 
B119: 812 | C119: مصطفي صابر أحمد عبده | D119: 1 | E119: 60 | F119: 40 | G119: 100 | H119: 60 | I119: 36 | J119: 96 | K119: 196 | L119: 98 | M119: 98 | N119: 60 | O119: 38 | P119: 98 | Q119: 52 | R119: 40 | S119: 92 | T119: 190 | U119: 95 | V119: 76 | W119: 59 | X119: 38 | Y119: 97 | Z119: 59 | AA119: 40 | AB119: 99 | AC119: 196 | AD119: 98 | AE119: 39.2 | AF119: 60 | AG119: 39 | AH119: 99 | AI119: 59 | AJ119: 38 | AK119: 97 | AL119: 196 | AM119: 98 | AN119: 39.2 | AO119: 60 | AP119: 8 | AQ119: 32 | AR119: 100 | AS119: 60 | AT119: 8 | AU119: 31 | AV119: 99 | AW119: 199 | AX119: 99.5 | AY119: 39.8 | AZ119: 292.2 | BA119: 100 | BB119: 100 | BC119: 200 | BD119: 100 | BE119: 20 | BF119: 100 | BG119: 100 | BH119: 200 | BI119: 100 | BJ119: 20 | BK119: 100 | BL119: 100 | BM119: 200 | BN119: 100 | BO119: 20 | BP119: 100 | BQ119: 100 | BR119: 200 | BS119: 100 | BT119: 20 | BU119: 372.5 | BV119: 55 | BW119: 35 | BX119: 90 | BY119: 60 | BZ119: 40 | CA119: 100 | CB119: 190 | CC119: 95 | CD119: 38 | CE119: 0 | CF119: 0 | CG119: 0 | CH119: 0 | CJ119: 0 | CK119: 0 | CL119: 0 | CM119: 0 | CN119: 0 | CO119: 0 | CP119: 0 | CQ119: 0 | CS119: 0 | CT119: 0 | CU119: 0 | CV119: 0 | CW119: ناجــــح | CX119: ومنقول للصف الخامس | DH119: =IFERROR(INDEX($B$7:$B$33,MATCH(0,INDEX(COUNTIF($DH$6:DH118,$B$7:$B$33),),0)),"") -> 
B120: 813 | C120: يحي أحمد زكريا أبو العطا | D120: 1 | E120: 60 | F120: 40 | G120: 100 | H120: 60 | I120: 40 | J120: 100 | K120: 200 | L120: 100 | M120: 100 | N120: 60 | O120: 40 | P120: 100 | Q120: 60 | R120: 40 | S120: 100 | T120: 200 | U120: 100 | V120: 80 | W120: 60 | X120: 38 | Y120: 98 | Z120: 58 | AA120: 40 | AB120: 98 | AC120: 196 | AD120: 98 | AE120: 39.2 | AF120: 60 | AG120: 40 | AH120: 100 | AI120: 60 | AJ120: 40 | AK120: 100 | AL120: 200 | AM120: 100 | AN120: 40 | AO120: 60 | AP120: 8 | AQ120: 32 | AR120: 100 | AS120: 58 | AT120: 8 | AU120: 32 | AV120: 98 | AW120: 198 | AX120: 99 | AY120: 39.6 | AZ120: 298.8 | BA120: 100 | BB120: 100 | BC120: 200 | BD120: 100 | BE120: 20 | BF120: 100 | BG120: 100 | BH120: 200 | BI120: 100 | BJ120: 20 | BK120: 100 | BL120: 100 | BM120: 200 | BN120: 100 | BO120: 20 | BP120: 100 | BQ120: 100 | BR120: 200 | BS120: 100 | BT120: 20 | BU120: 379 | BV120: 60 | BW120: 36 | BX120: 96 | BY120: 60 | BZ120: 40 | CA120: 100 | CB120: 196 | CC120: 98 | CD120: 39.2 | CE120: 0 | CF120: 0 | CG120: 0 | CH120: 0 | CJ120: 0 | CK120: 0 | CL120: 0 | CM120: 0 | CN120: 0 | CO120: 0 | CP120: 0 | CQ120: 0 | CS120: 0 | CT120: 0 | CU120: 0 | CV120: 0 | CW120: ناجــــح | CX120: ومنقول للصف الخامس | DH120: =IFERROR(INDEX($B$7:$B$33,MATCH(0,INDEX(COUNTIF($DH$6:DH119,$B$7:$B$33),),0)),"") -> 
B121: 814 | C121: يوسف عبد العزيز جودة السيد | D121: 1 | E121: 60 | F121: 40 | G121: 100 | H121: 60 | I121: 40 | J121: 100 | K121: 200 | L121: 100 | M121: 100 | N121: 57 | O121: 36 | P121: 93 | Q121: 56 | R121: 38 | S121: 94 | T121: 187 | U121: 93.5 | V121: 74.8 | W121: 58 | X121: 40 | Y121: 98 | Z121: 59 | AA121: 40 | AB121: 99 | AC121: 197 | AD121: 98.5 | AE121: 39.4 | AF121: 60 | AG121: 40 | AH121: 100 | AI121: 60 | AJ121: 39 | AK121: 99 | AL121: 199 | AM121: 99.5 | AN121: 39.8 | AO121: 59 | AP121: 8 | AQ121: 32 | AR121: 99 | AS121: 60 | AT121: 8 | AU121: 29 | AV121: 97 | AW121: 196 | AX121: 98 | AY121: 39.2 | AZ121: 293.2 | BA121: 99 | BB121: 100 | BC121: 199 | BD121: 99.5 | BE121: 19.9 | BF121: 100 | BG121: 100 | BH121: 200 | BI121: 100 | BJ121: 20 | BK121: 100 | BL121: 100 | BM121: 200 | BN121: 100 | BO121: 20 | BP121: 100 | BQ121: 100 | BR121: 200 | BS121: 100 | BT121: 20 | BU121: 373.5 | BV121: 60 | BW121: 34 | BX121: 94 | BY121: 60 | BZ121: 40 | CA121: 100 | CB121: 194 | CC121: 97 | CD121: 38.8 | CE121: 0 | CF121: 0 | CG121: 0 | CH121: 0 | CJ121: 0 | CK121: 0 | CL121: 0 | CM121: 0 | CN121: 0 | CO121: 0 | CP121: 0 | CQ121: 0 | CS121: 0 | CT121: 0 | CU121: 0 | CV121: 0 | CW121: ناجــــح | CX121: ومنقول للصف الخامس | DH121: =IFERROR(INDEX($B$7:$B$33,MATCH(0,INDEX(COUNTIF($DH$6:DH120,$B$7:$B$33),),0)),"") -> 
B122: 815 | C122: يوسف محمد الشحات عبدربه | D122: 1 | E122: 60 | F122: 40 | G122: 100 | H122: 60 | I122: 40 | J122: 100 | K122: 200 | L122: 100 | M122: 100 | N122: 60 | O122: 40 | P122: 100 | Q122: 60 | R122: 40 | S122: 100 | T122: 200 | U122: 100 | V122: 80 | W122: 60 | X122: 40 | Y122: 100 | Z122: 59 | AA122: 40 | AB122: 99 | AC122: 199 | AD122: 99.5 | AE122: 39.8 | AF122: 60 | AG122: 40 | AH122: 100 | AI122: 60 | AJ122: 40 | AK122: 100 | AL122: 200 | AM122: 100 | AN122: 40 | AO122: 60 | AP122: 8 | AQ122: 32 | AR122: 100 | AS122: 60 | AT122: 8 | AU122: 32 | AV122: 100 | AW122: 200 | AX122: 100 | AY122: 40 | AZ122: 299.8 | BA122: 99 | BB122: 100 | BC122: 199 | BD122: 99.5 | BE122: 19.9 | BF122: 100 | BG122: 100 | BH122: 200 | BI122: 100 | BJ122: 20 | BK122: 100 | BL122: 100 | BM122: 200 | BN122: 100 | BO122: 20 | BP122: 100 | BQ122: 100 | BR122: 200 | BS122: 100 | BT122: 20 | BU122: 380 | BV122: 58 | BW122: 38 | BX122: 96 | BY122: 58 | BZ122: 40 | CA122: 98 | CB122: 194 | CC122: 97 | CD122: 38.8 | CE122: 0 | CF122: 0 | CG122: 0 | CH122: 0 | CJ122: 0 | CK122: 0 | CL122: 0 | CM122: 0 | CN122: 0 | CO122: 0 | CP122: 0 | CQ122: 0 | CS122: 0 | CT122: 0 | CU122: 0 | CV122: 0 | CW122: ناجــــح | CX122: ومنقول للصف الخامس | DH122: =IFERROR(INDEX($B$7:$B$33,MATCH(0,INDEX(COUNTIF($DH$6:DH121,$B$7:$B$33),),0)),"") -> 
B123: 816 | C123: يوسف محمد قناوى سليمان | D123: 2 | E123: 55 | F123: 33 | G123: 88 | H123: 59 | I123: 37 | J123: 96 | K123: 184 | L123: 92 | M123: 92 | N123: 48 | O123: 27 | P123: 75 | Q123: 57 | R123: 32 | S123: 89 | T123: 164 | U123: 82 | V123: 65.6 | W123: 52 | X123: 31 | Y123: 83 | Z123: 52 | AA123: 34 | AB123: 86 | AC123: 169 | AD123: 84.5 | AE123: 33.8 | AF123: 59 | AG123: 36 | AH123: 95 | AI123: 60 | AJ123: 36 | AK123: 96 | AL123: 191 | AM123: 95.5 | AN123: 38.2 | AO123: 50 | AP123: 8 | AQ123: 25 | AR123: 83 | AS123: 58 | AT123: 8 | AU123: 30 | AV123: 96 | AW123: 179 | AX123: 89.5 | AY123: 35.8 | AZ123: 265.4 | BA123: 100 | BB123: 100 | BC123: 200 | BD123: 100 | BE123: 20 | BF123: 100 | BG123: 100 | BH123: 200 | BI123: 100 | BJ123: 20 | BK123: 100 | BL123: 100 | BM123: 200 | BN123: 100 | BO123: 20 | BP123: 100 | BQ123: 100 | BR123: 200 | BS123: 100 | BT123: 20 | BU123: 345.5 | BV123: 55 | BW123: 17 | BX123: 72 | BY123: 53 | BZ123: 39 | CA123: 92 | CB123: 164 | CC123: 82 | CD123: 32.8 | CE123: 0 | CF123: 0 | CG123: 0 | CH123: 0 | CJ123: 0 | CK123: 0 | CL123: 0 | CM123: 0 | CN123: 0 | CO123: 0 | CP123: 0 | CQ123: 0 | CS123: 0 | CT123: 0 | CU123: 0 | CV123: 0 | CW123: ناجحــــة | CX123: ومنقولة للصف الخامس | DH123: =IFERROR(INDEX($B$7:$B$33,MATCH(0,INDEX(COUNTIF($DH$6:DH122,$B$7:$B$33),),0)),"") -> 
B124: 817 | C124: آلاء رضا السيد محمد | D124: 2 | E124: 58 | F124: 26 | G124: 84 | H124: 51 | I124: 24 | J124: 75 | K124: 159 | L124: 79.5 | M124: 79.5 | N124: 50 | O124: 26 | P124: 76 | Q124: 50 | R124: 24 | S124: 74 | T124: 150 | U124: 75 | V124: 60 | W124: 39 | X124: 29 | Y124: 68 | Z124: 41 | AA124: 18 | AB124: 59 | AC124: 127 | AD124: 63.5 | AE124: 25.4 | AF124: 52 | AG124: 24 | AH124: 76 | AI124: 50 | AJ124: 28 | AK124: 78 | AL124: 154 | AM124: 77 | AN124: 30.8 | AO124: 45 | AP124: 8 | AQ124: 15 | AR124: 68 | AS124: 54 | AT124: 8 | AU124: 18 | AV124: 80 | AW124: 148 | AX124: 74 | AY124: 29.6 | AZ124: 225.3 | BA124: 98 | BB124: 100 | BC124: 198 | BD124: 99 | BE124: 19.8 | BF124: 100 | BG124: 100 | BH124: 200 | BI124: 100 | BJ124: 20 | BK124: 100 | BL124: 100 | BM124: 200 | BN124: 100 | BO124: 20 | BP124: 100 | BQ124: 100 | BR124: 200 | BS124: 100 | BT124: 20 | BU124: 305.5 | BV124: 44 | BW124: 12 | BX124: 56 | BY124: 42 | BZ124: 18 | CA124: 60 | CB124: 116 | CC124: 58 | CD124: 23.2 | CE124: 0 | CF124: 0 | CG124: 0 | CH124: 0 | CJ124: 0 | CK124: 0 | CL124: 0 | CM124: 0 | CN124: 0 | CO124: 0 | CP124: 0 | CQ124: 0 | CS124: 0 | CT124: 0 | CU124: 0 | CV124: 0 | CW124: ناجحــــة | CX124: ومنقولة للصف الخامس | DH124: =IFERROR(INDEX($B$7:$B$33,MATCH(0,INDEX(COUNTIF($DH$6:DH123,$B$7:$B$33),),0)),"") -> 
B125: 818 | C125: آمال السيد عامر محمد | D125: 2 | E125: 60 | F125: 39 | G125: 99 | H125: 60 | I125: 38 | J125: 98 | K125: 197 | L125: 98.5 | M125: 98.5 | N125: 59 | O125: 28 | P125: 87 | Q125: 60 | R125: 38 | S125: 98 | T125: 185 | U125: 92.5 | V125: 74 | W125: 55 | X125: 40 | Y125: 95 | Z125: 57 | AA125: 33 | AB125: 90 | AC125: 185 | AD125: 92.5 | AE125: 37 | AF125: 60 | AG125: 39 | AH125: 99 | AI125: 60 | AJ125: 39 | AK125: 99 | AL125: 198 | AM125: 99 | AN125: 39.6 | AO125: 59 | AP125: 8 | AQ125: 27 | AR125: 94 | AS125: 59 | AT125: 8 | AU125: 27 | AV125: 94 | AW125: 188 | AX125: 94 | AY125: 37.6 | AZ125: 286.7 | BA125: 100 | BB125: 100 | BC125: 200 | BD125: 100 | BE125: 20 | BF125: 100 | BG125: 100 | BH125: 200 | BI125: 100 | BJ125: 20 | BK125: 100 | BL125: 100 | BM125: 200 | BN125: 100 | BO125: 20 | BP125: 100 | BQ125: 100 | BR125: 200 | BS125: 100 | BT125: 20 | BU125: 367 | BV125: 55 | BW125: 29 | BX125: 84 | BY125: 60 | BZ125: 40 | CA125: 100 | CB125: 184 | CC125: 92 | CD125: 36.8 | CE125: 0 | CF125: 0 | CG125: 0 | CH125: 0 | CJ125: 0 | CK125: 0 | CL125: 0 | CM125: 0 | CN125: 0 | CO125: 0 | CP125: 0 | CQ125: 0 | CS125: 0 | CT125: 0 | CU125: 0 | CV125: 0 | CW125: ناجحــــة | CX125: ومنقولة للصف الخامس | DH125: =IFERROR(INDEX($B$7:$B$33,MATCH(0,INDEX(COUNTIF($DH$6:DH124,$B$7:$B$33),),0)),"") -> 
B126: 819 | C126: آيات رضا زين العابدين | D126: 2 | E126: 59 | F126: 40 | G126: 99 | H126: 58 | I126: 39 | J126: 97 | K126: 196 | L126: 98 | M126: 98 | N126: 54 | O126: 30 | P126: 84 | Q126: 45 | R126: 38 | S126: 83 | T126: 167 | U126: 83.5 | V126: 66.8 | W126: 53 | X126: 40 | Y126: 93 | Z126: 46 | AA126: 39 | AB126: 85 | AC126: 178 | AD126: 89 | AE126: 35.6 | AF126: 58 | AG126: 40 | AH126: 98 | AI126: 56 | AJ126: 40 | AK126: 96 | AL126: 194 | AM126: 97 | AN126: 38.8 | AO126: 56 | AP126: 8 | AQ126: 29 | AR126: 93 | AS126: 59 | AT126: 8 | AU126: 28 | AV126: 95 | AW126: 188 | AX126: 94 | AY126: 37.6 | AZ126: 276.8 | BA126: 100 | BB126: 100 | BC126: 200 | BD126: 100 | BE126: 20 | BF126: 100 | BG126: 100 | BH126: 200 | BI126: 100 | BJ126: 20 | BK126: 100 | BL126: 100 | BM126: 200 | BN126: 100 | BO126: 20 | BP126: 100 | BQ126: 100 | BR126: 200 | BS126: 100 | BT126: 20 | BU126: 357 | BV126: 48 | BW126: 23 | BX126: 71 | BY126: 47 | BZ126: 40 | CA126: 87 | CB126: 158 | CC126: 79 | CD126: 31.6 | CE126: 0 | CF126: 0 | CG126: 0 | CH126: 0 | CJ126: 0 | CK126: 0 | CL126: 0 | CM126: 0 | CN126: 0 | CO126: 0 | CP126: 0 | CQ126: 0 | CS126: 0 | CT126: 0 | CU126: 0 | CV126: 0 | CW126: ناجحــــة | CX126: ومنقولة للصف الخامس | DH126: =IFERROR(INDEX($B$7:$B$33,MATCH(0,INDEX(COUNTIF($DH$6:DH125,$B$7:$B$33),),0)),"") -> 
B127: 820 | C127: آيه سعيد طنطاوى عوض | D127: 2 | E127: 60 | F127: 38 | G127: 98 | H127: 60 | I127: 40 | J127: 100 | K127: 198 | L127: 99 | M127: 99 | N127: 56 | O127: 30 | P127: 86 | Q127: 51 | R127: 40 | S127: 91 | T127: 177 | U127: 88.5 | V127: 70.8 | W127: 58 | X127: 37 | Y127: 95 | Z127: 55 | AA127: 40 | AB127: 95 | AC127: 190 | AD127: 95 | AE127: 38 | AF127: 57 | AG127: 37 | AH127: 94 | AI127: 59 | AJ127: 39 | AK127: 98 | AL127: 192 | AM127: 96 | AN127: 38.4 | AO127: 58 | AP127: 8 | AQ127: 30 | AR127: 96 | AS127: 57 | AT127: 8 | AU127: 30 | AV127: 95 | AW127: 191 | AX127: 95.5 | AY127: 38.2 | AZ127: 284.4 | BA127: 100 | BB127: 100 | BC127: 200 | BD127: 100 | BE127: 20 | BF127: 100 | BG127: 100 | BH127: 200 | BI127: 100 | BJ127: 20 | BK127: 100 | BL127: 100 | BM127: 200 | BN127: 100 | BO127: 20 | BP127: 100 | BQ127: 100 | BR127: 200 | BS127: 100 | BT127: 20 | BU127: 364.5 | BV127: 59 | BW127: 29 | BX127: 88 | BY127: 59 | BZ127: 36 | CA127: 95 | CB127: 183 | CC127: 91.5 | CD127: 36.6 | CE127: 0 | CF127: 0 | CG127: 0 | CH127: 0 | CJ127: 0 | CK127: 0 | CL127: 0 | CM127: 0 | CN127: 0 | CO127: 0 | CP127: 0 | CQ127: 0 | CS127: 0 | CT127: 0 | CU127: 0 | CV127: 0 | CW127: ناجحــــة | CX127: ومنقولة للصف الخامس | DH127: =IFERROR(INDEX($B$7:$B$33,MATCH(0,INDEX(COUNTIF($DH$6:DH126,$B$7:$B$33),),0)),"") -> 
B128: 821 | C128: آيه ماجد موسي محمد | D128: 2 | E128: 59 | F128: 40 | G128: 99 | H128: 58 | I128: 38 | J128: 96 | K128: 195 | L128: 97.5 | M128: 97.5 | N128: 58 | O128: 27 | P128: 85 | Q128: 56 | R128: 32 | S128: 88 | T128: 173 | U128: 86.5 | V128: 69.2 | W128: 56 | X128: 39 | Y128: 95 | Z128: 54 | AA128: 36 | AB128: 90 | AC128: 185 | AD128: 92.5 | AE128: 37 | AF128: 60 | AG128: 40 | AH128: 100 | AI128: 55 | AJ128: 39 | AK128: 94 | AL128: 194 | AM128: 97 | AN128: 38.8 | AO128: 59 | AP128: 8 | AQ128: 30 | AR128: 97 | AS128: 59 | AT128: 8 | AU128: 28 | AV128: 95 | AW128: 192 | AX128: 96 | AY128: 38.4 | AZ128: 280.9 | BA128: 100 | BB128: 100 | BC128: 200 | BD128: 100 | BE128: 20 | BF128: 100 | BG128: 100 | BH128: 200 | BI128: 100 | BJ128: 20 | BK128: 100 | BL128: 100 | BM128: 200 | BN128: 100 | BO128: 20 | BP128: 100 | BQ128: 100 | BR128: 200 | BS128: 100 | BT128: 20 | BU128: 361 | BV128: 55 | BW128: 25 | BX128: 80 | BY128: 56 | BZ128: 38 | CA128: 94 | CB128: 174 | CC128: 87 | CD128: 34.8 | CE128: 0 | CF128: 0 | CG128: 0 | CH128: 0 | CJ128: 0 | CK128: 0 | CL128: 0 | CM128: 0 | CN128: 0 | CO128: 0 | CP128: 0 | CQ128: 0 | CS128: 0 | CT128: 0 | CU128: 0 | CV128: 0 | CW128: ناجحــــة | CX128: ومنقولة للصف الخامس | DH128: =IFERROR(INDEX($B$7:$B$33,MATCH(0,INDEX(COUNTIF($DH$6:DH127,$B$7:$B$33),),0)),"") -> 
B129: 822 | C129: أسماء حامد محمد بدوي | D129: 2 | E129: 54 | F129: 37 | G129: 91 | H129: 55 | I129: 36 | J129: 91 | K129: 182 | L129: 91 | M129: 91 | N129: 54 | O129: 34 | P129: 88 | Q129: 45 | R129: 35 | S129: 80 | T129: 168 | U129: 84 | V129: 67.2 | W129: 44 | X129: 24 | Y129: 68 | Z129: 34 | AA129: 36 | AB129: 70 | AC129: 138 | AD129: 69 | AE129: 27.6 | AF129: 59 | AG129: 39 | AH129: 98 | AI129: 53 | AJ129: 37 | AK129: 90 | AL129: 188 | AM129: 94 | AN129: 37.6 | AO129: 51 | AP129: 8 | AQ129: 23 | AR129: 82 | AS129: 56 | AT129: 8 | AU129: 21 | AV129: 85 | AW129: 167 | AX129: 83.5 | AY129: 33.4 | AZ129: 256.8 | BA129: 100 | BB129: 100 | BC129: 200 | BD129: 100 | BE129: 20 | BF129: 100 | BG129: 100 | BH129: 200 | BI129: 100 | BJ129: 20 | BK129: 100 | BL129: 100 | BM129: 200 | BN129: 100 | BO129: 20 | BP129: 100 | BQ129: 100 | BR129: 200 | BS129: 100 | BT129: 20 | BU129: 337 | BV129: 49 | BW129: 15 | BX129: 64 | BY129: 42 | BZ129: 39 | CA129: 81 | CB129: 145 | CC129: 72.5 | CD129: 29 | CE129: 0 | CF129: 0 | CG129: 0 | CH129: 0 | CJ129: 0 | CK129: 0 | CL129: 0 | CM129: 0 | CN129: 0 | CO129: 0 | CP129: 0 | CQ129: 0 | CS129: 0 | CT129: 0 | CU129: 0 | CV129: 0 | CW129: ناجحــــة | CX129: ومنقولة للصف الخامس | DH129: =IFERROR(INDEX($B$7:$B$33,MATCH(0,INDEX(COUNTIF($DH$6:DH128,$B$7:$B$33),),0)),"") -> 
B130: 823 | C130: أسماء طارق عبد الله محمد | D130: 2 | E130: 57 | F130: 37 | G130: 94 | H130: 60 | I130: 39 | J130: 99 | K130: 193 | L130: 96.5 | M130: 96.5 | N130: 44 | O130: 26 | P130: 70 | Q130: 46 | R130: 26 | S130: 72 | T130: 142 | U130: 71 | V130: 56.8 | W130: 47 | X130: 30 | Y130: 77 | Z130: 58 | AA130: 40 | AB130: 98 | AC130: 175 | AD130: 87.5 | AE130: 35 | AF130: 57 | AG130: 33 | AH130: 90 | AI130: 56 | AJ130: 22 | AK130: 78 | AL130: 168 | AM130: 84 | AN130: 33.6 | AO130: 57 | AP130: 8 | AQ130: 30 | AR130: 95 | AS130: 54 | AT130: 8 | AU130: 22 | AV130: 84 | AW130: 179 | AX130: 89.5 | AY130: 35.8 | AZ130: 257.7 | BA130: 100 | BB130: 100 | BC130: 200 | BD130: 100 | BE130: 20 | BF130: 100 | BG130: 100 | BH130: 200 | BI130: 100 | BJ130: 20 | BK130: 100 | BL130: 100 | BM130: 200 | BN130: 100 | BO130: 20 | BP130: 100 | BQ130: 100 | BR130: 200 | BS130: 100 | BT130: 20 | BU130: 338 | BV130: 60 | BW130: 23 | BX130: 83 | BY130: 60 | BZ130: 40 | CA130: 100 | CB130: 183 | CC130: 91.5 | CD130: 36.6 | CE130: 0 | CF130: 0 | CG130: 0 | CH130: 0 | CJ130: 0 | CK130: 0 | CL130: 0 | CM130: 0 | CN130: 0 | CO130: 0 | CP130: 0 | CQ130: 0 | CS130: 0 | CT130: 0 | CU130: 0 | CV130: 0 | CW130: ناجحــــة | CX130: ومنقولة للصف الخامس | DH130: =IFERROR(INDEX($B$7:$B$33,MATCH(0,INDEX(COUNTIF($DH$6:DH129,$B$7:$B$33),),0)),"") -> 
B131: 824 | C131: أمنه خالد السيد محمد | D131: 2 | E131: 60 | F131: 40 | G131: 100 | H131: 60 | I131: 39 | J131: 99 | K131: 199 | L131: 99.5 | M131: 99.5 | N131: 58 | O131: 38 | P131: 96 | Q131: 60 | R131: 36 | S131: 96 | T131: 192 | U131: 96 | V131: 76.8 | W131: 60 | X131: 37 | Y131: 97 | Z131: 58 | AA131: 40 | AB131: 98 | AC131: 195 | AD131: 97.5 | AE131: 39 | AF131: 60 | AG131: 40 | AH131: 100 | AI131: 60 | AJ131: 39 | AK131: 99 | AL131: 199 | AM131: 99.5 | AN131: 39.8 | AO131: 60 | AP131: 8 | AQ131: 32 | AR131: 100 | AS131: 60 | AT131: 8 | AU131: 31 | AV131: 99 | AW131: 199 | AX131: 99.5 | AY131: 39.8 | AZ131: 294.9 | BA131: 100 | BB131: 100 | BC131: 200 | BD131: 100 | BE131: 20 | BF131: 100 | BG131: 100 | BH131: 200 | BI131: 100 | BJ131: 20 | BK131: 100 | BL131: 100 | BM131: 200 | BN131: 100 | BO131: 20 | BP131: 100 | BQ131: 100 | BR131: 200 | BS131: 100 | BT131: 20 | BU131: 375 | BV131: 59 | BW131: 33 | BX131: 92 | BY131: 59 | BZ131: 40 | CA131: 99 | CB131: 191 | CC131: 95.5 | CD131: 38.2 | CE131: 0 | CF131: 0 | CG131: 0 | CH131: 0 | CJ131: 0 | CK131: 0 | CL131: 0 | CM131: 0 | CN131: 0 | CO131: 0 | CP131: 0 | CQ131: 0 | CS131: 0 | CT131: 0 | CU131: 0 | CV131: 0 | CW131: ناجحــــة | CX131: ومنقولة للصف الخامس | DH131: =IFERROR(INDEX($B$7:$B$33,MATCH(0,INDEX(COUNTIF($DH$6:DH130,$B$7:$B$33),),0)),"") -> 
B132: 825 | C132: أمنه عبد المجيد جودة عبد المطلب | D132: 2 | E132: 58 | F132: 28 | G132: 86 | H132: 50 | I132: 23 | J132: 73 | K132: 159 | L132: 79.5 | M132: 79.5 | N132: 50 | O132: 25 | P132: 75 | Q132: 54 | R132: 24 | S132: 78 | T132: 153 | U132: 76.5 | V132: 61.2 | W132: 45 | X132: 27 | Y132: 72 | Z132: 48 | AA132: 35 | AB132: 83 | AC132: 155 | AD132: 77.5 | AE132: 31 | AF132: 57 | AG132: 37 | AH132: 94 | AI132: 59 | AJ132: 34 | AK132: 93 | AL132: 187 | AM132: 93.5 | AN132: 37.4 | AO132: 57 | AP132: 8 | AQ132: 23 | AR132: 88 | AS132: 57 | AT132: 8 | AU132: 20 | AV132: 85 | AW132: 173 | AX132: 86.5 | AY132: 34.6 | AZ132: 243.7 | BA132: 96 | BB132: 100 | BC132: 196 | BD132: 98 | BE132: 19.6 | BF132: 100 | BG132: 100 | BH132: 200 | BI132: 100 | BJ132: 20 | BK132: 100 | BL132: 100 | BM132: 200 | BN132: 100 | BO132: 20 | BP132: 100 | BQ132: 100 | BR132: 200 | BS132: 100 | BT132: 20 | BU132: 323.5 | BV132: 42 | BW132: 15 | BX132: 57 | BY132: 47 | BZ132: 40 | CA132: 87 | CB132: 144 | CC132: 72 | CD132: 28.8 | CE132: 0 | CF132: 0 | CG132: 0 | CH132: 0 | CJ132: 0 | CK132: 0 | CL132: 0 | CM132: 0 | CN132: 0 | CO132: 0 | CP132: 0 | CQ132: 0 | CS132: 0 | CT132: 0 | CU132: 0 | CV132: 0 | CW132: ناجحــــة | CX132: ومنقولة للصف الخامس | DH132: =IFERROR(INDEX($B$7:$B$33,MATCH(0,INDEX(COUNTIF($DH$6:DH131,$B$7:$B$33),),0)),"") -> 
B133: 826 | C133: أمنيه عبد العزيز محمد السيد | D133: 2 | E133: 58 | F133: 37 | G133: 95 | H133: 52 | I133: 33 | J133: 85 | K133: 180 | L133: 90 | M133: 90 | N133: 55 | O133: 30 | P133: 85 | Q133: 46 | R133: 35 | S133: 81 | T133: 166 | U133: 83 | V133: 66.4 | W133: 53 | X133: 33 | Y133: 86 | Z133: 45 | AA133: 27 | AB133: 72 | AC133: 158 | AD133: 79 | AE133: 31.6 | AF133: 57 | AG133: 38 | AH133: 95 | AI133: 58 | AJ133: 29 | AK133: 87 | AL133: 182 | AM133: 91 | AN133: 36.4 | AO133: 56 | AP133: 8 | AQ133: 22 | AR133: 86 | AS133: 58 | AT133: 8 | AU133: 23 | AV133: 89 | AW133: 175 | AX133: 87.5 | AY133: 35 | AZ133: 259.4 | BA133: 100 | BB133: 100 | BC133: 200 | BD133: 100 | BE133: 20 | BF133: 100 | BG133: 100 | BH133: 200 | BI133: 100 | BJ133: 20 | BK133: 100 | BL133: 100 | BM133: 200 | BN133: 100 | BO133: 20 | BP133: 100 | BQ133: 100 | BR133: 200 | BS133: 100 | BT133: 20 | BU133: 339.5 | BV133: 59 | BW133: 18 | BX133: 77 | BY133: 57 | BZ133: 40 | CA133: 97 | CB133: 174 | CC133: 87 | CD133: 34.8 | CE133: 0 | CF133: 0 | CG133: 0 | CH133: 0 | CJ133: 0 | CK133: 0 | CL133: 0 | CM133: 0 | CN133: 0 | CO133: 0 | CP133: 0 | CQ133: 0 | CS133: 0 | CT133: 0 | CU133: 0 | CV133: 0 | CW133: ناجحــــة | CX133: ومنقولة للصف الخامس | DH133: =IFERROR(INDEX($B$7:$B$33,MATCH(0,INDEX(COUNTIF($DH$6:DH132,$B$7:$B$33),),0)),"") -> 
B134: 827 | C134: أمنيه محمد مصطفي محمد | D134: 2 | E134: 60 | F134: 36 | G134: 96 | H134: 54 | I134: 36 | J134: 90 | K134: 186 | L134: 93 | M134: 93 | N134: 50 | O134: 32 | P134: 82 | Q134: 53 | R134: 34 | S134: 87 | T134: 169 | U134: 84.5 | V134: 67.6 | W134: 48 | X134: 27 | Y134: 75 | Z134: 53 | AA134: 27 | AB134: 80 | AC134: 155 | AD134: 77.5 | AE134: 31 | AF134: 56 | AG134: 38 | AH134: 94 | AI134: 58 | AJ134: 37 | AK134: 95 | AL134: 189 | AM134: 94.5 | AN134: 37.8 | AO134: 57 | AP134: 8 | AQ134: 26 | AR134: 91 | AS134: 58 | AT134: 8 | AU134: 30 | AV134: 96 | AW134: 187 | AX134: 93.5 | AY134: 37.4 | AZ134: 266.8 | BA134: 97 | BB134: 100 | BC134: 197 | BD134: 98.5 | BE134: 19.7 | BF134: 100 | BG134: 100 | BH134: 200 | BI134: 100 | BJ134: 20 | BK134: 100 | BL134: 100 | BM134: 200 | BN134: 100 | BO134: 20 | BP134: 100 | BQ134: 100 | BR134: 200 | BS134: 100 | BT134: 20 | BU134: 346.5 | BV134: 54 | BW134: 23 | BX134: 77 | BY134: 50 | BZ134: 31 | CA134: 81 | CB134: 158 | CC134: 79 | CD134: 31.6 | CE134: 0 | CF134: 0 | CG134: 0 | CH134: 0 | CJ134: 0 | CK134: 0 | CL134: 0 | CM134: 0 | CN134: 0 | CO134: 0 | CP134: 0 | CQ134: 0 | CS134: 0 | CT134: 0 | CU134: 0 | CV134: 0 | CW134: ناجحــــة | CX134: ومنقولة للصف الخامس | DH134: =IFERROR(INDEX($B$7:$B$33,MATCH(0,INDEX(COUNTIF($DH$6:DH133,$B$7:$B$33),),0)),"") -> 
B135: 828 | C135: أميره طارق جودة حسن | D135: 2 | E135: 60 | F135: 40 | G135: 100 | H135: 57 | I135: 39 | J135: 96 | K135: 196 | L135: 98 | M135: 98 | N135: 60 | O135: 31 | P135: 91 | Q135: 53 | R135: 36 | S135: 89 | T135: 180 | U135: 90 | V135: 72 | W135: 60 | X135: 39 | Y135: 99 | Z135: 57 | AA135: 37 | AB135: 94 | AC135: 193 | AD135: 96.5 | AE135: 38.6 | AF135: 58 | AG135: 40 | AH135: 98 | AI135: 60 | AJ135: 39 | AK135: 99 | AL135: 197 | AM135: 98.5 | AN135: 39.4 | AO135: 56 | AP135: 8 | AQ135: 32 | AR135: 96 | AS135: 59 | AT135: 8 | AU135: 32 | AV135: 99 | AW135: 195 | AX135: 97.5 | AY135: 39 | AZ135: 287 | BA135: 99 | BB135: 100 | BC135: 199 | BD135: 99.5 | BE135: 19.9 | BF135: 100 | BG135: 100 | BH135: 200 | BI135: 100 | BJ135: 20 | BK135: 100 | BL135: 100 | BM135: 200 | BN135: 100 | BO135: 20 | BP135: 100 | BQ135: 100 | BR135: 200 | BS135: 100 | BT135: 20 | BU135: 367 | BV135: 54 | BW135: 37 | BX135: 91 | BY135: 59 | BZ135: 40 | CA135: 99 | CB135: 190 | CC135: 95 | CD135: 38 | CE135: 0 | CF135: 0 | CG135: 0 | CH135: 0 | CJ135: 0 | CK135: 0 | CL135: 0 | CM135: 0 | CN135: 0 | CO135: 0 | CP135: 0 | CQ135: 0 | CS135: 0 | CT135: 0 | CU135: 0 | CV135: 0 | CW135: ناجحــــة | CX135: ومنقولة للصف الخامس | DH135: =IFERROR(INDEX($B$7:$B$33,MATCH(0,INDEX(COUNTIF($DH$6:DH134,$B$7:$B$33),),0)),"") -> 
B136: 829 | C136: أميره مدحت عبد الفتاح محمد | D136: 2 | E136: 50 | F136: 39 | G136: 89 | H136: 49 | I136: 35 | J136: 84 | K136: 173 | L136: 86.5 | M136: 86.5 | N136: 51 | O136: 31 | P136: 82 | Q136: 54 | R136: 34 | S136: 88 | T136: 170 | U136: 85 | V136: 68 | W136: 35 | X136: 19 | Y136: 54 | Z136: 46 | AA136: 24 | AB136: 70 | AC136: 124 | AD136: 62 | AE136: 24.8 | AF136: 57 | AG136: 36 | AH136: 93 | AI136: 60 | AJ136: 29 | AK136: 89 | AL136: 182 | AM136: 91 | AN136: 36.4 | AO136: 46 | AP136: 8 | AQ136: 28 | AR136: 82 | AS136: 53 | AT136: 8 | AU136: 21 | AV136: 82 | AW136: 164 | AX136: 82 | AY136: 32.8 | AZ136: 248.5 | BA136: 100 | BB136: 100 | BC136: 200 | BD136: 100 | BE136: 20 | BF136: 100 | BG136: 100 | BH136: 200 | BI136: 100 | BJ136: 20 | BK136: 100 | BL136: 100 | BM136: 200 | BN136: 100 | BO136: 20 | BP136: 100 | BQ136: 100 | BR136: 200 | BS136: 100 | BT136: 20 | BU136: 328.5 | BV136: 45 | BW136: 13 | BX136: 58 | BY136: 49 | BZ136: 38 | CA136: 87 | CB136: 145 | CC136: 72.5 | CD136: 29 | CE136: 0 | CF136: 0 | CG136: 0 | CH136: 0 | CJ136: 0 | CK136: 0 | CL136: 0 | CM136: 0 | CN136: 0 | CO136: 0 | CP136: 0 | CQ136: 0 | CS136: 0 | CT136: 0 | CU136: 0 | CV136: 0 | CW136: ناجحــــة | CX136: ومنقولة للصف الخامس | DH136: =IFERROR(INDEX($B$7:$B$33,MATCH(0,INDEX(COUNTIF($DH$6:DH135,$B$7:$B$33),),0)),"") -> 
B137: 830 | C137: إسراء حمدى صابر محمد | D137: 2 | E137: 60 | F137: 40 | G137: 100 | H137: 60 | I137: 39 | J137: 99 | K137: 199 | L137: 99.5 | M137: 99.5 | N137: 59 | O137: 30 | P137: 89 | Q137: 56 | R137: 38 | S137: 94 | T137: 183 | U137: 91.5 | V137: 73.2 | W137: 60 | X137: 39 | Y137: 99 | Z137: 57 | AA137: 37 | AB137: 94 | AC137: 193 | AD137: 96.5 | AE137: 38.6 | AF137: 60 | AG137: 40 | AH137: 100 | AI137: 60 | AJ137: 40 | AK137: 100 | AL137: 200 | AM137: 100 | AN137: 40 | AO137: 59 | AP137: 8 | AQ137: 32 | AR137: 99 | AS137: 59 | AT137: 8 | AU137: 32 | AV137: 99 | AW137: 198 | AX137: 99 | AY137: 39.6 | AZ137: 290.9 | BA137: 100 | BB137: 100 | BC137: 200 | BD137: 100 | BE137: 20 | BF137: 100 | BG137: 100 | BH137: 200 | BI137: 100 | BJ137: 20 | BK137: 100 | BL137: 100 | BM137: 200 | BN137: 100 | BO137: 20 | BP137: 100 | BQ137: 100 | BR137: 200 | BS137: 100 | BT137: 20 | BU137: 371 | BV137: 56 | BW137: 36 | BX137: 92 | BY137: 58 | BZ137: 40 | CA137: 98 | CB137: 190 | CC137: 95 | CD137: 38 | CE137: 0 | CF137: 0 | CG137: 0 | CH137: 0 | CJ137: 0 | CK137: 0 | CL137: 0 | CM137: 0 | CN137: 0 | CO137: 0 | CP137: 0 | CQ137: 0 | CS137: 0 | CT137: 0 | CU137: 0 | CV137: 0 | CW137: ناجحــــة | CX137: ومنقولة للصف الخامس | DH137: =IFERROR(INDEX($B$7:$B$33,MATCH(0,INDEX(COUNTIF($DH$6:DH136,$B$7:$B$33),),0)),"") -> 
B138: 831 | C138: إلهام أسامه الصادق عبد الرحمن | D138: 2 | E138: 60 | F138: 40 | G138: 100 | H138: 60 | I138: 40 | J138: 100 | K138: 200 | L138: 100 | M138: 100 | N138: 60 | O138: 34 | P138: 94 | Q138: 60 | R138: 38 | S138: 98 | T138: 192 | U138: 96 | V138: 76.8 | W138: 58 | X138: 40 | Y138: 98 | Z138: 60 | AA138: 40 | AB138: 100 | AC138: 198 | AD138: 99 | AE138: 39.6 | AF138: 60 | AG138: 40 | AH138: 100 | AI138: 60 | AJ138: 40 | AK138: 100 | AL138: 200 | AM138: 100 | AN138: 40 | AO138: 60 | AP138: 8 | AQ138: 30 | AR138: 98 | AS138: 60 | AT138: 8 | AU138: 32 | AV138: 100 | AW138: 198 | AX138: 99 | AY138: 39.6 | AZ138: 296 | BA138: 100 | BB138: 100 | BC138: 200 | BD138: 100 | BE138: 20 | BF138: 100 | BG138: 100 | BH138: 200 | BI138: 100 | BJ138: 20 | BK138: 100 | BL138: 100 | BM138: 200 | BN138: 100 | BO138: 20 | BP138: 100 | BQ138: 100 | BR138: 200 | BS138: 100 | BT138: 20 | BU138: 376 | BV138: 57 | BW138: 34 | BX138: 91 | BY138: 57 | BZ138: 40 | CA138: 97 | CB138: 188 | CC138: 94 | CD138: 37.6 | CE138: 0 | CF138: 0 | CG138: 0 | CH138: 0 | CJ138: 0 | CK138: 0 | CL138: 0 | CM138: 0 | CN138: 0 | CO138: 0 | CP138: 0 | CQ138: 0 | CS138: 0 | CT138: 0 | CU138: 0 | CV138: 0 | CW138: ناجحــــة | CX138: ومنقولة للصف الخامس | DH138: =IFERROR(INDEX($B$7:$B$33,MATCH(0,INDEX(COUNTIF($DH$6:DH137,$B$7:$B$33),),0)),"") -> 
B139: 832 | C139: إلهام عبد الفتاح عيسي السيد | D139: 2 | E139: 60 | F139: 34 | G139: 94 | H139: 55 | I139: 37 | J139: 92 | K139: 186 | L139: 93 | M139: 93 | N139: 50 | O139: 27 | P139: 77 | Q139: 50 | R139: 34 | S139: 84 | T139: 161 | U139: 80.5 | V139: 64.4 | W139: 57 | X139: 29 | Y139: 86 | Z139: 51 | AA139: 39 | AB139: 90 | AC139: 176 | AD139: 88 | AE139: 35.2 | AF139: 59 | AG139: 34 | AH139: 93 | AI139: 59 | AJ139: 36 | AK139: 95 | AL139: 188 | AM139: 94 | AN139: 37.6 | AO139: 57 | AP139: 8 | AQ139: 30 | AR139: 95 | AS139: 59 | AT139: 8 | AU139: 30 | AV139: 97 | AW139: 192 | AX139: 96 | AY139: 38.4 | AZ139: 268.6 | BA139: 98 | BB139: 100 | BC139: 198 | BD139: 99 | BE139: 19.8 | BF139: 100 | BG139: 100 | BH139: 200 | BI139: 100 | BJ139: 20 | BK139: 100 | BL139: 100 | BM139: 200 | BN139: 100 | BO139: 20 | BP139: 100 | BQ139: 100 | BR139: 200 | BS139: 100 | BT139: 20 | BU139: 348.5 | BV139: 52 | BW139: 25 | BX139: 77 | BY139: 48 | BZ139: 33 | CA139: 81 | CB139: 158 | CC139: 79 | CD139: 31.6 | CE139: 0 | CF139: 0 | CG139: 0 | CH139: 0 | CJ139: 0 | CK139: 0 | CL139: 0 | CM139: 0 | CN139: 0 | CO139: 0 | CP139: 0 | CQ139: 0 | CS139: 0 | CT139: 0 | CU139: 0 | CV139: 0 | CW139: ناجحــــة | CX139: ومنقولة للصف الخامس | DH139: =IFERROR(INDEX($B$7:$B$33,MATCH(0,INDEX(COUNTIF($DH$6:DH138,$B$7:$B$33),),0)),"") -> 
B140: 833 | C140: إيمان طارق جودة حسن | D140: 2 | E140: 60 | F140: 39 | G140: 99 | H140: 60 | I140: 40 | J140: 100 | K140: 199 | L140: 99.5 | M140: 99.5 | N140: 56 | O140: 35 | P140: 91 | Q140: 60 | R140: 36 | S140: 96 | T140: 187 | U140: 93.5 | V140: 74.8 | W140: 60 | X140: 40 | Y140: 100 | Z140: 58 | AA140: 40 | AB140: 98 | AC140: 198 | AD140: 99 | AE140: 39.6 | AF140: 60 | AG140: 40 | AH140: 100 | AI140: 60 | AJ140: 40 | AK140: 100 | AL140: 200 | AM140: 100 | AN140: 40 | AO140: 59 | AP140: 8 | AQ140: 32 | AR140: 99 | AS140: 60 | AT140: 8 | AU140: 30 | AV140: 98 | AW140: 197 | AX140: 98.5 | AY140: 39.4 | AZ140: 293.3 | BA140: 100 | BB140: 100 | BC140: 200 | BD140: 100 | BE140: 20 | BF140: 100 | BG140: 100 | BH140: 200 | BI140: 100 | BJ140: 20 | BK140: 100 | BL140: 100 | BM140: 200 | BN140: 100 | BO140: 20 | BP140: 100 | BQ140: 100 | BR140: 200 | BS140: 100 | BT140: 20 | BU140: 373.5 | BV140: 59 | BW140: 33 | BX140: 92 | BY140: 60 | BZ140: 40 | CA140: 100 | CB140: 192 | CC140: 96 | CD140: 38.4 | CE140: 0 | CF140: 0 | CG140: 0 | CH140: 0 | CJ140: 0 | CK140: 0 | CL140: 0 | CM140: 0 | CN140: 0 | CO140: 0 | CP140: 0 | CQ140: 0 | CS140: 0 | CT140: 0 | CU140: 0 | CV140: 0 | CW140: ناجحــــة | CX140: ومنقولة للصف الخامس | DH140: =IFERROR(INDEX($B$7:$B$33,MATCH(0,INDEX(COUNTIF($DH$6:DH139,$B$7:$B$33),),0)),"") -> 
B141: 834 | C141: إيمان عماد حسن علي | D141: 2 | E141: 60 | F141: 39 | G141: 99 | H141: 60 | I141: 38 | J141: 98 | K141: 197 | L141: 98.5 | M141: 98.5 | N141: 60 | O141: 34 | P141: 94 | Q141: 56 | R141: 36 | S141: 92 | T141: 186 | U141: 93 | V141: 74.4 | W141: 59 | X141: 40 | Y141: 99 | Z141: 59 | AA141: 40 | AB141: 99 | AC141: 198 | AD141: 99 | AE141: 39.6 | AF141: 60 | AG141: 40 | AH141: 100 | AI141: 60 | AJ141: 40 | AK141: 100 | AL141: 200 | AM141: 100 | AN141: 40 | AO141: 58 | AP141: 8 | AQ141: 32 | AR141: 98 | AS141: 57 | AT141: 8 | AU141: 29 | AV141: 94 | AW141: 192 | AX141: 96 | AY141: 38.4 | AZ141: 290.9 | BA141: 100 | BB141: 100 | BC141: 200 | BD141: 100 | BE141: 20 | BF141: 100 | BG141: 100 | BH141: 200 | BI141: 100 | BJ141: 20 | BK141: 100 | BL141: 100 | BM141: 200 | BN141: 100 | BO141: 20 | BP141: 100 | BQ141: 100 | BR141: 200 | BS141: 100 | BT141: 20 | BU141: 371 | BV141: 57 | BW141: 31 | BX141: 88 | BY141: 58 | BZ141: 37 | CA141: 95 | CB141: 183 | CC141: 91.5 | CD141: 36.6 | CE141: 0 | CF141: 0 | CG141: 0 | CH141: 0 | CJ141: 0 | CK141: 0 | CL141: 0 | CM141: 0 | CN141: 0 | CO141: 0 | CP141: 0 | CQ141: 0 | CS141: 0 | CT141: 0 | CU141: 0 | CV141: 0 | CW141: ناجحــــة | CX141: ومنقولة للصف الخامس | DH141: =IFERROR(INDEX($B$7:$B$33,MATCH(0,INDEX(COUNTIF($DH$6:DH140,$B$7:$B$33),),0)),"") -> 
B142: 835 | C142: بسمله بدوي السيد العربي | D142: 2 | E142: 60 | F142: 40 | G142: 100 | H142: 58 | I142: 36 | J142: 94 | K142: 194 | L142: 97 | M142: 97 | N142: 53 | O142: 32 | P142: 85 | Q142: 53 | R142: 37 | S142: 90 | T142: 175 | U142: 87.5 | V142: 70 | W142: 57 | X142: 40 | Y142: 97 | Z142: 55 | AA142: 31 | AB142: 86 | AC142: 183 | AD142: 91.5 | AE142: 36.6 | AF142: 60 | AG142: 40 | AH142: 100 | AI142: 60 | AJ142: 40 | AK142: 100 | AL142: 200 | AM142: 100 | AN142: 40 | AO142: 58 | AP142: 8 | AQ142: 31 | AR142: 97 | AS142: 59 | AT142: 8 | AU142: 32 | AV142: 99 | AW142: 196 | AX142: 98 | AY142: 39.2 | AZ142: 282.8 | BA142: 100 | BB142: 100 | BC142: 200 | BD142: 100 | BE142: 20 | BF142: 100 | BG142: 100 | BH142: 200 | BI142: 100 | BJ142: 20 | BK142: 100 | BL142: 100 | BM142: 200 | BN142: 100 | BO142: 20 | BP142: 100 | BQ142: 100 | BR142: 200 | BS142: 100 | BT142: 20 | BU142: 363 | BV142: 55 | BW142: 34 | BX142: 89 | BY142: 60 | BZ142: 38 | CA142: 98 | CB142: 187 | CC142: 93.5 | CD142: 37.4 | CE142: 0 | CF142: 0 | CG142: 0 | CH142: 0 | CJ142: 0 | CK142: 0 | CL142: 0 | CM142: 0 | CN142: 0 | CO142: 0 | CP142: 0 | CQ142: 0 | CS142: 0 | CT142: 0 | CU142: 0 | CV142: 0 | CW142: ناجحــــة | CX142: ومنقولة للصف الخامس | DH142: =IFERROR(INDEX($B$7:$B$33,MATCH(0,INDEX(COUNTIF($DH$6:DH141,$B$7:$B$33),),0)),"") -> 
B143: 836 | C143: بسمله عبد الله عبد المجيد مصطفي | D143: 2 | E143: 60 | F143: 40 | G143: 100 | H143: 60 | I143: 39 | J143: 99 | K143: 199 | L143: 99.5 | M143: 99.5 | N143: 57 | O143: 36 | P143: 93 | Q143: 52 | R143: 34 | S143: 86 | T143: 179 | U143: 89.5 | V143: 71.6 | W143: 59 | X143: 36 | Y143: 95 | Z143: 57 | AA143: 37 | AB143: 94 | AC143: 189 | AD143: 94.5 | AE143: 37.8 | AF143: 60 | AG143: 40 | AH143: 100 | AI143: 60 | AJ143: 39 | AK143: 99 | AL143: 199 | AM143: 99.5 | AN143: 39.8 | AO143: 54 | AP143: 8 | AQ143: 32 | AR143: 94 | AS143: 57 | AT143: 8 | AU143: 29 | AV143: 94 | AW143: 188 | AX143: 94 | AY143: 37.6 | AZ143: 286.3 | BA143: 100 | BB143: 100 | BC143: 200 | BD143: 100 | BE143: 20 | BF143: 100 | BG143: 100 | BH143: 200 | BI143: 100 | BJ143: 20 | BK143: 100 | BL143: 100 | BM143: 200 | BN143: 100 | BO143: 20 | BP143: 100 | BQ143: 100 | BR143: 200 | BS143: 100 | BT143: 20 | BU143: 366.5 | BV143: 56 | BW143: 32 | BX143: 88 | BY143: 59 | BZ143: 31 | CA143: 90 | CB143: 178 | CC143: 89 | CD143: 35.6 | CE143: 0 | CF143: 0 | CG143: 0 | CH143: 0 | CJ143: 0 | CK143: 0 | CL143: 0 | CM143: 0 | CN143: 0 | CO143: 0 | CP143: 0 | CQ143: 0 | CS143: 0 | CT143: 0 | CU143: 0 | CV143: 0 | CW143: ناجحــــة | CX143: ومنقولة للصف الخامس | DH143: =IFERROR(INDEX($B$7:$B$33,MATCH(0,INDEX(COUNTIF($DH$6:DH142,$B$7:$B$33),),0)),"") -> 
B144: 837 | C144: بسنت أحمد بهاء أبوزيد | D144: 2 | E144: 58 | F144: 37 | G144: 95 | H144: 57 | I144: 36 | J144: 93 | K144: 188 | L144: 94 | M144: 94 | N144: 57 | O144: 15 | P144: 72 | Q144: 60 | R144: 36 | S144: 96 | T144: 168 | U144: 84 | V144: 67.2 | W144: 51 | X144: 24 | Y144: 75 | Z144: 50 | AA144: 35 | AB144: 85 | AC144: 160 | AD144: 80 | AE144: 32 | AF144: 58 | AG144: 40 | AH144: 98 | AI144: 60 | AJ144: 34 | AK144: 94 | AL144: 192 | AM144: 96 | AN144: 38.4 | AO144: 54 | AP144: 8 | AQ144: 23 | AR144: 85 | AS144: 56 | AT144: 8 | AU144: 29 | AV144: 93 | AW144: 178 | AX144: 89 | AY144: 35.6 | AZ144: 267.2 | BA144: 100 | BB144: 100 | BC144: 200 | BD144: 100 | BE144: 20 | BF144: 100 | BG144: 100 | BH144: 200 | BI144: 100 | BJ144: 20 | BK144: 100 | BL144: 100 | BM144: 200 | BN144: 100 | BO144: 20 | BP144: 100 | BQ144: 100 | BR144: 200 | BS144: 100 | BT144: 20 | BU144: 347.5 | BV144: 58 | BW144: 25 | BX144: 83 | BY144: 56 | BZ144: 24 | CA144: 80 | CB144: 163 | CC144: 81.5 | CD144: 32.6 | CE144: 0 | CF144: 0 | CG144: 0 | CH144: 0 | CJ144: 0 | CK144: 0 | CL144: 0 | CM144: 0 | CN144: 0 | CO144: 0 | CP144: 0 | CQ144: 0 | CS144: 0 | CT144: 0 | CU144: 0 | CV144: 0 | CW144: ناجحــــة | CX144: ومنقولة للصف الخامس | DH144: =IFERROR(INDEX($B$7:$B$33,MATCH(0,INDEX(COUNTIF($DH$6:DH143,$B$7:$B$33),),0)),"") -> 
B145: 838 | C145: تقي عايد شفيق أبو العز | D145: 2 | E145: 60 | F145: 40 | G145: 100 | H145: 60 | I145: 39 | J145: 99 | K145: 199 | L145: 99.5 | M145: 99.5 | N145: 58 | O145: 38 | P145: 96 | Q145: 56 | R145: 36 | S145: 92 | T145: 188 | U145: 94 | V145: 75.2 | W145: 60 | X145: 38 | Y145: 98 | Z145: 56 | AA145: 33 | AB145: 89 | AC145: 187 | AD145: 93.5 | AE145: 37.4 | AF145: 60 | AG145: 40 | AH145: 100 | AI145: 60 | AJ145: 39 | AK145: 99 | AL145: 199 | AM145: 99.5 | AN145: 39.8 | AO145: 57 | AP145: 8 | AQ145: 30 | AR145: 95 | AS145: 57 | AT145: 8 | AU145: 30 | AV145: 95 | AW145: 190 | AX145: 95 | AY145: 38 | AZ145: 289.9 | BA145: 100 | BB145: 100 | BC145: 200 | BD145: 100 | BE145: 20 | BF145: 100 | BG145: 100 | BH145: 200 | BI145: 100 | BJ145: 20 | BK145: 100 | BL145: 100 | BM145: 200 | BN145: 100 | BO145: 20 | BP145: 100 | BQ145: 100 | BR145: 200 | BS145: 100 | BT145: 20 | BU145: 370 | BV145: 57 | BW145: 30 | BX145: 87 | BY145: 55 | BZ145: 33 | CA145: 88 | CB145: 175 | CC145: 87.5 | CD145: 35 | CE145: 0 | CF145: 0 | CG145: 0 | CH145: 0 | CJ145: 0 | CK145: 0 | CL145: 0 | CM145: 0 | CN145: 0 | CO145: 0 | CP145: 0 | CQ145: 0 | CS145: 0 | CT145: 0 | CU145: 0 | CV145: 0 | CW145: ناجحــــة | CX145: ومنقولة للصف الخامس | DH145: =IFERROR(INDEX($B$7:$B$33,MATCH(0,INDEX(COUNTIF($DH$6:DH144,$B$7:$B$33),),0)),"") -> 
B146: 839 | C146: حبيبه حسن سمير حسن | D146: 2 | E146: 59 | F146: 40 | G146: 99 | H146: 58 | I146: 39 | J146: 97 | K146: 196 | L146: 98 | M146: 98 | N146: 57 | O146: 32 | P146: 89 | Q146: 53 | R146: 37 | S146: 90 | T146: 179 | U146: 89.5 | V146: 71.6 | W146: 54 | X146: 37 | Y146: 91 | Z146: 54 | AA146: 40 | AB146: 94 | AC146: 185 | AD146: 92.5 | AE146: 37 | AF146: 60 | AG146: 40 | AH146: 100 | AI146: 60 | AJ146: 39 | AK146: 99 | AL146: 199 | AM146: 99.5 | AN146: 39.8 | AO146: 56 | AP146: 8 | AQ146: 30 | AR146: 94 | AS146: 59 | AT146: 8 | AU146: 32 | AV146: 99 | AW146: 193 | AX146: 96.5 | AY146: 38.6 | AZ146: 285 | BA146: 100 | BB146: 100 | BC146: 200 | BD146: 100 | BE146: 20 | BF146: 100 | BG146: 100 | BH146: 200 | BI146: 100 | BJ146: 20 | BK146: 100 | BL146: 100 | BM146: 200 | BN146: 100 | BO146: 20 | BP146: 100 | BQ146: 100 | BR146: 200 | BS146: 100 | BT146: 20 | BU146: 365 | BV146: 60 | BW146: 28 | BX146: 88 | BY146: 58 | BZ146: 40 | CA146: 98 | CB146: 186 | CC146: 93 | CD146: 37.2 | CE146: 0 | CF146: 0 | CG146: 0 | CH146: 0 | CJ146: 0 | CK146: 0 | CL146: 0 | CM146: 0 | CN146: 0 | CO146: 0 | CP146: 0 | CQ146: 0 | CS146: 0 | CT146: 0 | CU146: 0 | CV146: 0 | CW146: ناجحــــة | CX146: ومنقولة للصف الخامس | DH146: =IFERROR(INDEX($B$7:$B$33,MATCH(0,INDEX(COUNTIF($DH$6:DH145,$B$7:$B$33),),0)),"") -> 
B147: 840 | C147: حبيبه محمود شوقى إبراهيم | D147: 2 | E147: 60 | F147: 38 | G147: 98 | H147: 60 | I147: 36 | J147: 96 | K147: 194 | L147: 97 | M147: 97 | N147: 56 | O147: 40 | P147: 96 | Q147: 58 | R147: 34 | S147: 92 | T147: 188 | U147: 94 | V147: 75.2 | W147: 54 | X147: 37 | Y147: 91 | Z147: 56 | AA147: 36 | AB147: 92 | AC147: 183 | AD147: 91.5 | AE147: 36.6 | AF147: 60 | AG147: 40 | AH147: 100 | AI147: 60 | AJ147: 39 | AK147: 99 | AL147: 199 | AM147: 99.5 | AN147: 39.8 | AO147: 55 | AP147: 8 | AQ147: 30 | AR147: 93 | AS147: 58 | AT147: 8 | AU147: 29 | AV147: 95 | AW147: 188 | AX147: 94 | AY147: 37.6 | AZ147: 286.2 | BA147: 100 | BB147: 100 | BC147: 200 | BD147: 100 | BE147: 20 | BF147: 100 | BG147: 100 | BH147: 200 | BI147: 100 | BJ147: 20 | BK147: 100 | BL147: 100 | BM147: 200 | BN147: 100 | BO147: 20 | BP147: 100 | BQ147: 100 | BR147: 200 | BS147: 100 | BT147: 20 | BU147: 366.5 | BV147: 60 | BW147: 28 | BX147: 88 | BY147: 59 | BZ147: 35 | CA147: 94 | CB147: 182 | CC147: 91 | CD147: 36.4 | CE147: 0 | CF147: 0 | CG147: 0 | CH147: 0 | CJ147: 0 | CK147: 0 | CL147: 0 | CM147: 0 | CN147: 0 | CO147: 0 | CP147: 0 | CQ147: 0 | CS147: 0 | CT147: 0 | CU147: 0 | CV147: 0 | CW147: ناجحــــة | CX147: ومنقولة للصف الخامس | DH147: =IFERROR(INDEX($B$7:$B$33,MATCH(0,INDEX(COUNTIF($DH$6:DH146,$B$7:$B$33),),0)),"") -> 
B148: 841 | C148: حبيبه وليد جوده عبد العزيز | D148: 2 | E148: 60 | F148: 39 | G148: 99 | H148: 60 | I148: 35 | J148: 95 | K148: 194 | L148: 97 | M148: 97 | N148: 52 | O148: 33 | P148: 85 | Q148: 56 | R148: 35 | S148: 91 | T148: 176 | U148: 88 | V148: 70.4 | W148: 54 | X148: 36 | Y148: 90 | Z148: 58 | AA148: 31 | AB148: 89 | AC148: 179 | AD148: 89.5 | AE148: 35.8 | AF148: 59 | AG148: 40 | AH148: 99 | AI148: 60 | AJ148: 39 | AK148: 99 | AL148: 198 | AM148: 99 | AN148: 39.6 | AO148: 56 | AP148: 8 | AQ148: 32 | AR148: 96 | AS148: 57 | AT148: 8 | AU148: 27 | AV148: 92 | AW148: 188 | AX148: 94 | AY148: 37.6 | AZ148: 280.4 | BA148: 100 | BB148: 100 | BC148: 200 | BD148: 100 | BE148: 20 | BF148: 100 | BG148: 100 | BH148: 200 | BI148: 100 | BJ148: 20 | BK148: 100 | BL148: 100 | BM148: 200 | BN148: 100 | BO148: 20 | BP148: 100 | BQ148: 100 | BR148: 200 | BS148: 100 | BT148: 20 | BU148: 360.5 | BV148: 49 | BW148: 32 | BX148: 81 | BY148: 59 | BZ148: 23 | CA148: 82 | CB148: 163 | CC148: 81.5 | CD148: 32.6 | CE148: 0 | CF148: 0 | CG148: 0 | CH148: 0 | CJ148: 0 | CK148: 0 | CL148: 0 | CM148: 0 | CN148: 0 | CO148: 0 | CP148: 0 | CQ148: 0 | CS148: 0 | CT148: 0 | CU148: 0 | CV148: 0 | CW148: ناجحــــة | CX148: ومنقولة للصف الخامس | DH148: =IFERROR(INDEX($B$7:$B$33,MATCH(0,INDEX(COUNTIF($DH$6:DH147,$B$7:$B$33),),0)),"") -> 
B149: 842 | C149: حنان محمد جودة راشد | D149: 2 | E149: 59 | F149: 39 | G149: 98 | H149: 59 | I149: 37 | J149: 96 | K149: 194 | L149: 97 | M149: 97 | N149: 53 | O149: 32 | P149: 85 | Q149: 47 | R149: 33 | S149: 80 | T149: 165 | U149: 82.5 | V149: 66 | W149: 51 | X149: 33 | Y149: 84 | Z149: 47 | AA149: 35 | AB149: 82 | AC149: 166 | AD149: 83 | AE149: 33.2 | AF149: 60 | AG149: 40 | AH149: 100 | AI149: 60 | AJ149: 40 | AK149: 100 | AL149: 200 | AM149: 100 | AN149: 40 | AO149: 55 | AP149: 8 | AQ149: 32 | AR149: 95 | AS149: 59 | AT149: 8 | AU149: 28 | AV149: 95 | AW149: 190 | AX149: 95 | AY149: 38 | AZ149: 274.2 | BA149: 100 | BB149: 100 | BC149: 200 | BD149: 100 | BE149: 20 | BF149: 100 | BG149: 100 | BH149: 200 | BI149: 100 | BJ149: 20 | BK149: 100 | BL149: 100 | BM149: 200 | BN149: 100 | BO149: 20 | BP149: 100 | BQ149: 100 | BR149: 200 | BS149: 100 | BT149: 20 | BU149: 354.5 | BV149: 57 | BW149: 30 | BX149: 87 | BY149: 60 | BZ149: 38 | CA149: 98 | CB149: 185 | CC149: 92.5 | CD149: 37 | CE149: 0 | CF149: 0 | CG149: 0 | CH149: 0 | CJ149: 0 | CK149: 0 | CL149: 0 | CM149: 0 | CN149: 0 | CO149: 0 | CP149: 0 | CQ149: 0 | CS149: 0 | CT149: 0 | CU149: 0 | CV149: 0 | CW149: ناجحــــة | CX149: ومنقولة للصف الخامس | DH149: =IFERROR(INDEX($B$7:$B$33,MATCH(0,INDEX(COUNTIF($DH$6:DH148,$B$7:$B$33),),0)),"") -> 
B150: 843 | C150: حنين السيد محمد السيد | D150: 2 | E150: 60 | F150: 39 | G150: 99 | H150: 60 | I150: 38 | J150: 98 | K150: 197 | L150: 98.5 | M150: 98.5 | N150: 60 | O150: 38 | P150: 98 | Q150: 60 | R150: 40 | S150: 100 | T150: 198 | U150: 99 | V150: 79.2 | W150: 60 | X150: 40 | Y150: 100 | Z150: 59 | AA150: 40 | AB150: 99 | AC150: 199 | AD150: 99.5 | AE150: 39.8 | AF150: 60 | AG150: 40 | AH150: 100 | AI150: 60 | AJ150: 39 | AK150: 99 | AL150: 199 | AM150: 99.5 | AN150: 39.8 | AO150: 60 | AP150: 8 | AQ150: 32 | AR150: 100 | AS150: 60 | AT150: 8 | AU150: 32 | AV150: 100 | AW150: 200 | AX150: 100 | AY150: 40 | AZ150: 297.3 | BA150: 100 | BB150: 100 | BC150: 200 | BD150: 100 | BE150: 20 | BF150: 100 | BG150: 100 | BH150: 200 | BI150: 100 | BJ150: 20 | BK150: 100 | BL150: 100 | BM150: 200 | BN150: 100 | BO150: 20 | BP150: 100 | BQ150: 100 | BR150: 200 | BS150: 100 | BT150: 20 | BU150: 377.5 | BV150: 60 | BW150: 37 | BX150: 97 | BY150: 59 | BZ150: 38 | CA150: 97 | CB150: 194 | CC150: 97 | CD150: 38.8 | CE150: 0 | CF150: 0 | CG150: 0 | CH150: 0 | CJ150: 0 | CK150: 0 | CL150: 0 | CM150: 0 | CN150: 0 | CO150: 0 | CP150: 0 | CQ150: 0 | CS150: 0 | CT150: 0 | CU150: 0 | CV150: 0 | CW150: ناجحــــة | CX150: ومنقولة للصف الخامس | DH150: =IFERROR(INDEX($B$7:$B$33,MATCH(0,INDEX(COUNTIF($DH$6:DH149,$B$7:$B$33),),0)),"") -> 
B151: 844 | C151: داليا السيد صابر محمد | D151: 2 | E151: 60 | F151: 39 | G151: 99 | H151: 60 | I151: 40 | J151: 100 | K151: 199 | L151: 99.5 | M151: 99.5 | N151: 59 | O151: 36 | P151: 95 | Q151: 58 | R151: 40 | S151: 98 | T151: 193 | U151: 96.5 | V151: 77.2 | W151: 60 | X151: 40 | Y151: 100 | Z151: 60 | AA151: 40 | AB151: 100 | AC151: 200 | AD151: 100 | AE151: 40 | AF151: 60 | AG151: 40 | AH151: 100 | AI151: 60 | AJ151: 40 | AK151: 100 | AL151: 200 | AM151: 100 | AN151: 40 | AO151: 60 | AP151: 8 | AQ151: 32 | AR151: 100 | AS151: 60 | AT151: 8 | AU151: 32 | AV151: 100 | AW151: 200 | AX151: 100 | AY151: 40 | AZ151: 296.7 | BA151: 100 | BB151: 100 | BC151: 200 | BD151: 100 | BE151: 20 | BF151: 100 | BG151: 100 | BH151: 200 | BI151: 100 | BJ151: 20 | BK151: 100 | BL151: 100 | BM151: 200 | BN151: 100 | BO151: 20 | BP151: 100 | BQ151: 100 | BR151: 200 | BS151: 100 | BT151: 20 | BU151: 377 | BV151: 55 | BW151: 38 | BX151: 93 | BY151: 60 | BZ151: 40 | CA151: 100 | CB151: 193 | CC151: 96.5 | CD151: 38.6 | CE151: 0 | CF151: 0 | CG151: 0 | CH151: 0 | CJ151: 0 | CK151: 0 | CL151: 0 | CM151: 0 | CN151: 0 | CO151: 0 | CP151: 0 | CQ151: 0 | CS151: 0 | CT151: 0 | CU151: 0 | CV151: 0 | CW151: ناجحــــة | CX151: ومنقولة للصف الخامس | DH151: =IFERROR(INDEX($B$7:$B$33,MATCH(0,INDEX(COUNTIF($DH$6:DH150,$B$7:$B$33),),0)),"") -> 
B152: 845 | C152: دعاء محمد السيد إبراهيم | D152: 2 | E152: 58 | F152: 34 | G152: 92 | H152: 53 | I152: 37 | J152: 90 | K152: 182 | L152: 91 | M152: 91 | N152: 50 | O152: 34 | P152: 84 | Q152: 57 | R152: 39 | S152: 96 | T152: 180 | U152: 90 | V152: 72 | W152: 47 | X152: 22 | Y152: 69 | Z152: 51 | AA152: 39 | AB152: 90 | AC152: 159 | AD152: 79.5 | AE152: 31.8 | AF152: 52 | AG152: 40 | AH152: 92 | AI152: 60 | AJ152: 37 | AK152: 97 | AL152: 189 | AM152: 94.5 | AN152: 37.8 | AO152: 55 | AP152: 8 | AQ152: 32 | AR152: 95 | AS152: 60 | AT152: 8 | AU152: 27 | AV152: 95 | AW152: 190 | AX152: 95 | AY152: 38 | AZ152: 270.6 | BA152: 100 | BB152: 100 | BC152: 200 | BD152: 100 | BE152: 20 | BF152: 100 | BG152: 100 | BH152: 200 | BI152: 100 | BJ152: 20 | BK152: 100 | BL152: 100 | BM152: 200 | BN152: 100 | BO152: 20 | BP152: 100 | BQ152: 100 | BR152: 200 | BS152: 100 | BT152: 20 | BU152: 351 | BV152: 52 | BW152: 38 | BX152: 90 | BY152: 55 | BZ152: 40 | CA152: 95 | CB152: 185 | CC152: 92.5 | CD152: 37 | CE152: 0 | CF152: 0 | CG152: 0 | CH152: 0 | CJ152: 0 | CK152: 0 | CL152: 0 | CM152: 0 | CN152: 0 | CO152: 0 | CP152: 0 | CQ152: 0 | CS152: 0 | CT152: 0 | CU152: 0 | CV152: 0 | CW152: ناجحــــة | CX152: ومنقولة للصف الخامس | DH152: =IFERROR(INDEX($B$7:$B$33,MATCH(0,INDEX(COUNTIF($DH$6:DH151,$B$7:$B$33),),0)),"") -> 
B153: 846 | C153: دعاء محمد فوزي أمين | D153: 2 | E153: 60 | F153: 39 | G153: 99 | H153: 60 | I153: 40 | J153: 100 | K153: 199 | L153: 99.5 | M153: 99.5 | N153: 60 | O153: 36 | P153: 96 | Q153: 60 | R153: 36 | S153: 96 | T153: 192 | U153: 96 | V153: 76.8 | W153: 57 | X153: 40 | Y153: 97 | Z153: 60 | AA153: 40 | AB153: 100 | AC153: 197 | AD153: 98.5 | AE153: 39.4 | AF153: 58 | AG153: 39 | AH153: 97 | AI153: 60 | AJ153: 37 | AK153: 97 | AL153: 194 | AM153: 97 | AN153: 38.8 | AO153: 55 | AP153: 8 | AQ153: 32 | AR153: 95 | AS153: 59 | AT153: 8 | AU153: 29 | AV153: 96 | AW153: 191 | AX153: 95.5 | AY153: 38.2 | AZ153: 292.7 | BA153: 100 | BB153: 100 | BC153: 200 | BD153: 100 | BE153: 20 | BF153: 100 | BG153: 100 | BH153: 200 | BI153: 100 | BJ153: 20 | BK153: 100 | BL153: 100 | BM153: 200 | BN153: 100 | BO153: 20 | BP153: 100 | BQ153: 100 | BR153: 200 | BS153: 100 | BT153: 20 | BU153: 373 | BV153: 58 | BW153: 40 | BX153: 98 | BY153: 60 | BZ153: 40 | CA153: 100 | CB153: 198 | CC153: 99 | CD153: 39.6 | CE153: 0 | CF153: 0 | CG153: 0 | CH153: 0 | CJ153: 0 | CK153: 0 | CL153: 0 | CM153: 0 | CN153: 0 | CO153: 0 | CP153: 0 | CQ153: 0 | CS153: 0 | CT153: 0 | CU153: 0 | CV153: 0 | CW153: ناجحــــة | CX153: ومنقولة للصف الخامس | DH153: =IFERROR(INDEX($B$7:$B$33,MATCH(0,INDEX(COUNTIF($DH$6:DH152,$B$7:$B$33),),0)),"") -> 
B154: 847 | C154: رؤى على جودة على | D154: 2 | E154: 41 | F154: 24 | G154: 65 | H154: 46 | I154: 13 | J154: 59 | K154: 124 | L154: 62 | M154: 62 | N154: 47 | O154: 33 | P154: 80 | Q154: 45 | R154: 13 | S154: 58 | T154: 138 | U154: 69 | V154: 55.2 | W154: 38 | X154: 18 | Y154: 56 | Z154: 40 | AA154: 22 | AB154: 62 | AC154: 118 | AD154: 59 | AE154: 23.6 | AF154: 47 | AG154: 27 | AH154: 74 | AI154: 54 | AJ154: 24 | AK154: 78 | AL154: 152 | AM154: 76 | AN154: 30.4 | AO154: 48 | AP154: 8 | AQ154: 19 | AR154: 75 | AS154: 45 | AT154: 8 | AU154: 13 | AV154: 66 | AW154: 141 | AX154: 70.5 | AY154: 28.2 | AZ154: 199.4 | BA154: 97 | BB154: 100 | BC154: 197 | BD154: 98.5 | BE154: 19.7 | BF154: 100 | BG154: 100 | BH154: 200 | BI154: 100 | BJ154: 20 | BK154: 100 | BL154: 100 | BM154: 200 | BN154: 100 | BO154: 20 | BP154: 100 | BQ154: 100 | BR154: 200 | BS154: 100 | BT154: 20 | BU154: 279.5 | BV154: 36 | BW154: 31 | BX154: 67 | BY154: 40 | BZ154: 14 | CA154: 54 | CB154: 121 | CC154: 60.5 | CD154: 24.2 | CE154: 0 | CF154: 0 | CG154: 0 | CH154: 0 | CJ154: 0 | CK154: 0 | CL154: 0 | CM154: 0 | CN154: 0 | CO154: 0 | CP154: 0 | CQ154: 0 | CS154: 0 | CT154: 0 | CU154: 0 | CV154: 0 | CW154: ناجحــــة | CX154: ومنقولة للصف الخامس | DH154: =IFERROR(INDEX($B$7:$B$33,MATCH(0,INDEX(COUNTIF($DH$6:DH153,$B$7:$B$33),),0)),"") -> 
B155: 848 | C155: رحمة حنفى محمد حنفى | D155: 2 | E155: 58 | F155: 40 | G155: 98 | H155: 60 | I155: 40 | J155: 100 | K155: 198 | L155: 99 | M155: 99 | N155: 58 | O155: 38 | P155: 96 | Q155: 52 | R155: 35 | S155: 87 | T155: 183 | U155: 91.5 | V155: 73.2 | W155: 57 | X155: 39 | Y155: 96 | Z155: 51 | AA155: 40 | AB155: 91 | AC155: 187 | AD155: 93.5 | AE155: 37.4 | AF155: 60 | AG155: 40 | AH155: 100 | AI155: 60 | AJ155: 40 | AK155: 100 | AL155: 200 | AM155: 100 | AN155: 40 | AO155: 59 | AP155: 8 | AQ155: 32 | AR155: 99 | AS155: 59 | AT155: 8 | AU155: 31 | AV155: 98 | AW155: 197 | AX155: 98.5 | AY155: 39.4 | AZ155: 289 | BA155: 100 | BB155: 100 | BC155: 200 | BD155: 100 | BE155: 20 | BF155: 100 | BG155: 100 | BH155: 200 | BI155: 100 | BJ155: 20 | BK155: 100 | BL155: 100 | BM155: 200 | BN155: 100 | BO155: 20 | BP155: 100 | BQ155: 100 | BR155: 200 | BS155: 100 | BT155: 20 | BU155: 369 | BV155: 60 | BW155: 38 | BX155: 98 | BY155: 60 | BZ155: 40 | CA155: 100 | CB155: 198 | CC155: 99 | CD155: 39.6 | CE155: 0 | CF155: 0 | CG155: 0 | CH155: 0 | CJ155: 0 | CK155: 0 | CL155: 0 | CM155: 0 | CN155: 0 | CO155: 0 | CP155: 0 | CQ155: 0 | CS155: 0 | CT155: 0 | CU155: 0 | CV155: 0 | CW155: ناجحــــة | CX155: ومنقولة للصف الخامس | DH155: =IFERROR(INDEX($B$7:$B$33,MATCH(0,INDEX(COUNTIF($DH$6:DH154,$B$7:$B$33),),0)),"") -> 
B156: 849 | C156: رنا طارق جودة وهدان | D156: 2 | E156: 60 | F156: 39 | G156: 99 | H156: 60 | I156: 40 | J156: 100 | K156: 199 | L156: 99.5 | M156: 99.5 | N156: 58 | O156: 40 | P156: 98 | Q156: 60 | R156: 40 | S156: 100 | T156: 198 | U156: 99 | V156: 79.2 | W156: 60 | X156: 40 | Y156: 100 | Z156: 60 | AA156: 40 | AB156: 100 | AC156: 200 | AD156: 100 | AE156: 40 | AF156: 60 | AG156: 40 | AH156: 100 | AI156: 60 | AJ156: 40 | AK156: 100 | AL156: 200 | AM156: 100 | AN156: 40 | AO156: 60 | AP156: 8 | AQ156: 32 | AR156: 100 | AS156: 60 | AT156: 8 | AU156: 31 | AV156: 99 | AW156: 199 | AX156: 99.5 | AY156: 39.8 | AZ156: 298.5 | BA156: 100 | BB156: 100 | BC156: 200 | BD156: 100 | BE156: 20 | BF156: 100 | BG156: 100 | BH156: 200 | BI156: 100 | BJ156: 20 | BK156: 100 | BL156: 100 | BM156: 200 | BN156: 100 | BO156: 20 | BP156: 100 | BQ156: 100 | BR156: 200 | BS156: 100 | BT156: 20 | BU156: 378.5 | BV156: 60 | BW156: 39 | BX156: 99 | BY156: 60 | BZ156: 40 | CA156: 100 | CB156: 199 | CC156: 99.5 | CD156: 39.8 | CE156: 0 | CF156: 0 | CG156: 0 | CH156: 0 | CJ156: 0 | CK156: 0 | CL156: 0 | CM156: 0 | CN156: 0 | CO156: 0 | CP156: 0 | CQ156: 0 | CS156: 0 | CT156: 0 | CU156: 0 | CV156: 0 | CW156: ناجحــــة | CX156: ومنقولة للصف الخامس | DH156: =IFERROR(INDEX($B$7:$B$33,MATCH(0,INDEX(COUNTIF($DH$6:DH155,$B$7:$B$33),),0)),"") -> 
B157: 850 | C157: رنا محمود عبد العزيز عطا الله | D157: 2 | E157: 58 | F157: 39 | G157: 97 | H157: 58 | I157: 38 | J157: 96 | K157: 193 | L157: 96.5 | M157: 96.5 | N157: 57 | O157: 39 | P157: 96 | Q157: 53 | R157: 36 | S157: 89 | T157: 185 | U157: 92.5 | V157: 74 | W157: 59 | X157: 39 | Y157: 98 | Z157: 52 | AA157: 39 | AB157: 91 | AC157: 189 | AD157: 94.5 | AE157: 37.8 | AF157: 59 | AG157: 40 | AH157: 99 | AI157: 60 | AJ157: 39 | AK157: 99 | AL157: 198 | AM157: 99 | AN157: 39.6 | AO157: 59 | AP157: 8 | AQ157: 32 | AR157: 99 | AS157: 60 | AT157: 8 | AU157: 31 | AV157: 99 | AW157: 198 | AX157: 99 | AY157: 39.6 | AZ157: 287.5 | BA157: 100 | BB157: 100 | BC157: 200 | BD157: 100 | BE157: 20 | BF157: 100 | BG157: 100 | BH157: 200 | BI157: 100 | BJ157: 20 | BK157: 100 | BL157: 100 | BM157: 200 | BN157: 100 | BO157: 20 | BP157: 100 | BQ157: 100 | BR157: 200 | BS157: 100 | BT157: 20 | BU157: 367.5 | BV157: 59 | BW157: 34 | BX157: 93 | BY157: 60 | BZ157: 37 | CA157: 97 | CB157: 190 | CC157: 95 | CD157: 38 | CE157: 0 | CF157: 0 | CG157: 0 | CH157: 0 | CJ157: 0 | CK157: 0 | CL157: 0 | CM157: 0 | CN157: 0 | CO157: 0 | CP157: 0 | CQ157: 0 | CS157: 0 | CT157: 0 | CU157: 0 | CV157: 0 | CW157: ناجحــــة | CX157: ومنقولة للصف الخامس | DH157: =IFERROR(INDEX($B$7:$B$33,MATCH(0,INDEX(COUNTIF($DH$6:DH156,$B$7:$B$33),),0)),"") -> 
B158: 851 | C158: روان خالد متولي عبد الغني | D158: 2 | E158: 60 | F158: 40 | G158: 100 | H158: 58 | I158: 40 | J158: 98 | K158: 198 | L158: 99 | M158: 99 | N158: 51 | O158: 26 | P158: 77 | Q158: 55 | R158: 36 | S158: 91 | T158: 168 | U158: 84 | V158: 67.2 | W158: 52 | X158: 38 | Y158: 90 | Z158: 52 | AA158: 39 | AB158: 91 | AC158: 181 | AD158: 90.5 | AE158: 36.2 | AF158: 59 | AG158: 40 | AH158: 99 | AI158: 60 | AJ158: 39 | AK158: 99 | AL158: 198 | AM158: 99 | AN158: 39.6 | AO158: 52 | AP158: 8 | AQ158: 30 | AR158: 90 | AS158: 58 | AT158: 8 | AU158: 31 | AV158: 97 | AW158: 187 | AX158: 93.5 | AY158: 37.4 | AZ158: 279.4 | BA158: 100 | BB158: 100 | BC158: 200 | BD158: 100 | BE158: 20 | BF158: 100 | BG158: 100 | BH158: 200 | BI158: 100 | BJ158: 20 | BK158: 100 | BL158: 100 | BM158: 200 | BN158: 100 | BO158: 20 | BP158: 100 | BQ158: 100 | BR158: 200 | BS158: 100 | BT158: 20 | BU158: 359.5 | BV158: 54 | BW158: 37 | BX158: 91 | BY158: 57 | BZ158: 38 | CA158: 95 | CB158: 186 | CC158: 93 | CD158: 37.2 | CE158: 0 | CF158: 0 | CG158: 0 | CH158: 0 | CJ158: 0 | CK158: 0 | CL158: 0 | CM158: 0 | CN158: 0 | CO158: 0 | CP158: 0 | CQ158: 0 | CS158: 0 | CT158: 0 | CU158: 0 | CV158: 0 | CW158: ناجحــــة | CX158: ومنقولة للصف الخامس | DH158: =IFERROR(INDEX($B$7:$B$33,MATCH(0,INDEX(COUNTIF($DH$6:DH157,$B$7:$B$33),),0)),"") -> 
B159: 852 | C159: روان محمد جمال على | D159: 2 | E159: 60 | F159: 40 | G159: 100 | H159: 59 | I159: 38 | J159: 97 | K159: 197 | L159: 98.5 | M159: 98.5 | N159: 59 | O159: 36 | P159: 95 | Q159: 58 | R159: 34 | S159: 92 | T159: 187 | U159: 93.5 | V159: 74.8 | W159: 58 | X159: 40 | Y159: 98 | Z159: 58 | AA159: 31 | AB159: 89 | AC159: 187 | AD159: 93.5 | AE159: 37.4 | AF159: 60 | AG159: 39 | AH159: 99 | AI159: 60 | AJ159: 39 | AK159: 99 | AL159: 198 | AM159: 99 | AN159: 39.6 | AO159: 60 | AP159: 8 | AQ159: 32 | AR159: 100 | AS159: 60 | AT159: 8 | AU159: 32 | AV159: 100 | AW159: 200 | AX159: 100 | AY159: 40 | AZ159: 290.3 | BA159: 100 | BB159: 100 | BC159: 200 | BD159: 100 | BE159: 20 | BF159: 100 | BG159: 100 | BH159: 200 | BI159: 100 | BJ159: 20 | BK159: 100 | BL159: 100 | BM159: 200 | BN159: 100 | BO159: 20 | BP159: 100 | BQ159: 100 | BR159: 200 | BS159: 100 | BT159: 20 | BU159: 370.5 | BV159: 58 | BW159: 32 | BX159: 90 | BY159: 60 | BZ159: 40 | CA159: 100 | CB159: 190 | CC159: 95 | CD159: 38 | CE159: 0 | CF159: 0 | CG159: 0 | CH159: 0 | CJ159: 0 | CK159: 0 | CL159: 0 | CM159: 0 | CN159: 0 | CO159: 0 | CP159: 0 | CQ159: 0 | CS159: 0 | CT159: 0 | CU159: 0 | CV159: 0 | CW159: ناجحــــة | CX159: ومنقولة للصف الخامس | DH159: =IFERROR(INDEX($B$7:$B$33,MATCH(0,INDEX(COUNTIF($DH$6:DH158,$B$7:$B$33),),0)),"") -> 
B160: 853 | C160: روان محمد فراج عبد الغني | D160: 2 | E160: 60 | F160: 40 | G160: 100 | H160: 60 | I160: 38 | J160: 98 | K160: 198 | L160: 99 | M160: 99 | N160: 60 | O160: 40 | P160: 100 | Q160: 60 | R160: 40 | S160: 100 | T160: 200 | U160: 100 | V160: 80 | W160: 60 | X160: 40 | Y160: 100 | Z160: 55 | AA160: 40 | AB160: 95 | AC160: 195 | AD160: 97.5 | AE160: 39 | AF160: 60 | AG160: 40 | AH160: 100 | AI160: 60 | AJ160: 40 | AK160: 100 | AL160: 200 | AM160: 100 | AN160: 40 | AO160: 60 | AP160: 8 | AQ160: 32 | AR160: 100 | AS160: 60 | AT160: 8 | AU160: 32 | AV160: 100 | AW160: 200 | AX160: 100 | AY160: 40 | AZ160: 298 | BA160: 100 | BB160: 100 | BC160: 200 | BD160: 100 | BE160: 20 | BF160: 100 | BG160: 100 | BH160: 200 | BI160: 100 | BJ160: 20 | BK160: 100 | BL160: 100 | BM160: 200 | BN160: 100 | BO160: 20 | BP160: 100 | BQ160: 100 | BR160: 200 | BS160: 100 | BT160: 20 | BU160: 378 | BV160: 59 | BW160: 34 | BX160: 93 | BY160: 60 | BZ160: 40 | CA160: 100 | CB160: 193 | CC160: 96.5 | CD160: 38.6 | CE160: 0 | CF160: 0 | CG160: 0 | CH160: 0 | CJ160: 0 | CK160: 0 | CL160: 0 | CM160: 0 | CN160: 0 | CO160: 0 | CP160: 0 | CQ160: 0 | CS160: 0 | CT160: 0 | CU160: 0 | CV160: 0 | CW160: ناجحــــة | CX160: ومنقولة للصف الخامس | DH160: =IFERROR(INDEX($B$7:$B$33,MATCH(0,INDEX(COUNTIF($DH$6:DH159,$B$7:$B$33),),0)),"") -> 
B161: 854 | C161: روضه رضا محمد السيد | D161: 2 | E161: 60 | F161: 40 | G161: 100 | H161: 60 | I161: 40 | J161: 100 | K161: 200 | L161: 100 | M161: 100 | N161: 59 | O161: 40 | P161: 99 | Q161: 57 | R161: 40 | S161: 97 | T161: 196 | U161: 98 | V161: 78.4 | W161: 59 | X161: 40 | Y161: 99 | Z161: 57 | AA161: 40 | AB161: 97 | AC161: 196 | AD161: 98 | AE161: 39.2 | AF161: 60 | AG161: 40 | AH161: 100 | AI161: 60 | AJ161: 40 | AK161: 100 | AL161: 200 | AM161: 100 | AN161: 40 | AO161: 60 | AP161: 8 | AQ161: 32 | AR161: 100 | AS161: 59 | AT161: 8 | AU161: 30 | AV161: 97 | AW161: 197 | AX161: 98.5 | AY161: 39.4 | AZ161: 297 | BA161: 100 | BB161: 100 | BC161: 200 | BD161: 100 | BE161: 20 | BF161: 100 | BG161: 100 | BH161: 200 | BI161: 100 | BJ161: 20 | BK161: 100 | BL161: 100 | BM161: 200 | BN161: 100 | BO161: 20 | BP161: 100 | BQ161: 100 | BR161: 200 | BS161: 100 | BT161: 20 | BU161: 377 | BV161: 60 | BW161: 36 | BX161: 96 | BY161: 60 | BZ161: 40 | CA161: 100 | CB161: 196 | CC161: 98 | CD161: 39.2 | CE161: 0 | CF161: 0 | CG161: 0 | CH161: 0 | CJ161: 0 | CK161: 0 | CL161: 0 | CM161: 0 | CN161: 0 | CO161: 0 | CP161: 0 | CQ161: 0 | CS161: 0 | CT161: 0 | CU161: 0 | CV161: 0 | CW161: ناجحــــة | CX161: ومنقولة للصف الخامس | DH161: =IFERROR(INDEX($B$7:$B$33,MATCH(0,INDEX(COUNTIF($DH$6:DH160,$B$7:$B$33),),0)),"") -> 
B162: 855 | C162: ريم إسلام محمود محمد | D162: 2 | E162: 58 | F162: 36 | G162: 94 | H162: 58 | I162: 38 | J162: 96 | K162: 190 | L162: 95 | M162: 95 | N162: 52 | O162: 37 | P162: 89 | Q162: 51 | R162: 36 | S162: 87 | T162: 176 | U162: 88 | V162: 70.4 | W162: 55 | X162: 37 | Y162: 92 | Z162: 57 | AA162: 39 | AB162: 96 | AC162: 188 | AD162: 94 | AE162: 37.6 | AF162: 59 | AG162: 40 | AH162: 99 | AI162: 60 | AJ162: 38 | AK162: 98 | AL162: 197 | AM162: 98.5 | AN162: 39.4 | AO162: 56 | AP162: 8 | AQ162: 32 | AR162: 96 | AS162: 58 | AT162: 8 | AU162: 32 | AV162: 98 | AW162: 194 | AX162: 97 | AY162: 38.8 | AZ162: 281.2 | BA162: 100 | BB162: 100 | BC162: 200 | BD162: 100 | BE162: 20 | BF162: 100 | BG162: 100 | BH162: 200 | BI162: 100 | BJ162: 20 | BK162: 100 | BL162: 100 | BM162: 200 | BN162: 100 | BO162: 20 | BP162: 100 | BQ162: 100 | BR162: 200 | BS162: 100 | BT162: 20 | BU162: 361.5 | BV162: 58 | BW162: 32 | BX162: 90 | BY162: 58 | BZ162: 36 | CA162: 94 | CB162: 184 | CC162: 92 | CD162: 36.8 | CE162: 0 | CF162: 0 | CG162: 0 | CH162: 0 | CJ162: 0 | CK162: 0 | CL162: 0 | CM162: 0 | CN162: 0 | CO162: 0 | CP162: 0 | CQ162: 0 | CS162: 0 | CT162: 0 | CU162: 0 | CV162: 0 | CW162: ناجحــــة | CX162: ومنقولة للصف الخامس | DH162: =IFERROR(INDEX($B$7:$B$33,MATCH(0,INDEX(COUNTIF($DH$6:DH161,$B$7:$B$33),),0)),"") -> 
B163: 856 | C163: ريم بهاء الدين الخضري حسن | D163: 2 | E163: 60 | F163: 40 | G163: 100 | H163: 60 | I163: 40 | J163: 100 | K163: 200 | L163: 100 | M163: 100 | N163: 59 | O163: 39 | P163: 98 | Q163: 60 | R163: 40 | S163: 100 | T163: 198 | U163: 99 | V163: 79.2 | W163: 60 | X163: 40 | Y163: 100 | Z163: 60 | AA163: 40 | AB163: 100 | AC163: 200 | AD163: 100 | AE163: 40 | AF163: 60 | AG163: 40 | AH163: 100 | AI163: 60 | AJ163: 39 | AK163: 99 | AL163: 199 | AM163: 99.5 | AN163: 39.8 | AO163: 60 | AP163: 8 | AQ163: 32 | AR163: 100 | AS163: 60 | AT163: 8 | AU163: 32 | AV163: 100 | AW163: 200 | AX163: 100 | AY163: 40 | AZ163: 299 | BA163: 100 | BB163: 100 | BC163: 200 | BD163: 100 | BE163: 20 | BF163: 100 | BG163: 100 | BH163: 200 | BI163: 100 | BJ163: 20 | BK163: 100 | BL163: 100 | BM163: 200 | BN163: 100 | BO163: 20 | BP163: 100 | BQ163: 100 | BR163: 200 | BS163: 100 | BT163: 20 | BU163: 379 | BV163: 60 | BW163: 35 | BX163: 95 | BY163: 60 | BZ163: 40 | CA163: 100 | CB163: 195 | CC163: 97.5 | CD163: 39 | CE163: 0 | CF163: 0 | CG163: 0 | CH163: 0 | CJ163: 0 | CK163: 0 | CL163: 0 | CM163: 0 | CN163: 0 | CO163: 0 | CP163: 0 | CQ163: 0 | CS163: 0 | CT163: 0 | CU163: 0 | CV163: 0 | CW163: ناجحــــة | CX163: ومنقولة للصف الخامس | DH163: =IFERROR(INDEX($B$7:$B$33,MATCH(0,INDEX(COUNTIF($DH$6:DH162,$B$7:$B$33),),0)),"") -> 
B164: 857 | C164: ريهام محمود عبد العزيز محمد | D164: 2 | E164: 59 | F164: 37 | G164: 96 | H164: 56 | I164: 31 | J164: 87 | K164: 183 | L164: 91.5 | M164: 91.5 | N164: 52 | O164: 29 | P164: 81 | Q164: 57 | R164: 36 | S164: 93 | T164: 174 | U164: 87 | V164: 69.6 | W164: 49 | X164: 29 | Y164: 78 | Z164: 49 | AA164: 31 | AB164: 80 | AC164: 158 | AD164: 79 | AE164: 31.6 | AF164: 53 | AG164: 36 | AH164: 89 | AI164: 60 | AJ164: 28 | AK164: 88 | AL164: 177 | AM164: 88.5 | AN164: 35.4 | AO164: 51 | AP164: 8 | AQ164: 29 | AR164: 88 | AS164: 58 | AT164: 8 | AU164: 27 | AV164: 93 | AW164: 181 | AX164: 90.5 | AY164: 36.2 | AZ164: 264.3 | BA164: 100 | BB164: 100 | BC164: 200 | BD164: 100 | BE164: 20 | BF164: 100 | BG164: 100 | BH164: 200 | BI164: 100 | BJ164: 20 | BK164: 100 | BL164: 100 | BM164: 200 | BN164: 100 | BO164: 20 | BP164: 100 | BQ164: 100 | BR164: 200 | BS164: 100 | BT164: 20 | BU164: 344.5 | BV164: 53 | BW164: 33 | BX164: 86 | BY164: 60 | BZ164: 38 | CA164: 98 | CB164: 184 | CC164: 92 | CD164: 36.8 | CE164: 0 | CF164: 0 | CG164: 0 | CH164: 0 | CJ164: 0 | CK164: 0 | CL164: 0 | CM164: 0 | CN164: 0 | CO164: 0 | CP164: 0 | CQ164: 0 | CS164: 0 | CT164: 0 | CU164: 0 | CV164: 0 | CW164: ناجحــــة | CX164: ومنقولة للصف الخامس | DH164: =IFERROR(INDEX($B$7:$B$33,MATCH(0,INDEX(COUNTIF($DH$6:DH163,$B$7:$B$33),),0)),"") -> 
B165: 858 | C165: زينب جمال أحمد عبد الرحمن | D165: 2 | E165: 60 | F165: 40 | G165: 100 | H165: 60 | I165: 40 | J165: 100 | K165: 200 | L165: 100 | M165: 100 | N165: 58 | O165: 38 | P165: 96 | Q165: 56 | R165: 40 | S165: 96 | T165: 192 | U165: 96 | V165: 76.8 | W165: 59 | X165: 40 | Y165: 99 | Z165: 57 | AA165: 39 | AB165: 96 | AC165: 195 | AD165: 97.5 | AE165: 39 | AF165: 60 | AG165: 40 | AH165: 100 | AI165: 60 | AJ165: 40 | AK165: 100 | AL165: 200 | AM165: 100 | AN165: 40 | AO165: 60 | AP165: 8 | AQ165: 32 | AR165: 100 | AS165: 60 | AT165: 8 | AU165: 32 | AV165: 100 | AW165: 200 | AX165: 100 | AY165: 40 | AZ165: 295.8 | BA165: 100 | BB165: 100 | BC165: 200 | BD165: 100 | BE165: 20 | BF165: 100 | BG165: 100 | BH165: 200 | BI165: 100 | BJ165: 20 | BK165: 100 | BL165: 100 | BM165: 200 | BN165: 100 | BO165: 20 | BP165: 100 | BQ165: 100 | BR165: 200 | BS165: 100 | BT165: 20 | BU165: 376 | BV165: 60 | BW165: 32 | BX165: 92 | BY165: 60 | BZ165: 40 | CA165: 100 | CB165: 192 | CC165: 96 | CD165: 38.4 | CE165: 0 | CF165: 0 | CG165: 0 | CH165: 0 | CJ165: 0 | CK165: 0 | CL165: 0 | CM165: 0 | CN165: 0 | CO165: 0 | CP165: 0 | CQ165: 0 | CS165: 0 | CT165: 0 | CU165: 0 | CV165: 0 | CW165: ناجحــــة | CX165: ومنقولة للصف الخامس | DH165: =IFERROR(INDEX($B$7:$B$33,MATCH(0,INDEX(COUNTIF($DH$6:DH164,$B$7:$B$33),),0)),"") -> 
B166: 859 | C166: ساره مأمون جودة علي | D166: 2 | E166: 47 | F166: 36 | G166: 83 | H166: 52 | I166: 34 | J166: 86 | K166: 169 | L166: 84.5 | M166: 84.5 | N166: 51 | O166: 21 | P166: 72 | Q166: 46 | R166: 32 | S166: 78 | T166: 150 | U166: 75 | V166: 60 | W166: 38 | X166: 23 | Y166: 61 | Z166: 37 | AA166: 16 | AB166: 53 | AC166: 114 | AD166: 57 | AE166: 22.8 | AF166: 47 | AG166: 17 | AH166: 64 | AI166: 53 | AJ166: 22 | AK166: 75 | AL166: 139 | AM166: 69.5 | AN166: 27.8 | AO166: 48 | AP166: 5 | AQ166: 13 | AR166: 66 | AS166: 46 | AT166: 8 | AU166: 11 | AV166: 65 | AW166: 131 | AX166: 65.5 | AY166: 26.2 | AZ166: 221.3 | BA166: 100 | BB166: 100 | BC166: 200 | BD166: 100 | BE166: 20 | BF166: 100 | BG166: 100 | BH166: 200 | BI166: 100 | BJ166: 20 | BK166: 100 | BL166: 100 | BM166: 200 | BN166: 100 | BO166: 20 | BP166: 100 | BQ166: 100 | BR166: 200 | BS166: 100 | BT166: 20 | BU166: 301.5 | BV166: 41 | BW166: 18 | BX166: 59 | BY166: 44 | BZ166: 19 | CA166: 63 | CB166: 122 | CC166: 61 | CD166: 24.4 | CE166: 0 | CF166: 0 | CG166: 0 | CH166: 0 | CJ166: 0 | CK166: 0 | CL166: 0 | CM166: 0 | CN166: 0 | CO166: 0 | CP166: 0 | CQ166: 0 | CS166: 0 | CT166: 0 | CU166: 0 | CV166: 0 | CW166: ناجحــــة | CX166: ومنقولة للصف الخامس | DH166: =IFERROR(INDEX($B$7:$B$33,MATCH(0,INDEX(COUNTIF($DH$6:DH165,$B$7:$B$33),),0)),"") -> 
B167: 860 | C167: سمر البديوي عبد الله منصور | D167: 2 | E167: 60 | F167: 40 | G167: 100 | H167: 60 | I167: 40 | J167: 100 | K167: 200 | L167: 100 | M167: 100 | N167: 59 | O167: 36 | P167: 95 | Q167: 57 | R167: 39 | S167: 96 | T167: 191 | U167: 95.5 | V167: 76.4 | W167: 60 | X167: 40 | Y167: 100 | Z167: 60 | AA167: 39 | AB167: 99 | AC167: 199 | AD167: 99.5 | AE167: 39.8 | AF167: 60 | AG167: 40 | AH167: 100 | AI167: 60 | AJ167: 40 | AK167: 100 | AL167: 200 | AM167: 100 | AN167: 40 | AO167: 60 | AP167: 8 | AQ167: 31 | AR167: 99 | AS167: 60 | AT167: 8 | AU167: 27 | AV167: 95 | AW167: 194 | AX167: 97 | AY167: 38.8 | AZ167: 295 | BA167: 100 | BB167: 100 | BC167: 200 | BD167: 100 | BE167: 20 | BF167: 100 | BG167: 100 | BH167: 200 | BI167: 100 | BJ167: 20 | BK167: 100 | BL167: 100 | BM167: 200 | BN167: 100 | BO167: 20 | BP167: 100 | BQ167: 100 | BR167: 200 | BS167: 100 | BT167: 20 | BU167: 375 | BV167: 60 | BW167: 30 | BX167: 90 | BY167: 60 | BZ167: 39 | CA167: 99 | CB167: 189 | CC167: 94.5 | CD167: 37.8 | CE167: 0 | CF167: 0 | CG167: 0 | CH167: 0 | CJ167: 0 | CK167: 0 | CL167: 0 | CM167: 0 | CN167: 0 | CO167: 0 | CP167: 0 | CQ167: 0 | CS167: 0 | CT167: 0 | CU167: 0 | CV167: 0 | CW167: ناجحــــة | CX167: ومنقولة للصف الخامس | DH167: =IFERROR(INDEX($B$7:$B$33,MATCH(0,INDEX(COUNTIF($DH$6:DH166,$B$7:$B$33),),0)),"") -> 
B168: 861 | C168: سندس عابر السيد محمد | D168: 2 | E168: 55 | F168: 34 | G168: 89 | H168: 51 | I168: 30 | J168: 81 | K168: 170 | L168: 85 | M168: 85 | N168: 48 | O168: 21 | P168: 69 | Q168: 49 | R168: 17 | S168: 66 | T168: 135 | U168: 67.5 | V168: 54 | W168: 44 | X168: 22 | Y168: 66 | Z168: 35 | AA168: 14 | AB168: 49 | AC168: 115 | AD168: 57.5 | AE168: 23 | AF168: 56 | AG168: 34 | AH168: 90 | AI168: 58 | AJ168: 29 | AK168: 87 | AL168: 177 | AM168: 88.5 | AN168: 35.4 | AO168: 50 | AP168: 8 | AQ168: 24 | AR168: 82 | AS168: 56 | AT168: 8 | AU168: 15 | AV168: 79 | AW168: 161 | AX168: 80.5 | AY168: 32.2 | AZ168: 229.6 | BA168: 100 | BB168: 100 | BC168: 200 | BD168: 100 | BE168: 20 | BF168: 100 | BG168: 100 | BH168: 200 | BI168: 100 | BJ168: 20 | BK168: 100 | BL168: 100 | BM168: 200 | BN168: 100 | BO168: 20 | BP168: 100 | BQ168: 100 | BR168: 200 | BS168: 100 | BT168: 20 | BU168: 310 | BV168: 41 | BW168: 21 | BX168: 62 | BY168: 50 | BZ168: 23 | CA168: 73 | CB168: 135 | CC168: 67.5 | CD168: 27 | CE168: 0 | CF168: 0 | CG168: 0 | CH168: 0 | CJ168: 0 | CK168: 0 | CL168: 0 | CM168: 0 | CN168: 0 | CO168: 0 | CP168: 0 | CQ168: 0 | CS168: 0 | CT168: 0 | CU168: 0 | CV168: 0 | CW168: ناجحــــة | CX168: ومنقولة للصف الخامس | DH168: =IFERROR(INDEX($B$7:$B$33,MATCH(0,INDEX(COUNTIF($DH$6:DH167,$B$7:$B$33),),0)),"") -> 
B169: 862 | C169: سهام منصور عبد الله منصور | D169: 2 | E169: 60 | F169: 39 | G169: 99 | H169: 60 | I169: 39 | J169: 99 | K169: 198 | L169: 99 | M169: 99 | N169: 56 | O169: 37 | P169: 93 | Q169: 59 | R169: 38 | S169: 97 | T169: 190 | U169: 95 | V169: 76 | W169: 59 | X169: 40 | Y169: 99 | Z169: 58 | AA169: 40 | AB169: 98 | AC169: 197 | AD169: 98.5 | AE169: 39.4 | AF169: 60 | AG169: 40 | AH169: 100 | AI169: 60 | AJ169: 38 | AK169: 98 | AL169: 198 | AM169: 99 | AN169: 39.6 | AO169: 60 | AP169: 8 | AQ169: 31 | AR169: 99 | AS169: 60 | AT169: 8 | AU169: 32 | AV169: 100 | AW169: 199 | AX169: 99.5 | AY169: 39.8 | AZ169: 293.8 | BA169: 100 | BB169: 100 | BC169: 200 | BD169: 100 | BE169: 20 | BF169: 100 | BG169: 100 | BH169: 200 | BI169: 100 | BJ169: 20 | BK169: 100 | BL169: 100 | BM169: 200 | BN169: 100 | BO169: 20 | BP169: 100 | BQ169: 100 | BR169: 200 | BS169: 100 | BT169: 20 | BU169: 374 | BV169: 60 | BW169: 29 | BX169: 89 | BY169: 60 | BZ169: 40 | CA169: 100 | CB169: 189 | CC169: 94.5 | CD169: 37.8 | CE169: 0 | CF169: 0 | CG169: 0 | CH169: 0 | CJ169: 0 | CK169: 0 | CL169: 0 | CM169: 0 | CN169: 0 | CO169: 0 | CP169: 0 | CQ169: 0 | CS169: 0 | CT169: 0 | CU169: 0 | CV169: 0 | CW169: ناجحــــة | CX169: ومنقولة للصف الخامس | DH169: =IFERROR(INDEX($B$7:$B$33,MATCH(0,INDEX(COUNTIF($DH$6:DH168,$B$7:$B$33),),0)),"") -> 
B170: 863 | C170: سهيله مسعد فتحي متولي | D170: 2 | E170: 59 | F170: 34 | G170: 93 | H170: 55 | I170: 31 | J170: 86 | K170: 179 | L170: 89.5 | M170: 89.5 | N170: 54 | O170: 31 | P170: 85 | Q170: 54 | R170: 38 | S170: 92 | T170: 177 | U170: 88.5 | V170: 70.8 | W170: 57 | X170: 35 | Y170: 92 | Z170: 48 | AA170: 19 | AB170: 67 | AC170: 159 | AD170: 79.5 | AE170: 31.8 | AF170: 59 | AG170: 40 | AH170: 99 | AI170: 58 | AJ170: 35 | AK170: 93 | AL170: 192 | AM170: 96 | AN170: 38.4 | AO170: 57 | AP170: 8 | AQ170: 30 | AR170: 95 | AS170: 58 | AT170: 8 | AU170: 12 | AV170: 78 | AW170: 173 | AX170: 86.5 | AY170: 34.6 | AZ170: 265.1 | BA170: 100 | BB170: 100 | BC170: 200 | BD170: 100 | BE170: 20 | BF170: 100 | BG170: 100 | BH170: 200 | BI170: 100 | BJ170: 20 | BK170: 100 | BL170: 100 | BM170: 200 | BN170: 100 | BO170: 20 | BP170: 100 | BQ170: 100 | BR170: 200 | BS170: 100 | BT170: 20 | BU170: 345.5 | BV170: 55 | BW170: 24 | BX170: 79 | BY170: 49 | BZ170: 24 | CA170: 73 | CB170: 152 | CC170: 76 | CD170: 30.4 | CE170: 0 | CF170: 0 | CG170: 0 | CH170: 0 | CJ170: 0 | CK170: 0 | CL170: 0 | CM170: 0 | CN170: 0 | CO170: 0 | CP170: 0 | CQ170: 0 | CS170: 0 | CT170: 0 | CU170: 0 | CV170: 0 | CW170: ناجحــــة | CX170: ومنقولة للصف الخامس | DH170: =IFERROR(INDEX($B$7:$B$33,MATCH(0,INDEX(COUNTIF($DH$6:DH169,$B$7:$B$33),),0)),"") -> 
B171: 864 | C171: شدوة هشام أحمد عبد العال | D171: 2 | E171: 60 | F171: 40 | G171: 100 | H171: 60 | I171: 40 | J171: 100 | K171: 200 | L171: 100 | M171: 100 | N171: 59 | O171: 40 | P171: 99 | Q171: 60 | R171: 40 | S171: 100 | T171: 199 | U171: 99.5 | V171: 79.6 | W171: 60 | X171: 40 | Y171: 100 | Z171: 60 | AA171: 40 | AB171: 100 | AC171: 200 | AD171: 100 | AE171: 40 | AF171: 60 | AG171: 40 | AH171: 100 | AI171: 60 | AJ171: 40 | AK171: 100 | AL171: 200 | AM171: 100 | AN171: 40 | AO171: 60 | AP171: 8 | AQ171: 32 | AR171: 100 | AS171: 60 | AT171: 8 | AU171: 32 | AV171: 100 | AW171: 200 | AX171: 100 | AY171: 40 | AZ171: 299.6 | BA171: 100 | BB171: 100 | BC171: 200 | BD171: 100 | BE171: 20 | BF171: 100 | BG171: 100 | BH171: 200 | BI171: 100 | BJ171: 20 | BK171: 100 | BL171: 100 | BM171: 200 | BN171: 100 | BO171: 20 | BP171: 100 | BQ171: 100 | BR171: 200 | BS171: 100 | BT171: 20 | BU171: 380 | BV171: 60 | BW171: 38 | BX171: 98 | BY171: 60 | BZ171: 40 | CA171: 100 | CB171: 198 | CC171: 99 | CD171: 39.6 | CE171: 0 | CF171: 0 | CG171: 0 | CH171: 0 | CJ171: 0 | CK171: 0 | CL171: 0 | CM171: 0 | CN171: 0 | CO171: 0 | CP171: 0 | CQ171: 0 | CS171: 0 | CT171: 0 | CU171: 0 | CV171: 0 | CW171: ناجحــــة | CX171: ومنقولة للصف الخامس | DH171: =IFERROR(INDEX($B$7:$B$33,MATCH(0,INDEX(COUNTIF($DH$6:DH170,$B$7:$B$33),),0)),"") -> 
B172: 865 | C172: شذا وجدي محمد أبوزيد | D172: 2 | E172: 54 | F172: 39 | G172: 93 | H172: 51 | I172: 32 | J172: 83 | K172: 176 | L172: 88 | M172: 88 | N172: 53 | O172: 20 | P172: 73 | Q172: 54 | R172: 18 | S172: 72 | T172: 145 | U172: 72.5 | V172: 58 | W172: 49 | X172: 40 | Y172: 89 | Z172: 52 | AA172: 32 | AB172: 84 | AC172: 173 | AD172: 86.5 | AE172: 34.6 | AF172: 57 | AG172: 40 | AH172: 97 | AI172: 60 | AJ172: 38 | AK172: 98 | AL172: 195 | AM172: 97.5 | AN172: 39 | AO172: 53 | AP172: 8 | AQ172: 32 | AR172: 93 | AS172: 56 | AT172: 8 | AU172: 26 | AV172: 90 | AW172: 183 | AX172: 91.5 | AY172: 36.6 | AZ172: 256.2 | BA172: 100 | BB172: 100 | BC172: 200 | BD172: 100 | BE172: 20 | BF172: 100 | BG172: 100 | BH172: 200 | BI172: 100 | BJ172: 20 | BK172: 100 | BL172: 100 | BM172: 200 | BN172: 100 | BO172: 20 | BP172: 100 | BQ172: 100 | BR172: 200 | BS172: 100 | BT172: 20 | BU172: 336.5 | BV172: 59 | BW172: 18 | BX172: 77 | BY172: 55 | BZ172: 36 | CA172: 91 | CB172: 168 | CC172: 84 | CD172: 33.6 | CE172: 0 | CF172: 0 | CG172: 0 | CH172: 0 | CJ172: 0 | CK172: 0 | CL172: 0 | CM172: 0 | CN172: 0 | CO172: 0 | CP172: 0 | CQ172: 0 | CS172: 0 | CT172: 0 | CU172: 0 | CV172: 0 | CW172: ناجحــــة | CX172: ومنقولة للصف الخامس | DH172: =IFERROR(INDEX($B$7:$B$33,MATCH(0,INDEX(COUNTIF($DH$6:DH171,$B$7:$B$33),),0)),"") -> 
B173: 866 | C173: شروق جودة سعد أبو المجد | D173: 2 | E173: 60 | F173: 36 | G173: 96 | H173: 58 | I173: 40 | J173: 98 | K173: 194 | L173: 97 | M173: 97 | N173: 58 | O173: 40 | P173: 98 | Q173: 56 | R173: 36 | S173: 92 | T173: 190 | U173: 95 | V173: 76 | W173: 54 | X173: 40 | Y173: 94 | Z173: 54 | AA173: 38 | AB173: 92 | AC173: 186 | AD173: 93 | AE173: 37.2 | AF173: 60 | AG173: 40 | AH173: 100 | AI173: 60 | AJ173: 39 | AK173: 99 | AL173: 199 | AM173: 99.5 | AN173: 39.8 | AO173: 58 | AP173: 8 | AQ173: 32 | AR173: 98 | AS173: 59 | AT173: 8 | AU173: 31 | AV173: 98 | AW173: 196 | AX173: 98 | AY173: 39.2 | AZ173: 289.2 | BA173: 100 | BB173: 100 | BC173: 200 | BD173: 100 | BE173: 20 | BF173: 100 | BG173: 100 | BH173: 200 | BI173: 100 | BJ173: 20 | BK173: 100 | BL173: 100 | BM173: 200 | BN173: 100 | BO173: 20 | BP173: 100 | BQ173: 100 | BR173: 200 | BS173: 100 | BT173: 20 | BU173: 369.5 | BV173: 55 | BW173: 20 | BX173: 75 | BY173: 53 | BZ173: 30 | CA173: 83 | CB173: 158 | CC173: 79 | CD173: 31.6 | CE173: 0 | CF173: 0 | CG173: 0 | CH173: 0 | CJ173: 0 | CK173: 0 | CL173: 0 | CM173: 0 | CN173: 0 | CO173: 0 | CP173: 0 | CQ173: 0 | CS173: 0 | CT173: 0 | CU173: 0 | CV173: 0 | CW173: ناجحــــة | CX173: ومنقولة للصف الخامس | DH173: =IFERROR(INDEX($B$7:$B$33,MATCH(0,INDEX(COUNTIF($DH$6:DH172,$B$7:$B$33),),0)),"") -> 
B174: 867 | C174: شهد سعيد عبد العزيز سعد | D174: 2 | E174: 56 | F174: 39 | G174: 95 | H174: 56 | I174: 39 | J174: 95 | K174: 190 | L174: 95 | M174: 95 | N174: 52 | O174: 22 | P174: 74 | Q174: 52 | R174: 28 | S174: 80 | T174: 154 | U174: 77 | V174: 61.6 | W174: 52 | X174: 31 | Y174: 83 | Z174: 50 | AA174: 39 | AB174: 89 | AC174: 172 | AD174: 86 | AE174: 34.4 | AF174: 58 | AG174: 38 | AH174: 96 | AI174: 58 | AJ174: 38 | AK174: 96 | AL174: 192 | AM174: 96 | AN174: 38.4 | AO174: 58 | AP174: 8 | AQ174: 32 | AR174: 98 | AS174: 57 | AT174: 8 | AU174: 31 | AV174: 96 | AW174: 194 | AX174: 97 | AY174: 38.8 | AZ174: 268.2 | BA174: 100 | BB174: 100 | BC174: 200 | BD174: 100 | BE174: 20 | BF174: 100 | BG174: 100 | BH174: 200 | BI174: 100 | BJ174: 20 | BK174: 100 | BL174: 100 | BM174: 200 | BN174: 100 | BO174: 20 | BP174: 100 | BQ174: 100 | BR174: 200 | BS174: 100 | BT174: 20 | BU174: 348.5 | BV174: 56 | BW174: 30 | BX174: 86 | BY174: 58 | BZ174: 36 | CA174: 94 | CB174: 180 | CC174: 90 | CD174: 36 | CE174: 0 | CF174: 0 | CG174: 0 | CH174: 0 | CJ174: 0 | CK174: 0 | CL174: 0 | CM174: 0 | CN174: 0 | CO174: 0 | CP174: 0 | CQ174: 0 | CS174: 0 | CT174: 0 | CU174: 0 | CV174: 0 | CW174: ناجحــــة | CX174: ومنقولة للصف الخامس | DH174: =IFERROR(INDEX($B$7:$B$33,MATCH(0,INDEX(COUNTIF($DH$6:DH173,$B$7:$B$33),),0)),"") -> 
B175: 868 | C175: شهد هانى السيد محمد | D175: 2 | E175: 60 | F175: 40 | G175: 100 | H175: 60 | I175: 38 | J175: 98 | K175: 198 | L175: 99 | M175: 99 | N175: 55 | O175: 33 | P175: 88 | Q175: 52 | R175: 34 | S175: 86 | T175: 174 | U175: 87 | V175: 69.6 | W175: 50 | X175: 39 | Y175: 89 | Z175: 58 | AA175: 37 | AB175: 95 | AC175: 184 | AD175: 92 | AE175: 36.8 | AF175: 60 | AG175: 40 | AH175: 100 | AI175: 60 | AJ175: 39 | AK175: 99 | AL175: 199 | AM175: 99.5 | AN175: 39.8 | AO175: 60 | AP175: 8 | AQ175: 32 | AR175: 100 | AS175: 57 | AT175: 8 | AU175: 30 | AV175: 95 | AW175: 195 | AX175: 97.5 | AY175: 39 | AZ175: 284.2 | BA175: 100 | BB175: 100 | BC175: 200 | BD175: 100 | BE175: 20 | BF175: 100 | BG175: 100 | BH175: 200 | BI175: 100 | BJ175: 20 | BK175: 100 | BL175: 100 | BM175: 200 | BN175: 100 | BO175: 20 | BP175: 100 | BQ175: 100 | BR175: 200 | BS175: 100 | BT175: 20 | BU175: 364.5 | BV175: 57 | BW175: 23 | BX175: 80 | BY175: 53 | BZ175: 29 | CA175: 82 | CB175: 162 | CC175: 81 | CD175: 32.4 | CE175: 0 | CF175: 0 | CG175: 0 | CH175: 0 | CJ175: 0 | CK175: 0 | CL175: 0 | CM175: 0 | CN175: 0 | CO175: 0 | CP175: 0 | CQ175: 0 | CS175: 0 | CT175: 0 | CU175: 0 | CV175: 0 | CW175: ناجحــــة | CX175: ومنقولة للصف الخامس | DH175: =IFERROR(INDEX($B$7:$B$33,MATCH(0,INDEX(COUNTIF($DH$6:DH174,$B$7:$B$33),),0)),"") -> 
B176: 869 | C176: شيماء عبد الرحمن فريج محمد | D176: 2 | E176: 60 | F176: 40 | G176: 100 | H176: 60 | I176: 40 | J176: 100 | K176: 200 | L176: 100 | M176: 100 | N176: 59 | O176: 40 | P176: 99 | Q176: 60 | R176: 40 | S176: 100 | T176: 199 | U176: 99.5 | V176: 79.6 | W176: 60 | X176: 40 | Y176: 100 | Z176: 60 | AA176: 40 | AB176: 100 | AC176: 200 | AD176: 100 | AE176: 40 | AF176: 60 | AG176: 40 | AH176: 100 | AI176: 60 | AJ176: 40 | AK176: 100 | AL176: 200 | AM176: 100 | AN176: 40 | AO176: 60 | AP176: 8 | AQ176: 32 | AR176: 100 | AS176: 60 | AT176: 8 | AU176: 31 | AV176: 99 | AW176: 199 | AX176: 99.5 | AY176: 39.8 | AZ176: 299.4 | BA176: 100 | BB176: 100 | BC176: 200 | BD176: 100 | BE176: 20 | BF176: 100 | BG176: 100 | BH176: 200 | BI176: 100 | BJ176: 20 | BK176: 100 | BL176: 100 | BM176: 200 | BN176: 100 | BO176: 20 | BP176: 100 | BQ176: 100 | BR176: 200 | BS176: 100 | BT176: 20 | BU176: 379.5 | BV176: 60 | BW176: 39 | BX176: 99 | BY176: 60 | BZ176: 40 | CA176: 100 | CB176: 199 | CC176: 99.5 | CD176: 39.8 | CE176: 0 | CF176: 0 | CG176: 0 | CH176: 0 | CJ176: 0 | CK176: 0 | CL176: 0 | CM176: 0 | CN176: 0 | CO176: 0 | CP176: 0 | CQ176: 0 | CS176: 0 | CT176: 0 | CU176: 0 | CV176: 0 | CW176: ناجحــــة | CX176: ومنقولة للصف الخامس | DH176: =IFERROR(INDEX($B$7:$B$33,MATCH(0,INDEX(COUNTIF($DH$6:DH175,$B$7:$B$33),),0)),"") -> 
B177: 870 | C177: غاليه أحمد عبد الحميد محمد | D177: 2 | E177: 60 | F177: 39 | G177: 99 | H177: 60 | I177: 39 | J177: 99 | K177: 198 | L177: 99 | M177: 99 | N177: 58 | O177: 37 | P177: 95 | Q177: 60 | R177: 38 | S177: 98 | T177: 193 | U177: 96.5 | V177: 77.2 | W177: 60 | X177: 40 | Y177: 100 | Z177: 55 | AA177: 38 | AB177: 93 | AC177: 193 | AD177: 96.5 | AE177: 38.6 | AF177: 60 | AG177: 40 | AH177: 100 | AI177: 60 | AJ177: 40 | AK177: 100 | AL177: 200 | AM177: 100 | AN177: 40 | AO177: 60 | AP177: 8 | AQ177: 32 | AR177: 100 | AS177: 60 | AT177: 8 | AU177: 32 | AV177: 100 | AW177: 200 | AX177: 100 | AY177: 40 | AZ177: 294.8 | BA177: 100 | BB177: 100 | BC177: 200 | BD177: 100 | BE177: 20 | BF177: 100 | BG177: 100 | BH177: 200 | BI177: 100 | BJ177: 20 | BK177: 100 | BL177: 100 | BM177: 200 | BN177: 100 | BO177: 20 | BP177: 100 | BQ177: 100 | BR177: 200 | BS177: 100 | BT177: 20 | BU177: 375 | BV177: 60 | BW177: 40 | BX177: 100 | BY177: 60 | BZ177: 40 | CA177: 100 | CB177: 200 | CC177: 100 | CD177: 40 | CE177: 0 | CF177: 0 | CG177: 0 | CH177: 0 | CJ177: 0 | CK177: 0 | CL177: 0 | CM177: 0 | CN177: 0 | CO177: 0 | CP177: 0 | CQ177: 0 | CS177: 0 | CT177: 0 | CU177: 0 | CV177: 0 | CW177: ناجحــــة | CX177: ومنقولة للصف الخامس | DH177: =IFERROR(INDEX($B$7:$B$33,MATCH(0,INDEX(COUNTIF($DH$6:DH176,$B$7:$B$33),),0)),"") -> 
B178: 871 | C178: فاطمة أحمد محمد عيسوي | D178: 2 | E178: 60 | F178: 40 | G178: 100 | H178: 60 | I178: 40 | J178: 100 | K178: 200 | L178: 100 | M178: 100 | N178: 60 | O178: 40 | P178: 100 | Q178: 60 | R178: 40 | S178: 100 | T178: 200 | U178: 100 | V178: 80 | W178: 60 | X178: 40 | Y178: 100 | Z178: 59 | AA178: 40 | AB178: 99 | AC178: 199 | AD178: 99.5 | AE178: 39.8 | AF178: 60 | AG178: 40 | AH178: 100 | AI178: 60 | AJ178: 40 | AK178: 100 | AL178: 200 | AM178: 100 | AN178: 40 | AO178: 60 | AP178: 8 | AQ178: 32 | AR178: 100 | AS178: 60 | AT178: 8 | AU178: 32 | AV178: 100 | AW178: 200 | AX178: 100 | AY178: 40 | AZ178: 299.8 | BA178: 100 | BB178: 100 | BC178: 200 | BD178: 100 | BE178: 20 | BF178: 100 | BG178: 100 | BH178: 200 | BI178: 100 | BJ178: 20 | BK178: 100 | BL178: 100 | BM178: 200 | BN178: 100 | BO178: 20 | BP178: 100 | BQ178: 100 | BR178: 200 | BS178: 100 | BT178: 20 | BU178: 380 | BV178: 60 | BW178: 40 | BX178: 100 | BY178: 60 | BZ178: 40 | CA178: 100 | CB178: 200 | CC178: 100 | CD178: 40 | CE178: 0 | CF178: 0 | CG178: 0 | CH178: 0 | CJ178: 0 | CK178: 0 | CL178: 0 | CM178: 0 | CN178: 0 | CO178: 0 | CP178: 0 | CQ178: 0 | CS178: 0 | CT178: 0 | CU178: 0 | CV178: 0 | CW178: ناجحــــة | CX178: ومنقولة للصف الخامس | DH178: =IFERROR(INDEX($B$7:$B$33,MATCH(0,INDEX(COUNTIF($DH$6:DH177,$B$7:$B$33),),0)),"") -> 
B179: 872 | C179: لميس عبد العزيز علي سليمان | D179: 2 | E179: 60 | F179: 39 | G179: 99 | H179: 60 | I179: 40 | J179: 100 | K179: 199 | L179: 99.5 | M179: 99.5 | N179: 57 | O179: 37 | P179: 94 | Q179: 60 | R179: 36 | S179: 96 | T179: 190 | U179: 95 | V179: 76 | W179: 60 | X179: 40 | Y179: 100 | Z179: 56 | AA179: 40 | AB179: 96 | AC179: 196 | AD179: 98 | AE179: 39.2 | AF179: 59 | AG179: 40 | AH179: 99 | AI179: 60 | AJ179: 39 | AK179: 99 | AL179: 198 | AM179: 99 | AN179: 39.6 | AO179: 60 | AP179: 8 | AQ179: 32 | AR179: 100 | AS179: 60 | AT179: 8 | AU179: 31 | AV179: 99 | AW179: 199 | AX179: 99.5 | AY179: 39.8 | AZ179: 294.1 | BA179: 100 | BB179: 100 | BC179: 200 | BD179: 100 | BE179: 20 | BF179: 100 | BG179: 100 | BH179: 200 | BI179: 100 | BJ179: 20 | BK179: 100 | BL179: 100 | BM179: 200 | BN179: 100 | BO179: 20 | BP179: 100 | BQ179: 100 | BR179: 200 | BS179: 100 | BT179: 20 | BU179: 374.5 | BV179: 55 | BW179: 32 | BX179: 87 | BY179: 60 | BZ179: 38 | CA179: 98 | CB179: 185 | CC179: 92.5 | CD179: 37 | CE179: 0 | CF179: 0 | CG179: 0 | CH179: 0 | CJ179: 0 | CK179: 0 | CL179: 0 | CM179: 0 | CN179: 0 | CO179: 0 | CP179: 0 | CQ179: 0 | CS179: 0 | CT179: 0 | CU179: 0 | CV179: 0 | CW179: ناجحــــة | CX179: ومنقولة للصف الخامس | DH179: =IFERROR(INDEX($B$7:$B$33,MATCH(0,INDEX(COUNTIF($DH$6:DH178,$B$7:$B$33),),0)),"") -> 
B180: 873 | C180: مريم سعيد جودة سويلم | D180: 2 | E180: 60 | F180: 40 | G180: 100 | H180: 60 | I180: 40 | J180: 100 | K180: 200 | L180: 100 | M180: 100 | N180: 59 | O180: 40 | P180: 99 | Q180: 58 | R180: 38 | S180: 96 | T180: 195 | U180: 97.5 | V180: 78 | W180: 60 | X180: 40 | Y180: 100 | Z180: 60 | AA180: 40 | AB180: 100 | AC180: 200 | AD180: 100 | AE180: 40 | AF180: 60 | AG180: 39 | AH180: 99 | AI180: 60 | AJ180: 39 | AK180: 99 | AL180: 198 | AM180: 99 | AN180: 39.6 | AO180: 60 | AP180: 8 | AQ180: 32 | AR180: 100 | AS180: 59 | AT180: 8 | AU180: 32 | AV180: 99 | AW180: 199 | AX180: 99.5 | AY180: 39.8 | AZ180: 297.4 | BA180: 100 | BB180: 100 | BC180: 200 | BD180: 100 | BE180: 20 | BF180: 100 | BG180: 100 | BH180: 200 | BI180: 100 | BJ180: 20 | BK180: 100 | BL180: 100 | BM180: 200 | BN180: 100 | BO180: 20 | BP180: 100 | BQ180: 100 | BR180: 200 | BS180: 100 | BT180: 20 | BU180: 377.5 | BV180: 58 | BW180: 37 | BX180: 95 | BY180: 48 | BZ180: 40 | CA180: 88 | CB180: 183 | CC180: 91.5 | CD180: 36.6 | CE180: 0 | CF180: 0 | CG180: 0 | CH180: 0 | CJ180: 0 | CK180: 0 | CL180: 0 | CM180: 0 | CN180: 0 | CO180: 0 | CP180: 0 | CQ180: 0 | CS180: 0 | CT180: 0 | CU180: 0 | CV180: 0 | CW180: ناجحــــة | CX180: ومنقولة للصف الخامس | DH180: =IFERROR(INDEX($B$7:$B$33,MATCH(0,INDEX(COUNTIF($DH$6:DH179,$B$7:$B$33),),0)),"") -> 
B181: 874 | C181: مريم عماد حمدي محمد | D181: 2 | E181: 60 | F181: 40 | G181: 100 | H181: 60 | I181: 40 | J181: 100 | K181: 200 | L181: 100 | M181: 100 | N181: 60 | O181: 38 | P181: 98 | Q181: 60 | R181: 38 | S181: 98 | T181: 196 | U181: 98 | V181: 78.4 | W181: 57 | X181: 40 | Y181: 97 | Z181: 58 | AA181: 37 | AB181: 95 | AC181: 192 | AD181: 96 | AE181: 38.4 | AF181: 60 | AG181: 39 | AH181: 99 | AI181: 60 | AJ181: 39 | AK181: 99 | AL181: 198 | AM181: 99 | AN181: 39.6 | AO181: 60 | AP181: 8 | AQ181: 31 | AR181: 99 | AS181: 60 | AT181: 8 | AU181: 32 | AV181: 100 | AW181: 199 | AX181: 99.5 | AY181: 39.8 | AZ181: 296.2 | BA181: 100 | BB181: 100 | BC181: 200 | BD181: 100 | BE181: 20 | BF181: 100 | BG181: 100 | BH181: 200 | BI181: 100 | BJ181: 20 | BK181: 100 | BL181: 100 | BM181: 200 | BN181: 100 | BO181: 20 | BP181: 100 | BQ181: 100 | BR181: 200 | BS181: 100 | BT181: 20 | BU181: 376.5 | BV181: 55 | BW181: 36 | BX181: 91 | BY181: 60 | BZ181: 40 | CA181: 100 | CB181: 191 | CC181: 95.5 | CD181: 38.2 | CE181: 0 | CF181: 0 | CG181: 0 | CH181: 0 | CJ181: 0 | CK181: 0 | CL181: 0 | CM181: 0 | CN181: 0 | CO181: 0 | CP181: 0 | CQ181: 0 | CS181: 0 | CT181: 0 | CU181: 0 | CV181: 0 | CW181: ناجحــــة | CX181: ومنقولة للصف الخامس | DH181: =IFERROR(INDEX($B$7:$B$33,MATCH(0,INDEX(COUNTIF($DH$6:DH180,$B$7:$B$33),),0)),"") -> 
B182: 875 | C182: ملك أحمد السيد أحمد | D182: 2 | E182: 60 | F182: 40 | G182: 100 | H182: 60 | I182: 40 | J182: 100 | K182: 200 | L182: 100 | M182: 100 | N182: 58 | O182: 34 | P182: 92 | Q182: 60 | R182: 38 | S182: 98 | T182: 190 | U182: 95 | V182: 76 | W182: 58 | X182: 40 | Y182: 98 | Z182: 59 | AA182: 38 | AB182: 97 | AC182: 195 | AD182: 97.5 | AE182: 39 | AF182: 60 | AG182: 39 | AH182: 99 | AI182: 60 | AJ182: 40 | AK182: 100 | AL182: 199 | AM182: 99.5 | AN182: 39.8 | AO182: 60 | AP182: 8 | AQ182: 32 | AR182: 100 | AS182: 59 | AT182: 8 | AU182: 32 | AV182: 99 | AW182: 199 | AX182: 99.5 | AY182: 39.8 | AZ182: 294.6 | BA182: 100 | BB182: 100 | BC182: 200 | BD182: 100 | BE182: 20 | BF182: 100 | BG182: 100 | BH182: 200 | BI182: 100 | BJ182: 20 | BK182: 100 | BL182: 100 | BM182: 200 | BN182: 100 | BO182: 20 | BP182: 100 | BQ182: 100 | BR182: 200 | BS182: 100 | BT182: 20 | BU182: 375 | BV182: 60 | BW182: 32 | BX182: 92 | BY182: 59 | BZ182: 40 | CA182: 99 | CB182: 191 | CC182: 95.5 | CD182: 38.2 | CE182: 0 | CF182: 0 | CG182: 0 | CH182: 0 | CJ182: 0 | CK182: 0 | CL182: 0 | CM182: 0 | CN182: 0 | CO182: 0 | CP182: 0 | CQ182: 0 | CS182: 0 | CT182: 0 | CU182: 0 | CV182: 0 | CW182: ناجحــــة | CX182: ومنقولة للصف الخامس | DH182: =IFERROR(INDEX($B$7:$B$33,MATCH(0,INDEX(COUNTIF($DH$6:DH181,$B$7:$B$33),),0)),"") -> 
B183: 876 | C183: ملك عباس زكي عبد العال | D183: 2 | E183: 60 | F183: 40 | G183: 100 | H183: 60 | I183: 39 | J183: 99 | K183: 199 | L183: 99.5 | M183: 99.5 | N183: 60 | O183: 40 | P183: 100 | Q183: 60 | R183: 36 | S183: 96 | T183: 196 | U183: 98 | V183: 78.4 | W183: 60 | X183: 40 | Y183: 100 | Z183: 59 | AA183: 40 | AB183: 99 | AC183: 199 | AD183: 99.5 | AE183: 39.8 | AF183: 60 | AG183: 40 | AH183: 100 | AI183: 60 | AJ183: 40 | AK183: 100 | AL183: 200 | AM183: 100 | AN183: 40 | AO183: 60 | AP183: 8 | AQ183: 32 | AR183: 100 | AS183: 60 | AT183: 8 | AU183: 30 | AV183: 98 | AW183: 198 | AX183: 99 | AY183: 39.6 | AZ183: 297.3 | BA183: 100 | BB183: 100 | BC183: 200 | BD183: 100 | BE183: 20 | BF183: 100 | BG183: 100 | BH183: 200 | BI183: 100 | BJ183: 20 | BK183: 100 | BL183: 100 | BM183: 200 | BN183: 100 | BO183: 20 | BP183: 100 | BQ183: 100 | BR183: 200 | BS183: 100 | BT183: 20 | BU183: 377.5 | BV183: 59 | BW183: 32 | BX183: 91 | BY183: 59 | BZ183: 40 | CA183: 99 | CB183: 190 | CC183: 95 | CD183: 38 | CE183: 0 | CF183: 0 | CG183: 0 | CH183: 0 | CJ183: 0 | CK183: 0 | CL183: 0 | CM183: 0 | CN183: 0 | CO183: 0 | CP183: 0 | CQ183: 0 | CS183: 0 | CT183: 0 | CU183: 0 | CV183: 0 | CW183: ناجحــــة | CX183: ومنقولة للصف الخامس | DH183: =IFERROR(INDEX($B$7:$B$33,MATCH(0,INDEX(COUNTIF($DH$6:DH182,$B$7:$B$33),),0)),"") -> 
B184: 877 | C184: ملك عماد على عبد الله | D184: 2 | E184: 53 | F184: 30 | G184: 83 | H184: 50 | I184: 27 | J184: 77 | K184: 160 | L184: 80 | M184: 80 | N184: 52 | O184: 25 | P184: 77 | Q184: 52 | R184: 34 | S184: 86 | T184: 163 | U184: 81.5 | V184: 65.2 | W184: 44 | X184: 21 | Y184: 65 | Z184: 43 | AA184: 26 | AB184: 69 | AC184: 134 | AD184: 67 | AE184: 26.8 | AF184: 53 | AG184: 33 | AH184: 86 | AI184: 55 | AJ184: 20 | AK184: 75 | AL184: 161 | AM184: 80.5 | AN184: 32.2 | AO184: 45 | AP184: 8 | AQ184: 29 | AR184: 82 | AS184: 50 | AT184: 8 | AU184: 19 | AV184: 77 | AW184: 159 | AX184: 79.5 | AY184: 31.8 | AZ184: 236 | BA184: 100 | BB184: 100 | BC184: 200 | BD184: 100 | BE184: 20 | BF184: 100 | BG184: 100 | BH184: 200 | BI184: 100 | BJ184: 20 | BK184: 100 | BL184: 100 | BM184: 200 | BN184: 100 | BO184: 20 | BP184: 100 | BQ184: 100 | BR184: 200 | BS184: 100 | BT184: 20 | BU184: 316 | BV184: 50 | BW184: 26 | BX184: 76 | BY184: 52 | BZ184: 34 | CA184: 86 | CB184: 162 | CC184: 81 | CD184: 32.4 | CE184: 0 | CF184: 0 | CG184: 0 | CH184: 0 | CJ184: 0 | CK184: 0 | CL184: 0 | CM184: 0 | CN184: 0 | CO184: 0 | CP184: 0 | CQ184: 0 | CS184: 0 | CT184: 0 | CU184: 0 | CV184: 0 | CW184: ناجحــــة | CX184: ومنقولة للصف الخامس | DH184: =IFERROR(INDEX($B$7:$B$33,MATCH(0,INDEX(COUNTIF($DH$6:DH183,$B$7:$B$33),),0)),"") -> 
B185: 878 | C185: منار أيمن حامد جودة | D185: 2 | E185: 57 | F185: 38 | G185: 95 | H185: 52 | I185: 34 | J185: 86 | K185: 181 | L185: 90.5 | M185: 90.5 | N185: 57 | O185: 30 | P185: 87 | Q185: 46 | R185: 34 | S185: 80 | T185: 167 | U185: 83.5 | V185: 66.8 | W185: 50 | X185: 29 | Y185: 79 | Z185: 36 | AA185: 21 | AB185: 57 | AC185: 136 | AD185: 68 | AE185: 27.2 | AF185: 57 | AG185: 35 | AH185: 92 | AI185: 56 | AJ185: 39 | AK185: 95 | AL185: 187 | AM185: 93.5 | AN185: 37.4 | AO185: 55 | AP185: 8 | AQ185: 30 | AR185: 93 | AS185: 56 | AT185: 8 | AU185: 27 | AV185: 91 | AW185: 184 | AX185: 92 | AY185: 36.8 | AZ185: 258.7 | BA185: 100 | BB185: 100 | BC185: 200 | BD185: 100 | BE185: 20 | BF185: 100 | BG185: 100 | BH185: 200 | BI185: 100 | BJ185: 20 | BK185: 100 | BL185: 100 | BM185: 200 | BN185: 100 | BO185: 20 | BP185: 100 | BQ185: 100 | BR185: 200 | BS185: 100 | BT185: 20 | BU185: 339 | BV185: 46 | BW185: 29 | BX185: 75 | BY185: 48 | BZ185: 35 | CA185: 83 | CB185: 158 | CC185: 79 | CD185: 31.6 | CE185: 0 | CF185: 0 | CG185: 0 | CH185: 0 | CJ185: 0 | CK185: 0 | CL185: 0 | CM185: 0 | CN185: 0 | CO185: 0 | CP185: 0 | CQ185: 0 | CS185: 0 | CT185: 0 | CU185: 0 | CV185: 0 | CW185: ناجحــــة | CX185: ومنقولة للصف الخامس | DH185: =IFERROR(INDEX($B$7:$B$33,MATCH(0,INDEX(COUNTIF($DH$6:DH184,$B$7:$B$33),),0)),"") -> 
B186: 879 | C186: منار عمر عبد الله أحمد | D186: 2 | E186: 60 | F186: 40 | G186: 100 | H186: 60 | I186: 39 | J186: 99 | K186: 199 | L186: 99.5 | M186: 99.5 | N186: 58 | O186: 38 | P186: 96 | Q186: 58 | R186: 40 | S186: 98 | T186: 194 | U186: 97 | V186: 77.6 | W186: 60 | X186: 40 | Y186: 100 | Z186: 59 | AA186: 40 | AB186: 99 | AC186: 199 | AD186: 99.5 | AE186: 39.8 | AF186: 60 | AG186: 40 | AH186: 100 | AI186: 60 | AJ186: 40 | AK186: 100 | AL186: 200 | AM186: 100 | AN186: 40 | AO186: 58 | AP186: 8 | AQ186: 30 | AR186: 96 | AS186: 56 | AT186: 8 | AU186: 32 | AV186: 96 | AW186: 192 | AX186: 96 | AY186: 38.4 | AZ186: 295.3 | BA186: 100 | BB186: 100 | BC186: 200 | BD186: 100 | BE186: 20 | BF186: 100 | BG186: 100 | BH186: 200 | BI186: 100 | BJ186: 20 | BK186: 100 | BL186: 100 | BM186: 200 | BN186: 100 | BO186: 20 | BP186: 100 | BQ186: 100 | BR186: 200 | BS186: 100 | BT186: 20 | BU186: 375.5 | BV186: 60 | BW186: 34 | BX186: 94 | BY186: 59 | BZ186: 40 | CA186: 99 | CB186: 193 | CC186: 96.5 | CD186: 38.6 | CE186: 0 | CF186: 0 | CG186: 0 | CH186: 0 | CJ186: 0 | CK186: 0 | CL186: 0 | CM186: 0 | CN186: 0 | CO186: 0 | CP186: 0 | CQ186: 0 | CS186: 0 | CT186: 0 | CU186: 0 | CV186: 0 | CW186: ناجحــــة | CX186: ومنقولة للصف الخامس | DH186: =IFERROR(INDEX($B$7:$B$33,MATCH(0,INDEX(COUNTIF($DH$6:DH185,$B$7:$B$33),),0)),"") -> 
B187: 880 | C187: منة الله أحمد السيد العربي | D187: 2 | E187: 60 | F187: 40 | G187: 100 | H187: 60 | I187: 40 | J187: 100 | K187: 200 | L187: 100 | M187: 100 | N187: 60 | O187: 38 | P187: 98 | Q187: 60 | R187: 40 | S187: 100 | T187: 198 | U187: 99 | V187: 79.2 | W187: 60 | X187: 40 | Y187: 100 | Z187: 60 | AA187: 40 | AB187: 100 | AC187: 200 | AD187: 100 | AE187: 40 | AF187: 60 | AG187: 40 | AH187: 100 | AI187: 60 | AJ187: 40 | AK187: 100 | AL187: 200 | AM187: 100 | AN187: 40 | AO187: 60 | AP187: 8 | AQ187: 32 | AR187: 100 | AS187: 60 | AT187: 8 | AU187: 32 | AV187: 100 | AW187: 200 | AX187: 100 | AY187: 40 | AZ187: 299.2 | BA187: 100 | BB187: 100 | BC187: 200 | BD187: 100 | BE187: 20 | BF187: 100 | BG187: 100 | BH187: 200 | BI187: 100 | BJ187: 20 | BK187: 100 | BL187: 100 | BM187: 200 | BN187: 100 | BO187: 20 | BP187: 100 | BQ187: 100 | BR187: 200 | BS187: 100 | BT187: 20 | BU187: 379.5 | BV187: 60 | BW187: 39 | BX187: 99 | BY187: 60 | BZ187: 40 | CA187: 100 | CB187: 199 | CC187: 99.5 | CD187: 39.8 | CE187: 0 | CF187: 0 | CG187: 0 | CH187: 0 | CJ187: 0 | CK187: 0 | CL187: 0 | CM187: 0 | CN187: 0 | CO187: 0 | CP187: 0 | CQ187: 0 | CS187: 0 | CT187: 0 | CU187: 0 | CV187: 0 | CW187: ناجحــــة | CX187: ومنقولة للصف الخامس | DH187: =IFERROR(INDEX($B$7:$B$33,MATCH(0,INDEX(COUNTIF($DH$6:DH186,$B$7:$B$33),),0)),"") -> 
B188: 881 | C188: منة الله أحمد السيد أحمد | D188: 2 | E188: 48 | F188: 25 | G188: 73 | H188: 49 | I188: 30 | J188: 79 | K188: 152 | L188: 76 | M188: 76 | N188: 46 | O188: 21 | P188: 67 | Q188: 43 | R188: 23 | S188: 66 | T188: 133 | U188: 66.5 | V188: 53.2 | W188: 40 | X188: 21 | Y188: 61 | Z188: 33 | AA188: 31 | AB188: 64 | AC188: 125 | AD188: 62.5 | AE188: 25 | AF188: 48 | AG188: 39 | AH188: 87 | AI188: 45 | AJ188: 35 | AK188: 80 | AL188: 167 | AM188: 83.5 | AN188: 33.4 | AO188: 50 | AP188: 8 | AQ188: 30 | AR188: 88 | AS188: 47 | AT188: 8 | AU188: 19 | AV188: 74 | AW188: 162 | AX188: 81 | AY188: 32.4 | AZ188: 220 | BA188: 100 | BB188: 100 | BC188: 200 | BD188: 100 | BE188: 20 | BF188: 100 | BG188: 100 | BH188: 200 | BI188: 100 | BJ188: 20 | BK188: 100 | BL188: 100 | BM188: 200 | BN188: 100 | BO188: 20 | BP188: 100 | BQ188: 100 | BR188: 200 | BS188: 100 | BT188: 20 | BU188: 300 | BV188: 39 | BW188: 27 | BX188: 66 | BY188: 45 | BZ188: 31 | CA188: 76 | CB188: 142 | CC188: 71 | CD188: 28.4 | CE188: 0 | CF188: 0 | CG188: 0 | CH188: 0 | CJ188: 0 | CK188: 0 | CL188: 0 | CM188: 0 | CN188: 0 | CO188: 0 | CP188: 0 | CQ188: 0 | CS188: 0 | CT188: 0 | CU188: 0 | CV188: 0 | CW188: ناجحــــة | CX188: ومنقولة للصف الخامس | DH188: =IFERROR(INDEX($B$7:$B$33,MATCH(0,INDEX(COUNTIF($DH$6:DH187,$B$7:$B$33),),0)),"") -> 
B189: 882 | C189: منة الله عبد الحميد حسن عبد الحميد | D189: 2 | E189: 60 | F189: 40 | G189: 100 | H189: 60 | I189: 40 | J189: 100 | K189: 200 | L189: 100 | M189: 100 | N189: 59 | O189: 40 | P189: 99 | Q189: 60 | R189: 40 | S189: 100 | T189: 199 | U189: 99.5 | V189: 79.6 | W189: 60 | X189: 36 | Y189: 96 | Z189: 60 | AA189: 39 | AB189: 99 | AC189: 195 | AD189: 97.5 | AE189: 39 | AF189: 60 | AG189: 40 | AH189: 100 | AI189: 60 | AJ189: 40 | AK189: 100 | AL189: 200 | AM189: 100 | AN189: 40 | AO189: 60 | AP189: 8 | AQ189: 32 | AR189: 100 | AS189: 60 | AT189: 8 | AU189: 32 | AV189: 100 | AW189: 200 | AX189: 100 | AY189: 40 | AZ189: 298.6 | BA189: 100 | BB189: 100 | BC189: 200 | BD189: 100 | BE189: 20 | BF189: 100 | BG189: 100 | BH189: 200 | BI189: 100 | BJ189: 20 | BK189: 100 | BL189: 100 | BM189: 200 | BN189: 100 | BO189: 20 | BP189: 100 | BQ189: 100 | BR189: 200 | BS189: 100 | BT189: 20 | BU189: 379 | BV189: 60 | BW189: 39 | BX189: 99 | BY189: 60 | BZ189: 40 | CA189: 100 | CB189: 199 | CC189: 99.5 | CD189: 39.8 | CE189: 0 | CF189: 0 | CG189: 0 | CH189: 0 | CJ189: 0 | CK189: 0 | CL189: 0 | CM189: 0 | CN189: 0 | CO189: 0 | CP189: 0 | CQ189: 0 | CS189: 0 | CT189: 0 | CU189: 0 | CV189: 0 | CW189: ناجحــــة | CX189: ومنقولة للصف الخامس | DH189: =IFERROR(INDEX($B$7:$B$33,MATCH(0,INDEX(COUNTIF($DH$6:DH188,$B$7:$B$33),),0)),"") -> 
B190: 883 | C190: منة الله محمود على على | D190: 2 | E190: 59 | F190: 38 | G190: 97 | H190: 53 | I190: 31 | J190: 84 | K190: 181 | L190: 90.5 | M190: 90.5 | N190: 54 | O190: 29 | P190: 83 | Q190: 53 | R190: 36 | S190: 89 | T190: 172 | U190: 86 | V190: 68.8 | W190: 48 | X190: 37 | Y190: 85 | Z190: 50 | AA190: 40 | AB190: 90 | AC190: 175 | AD190: 87.5 | AE190: 35 | AF190: 59 | AG190: 40 | AH190: 99 | AI190: 60 | AJ190: 40 | AK190: 100 | AL190: 199 | AM190: 99.5 | AN190: 39.8 | AO190: 53 | AP190: 8 | AQ190: 32 | AR190: 93 | AS190: 57 | AT190: 8 | AU190: 32 | AV190: 97 | AW190: 190 | AX190: 95 | AY190: 38 | AZ190: 272.1 | BA190: 100 | BB190: 100 | BC190: 200 | BD190: 100 | BE190: 20 | BF190: 100 | BG190: 100 | BH190: 200 | BI190: 100 | BJ190: 20 | BK190: 100 | BL190: 100 | BM190: 200 | BN190: 100 | BO190: 20 | BP190: 100 | BQ190: 100 | BR190: 200 | BS190: 100 | BT190: 20 | BU190: 352.5 | BV190: 51 | BW190: 29 | BX190: 80 | BY190: 56 | BZ190: 40 | CA190: 96 | CB190: 176 | CC190: 88 | CD190: 35.2 | CE190: 0 | CF190: 0 | CG190: 0 | CH190: 0 | CJ190: 0 | CK190: 0 | CL190: 0 | CM190: 0 | CN190: 0 | CO190: 0 | CP190: 0 | CQ190: 0 | CS190: 0 | CT190: 0 | CU190: 0 | CV190: 0 | CW190: ناجحــــة | CX190: ومنقولة للصف الخامس | DH190: =IFERROR(INDEX($B$7:$B$33,MATCH(0,INDEX(COUNTIF($DH$6:DH189,$B$7:$B$33),),0)),"") -> 
B191: 884 | C191: منة الله منتصرالسيد حنضل | D191: 2 | E191: 60 | F191: 39 | G191: 99 | H191: 59 | I191: 38 | J191: 97 | K191: 196 | L191: 98 | M191: 98 | N191: 55 | O191: 40 | P191: 95 | Q191: 58 | R191: 40 | S191: 98 | T191: 193 | U191: 96.5 | V191: 77.2 | W191: 56 | X191: 37 | Y191: 93 | Z191: 52 | AA191: 32 | AB191: 84 | AC191: 177 | AD191: 88.5 | AE191: 35.4 | AF191: 60 | AG191: 40 | AH191: 100 | AI191: 60 | AJ191: 40 | AK191: 100 | AL191: 200 | AM191: 100 | AN191: 40 | AO191: 59 | AP191: 8 | AQ191: 32 | AR191: 99 | AS191: 60 | AT191: 8 | AU191: 30 | AV191: 98 | AW191: 197 | AX191: 98.5 | AY191: 39.4 | AZ191: 290 | BA191: 100 | BB191: 100 | BC191: 200 | BD191: 100 | BE191: 20 | BF191: 100 | BG191: 100 | BH191: 200 | BI191: 100 | BJ191: 20 | BK191: 100 | BL191: 100 | BM191: 200 | BN191: 100 | BO191: 20 | BP191: 100 | BQ191: 100 | BR191: 200 | BS191: 100 | BT191: 20 | BU191: 370 | BV191: 56 | BW191: 25 | BX191: 81 | BY191: 60 | BZ191: 38 | CA191: 98 | CB191: 179 | CC191: 89.5 | CD191: 35.8 | CE191: 0 | CF191: 0 | CG191: 0 | CH191: 0 | CJ191: 0 | CK191: 0 | CL191: 0 | CM191: 0 | CN191: 0 | CO191: 0 | CP191: 0 | CQ191: 0 | CS191: 0 | CT191: 0 | CU191: 0 | CV191: 0 | CW191: ناجحــــة | CX191: ومنقولة للصف الخامس | DH191: =IFERROR(INDEX($B$7:$B$33,MATCH(0,INDEX(COUNTIF($DH$6:DH190,$B$7:$B$33),),0)),"") -> 
B192: 885 | C192: منه أحمد عبد الله بيومي | D192: 2 | E192: 60 | F192: 40 | G192: 100 | H192: 60 | I192: 40 | J192: 100 | K192: 200 | L192: 100 | M192: 100 | N192: 60 | O192: 40 | P192: 100 | Q192: 60 | R192: 40 | S192: 100 | T192: 200 | U192: 100 | V192: 80 | W192: 58 | X192: 40 | Y192: 98 | Z192: 60 | AA192: 40 | AB192: 100 | AC192: 198 | AD192: 99 | AE192: 39.6 | AF192: 60 | AG192: 40 | AH192: 100 | AI192: 60 | AJ192: 40 | AK192: 100 | AL192: 200 | AM192: 100 | AN192: 40 | AO192: 60 | AP192: 8 | AQ192: 32 | AR192: 100 | AS192: 60 | AT192: 8 | AU192: 31 | AV192: 99 | AW192: 199 | AX192: 99.5 | AY192: 39.8 | AZ192: 299.4 | BA192: 100 | BB192: 100 | BC192: 200 | BD192: 100 | BE192: 20 | BF192: 100 | BG192: 100 | BH192: 200 | BI192: 100 | BJ192: 20 | BK192: 100 | BL192: 100 | BM192: 200 | BN192: 100 | BO192: 20 | BP192: 100 | BQ192: 100 | BR192: 200 | BS192: 100 | BT192: 20 | BU192: 379.5 | BV192: 58 | BW192: 32 | BX192: 90 | BY192: 60 | BZ192: 40 | CA192: 100 | CB192: 190 | CC192: 95 | CD192: 38 | CE192: 0 | CF192: 0 | CG192: 0 | CH192: 0 | CJ192: 0 | CK192: 0 | CL192: 0 | CM192: 0 | CN192: 0 | CO192: 0 | CP192: 0 | CQ192: 0 | CS192: 0 | CT192: 0 | CU192: 0 | CV192: 0 | CW192: ناجحــــة | CX192: ومنقولة للصف الخامس | DH192: =IFERROR(INDEX($B$7:$B$33,MATCH(0,INDEX(COUNTIF($DH$6:DH191,$B$7:$B$33),),0)),"") -> 
B193: 886 | C193: ميار جمال محمد صابر | D193: 2 | E193: 60 | F193: 40 | G193: 100 | H193: 60 | I193: 40 | J193: 100 | K193: 200 | L193: 100 | M193: 100 | N193: 56 | O193: 38 | P193: 94 | Q193: 59 | R193: 40 | S193: 99 | T193: 193 | U193: 96.5 | V193: 77.2 | W193: 54 | X193: 40 | Y193: 94 | Z193: 59 | AA193: 40 | AB193: 99 | AC193: 193 | AD193: 96.5 | AE193: 38.6 | AF193: 60 | AG193: 40 | AH193: 100 | AI193: 60 | AJ193: 40 | AK193: 100 | AL193: 200 | AM193: 100 | AN193: 40 | AO193: 60 | AP193: 8 | AQ193: 32 | AR193: 100 | AS193: 60 | AT193: 8 | AU193: 32 | AV193: 100 | AW193: 200 | AX193: 100 | AY193: 40 | AZ193: 295.8 | BA193: 100 | BB193: 100 | BC193: 200 | BD193: 100 | BE193: 20 | BF193: 100 | BG193: 100 | BH193: 200 | BI193: 100 | BJ193: 20 | BK193: 100 | BL193: 100 | BM193: 200 | BN193: 100 | BO193: 20 | BP193: 100 | BQ193: 100 | BR193: 200 | BS193: 100 | BT193: 20 | BU193: 376 | BV193: 56 | BW193: 35 | BX193: 91 | BY193: 60 | BZ193: 40 | CA193: 100 | CB193: 191 | CC193: 95.5 | CD193: 38.2 | CE193: 0 | CF193: 0 | CG193: 0 | CH193: 0 | CJ193: 0 | CK193: 0 | CL193: 0 | CM193: 0 | CN193: 0 | CO193: 0 | CP193: 0 | CQ193: 0 | CS193: 0 | CT193: 0 | CU193: 0 | CV193: 0 | CW193: ناجحــــة | CX193: ومنقولة للصف الخامس | DH193: =IFERROR(INDEX($B$7:$B$33,MATCH(0,INDEX(COUNTIF($DH$6:DH192,$B$7:$B$33),),0)),"") -> 
B194: 887 | C194: ندى السيد عباس السيد | D194: 2 | E194: 60 | F194: 38 | G194: 98 | H194: 60 | I194: 39 | J194: 99 | K194: 197 | L194: 98.5 | M194: 98.5 | N194: 59 | O194: 40 | P194: 99 | Q194: 56 | R194: 38 | S194: 94 | T194: 193 | U194: 96.5 | V194: 77.2 | W194: 60 | X194: 39 | Y194: 99 | Z194: 59 | AA194: 40 | AB194: 99 | AC194: 198 | AD194: 99 | AE194: 39.6 | AF194: 60 | AG194: 40 | AH194: 100 | AI194: 60 | AJ194: 39 | AK194: 99 | AL194: 199 | AM194: 99.5 | AN194: 39.8 | AO194: 60 | AP194: 8 | AQ194: 32 | AR194: 100 | AS194: 59 | AT194: 8 | AU194: 24 | AV194: 91 | AW194: 191 | AX194: 95.5 | AY194: 38.2 | AZ194: 293.3 | BA194: 100 | BB194: 100 | BC194: 200 | BD194: 100 | BE194: 20 | BF194: 100 | BG194: 100 | BH194: 200 | BI194: 100 | BJ194: 20 | BK194: 100 | BL194: 100 | BM194: 200 | BN194: 100 | BO194: 20 | BP194: 100 | BQ194: 100 | BR194: 200 | BS194: 100 | BT194: 20 | BU194: 373.5 | BV194: 59 | BW194: 34 | BX194: 93 | BY194: 58 | BZ194: 35 | CA194: 93 | CB194: 186 | CC194: 93 | CD194: 37.2 | CE194: 0 | CF194: 0 | CG194: 0 | CH194: 0 | CJ194: 0 | CK194: 0 | CL194: 0 | CM194: 0 | CN194: 0 | CO194: 0 | CP194: 0 | CQ194: 0 | CS194: 0 | CT194: 0 | CU194: 0 | CV194: 0 | CW194: ناجحــــة | CX194: ومنقولة للصف الخامس | DH194: =IFERROR(INDEX($B$7:$B$33,MATCH(0,INDEX(COUNTIF($DH$6:DH193,$B$7:$B$33),),0)),"") -> 
B195: 888 | C195: ندى السيد محمود أحمد | D195: 2 | E195: 60 | F195: 40 | G195: 100 | H195: 60 | I195: 40 | J195: 100 | K195: 200 | L195: 100 | M195: 100 | N195: 58 | O195: 37 | P195: 95 | Q195: 60 | R195: 40 | S195: 100 | T195: 195 | U195: 97.5 | V195: 78 | W195: 60 | X195: 36 | Y195: 96 | Z195: 60 | AA195: 40 | AB195: 100 | AC195: 196 | AD195: 98 | AE195: 39.2 | AF195: 60 | AG195: 40 | AH195: 100 | AI195: 60 | AJ195: 39 | AK195: 99 | AL195: 199 | AM195: 99.5 | AN195: 39.8 | AO195: 60 | AP195: 8 | AQ195: 32 | AR195: 100 | AS195: 60 | AT195: 8 | AU195: 32 | AV195: 100 | AW195: 200 | AX195: 100 | AY195: 40 | AZ195: 297 | BA195: 100 | BB195: 100 | BC195: 200 | BD195: 100 | BE195: 20 | BF195: 100 | BG195: 100 | BH195: 200 | BI195: 100 | BJ195: 20 | BK195: 100 | BL195: 100 | BM195: 200 | BN195: 100 | BO195: 20 | BP195: 100 | BQ195: 100 | BR195: 200 | BS195: 100 | BT195: 20 | BU195: 377 | BV195: 60 | BW195: 33 | BX195: 93 | BY195: 59 | BZ195: 40 | CA195: 99 | CB195: 192 | CC195: 96 | CD195: 38.4 | CE195: 0 | CF195: 0 | CG195: 0 | CH195: 0 | CJ195: 0 | CK195: 0 | CL195: 0 | CM195: 0 | CN195: 0 | CO195: 0 | CP195: 0 | CQ195: 0 | CS195: 0 | CT195: 0 | CU195: 0 | CV195: 0 | CW195: ناجحــــة | CX195: ومنقولة للصف الخامس | DH195: =IFERROR(INDEX($B$7:$B$33,MATCH(0,INDEX(COUNTIF($DH$6:DH194,$B$7:$B$33),),0)),"") -> 
B196: 889 | C196: ندى أحمد محمد أبوزيد | D196: 2 | E196: 60 | F196: 36 | G196: 96 | H196: 56 | I196: 36 | J196: 92 | K196: 188 | L196: 94 | M196: 94 | N196: 56 | O196: 28 | P196: 84 | Q196: 52 | R196: 37 | S196: 89 | T196: 173 | U196: 86.5 | V196: 69.2 | W196: 51 | X196: 31 | Y196: 82 | Z196: 53 | AA196: 35 | AB196: 88 | AC196: 170 | AD196: 85 | AE196: 34 | AF196: 60 | AG196: 40 | AH196: 100 | AI196: 60 | AJ196: 40 | AK196: 100 | AL196: 200 | AM196: 100 | AN196: 40 | AO196: 53 | AP196: 8 | AQ196: 30 | AR196: 91 | AS196: 57 | AT196: 8 | AU196: 25 | AV196: 90 | AW196: 181 | AX196: 90.5 | AY196: 36.2 | AZ196: 273.4 | BA196: 100 | BB196: 100 | BC196: 200 | BD196: 100 | BE196: 20 | BF196: 100 | BG196: 100 | BH196: 200 | BI196: 100 | BJ196: 20 | BK196: 100 | BL196: 100 | BM196: 200 | BN196: 100 | BO196: 20 | BP196: 100 | BQ196: 100 | BR196: 200 | BS196: 100 | BT196: 20 | BU196: 353.5 | BV196: 51 | BW196: 25 | BX196: 76 | BY196: 55 | BZ196: 33 | CA196: 88 | CB196: 164 | CC196: 82 | CD196: 32.8 | CE196: 0 | CF196: 0 | CG196: 0 | CH196: 0 | CJ196: 0 | CK196: 0 | CL196: 0 | CM196: 0 | CN196: 0 | CO196: 0 | CP196: 0 | CQ196: 0 | CS196: 0 | CT196: 0 | CU196: 0 | CV196: 0 | CW196: ناجحــــة | CX196: ومنقولة للصف الخامس | DH196: =IFERROR(INDEX($B$7:$B$33,MATCH(0,INDEX(COUNTIF($DH$6:DH195,$B$7:$B$33),),0)),"") -> 
B197: 890 | C197: ندى رفعت محمد علي | D197: 2 | E197: 59 | F197: 34 | G197: 93 | H197: 57 | I197: 37 | J197: 94 | K197: 187 | L197: 93.5 | M197: 93.5 | N197: 53 | O197: 34 | P197: 87 | Q197: 47 | R197: 33 | S197: 80 | T197: 167 | U197: 83.5 | V197: 66.8 | W197: 53 | X197: 35 | Y197: 88 | Z197: 46 | AA197: 32 | AB197: 78 | AC197: 166 | AD197: 83 | AE197: 33.2 | AF197: 58 | AG197: 40 | AH197: 98 | AI197: 60 | AJ197: 39 | AK197: 99 | AL197: 197 | AM197: 98.5 | AN197: 39.4 | AO197: 55 | AP197: 8 | AQ197: 28 | AR197: 91 | AS197: 56 | AT197: 8 | AU197: 29 | AV197: 93 | AW197: 184 | AX197: 92 | AY197: 36.8 | AZ197: 269.7 | BA197: 100 | BB197: 100 | BC197: 200 | BD197: 100 | BE197: 20 | BF197: 100 | BG197: 100 | BH197: 200 | BI197: 100 | BJ197: 20 | BK197: 100 | BL197: 100 | BM197: 200 | BN197: 100 | BO197: 20 | BP197: 100 | BQ197: 100 | BR197: 200 | BS197: 100 | BT197: 20 | BU197: 350 | BV197: 51 | BW197: 21 | BX197: 72 | BY197: 51 | BZ197: 29 | CA197: 80 | CB197: 152 | CC197: 76 | CD197: 30.4 | CE197: 0 | CF197: 0 | CG197: 0 | CH197: 0 | CJ197: 0 | CK197: 0 | CL197: 0 | CM197: 0 | CN197: 0 | CO197: 0 | CP197: 0 | CQ197: 0 | CS197: 0 | CT197: 0 | CU197: 0 | CV197: 0 | CW197: ناجحــــة | CX197: ومنقولة للصف الخامس | DH197: =IFERROR(INDEX($B$7:$B$33,MATCH(0,INDEX(COUNTIF($DH$6:DH196,$B$7:$B$33),),0)),"") -> 
B198: 891 | C198: ندى عماد الدين أبوزيد صابرعبد ربه | D198: 2 | E198: 59 | F198: 39 | G198: 98 | H198: 60 | I198: 40 | J198: 100 | K198: 198 | L198: 99 | M198: 99 | N198: 58 | O198: 32 | P198: 90 | Q198: 56 | R198: 40 | S198: 96 | T198: 186 | U198: 93 | V198: 74.4 | W198: 58 | X198: 34 | Y198: 92 | Z198: 59 | AA198: 40 | AB198: 99 | AC198: 191 | AD198: 95.5 | AE198: 38.2 | AF198: 59 | AG198: 40 | AH198: 99 | AI198: 60 | AJ198: 37 | AK198: 97 | AL198: 196 | AM198: 98 | AN198: 39.2 | AO198: 60 | AP198: 8 | AQ198: 32 | AR198: 100 | AS198: 59 | AT198: 8 | AU198: 30 | AV198: 97 | AW198: 197 | AX198: 98.5 | AY198: 39.4 | AZ198: 290.2 | BA198: 100 | BB198: 100 | BC198: 200 | BD198: 100 | BE198: 20 | BF198: 100 | BG198: 100 | BH198: 200 | BI198: 100 | BJ198: 20 | BK198: 100 | BL198: 100 | BM198: 200 | BN198: 100 | BO198: 20 | BP198: 100 | BQ198: 100 | BR198: 200 | BS198: 100 | BT198: 20 | BU198: 370.5 | BV198: 60 | BW198: 34 | BX198: 94 | BY198: 59 | BZ198: 39 | CA198: 98 | CB198: 192 | CC198: 96 | CD198: 38.4 | CE198: 0 | CF198: 0 | CG198: 0 | CH198: 0 | CJ198: 0 | CK198: 0 | CL198: 0 | CM198: 0 | CN198: 0 | CO198: 0 | CP198: 0 | CQ198: 0 | CS198: 0 | CT198: 0 | CU198: 0 | CV198: 0 | CW198: ناجحــــة | CX198: ومنقولة للصف الخامس | DH198: =IFERROR(INDEX($B$7:$B$33,MATCH(0,INDEX(COUNTIF($DH$6:DH197,$B$7:$B$33),),0)),"") -> 
B199: 892 | C199: نور طارق إسماعيل عبد الغنى | D199: 2 | E199: 60 | F199: 39 | G199: 99 | H199: 60 | I199: 39 | J199: 99 | K199: 198 | L199: 99 | M199: 99 | N199: 59 | O199: 32 | P199: 91 | Q199: 59 | R199: 40 | S199: 99 | T199: 190 | U199: 95 | V199: 76 | W199: 56 | X199: 37 | Y199: 93 | Z199: 56 | AA199: 40 | AB199: 96 | AC199: 189 | AD199: 94.5 | AE199: 37.8 | AF199: 60 | AG199: 40 | AH199: 100 | AI199: 60 | AJ199: 40 | AK199: 100 | AL199: 200 | AM199: 100 | AN199: 40 | AO199: 60 | AP199: 8 | AQ199: 32 | AR199: 100 | AS199: 60 | AT199: 8 | AU199: 28 | AV199: 96 | AW199: 196 | AX199: 98 | AY199: 39.2 | AZ199: 292 | BA199: 100 | BB199: 100 | BC199: 200 | BD199: 100 | BE199: 20 | BF199: 100 | BG199: 100 | BH199: 200 | BI199: 100 | BJ199: 20 | BK199: 100 | BL199: 100 | BM199: 200 | BN199: 100 | BO199: 20 | BP199: 100 | BQ199: 100 | BR199: 200 | BS199: 100 | BT199: 20 | BU199: 372 | BV199: 56 | BW199: 32 | BX199: 88 | BY199: 60 | BZ199: 38 | CA199: 98 | CB199: 186 | CC199: 93 | CD199: 37.2 | CE199: 0 | CF199: 0 | CG199: 0 | CH199: 0 | CJ199: 0 | CK199: 0 | CL199: 0 | CM199: 0 | CN199: 0 | CO199: 0 | CP199: 0 | CQ199: 0 | CS199: 0 | CT199: 0 | CU199: 0 | CV199: 0 | CW199: ناجحــــة | CX199: ومنقولة للصف الخامس | DH199: =IFERROR(INDEX($B$7:$B$33,MATCH(0,INDEX(COUNTIF($DH$6:DH198,$B$7:$B$33),),0)),"") -> 
B200: 893 | C200: نورا جمال سعد سليم | D200: 2 | E200: 60 | F200: 40 | G200: 100 | H200: 60 | I200: 40 | J200: 100 | K200: 200 | L200: 100 | M200: 100 | N200: 59 | O200: 32 | P200: 91 | Q200: 57 | R200: 40 | S200: 97 | T200: 188 | U200: 94 | V200: 75.2 | W200: 60 | X200: 40 | Y200: 100 | Z200: 50 | AA200: 40 | AB200: 90 | AC200: 190 | AD200: 95 | AE200: 38 | AF200: 60 | AG200: 40 | AH200: 100 | AI200: 60 | AJ200: 40 | AK200: 100 | AL200: 200 | AM200: 100 | AN200: 40 | AO200: 59 | AP200: 8 | AQ200: 32 | AR200: 99 | AS200: 59 | AT200: 8 | AU200: 30 | AV200: 97 | AW200: 196 | AX200: 98 | AY200: 39.2 | AZ200: 292.4 | BA200: 100 | BB200: 100 | BC200: 200 | BD200: 100 | BE200: 20 | BF200: 100 | BG200: 100 | BH200: 200 | BI200: 100 | BJ200: 20 | BK200: 100 | BL200: 100 | BM200: 200 | BN200: 100 | BO200: 20 | BP200: 100 | BQ200: 100 | BR200: 200 | BS200: 100 | BT200: 20 | BU200: 372.5 | BV200: 54 | BW200: 29 | BX200: 83 | BY200: 59 | BZ200: 37 | CA200: 96 | CB200: 179 | CC200: 89.5 | CD200: 35.8 | CE200: 0 | CF200: 0 | CG200: 0 | CH200: 0 | CJ200: 0 | CK200: 0 | CL200: 0 | CM200: 0 | CN200: 0 | CO200: 0 | CP200: 0 | CQ200: 0 | CS200: 0 | CT200: 0 | CU200: 0 | CV200: 0 | CW200: ناجحــــة | CX200: ومنقولة للصف الخامس | DH200: =IFERROR(INDEX($B$7:$B$33,MATCH(0,INDEX(COUNTIF($DH$6:DH199,$B$7:$B$33),),0)),"") -> 
... 55 more rows

Sheet 4شهادات
B1: اداره / ......... | F1: بيان درجات طالب | T1: عام
B2: مدرسه / ...............
B3: الاســم | C3: =IFERROR(VLOOKUP($M$3,'رصد الترم الثانى'!$B$7:$C$212,2,0),"") -> اسلام محمدي عبد السميع عبد الغني | K3: رقم الجلوس | M3: 700 | AI3: 702
B4: المادة | C4: المـواد التى تضـاف للمجمـوع الكلـى | L4: المجموع الكلى | M4: لاتضاف للمجموع
C5: لغة عربية | D5: رياضيات | E5: دراسات | F5: لغة | G5: علـــوم | H5: الأنشطة التربوية اللاصفية | M5: تربية | N5: مستوىE | O5: مستوىF
C6: وخط | E6: إجتماعية | F6: أجنبية | H6: الفنى | I6: الرياضى | J6: إختيارى1 | K6: إختيارى2 | M6: دينية | R6: من | S6: الى
B7: النهاية الكبرى | C7: 100 | D7: 80 | E7: 40 | F7: 40 | G7: 40 | H7: 20 | I7: 20 | J7: 20 | K7: 20 | L7: 380 | M7: 40 | O7: 40 | R7: 7 | S7: 35
B8: النهاية الصغرى | C8: =C7/2 -> 50 | D8: =D7/2 -> 40 | E8: 20 | F8: 20 | G8: 20 | H8: 10 | I8: 10 | J8: 10 | K8: 10 | L8: 190 | M8: 20 | N8: 20 | O8: 20
B9: الدرجه | C9: =IFERROR(VLOOKUP($M$3,'رصد الترم الثانى'!$B$7:$CX$212,12,0),"") -> 99.5 | D9: =IFERROR(VLOOKUP($M$3,'رصد الترم الثانى'!$B$7:$CX$212,21,0),"") -> 79.2 | E9: =IFERROR(VLOOKUP($M$3,'رصد الترم الثانى'!$B$7:$CX$212,30,0),"") -> 39.2 | F9: =IFERROR(VLOOKUP($M$3,'رصد الترم الثانى'!$B$7:$CX$212,39,0),"") -> 39.6 | G9: =IFERROR(VLOOKUP($M$3,'رصد الترم الثانى'!$B$7:$CX$212,50,0),"") -> 40 | H9: =IFERROR(VLOOKUP($M$3,'رصد الترم الثانى'!$B$7:$CX$212,56,0),"") -> 20 | I9: =IFERROR(VLOOKUP($M$3,'رصد الترم الثانى'!$B$7:$CX$212,61,0),"") -> 20 | J9: =IFERROR(VLOOKUP($M$3,'رصد الترم الثانى'!$B$7:$CX$212,66,0),"") -> 20 | K9: =IFERROR(VLOOKUP($M$3,'رصد الترم الثانى'!$B$7:$CX$212,71,0),"") -> 20 | L9: =SUM(C9:K9) -> 377.5 | M9: =IFERROR(VLOOKUP($M$3,'رصد الترم الثانى'!$B$7:$CX$212,81,0),"") -> 37.8
B10: النسبة المئوية
B11: التقدير | H11: =IFERROR(VLOOKUP($M$3,'رصد الترم الثانى'!$B$7:$CW$212,100,0),"") -> ناجــــح | J11: =IFERROR(VLOOKUP($M$3,'رصد الترم الثانى'!$B$7:$CX$212,101,0),"") -> ومنقول للصف الخامس
B12: النتيجة
G13: المراجعون | I13: رئيس لجنه النظام والمراقبه | L13: مدير المدرسه
B17: اداره / ......... | F17: بيان درجات طالب | Q17: =Q1+1 -> 1
B18: مدرسه / ...............
B19: الاســم | C19: =IFERROR(VLOOKUP($M$19,'رصد الترم الثانى'!$B$7:$C$212,2,0),"") -> السيد شريف عبد العليم السيد | K19: رقم الجلوس | M19: 701 | AY19: 713
B20: المادة | C20: المـواد التى تضـاف للمجمـوع الكلـى | L20: المجموع الكلى | M20: لاتضاف للمجموع
C21: لغة عربية | D21: رياضيات | E21: دراسات | F21: لغة | G21: علـــوم | H21: الأنشطة التربوية اللاصفية | M21: تربية | N21: مستوىE | O21: مستوىF
C22: وخط | E22: إجتماعية | F22: أجنبية | H22: الفنى | I22: الرياضى | J22: إختيارى1 | K22: إختيارى2 | M22: دينية
B23: النهاية الكبرى | C23: 100 | D23: 80 | E23: 40 | F23: 40 | G23: 40 | H23: 20 | I23: 20 | J23: 20 | K23: 20 | L23: 380 | M23: 40 | O23: 40
B24: النهاية الصغرى | C24: =C23/2 -> 50 | D24: 40 | E24: 20 | F24: 20 | G24: 20 | H24: 10 | I24: 10 | J24: 10 | K24: 10 | L24: 190 | M24: 20 | N24: 20 | O24: 20
B25: الدرجه | C25: =IFERROR(VLOOKUP($M$19,'رصد الترم الثانى'!$B$7:$CX$212,12,0),"") -> 64 | D25: =IFERROR(VLOOKUP($M$19,'رصد الترم الثانى'!$B$7:$CX$212,21,0),"") -> 55.2 | E25: =IFERROR(VLOOKUP($M$19,'رصد الترم الثانى'!$B$7:$CX$212,30,0),"") -> 28.8 | F25: =IFERROR(VLOOKUP($M$19,'رصد الترم الثانى'!$B$7:$CX$212,39,0),"") -> 34.8 | G25: =IFERROR(VLOOKUP($M$19,'رصد الترم الثانى'!$B$7:$CX$212,50,0),"") -> 33.6 | H25: =IFERROR(VLOOKUP($M$19,'رصد الترم الثانى'!$B$7:$CX$212,56,0),"") -> 20 | I25: =IFERROR(VLOOKUP($M$19,'رصد الترم الثانى'!$B$7:$CX$212,61,0),"") -> 20 | J25: =IFERROR(VLOOKUP($M$19,'رصد الترم الثانى'!$B$7:$CX$212,66,0),"") -> 20 | K25: =IFERROR(VLOOKUP($M$19,'رصد الترم الثانى'!$B$7:$CX$212,71,0),"") -> 20 | L25: =SUM(C25:K25) -> 296.4 | M25: =IFERROR(VLOOKUP($M$19,'رصد الترم الثانى'!$B$7:$CX$212,81,0),"") -> 25.2
B26: النسبة المئوية
B27: التقدير | H27: =IFERROR(VLOOKUP($M$19,'رصد الترم الثانى'!$B$7:$CX$212,100,0),"") -> ناجــــح | J27: =IFERROR(VLOOKUP($M$19,'رصد الترم الثانى'!$B$7:$CX$212,101,0),"") -> ومنقول للصف الخامس
B28: النتيجة
G29: المراجعون | I29: رئيس لجنه النظام والمراقبه | L29: مدير المدرسه
B33: اداره / ......... | F33: بيان درجات طالب
B34: مدرسه / ...............
B35: الاســم | C35: =IFERROR(VLOOKUP($M$35,'رصد الترم الثانى'!$B$7:$C$212,2,0),"") -> السيد صلاح السيد محمد | K35: رقم الجلوس | M35: 702
B36: المادة | C36: المـواد التى تضـاف للمجمـوع الكلـى | L36: المجموع الكلى | M36: لاتضاف للمجموع
C37: لغة عربية | D37: رياضيات | E37: دراسات | F37: لغة | G37: علـــوم | H37: الأنشطة التربوية اللاصفية | M37: تربية | N37: مستوىE | O37: مستوىF
C38: وخط | E38: إجتماعية | F38: أجنبية | H38: الفنى | I38: الرياضى | J38: إختيارى1 | K38: إختيارى2 | M38: دينية
B39: النهاية الكبرى | C39: 100 | D39: 80 | E39: 40 | F39: 40 | G39: 40 | H39: 20 | I39: 20 | J39: 20 | K39: 20 | L39: 380 | M39: 40 | O39: 40
B40: النهاية الصغرى | C40: =C39/2 -> 50 | D40: =D39/2 -> 40 | E40: 20 | F40: 20 | G40: 20 | H40: 10 | I40: 10 | J40: 10 | K40: 10 | L40: 190 | M40: 20 | N40: 20 | O40: 20
B41: الدرجه | C41: =IFERROR(VLOOKUP($M$35,'رصد الترم الثانى'!$B$7:$CX$212,12,0),"") -> 99 | D41: =IFERROR(VLOOKUP($M$35,'رصد الترم الثانى'!$B$7:$CX$212,21,0),"") -> 75.2 | E41: =IFERROR(VLOOKUP($M$35,'رصد الترم الثانى'!$B$7:$CX$212,30,0),"") -> 37.8 | F41: =IFERROR(VLOOKUP($M$35,'رصد الترم الثانى'!$B$7:$CX$212,39,0),"") -> 39.8 | G41: =IFERROR(VLOOKUP($M$35,'رصد الترم الثانى'!$B$7:$CX$212,50,0),"") -> 39.2 | H41: =IFERROR(VLOOKUP($M$35,'رصد الترم الثانى'!$B$7:$CX$212,56,0),"") -> 20 | I41: =IFERROR(VLOOKUP($M$35,'رصد الترم الثانى'!$B$7:$CX$212,61,0),"") -> 20 | J41: =IFERROR(VLOOKUP($M$35,'رصد الترم الثانى'!$B$7:$CX$212,66,0),"") -> 20 | K41: =IFERROR(VLOOKUP($M$35,'رصد الترم الثانى'!$B$7:$CX$212,71,0),"") -> 20 | L41: =SUM(C41:K41) -> 371 | M41: =IFERROR(VLOOKUP($M$35,'رصد الترم الثانى'!$B$7:$CX$212,81,0),"") -> 36.8
B42: النسبة المئوية
B43: التقدير | H43: =IFERROR(VLOOKUP($M$35,'رصد الترم الثانى'!$B$7:$CW$212,100,0),"") -> ناجــــح | J43: =IFERROR(VLOOKUP($M$35,'رصد الترم الثانى'!$B$7:$CX$212,101,0),"") -> ومنقول للصف الخامس
B44: النتيجة
G45: المراجعون | I45: رئيس لجنه النظام والمراقبه | L45: مدير المدرسه
B48: ...............................................................................................................................................................................................................................................................
B49: اداره / ......... | F49: بيان درجات طالب
B50: مدرسه / ...............
B51: الاســم | C51: =IFERROR(VLOOKUP($M$51,'رصد الترم الثانى'!$B$7:$C$212,2,0),"") -> أحمد أشرف محمد سيدأحمد | K51: رقم الجلوس | M51: 703
B52: المادة | C52: المـواد التى تضـاف للمجمـوع الكلـى | L52: المجموع الكلى | M52: لاتضاف للمجموع
C53: لغة عربية | D53: رياضيات | E53: دراسات | F53: لغة | G53: علـــوم | H53: الأنشطة التربوية اللاصفية | M53: تربية | N53: مستوىE | O53: مستوىF
C54: وخط | E54: إجتماعية | F54: أجنبية | H54: الفنى | I54: الرياضى | J54: إختيارى1 | K54: إختيارى2 | M54: دينية
B55: النهاية الكبرى | C55: 100 | D55: 80 | E55: 40 | F55: 40 | G55: 40 | H55: 20 | I55: 20 | J55: 20 | K55: 20 | L55: 380 | M55: 40 | O55: 40
B56: النهاية الصغرى | C56: =C55/2 -> 50 | D56: 40 | E56: 20 | F56: 20 | G56: 20 | H56: 10 | I56: 10 | J56: 10 | K56: 10 | L56: 190 | M56: 20 | N56: 20 | O56: 20
B57: الدرجه | C57: =IFERROR(VLOOKUP($M$51,'رصد الترم الثانى'!$B$7:$CX$212,12,0),"") -> 57.5 | D57: =IFERROR(VLOOKUP($M$51,'رصد الترم الثانى'!$B$7:$CX$212,21,0),"") -> 56.4 | E57: =IFERROR(VLOOKUP($M$51,'رصد الترم الثانى'!$B$7:$CX$212,30,0),"") -> 19.4 | F57: =IFERROR(VLOOKUP($M$51,'رصد الترم الثانى'!$B$7:$CX$212,39,0),"") -> 27 | G57: =IFERROR(VLOOKUP($M$51,'رصد الترم الثانى'!$B$7:$CX$212,50,0),"") -> 27.2 | H57: =IFERROR(VLOOKUP($M$51,'رصد الترم الثانى'!$B$7:$CX$212,56,0),"") -> 19.1 | I57: =IFERROR(VLOOKUP($M$51,'رصد الترم الثانى'!$B$7:$CX$212,61,0),"") -> 20 | J57: =IFERROR(VLOOKUP($M$51,'رصد الترم الثانى'!$B$7:$CX$212,66,0),"") -> 20 | K57: =IFERROR(VLOOKUP($M$51,'رصد الترم الثانى'!$B$7:$CX$212,71,0),"") -> 20 | L57: =SUM(C57:K57) -> 266.6 | M57: =IFERROR(VLOOKUP($M$51,'رصد الترم الثانى'!$B$7:$CX$212,81,0),"") -> 23.4
B58: النسبة المئوية
B59: التقدير | H59: =IFERROR(VLOOKUP($M$51,'رصد الترم الثانى'!$B$7:$CW$212,100,0),"") -> ناجــــح | J59: =IFERROR(VLOOKUP($M$51,'رصد الترم الثانى'!$B$7:$CX$212,101,0),"") -> عربى،دراسات،
B60: النتيجة
G61: المراجعون | I61: رئيس لجنه النظام والمراقبه | L61: مدير المدرسه
